Workbook

Sheet Introduction
A2: ICS
A3: Version 2.0
A5: Update
A6: 2020-04-16
B8: CONTACTS
B9: Valerio Micale | C9: valerio.micale@cpiclimatefinance.org
B11: INTRODUCTION
B12: 1. OBJECTIVE: The objective of the Investment Criteria Scorecard (ICS) tool is to support the GCF Secretariat in the assessment of funding proposals against the GCF’s investment criteria, thus informing the selection of the strongest projects and programmes.
B13: 2. GENERAL WORKFLOW: The workflow of the ICS tool is structured as follows: 1. The User assesses individual indicators within each sub-criterion; 2. The average of indicators forms the sub-criterion score; 3. The weighting system then determines the criterion score under the selected project/programme circumstance (see below).
B15: 3. INSTRUCTIONS FOR ICS TOOL USERS: 1. Complete the "Input Sheet" tab. The sheet comprises a set of quantitative and qualitative questions that can be answered based on information available in the Funding Proposal (FP) submitted by the Accredited Entity (AE): Quantitative questions require the user to insert a specific value included in the Funding Proposal. Qualitative questions work as YES/NO checklists to verify the availability of evidence to back up the proposal's impact statement, and the completeness and quality of information.
B16: 2. Review results. Once the assessment is complete, the results are automatically calculated and a score displayed for each individual GCF criterion in the "Evaluation Summary Form" tab. 3. Complete final assessment of the Funding Proposal against the six GCF criteria, in the "Evaluation Summary Form" tab. The section allows end users to adjust values if needed.
B18: LEGEND
B19: 1. COLOR CODES:
B20: Direct input
B21: Drop-down input
B23: 2. SCORING CONVERSION
B24: Quantitative score | C24: 1 | D24: 2 | E24: 3 | F24: 4 | G24: 5
B25: Qualitative score | C25: Low | D25: Medium-Low | E25: Medium | F25: Medium-high | G25: High
B28: LIST OF RESOURCES FOR THE ICS TOOL
B29: For more information on the ICS tool, please refer to the following documents (in order of relevance):
B30: 1. User Manual - ICS Guidance - For an introductory, summary overview of the tool, and a visual description of how to perform the assessment. Recommended for the users of the ICS tool.
B31: 2. ICS Documentation - Investment Criteria Scorecard and Indicators - Provides a description of the approach used for the ICS including a detailed explanation of how the ICS tool works, an overview of the approach used to define the weights at the level of sub-criterion and the benchmarks used for quantitative assessment, and an in depth description of the calculation methodology and process used for each individual indicator, as well as recommendations for the maintenance and further improvement of the tool.
B32: 3. ICS Blueprint – Development of an ICS for the Green Climate Fund - provides an overview of GCF requirements initially identified for the ICS and best practices from comparable initiatives
B35: DISCLAIMER
B36: All information contained herein – particularly data used for the benchmarks in quantitative calculations - is obtained by CPI and Acclimatise from (or based on) sources believed by to be accurate and reliable, and provided “as is” without warranty of any kind. Neither CPI or Acclimatise accept any liability to any person or entity for (a) any loss or damage in whole or in part caused by, resulting from, or relating to, any error (negligent or otherwise) or other circumstance or contingency within or outside the control of CPI and Acclimatise or any of its directors, officers, employees or agents in connection with the procurement, collection, compilation, analysis, interpretation, communication, publication or delivery of any such information, or (b) any direct, indirect, special, consequential, compensatory or incidental damages whatsoever (including without limitation, lost profits). The scores, benchmarks, results from the assessment via qualitative check list, constituting part of the information contained herein are, and must be construed solely as, statements of opinion and not statements of fact or recommendations. The outcomes of the scores derived from the use of the ICS - as they depend on the input choices of the end-users – remain those of the tool’s end user and do not reflect the views and choices of CPI or Acclimatise.

Sheet Input Sheet
B1: Input Sheet | F1: Data entry control
A3: Type | B3: Item | C3: Instructions | D3: Drop-down input | E3: Direct input | F3: Errors | G3: Country emissions (tCO2/yr) | I3: Country population | M3: =IF(COUNT(P26:P65)=COUNT(E26:E65),"National IHDI","National HDI") -> National IHDI | Q3: ND-GAIN vulnerability index
B5: RELEVANT FOR MULTIPLE INDICATORS
A7: All | B7: Project financing
B8: GCF financing (USD) | C8: Insert GCF financing in USD
B9: Co-financing (USD) | C9: Insert co-financing in USD
A11: All | B11: Project type
B12: Result Area
B13: 1. Energy generation / access | C13: Insert share of result-area component in project | F13: =IF(COUNT(E13:E20)=0,"",IF(E13+E14+E15+E16+E17+E18+E19+E20=1,"","Error: amend share")) -> 
B14: 2. Transport | C14: Insert share of result-area component in project
B15: 3. Buildings, cities, industries and appliances | C15: Insert share of result-area component in project
B16: 4. Forests and Land Use | C16: Insert share of result-area component in project
B17: 5. Livelihoods of vulnerable people & communities | C17: Insert share of result-area component in project
B18: 6. Health and well-being, and food & water security | C18: Insert share of result-area component in project
B19: 7. Infrastructure & built environment | C19: Insert share of result-area component in project
B20: 8. Ecosystem & ecosystem services | C20: Insert share of result-area component in project
B21: Sector
B22: Private | C22: Insert share of private component in project = (private)/(private+public) | F22: =IF(COUNT(E22:E23)=0,"",IF(E22+E23=1,"","Error: amend share")) -> 
B23: Public | C23: Insert share of public component in project = (public)/(private+public)
A25: All | B25: Target countries (pls select countries in subsequent rows) | F25: =IF(COUNTA($D$26:$E$65)=0,"",IF(AND(SUM($E$26:$E$65)=1,COUNT($E$26:$E$65)=COUNTA($D$26:$D$65),COUNTIF($F$26:$F$65,"-> redundant country entry")=0),"","Error: amend share or countries")) ->  | G25: =IF(COUNTIF(H26:H65,"n/a")=0,"","Error: find proxy data") ->  | J25: =IF(COUNTIF(K26:K65,"n/a")=0,"","Error: find proxy data") ->  | M25: =IF(COUNTIF(N26:N65,"n/a")=0,"","Error: find proxy data") ->  | Q25: =IF(COUNTIF(R26:R65,"n/a")=0,"","Error: find proxy data") -> 
B26: Country 1 | C26: Insert country name and share (or equal shares when data is not available) | F26: =IF(D26="OTHER","",IF(COUNTIF($D$26:$D$65,D26)>1,"-> redundant country entry","")) ->  | H26: =IF(AND(I26="n/a",G26>0),G26,I26) ->  | I26: =IF(COUNTA(D26:E26)=2,IFERROR(INDEX('COUNTRY BENCHMARK'!B:B,MATCH($D26,'COUNTRY BENCHMARK'!A:A,0)),""),"") ->  | K26: =IF(AND(L26="n/a",J26>0),J26,L26) ->  | L26: =IF(COUNTA(D26:E26)=2,IFERROR(INDEX('COUNTRY BENCHMARK'!C:C,MATCH($D26,'COUNTRY BENCHMARK'!A:A,0)),""),"") ->  | N26: =IF(AND(O26="n/a",M26>0),M26,O26) ->  | O26: =IF(COUNTA(D26:E26)=2,IF($M$3="national IHDI",IFERROR(INDEX('COUNTRY BENCHMARK'!D:D,MATCH($D26,'COUNTRY BENCHMARK'!A:A,0)),""),IFERROR(INDEX('COUNTRY BENCHMARK'!E:E,MATCH($D26,'COUNTRY BENCHMARK'!A:A,0)),"")),"") ->  | P26: =IFERROR(INDEX('COUNTRY BENCHMARK'!D:D,MATCH($D26,'COUNTRY BENCHMARK'!A:A,0)),"") ->  | R26: =IF(AND(S26="n/a",Q26>0),Q26,S26) ->  | S26: =IF(COUNTA(D26:E26)=2,IFERROR(INDEX('COUNTRY BENCHMARK'!F:F,MATCH($D26,'COUNTRY BENCHMARK'!A:A,0)),""),"") -> 
B27: Country 2 | C27: " | F27: =IF(D27="OTHER","",IF(COUNTIF($D$26:$D$65,D27)>1,"-> redundant country entry","")) ->  | I27: =IF(COUNTA(D27:E27)=2,IFERROR(INDEX('COUNTRY BENCHMARK'!B:B,MATCH($D27,'COUNTRY BENCHMARK'!A:A,0)),""),"") ->  | L27: =IF(COUNTA(D27:E27)=2,IFERROR(INDEX('COUNTRY BENCHMARK'!C:C,MATCH($D27,'COUNTRY BENCHMARK'!A:A,0)),""),"") ->  | O27: =IF(COUNTA(D27:E27)=2,IF($M$3="national IHDI",IFERROR(INDEX('COUNTRY BENCHMARK'!D:D,MATCH($D27,'COUNTRY BENCHMARK'!A:A,0)),""),IFERROR(INDEX('COUNTRY BENCHMARK'!E:E,MATCH($D27,'COUNTRY BENCHMARK'!A:A,0)),"")),"") ->  | P27: =IFERROR(INDEX('COUNTRY BENCHMARK'!D:D,MATCH($D27,'COUNTRY BENCHMARK'!A:A,0)),"") ->  | R27: =IF(AND(S27="n/a",Q27>0),Q27,S27) ->  | S27: =IF(COUNTA(D27:E27)=2,IFERROR(INDEX('COUNTRY BENCHMARK'!F:F,MATCH($D27,'COUNTRY BENCHMARK'!A:A,0)),""),"") -> 
B28: Country 3 | C28: " | I28: =IF(COUNTA(D28:E28)=2,IFERROR(INDEX('COUNTRY BENCHMARK'!B:B,MATCH($D28,'COUNTRY BENCHMARK'!A:A,0)),""),"") ->  | L28: =IF(COUNTA(D28:E28)=2,IFERROR(INDEX('COUNTRY BENCHMARK'!C:C,MATCH($D28,'COUNTRY BENCHMARK'!A:A,0)),""),"") ->  | O28: =IF(COUNTA(D28:E28)=2,IF($M$3="national IHDI",IFERROR(INDEX('COUNTRY BENCHMARK'!D:D,MATCH($D28,'COUNTRY BENCHMARK'!A:A,0)),""),IFERROR(INDEX('COUNTRY BENCHMARK'!E:E,MATCH($D28,'COUNTRY BENCHMARK'!A:A,0)),"")),"") ->  | P28: =IFERROR(INDEX('COUNTRY BENCHMARK'!D:D,MATCH($D28,'COUNTRY BENCHMARK'!A:A,0)),"") ->  | S28: =IF(COUNTA(D28:E28)=2,IFERROR(INDEX('COUNTRY BENCHMARK'!F:F,MATCH($D28,'COUNTRY BENCHMARK'!A:A,0)),""),"") -> 
B29: Country 4 | C29: " | I29: =IF(COUNTA(D29:E29)=2,IFERROR(INDEX('COUNTRY BENCHMARK'!B:B,MATCH($D29,'COUNTRY BENCHMARK'!A:A,0)),""),"") ->  | L29: =IF(COUNTA(D29:E29)=2,IFERROR(INDEX('COUNTRY BENCHMARK'!C:C,MATCH($D29,'COUNTRY BENCHMARK'!A:A,0)),""),"") ->  | O29: =IF(COUNTA(D29:E29)=2,IF($M$3="national IHDI",IFERROR(INDEX('COUNTRY BENCHMARK'!D:D,MATCH($D29,'COUNTRY BENCHMARK'!A:A,0)),""),IFERROR(INDEX('COUNTRY BENCHMARK'!E:E,MATCH($D29,'COUNTRY BENCHMARK'!A:A,0)),"")),"") ->  | P29: =IFERROR(INDEX('COUNTRY BENCHMARK'!D:D,MATCH($D29,'COUNTRY BENCHMARK'!A:A,0)),"") ->  | S29: =IF(COUNTA(D29:E29)=2,IFERROR(INDEX('COUNTRY BENCHMARK'!F:F,MATCH($D29,'COUNTRY BENCHMARK'!A:A,0)),""),"") -> 
B30: Country 5 | C30: " | I30: =IF(COUNTA(D30:E30)=2,IFERROR(INDEX('COUNTRY BENCHMARK'!B:B,MATCH($D30,'COUNTRY BENCHMARK'!A:A,0)),""),"") ->  | L30: =IF(COUNTA(D30:E30)=2,IFERROR(INDEX('COUNTRY BENCHMARK'!C:C,MATCH($D30,'COUNTRY BENCHMARK'!A:A,0)),""),"") ->  | O30: =IF(COUNTA(D30:E30)=2,IF($M$3="national IHDI",IFERROR(INDEX('COUNTRY BENCHMARK'!D:D,MATCH($D30,'COUNTRY BENCHMARK'!A:A,0)),""),IFERROR(INDEX('COUNTRY BENCHMARK'!E:E,MATCH($D30,'COUNTRY BENCHMARK'!A:A,0)),"")),"") ->  | P30: =IFERROR(INDEX('COUNTRY BENCHMARK'!D:D,MATCH($D30,'COUNTRY BENCHMARK'!A:A,0)),"") ->  | S30: =IF(COUNTA(D30:E30)=2,IFERROR(INDEX('COUNTRY BENCHMARK'!F:F,MATCH($D30,'COUNTRY BENCHMARK'!A:A,0)),""),"") -> 
B31: Country 6 | C31: " | I31: =IF(COUNTA(D31:E31)=2,IFERROR(INDEX('COUNTRY BENCHMARK'!B:B,MATCH($D31,'COUNTRY BENCHMARK'!A:A,0)),""),"") ->  | L31: =IF(COUNTA(D31:E31)=2,IFERROR(INDEX('COUNTRY BENCHMARK'!C:C,MATCH($D31,'COUNTRY BENCHMARK'!A:A,0)),""),"") ->  | O31: =IF(COUNTA(D31:E31)=2,IF($M$3="national IHDI",IFERROR(INDEX('COUNTRY BENCHMARK'!D:D,MATCH($D31,'COUNTRY BENCHMARK'!A:A,0)),""),IFERROR(INDEX('COUNTRY BENCHMARK'!E:E,MATCH($D31,'COUNTRY BENCHMARK'!A:A,0)),"")),"") ->  | P31: =IFERROR(INDEX('COUNTRY BENCHMARK'!D:D,MATCH($D31,'COUNTRY BENCHMARK'!A:A,0)),"") ->  | S31: =IF(COUNTA(D31:E31)=2,IFERROR(INDEX('COUNTRY BENCHMARK'!F:F,MATCH($D31,'COUNTRY BENCHMARK'!A:A,0)),""),"") -> 
B32: Country 7 | C32: " | I32: =IF(COUNTA(D32:E32)=2,IFERROR(INDEX('COUNTRY BENCHMARK'!B:B,MATCH($D32,'COUNTRY BENCHMARK'!A:A,0)),""),"") ->  | L32: =IF(COUNTA(D32:E32)=2,IFERROR(INDEX('COUNTRY BENCHMARK'!C:C,MATCH($D32,'COUNTRY BENCHMARK'!A:A,0)),""),"") ->  | O32: =IF(COUNTA(D32:E32)=2,IF($M$3="national IHDI",IFERROR(INDEX('COUNTRY BENCHMARK'!D:D,MATCH($D32,'COUNTRY BENCHMARK'!A:A,0)),""),IFERROR(INDEX('COUNTRY BENCHMARK'!E:E,MATCH($D32,'COUNTRY BENCHMARK'!A:A,0)),"")),"") ->  | P32: =IFERROR(INDEX('COUNTRY BENCHMARK'!D:D,MATCH($D32,'COUNTRY BENCHMARK'!A:A,0)),"") ->  | S32: =IF(COUNTA(D32:E32)=2,IFERROR(INDEX('COUNTRY BENCHMARK'!F:F,MATCH($D32,'COUNTRY BENCHMARK'!A:A,0)),""),"") -> 
B33: Country 8 | C33: " | I33: =IF(COUNTA(D33:E33)=2,IFERROR(INDEX('COUNTRY BENCHMARK'!B:B,MATCH($D33,'COUNTRY BENCHMARK'!A:A,0)),""),"") ->  | L33: =IF(COUNTA(D33:E33)=2,IFERROR(INDEX('COUNTRY BENCHMARK'!C:C,MATCH($D33,'COUNTRY BENCHMARK'!A:A,0)),""),"") ->  | O33: =IF(COUNTA(D33:E33)=2,IF($M$3="national IHDI",IFERROR(INDEX('COUNTRY BENCHMARK'!D:D,MATCH($D33,'COUNTRY BENCHMARK'!A:A,0)),""),IFERROR(INDEX('COUNTRY BENCHMARK'!E:E,MATCH($D33,'COUNTRY BENCHMARK'!A:A,0)),"")),"") ->  | P33: =IFERROR(INDEX('COUNTRY BENCHMARK'!D:D,MATCH($D33,'COUNTRY BENCHMARK'!A:A,0)),"") ->  | S33: =IF(COUNTA(D33:E33)=2,IFERROR(INDEX('COUNTRY BENCHMARK'!F:F,MATCH($D33,'COUNTRY BENCHMARK'!A:A,0)),""),"") -> 
B34: Country 9 | C34: " | I34: =IF(COUNTA(D34:E34)=2,IFERROR(INDEX('COUNTRY BENCHMARK'!B:B,MATCH($D34,'COUNTRY BENCHMARK'!A:A,0)),""),"") ->  | L34: =IF(COUNTA(D34:E34)=2,IFERROR(INDEX('COUNTRY BENCHMARK'!C:C,MATCH($D34,'COUNTRY BENCHMARK'!A:A,0)),""),"") ->  | O34: =IF(COUNTA(D34:E34)=2,IF($M$3="national IHDI",IFERROR(INDEX('COUNTRY BENCHMARK'!D:D,MATCH($D34,'COUNTRY BENCHMARK'!A:A,0)),""),IFERROR(INDEX('COUNTRY BENCHMARK'!E:E,MATCH($D34,'COUNTRY BENCHMARK'!A:A,0)),"")),"") ->  | P34: =IFERROR(INDEX('COUNTRY BENCHMARK'!D:D,MATCH($D34,'COUNTRY BENCHMARK'!A:A,0)),"") ->  | S34: =IF(COUNTA(D34:E34)=2,IFERROR(INDEX('COUNTRY BENCHMARK'!F:F,MATCH($D34,'COUNTRY BENCHMARK'!A:A,0)),""),"") -> 
B35: Country 10 | C35: " | I35: =IF(COUNTA(D35:E35)=2,IFERROR(INDEX('COUNTRY BENCHMARK'!B:B,MATCH($D35,'COUNTRY BENCHMARK'!A:A,0)),""),"") ->  | L35: =IF(COUNTA(D35:E35)=2,IFERROR(INDEX('COUNTRY BENCHMARK'!C:C,MATCH($D35,'COUNTRY BENCHMARK'!A:A,0)),""),"") ->  | O35: =IF(COUNTA(D35:E35)=2,IF($M$3="national IHDI",IFERROR(INDEX('COUNTRY BENCHMARK'!D:D,MATCH($D35,'COUNTRY BENCHMARK'!A:A,0)),""),IFERROR(INDEX('COUNTRY BENCHMARK'!E:E,MATCH($D35,'COUNTRY BENCHMARK'!A:A,0)),"")),"") ->  | P35: =IFERROR(INDEX('COUNTRY BENCHMARK'!D:D,MATCH($D35,'COUNTRY BENCHMARK'!A:A,0)),"") ->  | S35: =IF(COUNTA(D35:E35)=2,IFERROR(INDEX('COUNTRY BENCHMARK'!F:F,MATCH($D35,'COUNTRY BENCHMARK'!A:A,0)),""),"") -> 
B36: Country 11 | C36: " | I36: =IF(COUNTA(D36:E36)=2,IFERROR(INDEX('COUNTRY BENCHMARK'!B:B,MATCH($D36,'COUNTRY BENCHMARK'!A:A,0)),""),"") ->  | L36: =IF(COUNTA(D36:E36)=2,IFERROR(INDEX('COUNTRY BENCHMARK'!C:C,MATCH($D36,'COUNTRY BENCHMARK'!A:A,0)),""),"") ->  | O36: =IF(COUNTA(D36:E36)=2,IF($M$3="national IHDI",IFERROR(INDEX('COUNTRY BENCHMARK'!D:D,MATCH($D36,'COUNTRY BENCHMARK'!A:A,0)),""),IFERROR(INDEX('COUNTRY BENCHMARK'!E:E,MATCH($D36,'COUNTRY BENCHMARK'!A:A,0)),"")),"") ->  | P36: =IFERROR(INDEX('COUNTRY BENCHMARK'!D:D,MATCH($D36,'COUNTRY BENCHMARK'!A:A,0)),"") ->  | S36: =IF(COUNTA(D36:E36)=2,IFERROR(INDEX('COUNTRY BENCHMARK'!F:F,MATCH($D36,'COUNTRY BENCHMARK'!A:A,0)),""),"") -> 
B37: Country 12 | C37: " | I37: =IF(COUNTA(D37:E37)=2,IFERROR(INDEX('COUNTRY BENCHMARK'!B:B,MATCH($D37,'COUNTRY BENCHMARK'!A:A,0)),""),"") ->  | L37: =IF(COUNTA(D37:E37)=2,IFERROR(INDEX('COUNTRY BENCHMARK'!C:C,MATCH($D37,'COUNTRY BENCHMARK'!A:A,0)),""),"") ->  | O37: =IF(COUNTA(D37:E37)=2,IF($M$3="national IHDI",IFERROR(INDEX('COUNTRY BENCHMARK'!D:D,MATCH($D37,'COUNTRY BENCHMARK'!A:A,0)),""),IFERROR(INDEX('COUNTRY BENCHMARK'!E:E,MATCH($D37,'COUNTRY BENCHMARK'!A:A,0)),"")),"") ->  | P37: =IFERROR(INDEX('COUNTRY BENCHMARK'!D:D,MATCH($D37,'COUNTRY BENCHMARK'!A:A,0)),"") ->  | S37: =IF(COUNTA(D37:E37)=2,IFERROR(INDEX('COUNTRY BENCHMARK'!F:F,MATCH($D37,'COUNTRY BENCHMARK'!A:A,0)),""),"") -> 
B38: Country 13 | C38: " | I38: =IF(COUNTA(D38:E38)=2,IFERROR(INDEX('COUNTRY BENCHMARK'!B:B,MATCH($D38,'COUNTRY BENCHMARK'!A:A,0)),""),"") ->  | L38: =IF(COUNTA(D38:E38)=2,IFERROR(INDEX('COUNTRY BENCHMARK'!C:C,MATCH($D38,'COUNTRY BENCHMARK'!A:A,0)),""),"") ->  | O38: =IF(COUNTA(D38:E38)=2,IF($M$3="national IHDI",IFERROR(INDEX('COUNTRY BENCHMARK'!D:D,MATCH($D38,'COUNTRY BENCHMARK'!A:A,0)),""),IFERROR(INDEX('COUNTRY BENCHMARK'!E:E,MATCH($D38,'COUNTRY BENCHMARK'!A:A,0)),"")),"") ->  | P38: =IFERROR(INDEX('COUNTRY BENCHMARK'!D:D,MATCH($D38,'COUNTRY BENCHMARK'!A:A,0)),"") ->  | S38: =IF(COUNTA(D38:E38)=2,IFERROR(INDEX('COUNTRY BENCHMARK'!F:F,MATCH($D38,'COUNTRY BENCHMARK'!A:A,0)),""),"") -> 
B39: Country 14 | C39: " | I39: =IF(COUNTA(D39:E39)=2,IFERROR(INDEX('COUNTRY BENCHMARK'!B:B,MATCH($D39,'COUNTRY BENCHMARK'!A:A,0)),""),"") ->  | L39: =IF(COUNTA(D39:E39)=2,IFERROR(INDEX('COUNTRY BENCHMARK'!C:C,MATCH($D39,'COUNTRY BENCHMARK'!A:A,0)),""),"") ->  | O39: =IF(COUNTA(D39:E39)=2,IF($M$3="national IHDI",IFERROR(INDEX('COUNTRY BENCHMARK'!D:D,MATCH($D39,'COUNTRY BENCHMARK'!A:A,0)),""),IFERROR(INDEX('COUNTRY BENCHMARK'!E:E,MATCH($D39,'COUNTRY BENCHMARK'!A:A,0)),"")),"") ->  | P39: =IFERROR(INDEX('COUNTRY BENCHMARK'!D:D,MATCH($D39,'COUNTRY BENCHMARK'!A:A,0)),"") ->  | S39: =IF(COUNTA(D39:E39)=2,IFERROR(INDEX('COUNTRY BENCHMARK'!F:F,MATCH($D39,'COUNTRY BENCHMARK'!A:A,0)),""),"") -> 
B40: Country 15 | C40: " | I40: =IF(COUNTA(D40:E40)=2,IFERROR(INDEX('COUNTRY BENCHMARK'!B:B,MATCH($D40,'COUNTRY BENCHMARK'!A:A,0)),""),"") ->  | L40: =IF(COUNTA(D40:E40)=2,IFERROR(INDEX('COUNTRY BENCHMARK'!C:C,MATCH($D40,'COUNTRY BENCHMARK'!A:A,0)),""),"") ->  | O40: =IF(COUNTA(D40:E40)=2,IF($M$3="national IHDI",IFERROR(INDEX('COUNTRY BENCHMARK'!D:D,MATCH($D40,'COUNTRY BENCHMARK'!A:A,0)),""),IFERROR(INDEX('COUNTRY BENCHMARK'!E:E,MATCH($D40,'COUNTRY BENCHMARK'!A:A,0)),"")),"") ->  | P40: =IFERROR(INDEX('COUNTRY BENCHMARK'!D:D,MATCH($D40,'COUNTRY BENCHMARK'!A:A,0)),"") ->  | S40: =IF(COUNTA(D40:E40)=2,IFERROR(INDEX('COUNTRY BENCHMARK'!F:F,MATCH($D40,'COUNTRY BENCHMARK'!A:A,0)),""),"") -> 
B41: Country 16 | C41: " | I41: =IF(COUNTA(D41:E41)=2,IFERROR(INDEX('COUNTRY BENCHMARK'!B:B,MATCH($D41,'COUNTRY BENCHMARK'!A:A,0)),""),"") ->  | L41: =IF(COUNTA(D41:E41)=2,IFERROR(INDEX('COUNTRY BENCHMARK'!C:C,MATCH($D41,'COUNTRY BENCHMARK'!A:A,0)),""),"") ->  | O41: =IF(COUNTA(D41:E41)=2,IF($M$3="national IHDI",IFERROR(INDEX('COUNTRY BENCHMARK'!D:D,MATCH($D41,'COUNTRY BENCHMARK'!A:A,0)),""),IFERROR(INDEX('COUNTRY BENCHMARK'!E:E,MATCH($D41,'COUNTRY BENCHMARK'!A:A,0)),"")),"") ->  | P41: =IFERROR(INDEX('COUNTRY BENCHMARK'!D:D,MATCH($D41,'COUNTRY BENCHMARK'!A:A,0)),"") ->  | S41: =IF(COUNTA(D41:E41)=2,IFERROR(INDEX('COUNTRY BENCHMARK'!F:F,MATCH($D41,'COUNTRY BENCHMARK'!A:A,0)),""),"") -> 
B42: Country 17 | C42: " | I42: =IF(COUNTA(D42:E42)=2,IFERROR(INDEX('COUNTRY BENCHMARK'!B:B,MATCH($D42,'COUNTRY BENCHMARK'!A:A,0)),""),"") ->  | L42: =IF(COUNTA(D42:E42)=2,IFERROR(INDEX('COUNTRY BENCHMARK'!C:C,MATCH($D42,'COUNTRY BENCHMARK'!A:A,0)),""),"") ->  | O42: =IF(COUNTA(D42:E42)=2,IF($M$3="national IHDI",IFERROR(INDEX('COUNTRY BENCHMARK'!D:D,MATCH($D42,'COUNTRY BENCHMARK'!A:A,0)),""),IFERROR(INDEX('COUNTRY BENCHMARK'!E:E,MATCH($D42,'COUNTRY BENCHMARK'!A:A,0)),"")),"") ->  | P42: =IFERROR(INDEX('COUNTRY BENCHMARK'!D:D,MATCH($D42,'COUNTRY BENCHMARK'!A:A,0)),"") ->  | S42: =IF(COUNTA(D42:E42)=2,IFERROR(INDEX('COUNTRY BENCHMARK'!F:F,MATCH($D42,'COUNTRY BENCHMARK'!A:A,0)),""),"") -> 
B43: Country 18 | C43: " | I43: =IF(COUNTA(D43:E43)=2,IFERROR(INDEX('COUNTRY BENCHMARK'!B:B,MATCH($D43,'COUNTRY BENCHMARK'!A:A,0)),""),"") ->  | L43: =IF(COUNTA(D43:E43)=2,IFERROR(INDEX('COUNTRY BENCHMARK'!C:C,MATCH($D43,'COUNTRY BENCHMARK'!A:A,0)),""),"") ->  | O43: =IF(COUNTA(D43:E43)=2,IF($M$3="national IHDI",IFERROR(INDEX('COUNTRY BENCHMARK'!D:D,MATCH($D43,'COUNTRY BENCHMARK'!A:A,0)),""),IFERROR(INDEX('COUNTRY BENCHMARK'!E:E,MATCH($D43,'COUNTRY BENCHMARK'!A:A,0)),"")),"") ->  | P43: =IFERROR(INDEX('COUNTRY BENCHMARK'!D:D,MATCH($D43,'COUNTRY BENCHMARK'!A:A,0)),"") ->  | S43: =IF(COUNTA(D43:E43)=2,IFERROR(INDEX('COUNTRY BENCHMARK'!F:F,MATCH($D43,'COUNTRY BENCHMARK'!A:A,0)),""),"") -> 
B44: Country 19 | C44: " | I44: =IF(COUNTA(D44:E44)=2,IFERROR(INDEX('COUNTRY BENCHMARK'!B:B,MATCH($D44,'COUNTRY BENCHMARK'!A:A,0)),""),"") ->  | L44: =IF(COUNTA(D44:E44)=2,IFERROR(INDEX('COUNTRY BENCHMARK'!C:C,MATCH($D44,'COUNTRY BENCHMARK'!A:A,0)),""),"") ->  | O44: =IF(COUNTA(D44:E44)=2,IF($M$3="national IHDI",IFERROR(INDEX('COUNTRY BENCHMARK'!D:D,MATCH($D44,'COUNTRY BENCHMARK'!A:A,0)),""),IFERROR(INDEX('COUNTRY BENCHMARK'!E:E,MATCH($D44,'COUNTRY BENCHMARK'!A:A,0)),"")),"") ->  | P44: =IFERROR(INDEX('COUNTRY BENCHMARK'!D:D,MATCH($D44,'COUNTRY BENCHMARK'!A:A,0)),"") ->  | S44: =IF(COUNTA(D44:E44)=2,IFERROR(INDEX('COUNTRY BENCHMARK'!F:F,MATCH($D44,'COUNTRY BENCHMARK'!A:A,0)),""),"") -> 
B45: Country 20 | C45: " | I45: =IF(COUNTA(D45:E45)=2,IFERROR(INDEX('COUNTRY BENCHMARK'!B:B,MATCH($D45,'COUNTRY BENCHMARK'!A:A,0)),""),"") ->  | L45: =IF(COUNTA(D45:E45)=2,IFERROR(INDEX('COUNTRY BENCHMARK'!C:C,MATCH($D45,'COUNTRY BENCHMARK'!A:A,0)),""),"") ->  | O45: =IF(COUNTA(D45:E45)=2,IF($M$3="national IHDI",IFERROR(INDEX('COUNTRY BENCHMARK'!D:D,MATCH($D45,'COUNTRY BENCHMARK'!A:A,0)),""),IFERROR(INDEX('COUNTRY BENCHMARK'!E:E,MATCH($D45,'COUNTRY BENCHMARK'!A:A,0)),"")),"") ->  | P45: =IFERROR(INDEX('COUNTRY BENCHMARK'!D:D,MATCH($D45,'COUNTRY BENCHMARK'!A:A,0)),"") ->  | S45: =IF(COUNTA(D45:E45)=2,IFERROR(INDEX('COUNTRY BENCHMARK'!F:F,MATCH($D45,'COUNTRY BENCHMARK'!A:A,0)),""),"") -> 
B46: Country 21 | C46: " | I46: =IF(COUNTA(D46:E46)=2,IFERROR(INDEX('COUNTRY BENCHMARK'!B:B,MATCH($D46,'COUNTRY BENCHMARK'!A:A,0)),""),"") ->  | L46: =IF(COUNTA(D46:E46)=2,IFERROR(INDEX('COUNTRY BENCHMARK'!C:C,MATCH($D46,'COUNTRY BENCHMARK'!A:A,0)),""),"") ->  | O46: =IF(COUNTA(D46:E46)=2,IF($M$3="national IHDI",IFERROR(INDEX('COUNTRY BENCHMARK'!D:D,MATCH($D46,'COUNTRY BENCHMARK'!A:A,0)),""),IFERROR(INDEX('COUNTRY BENCHMARK'!E:E,MATCH($D46,'COUNTRY BENCHMARK'!A:A,0)),"")),"") ->  | P46: =IFERROR(INDEX('COUNTRY BENCHMARK'!D:D,MATCH($D46,'COUNTRY BENCHMARK'!A:A,0)),"") ->  | S46: =IF(COUNTA(D46:E46)=2,IFERROR(INDEX('COUNTRY BENCHMARK'!F:F,MATCH($D46,'COUNTRY BENCHMARK'!A:A,0)),""),"") -> 
B47: Country 22 | C47: " | I47: =IF(COUNTA(D47:E47)=2,IFERROR(INDEX('COUNTRY BENCHMARK'!B:B,MATCH($D47,'COUNTRY BENCHMARK'!A:A,0)),""),"") ->  | L47: =IF(COUNTA(D47:E47)=2,IFERROR(INDEX('COUNTRY BENCHMARK'!C:C,MATCH($D47,'COUNTRY BENCHMARK'!A:A,0)),""),"") ->  | O47: =IF(COUNTA(D47:E47)=2,IF($M$3="national IHDI",IFERROR(INDEX('COUNTRY BENCHMARK'!D:D,MATCH($D47,'COUNTRY BENCHMARK'!A:A,0)),""),IFERROR(INDEX('COUNTRY BENCHMARK'!E:E,MATCH($D47,'COUNTRY BENCHMARK'!A:A,0)),"")),"") ->  | P47: =IFERROR(INDEX('COUNTRY BENCHMARK'!D:D,MATCH($D47,'COUNTRY BENCHMARK'!A:A,0)),"") ->  | S47: =IF(COUNTA(D47:E47)=2,IFERROR(INDEX('COUNTRY BENCHMARK'!F:F,MATCH($D47,'COUNTRY BENCHMARK'!A:A,0)),""),"") -> 
B48: Country 23 | C48: " | I48: =IF(COUNTA(D48:E48)=2,IFERROR(INDEX('COUNTRY BENCHMARK'!B:B,MATCH($D48,'COUNTRY BENCHMARK'!A:A,0)),""),"") ->  | L48: =IF(COUNTA(D48:E48)=2,IFERROR(INDEX('COUNTRY BENCHMARK'!C:C,MATCH($D48,'COUNTRY BENCHMARK'!A:A,0)),""),"") ->  | O48: =IF(COUNTA(D48:E48)=2,IF($M$3="national IHDI",IFERROR(INDEX('COUNTRY BENCHMARK'!D:D,MATCH($D48,'COUNTRY BENCHMARK'!A:A,0)),""),IFERROR(INDEX('COUNTRY BENCHMARK'!E:E,MATCH($D48,'COUNTRY BENCHMARK'!A:A,0)),"")),"") ->  | P48: =IFERROR(INDEX('COUNTRY BENCHMARK'!D:D,MATCH($D48,'COUNTRY BENCHMARK'!A:A,0)),"") ->  | S48: =IF(COUNTA(D48:E48)=2,IFERROR(INDEX('COUNTRY BENCHMARK'!F:F,MATCH($D48,'COUNTRY BENCHMARK'!A:A,0)),""),"") -> 
B49: Country 24 | C49: " | I49: =IF(COUNTA(D49:E49)=2,IFERROR(INDEX('COUNTRY BENCHMARK'!B:B,MATCH($D49,'COUNTRY BENCHMARK'!A:A,0)),""),"") ->  | L49: =IF(COUNTA(D49:E49)=2,IFERROR(INDEX('COUNTRY BENCHMARK'!C:C,MATCH($D49,'COUNTRY BENCHMARK'!A:A,0)),""),"") ->  | O49: =IF(COUNTA(D49:E49)=2,IF($M$3="national IHDI",IFERROR(INDEX('COUNTRY BENCHMARK'!D:D,MATCH($D49,'COUNTRY BENCHMARK'!A:A,0)),""),IFERROR(INDEX('COUNTRY BENCHMARK'!E:E,MATCH($D49,'COUNTRY BENCHMARK'!A:A,0)),"")),"") ->  | P49: =IFERROR(INDEX('COUNTRY BENCHMARK'!D:D,MATCH($D49,'COUNTRY BENCHMARK'!A:A,0)),"") ->  | S49: =IF(COUNTA(D49:E49)=2,IFERROR(INDEX('COUNTRY BENCHMARK'!F:F,MATCH($D49,'COUNTRY BENCHMARK'!A:A,0)),""),"") -> 
B50: Country 25 | C50: " | I50: =IF(COUNTA(D50:E50)=2,IFERROR(INDEX('COUNTRY BENCHMARK'!B:B,MATCH($D50,'COUNTRY BENCHMARK'!A:A,0)),""),"") ->  | L50: =IF(COUNTA(D50:E50)=2,IFERROR(INDEX('COUNTRY BENCHMARK'!C:C,MATCH($D50,'COUNTRY BENCHMARK'!A:A,0)),""),"") ->  | O50: =IF(COUNTA(D50:E50)=2,IF($M$3="national IHDI",IFERROR(INDEX('COUNTRY BENCHMARK'!D:D,MATCH($D50,'COUNTRY BENCHMARK'!A:A,0)),""),IFERROR(INDEX('COUNTRY BENCHMARK'!E:E,MATCH($D50,'COUNTRY BENCHMARK'!A:A,0)),"")),"") ->  | P50: =IFERROR(INDEX('COUNTRY BENCHMARK'!D:D,MATCH($D50,'COUNTRY BENCHMARK'!A:A,0)),"") ->  | S50: =IF(COUNTA(D50:E50)=2,IFERROR(INDEX('COUNTRY BENCHMARK'!F:F,MATCH($D50,'COUNTRY BENCHMARK'!A:A,0)),""),"") -> 
B51: Country 26 | C51: " | I51: =IF(COUNTA(D51:E51)=2,IFERROR(INDEX('COUNTRY BENCHMARK'!B:B,MATCH($D51,'COUNTRY BENCHMARK'!A:A,0)),""),"") ->  | L51: =IF(COUNTA(D51:E51)=2,IFERROR(INDEX('COUNTRY BENCHMARK'!C:C,MATCH($D51,'COUNTRY BENCHMARK'!A:A,0)),""),"") ->  | O51: =IF(COUNTA(D51:E51)=2,IF($M$3="national IHDI",IFERROR(INDEX('COUNTRY BENCHMARK'!D:D,MATCH($D51,'COUNTRY BENCHMARK'!A:A,0)),""),IFERROR(INDEX('COUNTRY BENCHMARK'!E:E,MATCH($D51,'COUNTRY BENCHMARK'!A:A,0)),"")),"") ->  | P51: =IFERROR(INDEX('COUNTRY BENCHMARK'!D:D,MATCH($D51,'COUNTRY BENCHMARK'!A:A,0)),"") ->  | S51: =IF(COUNTA(D51:E51)=2,IFERROR(INDEX('COUNTRY BENCHMARK'!F:F,MATCH($D51,'COUNTRY BENCHMARK'!A:A,0)),""),"") -> 
B52: Country 27 | C52: " | I52: =IF(COUNTA(D52:E52)=2,IFERROR(INDEX('COUNTRY BENCHMARK'!B:B,MATCH($D52,'COUNTRY BENCHMARK'!A:A,0)),""),"") ->  | L52: =IF(COUNTA(D52:E52)=2,IFERROR(INDEX('COUNTRY BENCHMARK'!C:C,MATCH($D52,'COUNTRY BENCHMARK'!A:A,0)),""),"") ->  | O52: =IF(COUNTA(D52:E52)=2,IF($M$3="national IHDI",IFERROR(INDEX('COUNTRY BENCHMARK'!D:D,MATCH($D52,'COUNTRY BENCHMARK'!A:A,0)),""),IFERROR(INDEX('COUNTRY BENCHMARK'!E:E,MATCH($D52,'COUNTRY BENCHMARK'!A:A,0)),"")),"") ->  | P52: =IFERROR(INDEX('COUNTRY BENCHMARK'!D:D,MATCH($D52,'COUNTRY BENCHMARK'!A:A,0)),"") ->  | S52: =IF(COUNTA(D52:E52)=2,IFERROR(INDEX('COUNTRY BENCHMARK'!F:F,MATCH($D52,'COUNTRY BENCHMARK'!A:A,0)),""),"") -> 
B53: Country 28 | C53: " | I53: =IF(COUNTA(D53:E53)=2,IFERROR(INDEX('COUNTRY BENCHMARK'!B:B,MATCH($D53,'COUNTRY BENCHMARK'!A:A,0)),""),"") ->  | L53: =IF(COUNTA(D53:E53)=2,IFERROR(INDEX('COUNTRY BENCHMARK'!C:C,MATCH($D53,'COUNTRY BENCHMARK'!A:A,0)),""),"") ->  | O53: =IF(COUNTA(D53:E53)=2,IF($M$3="national IHDI",IFERROR(INDEX('COUNTRY BENCHMARK'!D:D,MATCH($D53,'COUNTRY BENCHMARK'!A:A,0)),""),IFERROR(INDEX('COUNTRY BENCHMARK'!E:E,MATCH($D53,'COUNTRY BENCHMARK'!A:A,0)),"")),"") ->  | P53: =IFERROR(INDEX('COUNTRY BENCHMARK'!D:D,MATCH($D53,'COUNTRY BENCHMARK'!A:A,0)),"") ->  | S53: =IF(COUNTA(D53:E53)=2,IFERROR(INDEX('COUNTRY BENCHMARK'!F:F,MATCH($D53,'COUNTRY BENCHMARK'!A:A,0)),""),"") -> 
B54: Country 29 | C54: " | I54: =IF(COUNTA(D54:E54)=2,IFERROR(INDEX('COUNTRY BENCHMARK'!B:B,MATCH($D54,'COUNTRY BENCHMARK'!A:A,0)),""),"") ->  | L54: =IF(COUNTA(D54:E54)=2,IFERROR(INDEX('COUNTRY BENCHMARK'!C:C,MATCH($D54,'COUNTRY BENCHMARK'!A:A,0)),""),"") ->  | O54: =IF(COUNTA(D54:E54)=2,IF($M$3="national IHDI",IFERROR(INDEX('COUNTRY BENCHMARK'!D:D,MATCH($D54,'COUNTRY BENCHMARK'!A:A,0)),""),IFERROR(INDEX('COUNTRY BENCHMARK'!E:E,MATCH($D54,'COUNTRY BENCHMARK'!A:A,0)),"")),"") ->  | P54: =IFERROR(INDEX('COUNTRY BENCHMARK'!D:D,MATCH($D54,'COUNTRY BENCHMARK'!A:A,0)),"") ->  | S54: =IF(COUNTA(D54:E54)=2,IFERROR(INDEX('COUNTRY BENCHMARK'!F:F,MATCH($D54,'COUNTRY BENCHMARK'!A:A,0)),""),"") -> 
B55: Country 30 | C55: " | I55: =IF(COUNTA(D55:E55)=2,IFERROR(INDEX('COUNTRY BENCHMARK'!B:B,MATCH($D55,'COUNTRY BENCHMARK'!A:A,0)),""),"") ->  | L55: =IF(COUNTA(D55:E55)=2,IFERROR(INDEX('COUNTRY BENCHMARK'!C:C,MATCH($D55,'COUNTRY BENCHMARK'!A:A,0)),""),"") ->  | O55: =IF(COUNTA(D55:E55)=2,IF($M$3="national IHDI",IFERROR(INDEX('COUNTRY BENCHMARK'!D:D,MATCH($D55,'COUNTRY BENCHMARK'!A:A,0)),""),IFERROR(INDEX('COUNTRY BENCHMARK'!E:E,MATCH($D55,'COUNTRY BENCHMARK'!A:A,0)),"")),"") ->  | P55: =IFERROR(INDEX('COUNTRY BENCHMARK'!D:D,MATCH($D55,'COUNTRY BENCHMARK'!A:A,0)),"") ->  | S55: =IF(COUNTA(D55:E55)=2,IFERROR(INDEX('COUNTRY BENCHMARK'!F:F,MATCH($D55,'COUNTRY BENCHMARK'!A:A,0)),""),"") -> 
B56: Country 31 | C56: " | I56: =IF(COUNTA(D56:E56)=2,IFERROR(INDEX('COUNTRY BENCHMARK'!B:B,MATCH($D56,'COUNTRY BENCHMARK'!A:A,0)),""),"") ->  | L56: =IF(COUNTA(D56:E56)=2,IFERROR(INDEX('COUNTRY BENCHMARK'!C:C,MATCH($D56,'COUNTRY BENCHMARK'!A:A,0)),""),"") ->  | O56: =IF(COUNTA(D56:E56)=2,IF($M$3="national IHDI",IFERROR(INDEX('COUNTRY BENCHMARK'!D:D,MATCH($D56,'COUNTRY BENCHMARK'!A:A,0)),""),IFERROR(INDEX('COUNTRY BENCHMARK'!E:E,MATCH($D56,'COUNTRY BENCHMARK'!A:A,0)),"")),"") ->  | P56: =IFERROR(INDEX('COUNTRY BENCHMARK'!D:D,MATCH($D56,'COUNTRY BENCHMARK'!A:A,0)),"") ->  | S56: =IF(COUNTA(D56:E56)=2,IFERROR(INDEX('COUNTRY BENCHMARK'!F:F,MATCH($D56,'COUNTRY BENCHMARK'!A:A,0)),""),"") -> 
B57: Country 32 | C57: " | I57: =IF(COUNTA(D57:E57)=2,IFERROR(INDEX('COUNTRY BENCHMARK'!B:B,MATCH($D57,'COUNTRY BENCHMARK'!A:A,0)),""),"") ->  | L57: =IF(COUNTA(D57:E57)=2,IFERROR(INDEX('COUNTRY BENCHMARK'!C:C,MATCH($D57,'COUNTRY BENCHMARK'!A:A,0)),""),"") ->  | O57: =IF(COUNTA(D57:E57)=2,IF($M$3="national IHDI",IFERROR(INDEX('COUNTRY BENCHMARK'!D:D,MATCH($D57,'COUNTRY BENCHMARK'!A:A,0)),""),IFERROR(INDEX('COUNTRY BENCHMARK'!E:E,MATCH($D57,'COUNTRY BENCHMARK'!A:A,0)),"")),"") ->  | P57: =IFERROR(INDEX('COUNTRY BENCHMARK'!D:D,MATCH($D57,'COUNTRY BENCHMARK'!A:A,0)),"") ->  | S57: =IF(COUNTA(D57:E57)=2,IFERROR(INDEX('COUNTRY BENCHMARK'!F:F,MATCH($D57,'COUNTRY BENCHMARK'!A:A,0)),""),"") -> 
B58: Country 33 | C58: " | I58: =IF(COUNTA(D58:E58)=2,IFERROR(INDEX('COUNTRY BENCHMARK'!B:B,MATCH($D58,'COUNTRY BENCHMARK'!A:A,0)),""),"") ->  | L58: =IF(COUNTA(D58:E58)=2,IFERROR(INDEX('COUNTRY BENCHMARK'!C:C,MATCH($D58,'COUNTRY BENCHMARK'!A:A,0)),""),"") ->  | O58: =IF(COUNTA(D58:E58)=2,IF($M$3="national IHDI",IFERROR(INDEX('COUNTRY BENCHMARK'!D:D,MATCH($D58,'COUNTRY BENCHMARK'!A:A,0)),""),IFERROR(INDEX('COUNTRY BENCHMARK'!E:E,MATCH($D58,'COUNTRY BENCHMARK'!A:A,0)),"")),"") ->  | P58: =IFERROR(INDEX('COUNTRY BENCHMARK'!D:D,MATCH($D58,'COUNTRY BENCHMARK'!A:A,0)),"") ->  | S58: =IF(COUNTA(D58:E58)=2,IFERROR(INDEX('COUNTRY BENCHMARK'!F:F,MATCH($D58,'COUNTRY BENCHMARK'!A:A,0)),""),"") -> 
B59: Country 34 | C59: " | I59: =IF(COUNTA(D59:E59)=2,IFERROR(INDEX('COUNTRY BENCHMARK'!B:B,MATCH($D59,'COUNTRY BENCHMARK'!A:A,0)),""),"") ->  | L59: =IF(COUNTA(D59:E59)=2,IFERROR(INDEX('COUNTRY BENCHMARK'!C:C,MATCH($D59,'COUNTRY BENCHMARK'!A:A,0)),""),"") ->  | O59: =IF(COUNTA(D59:E59)=2,IF($M$3="national IHDI",IFERROR(INDEX('COUNTRY BENCHMARK'!D:D,MATCH($D59,'COUNTRY BENCHMARK'!A:A,0)),""),IFERROR(INDEX('COUNTRY BENCHMARK'!E:E,MATCH($D59,'COUNTRY BENCHMARK'!A:A,0)),"")),"") ->  | P59: =IFERROR(INDEX('COUNTRY BENCHMARK'!D:D,MATCH($D59,'COUNTRY BENCHMARK'!A:A,0)),"") ->  | S59: =IF(COUNTA(D59:E59)=2,IFERROR(INDEX('COUNTRY BENCHMARK'!F:F,MATCH($D59,'COUNTRY BENCHMARK'!A:A,0)),""),"") -> 
B60: Country 35 | C60: " | I60: =IF(COUNTA(D60:E60)=2,IFERROR(INDEX('COUNTRY BENCHMARK'!B:B,MATCH($D60,'COUNTRY BENCHMARK'!A:A,0)),""),"") ->  | L60: =IF(COUNTA(D60:E60)=2,IFERROR(INDEX('COUNTRY BENCHMARK'!C:C,MATCH($D60,'COUNTRY BENCHMARK'!A:A,0)),""),"") ->  | O60: =IF(COUNTA(D60:E60)=2,IF($M$3="national IHDI",IFERROR(INDEX('COUNTRY BENCHMARK'!D:D,MATCH($D60,'COUNTRY BENCHMARK'!A:A,0)),""),IFERROR(INDEX('COUNTRY BENCHMARK'!E:E,MATCH($D60,'COUNTRY BENCHMARK'!A:A,0)),"")),"") ->  | P60: =IFERROR(INDEX('COUNTRY BENCHMARK'!D:D,MATCH($D60,'COUNTRY BENCHMARK'!A:A,0)),"") ->  | S60: =IF(COUNTA(D60:E60)=2,IFERROR(INDEX('COUNTRY BENCHMARK'!F:F,MATCH($D60,'COUNTRY BENCHMARK'!A:A,0)),""),"") -> 
B61: Country 36 | C61: " | I61: =IF(COUNTA(D61:E61)=2,IFERROR(INDEX('COUNTRY BENCHMARK'!B:B,MATCH($D61,'COUNTRY BENCHMARK'!A:A,0)),""),"") ->  | L61: =IF(COUNTA(D61:E61)=2,IFERROR(INDEX('COUNTRY BENCHMARK'!C:C,MATCH($D61,'COUNTRY BENCHMARK'!A:A,0)),""),"") ->  | O61: =IF(COUNTA(D61:E61)=2,IF($M$3="national IHDI",IFERROR(INDEX('COUNTRY BENCHMARK'!D:D,MATCH($D61,'COUNTRY BENCHMARK'!A:A,0)),""),IFERROR(INDEX('COUNTRY BENCHMARK'!E:E,MATCH($D61,'COUNTRY BENCHMARK'!A:A,0)),"")),"") ->  | P61: =IFERROR(INDEX('COUNTRY BENCHMARK'!D:D,MATCH($D61,'COUNTRY BENCHMARK'!A:A,0)),"") ->  | S61: =IF(COUNTA(D61:E61)=2,IFERROR(INDEX('COUNTRY BENCHMARK'!F:F,MATCH($D61,'COUNTRY BENCHMARK'!A:A,0)),""),"") -> 
B62: Country 37 | C62: " | I62: =IF(COUNTA(D62:E62)=2,IFERROR(INDEX('COUNTRY BENCHMARK'!B:B,MATCH($D62,'COUNTRY BENCHMARK'!A:A,0)),""),"") ->  | L62: =IF(COUNTA(D62:E62)=2,IFERROR(INDEX('COUNTRY BENCHMARK'!C:C,MATCH($D62,'COUNTRY BENCHMARK'!A:A,0)),""),"") ->  | O62: =IF(COUNTA(D62:E62)=2,IF($M$3="national IHDI",IFERROR(INDEX('COUNTRY BENCHMARK'!D:D,MATCH($D62,'COUNTRY BENCHMARK'!A:A,0)),""),IFERROR(INDEX('COUNTRY BENCHMARK'!E:E,MATCH($D62,'COUNTRY BENCHMARK'!A:A,0)),"")),"") ->  | P62: =IFERROR(INDEX('COUNTRY BENCHMARK'!D:D,MATCH($D62,'COUNTRY BENCHMARK'!A:A,0)),"") ->  | S62: =IF(COUNTA(D62:E62)=2,IFERROR(INDEX('COUNTRY BENCHMARK'!F:F,MATCH($D62,'COUNTRY BENCHMARK'!A:A,0)),""),"") -> 
B63: Country 38 | C63: " | I63: =IF(COUNTA(D63:E63)=2,IFERROR(INDEX('COUNTRY BENCHMARK'!B:B,MATCH($D63,'COUNTRY BENCHMARK'!A:A,0)),""),"") ->  | L63: =IF(COUNTA(D63:E63)=2,IFERROR(INDEX('COUNTRY BENCHMARK'!C:C,MATCH($D63,'COUNTRY BENCHMARK'!A:A,0)),""),"") ->  | O63: =IF(COUNTA(D63:E63)=2,IF($M$3="national IHDI",IFERROR(INDEX('COUNTRY BENCHMARK'!D:D,MATCH($D63,'COUNTRY BENCHMARK'!A:A,0)),""),IFERROR(INDEX('COUNTRY BENCHMARK'!E:E,MATCH($D63,'COUNTRY BENCHMARK'!A:A,0)),"")),"") ->  | P63: =IFERROR(INDEX('COUNTRY BENCHMARK'!D:D,MATCH($D63,'COUNTRY BENCHMARK'!A:A,0)),"") ->  | S63: =IF(COUNTA(D63:E63)=2,IFERROR(INDEX('COUNTRY BENCHMARK'!F:F,MATCH($D63,'COUNTRY BENCHMARK'!A:A,0)),""),"") -> 
B64: Country 39 | C64: " | I64: =IF(COUNTA(D64:E64)=2,IFERROR(INDEX('COUNTRY BENCHMARK'!B:B,MATCH($D64,'COUNTRY BENCHMARK'!A:A,0)),""),"") ->  | L64: =IF(COUNTA(D64:E64)=2,IFERROR(INDEX('COUNTRY BENCHMARK'!C:C,MATCH($D64,'COUNTRY BENCHMARK'!A:A,0)),""),"") ->  | O64: =IF(COUNTA(D64:E64)=2,IF($M$3="national IHDI",IFERROR(INDEX('COUNTRY BENCHMARK'!D:D,MATCH($D64,'COUNTRY BENCHMARK'!A:A,0)),""),IFERROR(INDEX('COUNTRY BENCHMARK'!E:E,MATCH($D64,'COUNTRY BENCHMARK'!A:A,0)),"")),"") ->  | P64: =IFERROR(INDEX('COUNTRY BENCHMARK'!D:D,MATCH($D64,'COUNTRY BENCHMARK'!A:A,0)),"") ->  | S64: =IF(COUNTA(D64:E64)=2,IFERROR(INDEX('COUNTRY BENCHMARK'!F:F,MATCH($D64,'COUNTRY BENCHMARK'!A:A,0)),""),"") -> 
B65: Country 40 | C65: " | I65: =IF(COUNTA(D65:E65)=2,IFERROR(INDEX('COUNTRY BENCHMARK'!B:B,MATCH($D65,'COUNTRY BENCHMARK'!A:A,0)),""),"") ->  | L65: =IF(COUNTA(D65:E65)=2,IFERROR(INDEX('COUNTRY BENCHMARK'!C:C,MATCH($D65,'COUNTRY BENCHMARK'!A:A,0)),""),"") ->  | O65: =IF(COUNTA(D65:E65)=2,IF($M$3="national IHDI",IFERROR(INDEX('COUNTRY BENCHMARK'!D:D,MATCH($D65,'COUNTRY BENCHMARK'!A:A,0)),""),IFERROR(INDEX('COUNTRY BENCHMARK'!E:E,MATCH($D65,'COUNTRY BENCHMARK'!A:A,0)),"")),"") ->  | P65: =IFERROR(INDEX('COUNTRY BENCHMARK'!D:D,MATCH($D65,'COUNTRY BENCHMARK'!A:A,0)),"") ->  | S65: =IF(COUNTA(D65:E65)=2,IFERROR(INDEX('COUNTRY BENCHMARK'!F:F,MATCH($D65,'COUNTRY BENCHMARK'!A:A,0)),""),"") -> 
B67: IMPACT POTENTIAL
A69: Mitigation | B69: I - Contribution to the shift to low-emission sustainable development pathways
B70: Mitigation impact
B71: Total emissions reductions | C71: Insert total tCO2e expected to be reduced or avoided by project activities
B72: Annual emissions reductions | C72: Insert annual tCO2e expected to be reduced or avoided by project activities
B73: Question 1 | C73: Is a robust estimate of baseline emissions (i.e. the avoided emissions, or counterfactual emissions trajectory that would be expected to occur in the absence of the project) provided?
B74: Question 1.1 | C74: Estimate of baseline emissions / avoided emissions is provided
B75: Question 1.2 | C75: Estimate is based on best practices, protocols or methodologies (e.g. IPCC, CDM)
B76: Question 1.3 | C76: Evidence/literature is provided which backs up a realistic and credible baseline scenario involving similar output/services (e.g. cement, electricity) in quality/properties, and application areas, which are currently implemented or expected to be introduced
B77: Question 2 | C77: Is a robust estimate of the amount CO2e emitted by the project provided (this includes emissions generated and induced by the project e.g. emissions from the use of efficient electric equipment, emissions from construction of power plant, emissions from operations, emissions generated elsewhere due to leakage)?
B78: Question 2.1 | C78: Estimate of the amount of CO2e emitted by the project, or a rationale for the exclusion of this assessment is provided
B79: Question 2.2 | C79: …the above follows the guidelines of reliable best practices, protocols or methodologies (e.g. IPCC, CDM)
B80: Question 2.3 | C80: Rebound effect is estimated, or a rationale for its exclusion is provided
B81: Question 2.4 | C81: Carbon leakage is estimated, or a rationale for its exclusion is provided
B82: Question 3 | C82: Does the FP include a monitoring plan to measure and demonstrate achieved emissions reductions ex-post?
A84: Adaptation | B84: II - Contribution to increased climate-resilient sustainable development for most vulnerable people and communities
B85: Adaptation impact
B86: Total number of beneficiaries | C86: Insert expected total number of beneficiaries
B87: Question 1 | C87: Does the proposed project or program clearly set out its climate-change vulnerability context (i.e. the specific risks and vulnerabilities under current and future conditions of climate change that the project or program aims to address)?
B88: Question 1.1 | C88: Climate vulnerability context considers observed historic climate trends and expected future climate change
B89: Question 1.2 | C89: Climate vulnerability context uses geographic and temporal scales which are appropriate for the project considering both slow-onset climate-related hazards and rapid-onset climate-related hazards
B90: Question 1.3 | C90: Impact of climate hazards to the target geography is demonstrated / quantified (in terms of loss of lives, or value of physical assets livelihoods, value of social and cultural assets)
B91: Question 2 | C91: Does the proposed project or program articulate a clear causality link between specific activities and its objective of reducing vulnerability to climate change?
B92: Question 2.1 | C92: The proposed project or program makes an explicit statement of its intent to reduce climate vulnerability
B93: Question 2.2 | C93: The proposed project provides a clear description of the causality link between specific activities and adjustments needed to reduce climate vulnerability for targeted beneficiaries
B94: Question 2.3 | C94: These links are demonstrated / quantified using reliable data and evidence
B95: Question 3 | C95: Does the FP include a monitoring plan to measure and demonstrate achieved adaptation targets ex-post?
B97: PARADIGM SHIFT
A99: All | B99: I - Innovation
B100: Innovation checklist
B101: Question 1 | C101: Based on the evidence provided in the FP, and/or at the best of your knowledge, does the proposed project/program introduce a technical innovation (new unproven technologies, new processes, new modal shifts) that did not previously exist in the region/market of reference? Does the proposed technical innovation address impact needs (mitigation or if applicable adaptation) that can’t be met, or are less effectively met, by alternative available options in the target region/market?
B102: Question 1.1 | C102: The technical innovation claimed / supported by the FP has been observed at scale, namely been implemented, adopted or made available at market rates to potential users in the target region/market
B103: Question 1.2 | C103: The technical innovation claimed / supported by the FP has been piloted or tested in the target region/market (or at least one pilot exists)
B104: Question 1.3 | C104: =IF(OR(D102="YES",D103="YES"),"For HOW LONG has the technical innovation claimed / supported by the FP been "&IF(D102="YES","OBSERVED at SCALE in the target region/market?","PILOTED or TESTED in the target region/market?"),"Not Applicable") -> Not Applicable
B105: Question 1.4 | C105: The technical innovation claimed / supported by the FP addresses impact needs (mitigation or if applicable adaptation) that can be addressed by alternative available options in the target region/market
B106: Question 2 | C106: Based on the evidence provided in the FP, and/or at the best of your knowledge, does the proposed project/program introduce a business innovation (new business models, financial instruments, organizational processes) that did not previously exist in the market/region of reference? Does the proposed business innovation address barriers that can’t be met, or are less effectively met, by alternative available options at similar costs in the target region?
B107: Question 2.1 | C107: The business innovation claimed / supported by the FP has been observed at scale, namely been implemented, adopted or made available at market rates to potential users in the target region/market
B108: Question 2.2 | C108: The business innovation claimed / supported by the FP has been piloted or tested in the target region/market (or at least one pilot exists, including pilots run by other entities)
B109: Question 2.3 | C109: =IF(OR(D107="YES",D108="YES"),"For HOW LONG has the business innovation claimed / supported by the FP been "&IF(D107="YES","OBSERVED at SCALE in the target region/market?","PILOTED or TESTED in the target region/market?"),"Not Applicable") -> Not Applicable
B110: Question 2.4 | C110: The business innovation claimed / supported by the FP addresses barriers that can be addressed by alternative available options in the target region/market | D110: Data entry to be covered subsequently under "needs of the recipient"
A112: All | B112: II - Potential for expanding the scale and impact of the proposed programme or project (scalability)
B113: Scalability score
B114: Question 1 | C114: Does the proposed project or program explicitly identify target sectors for scaling up?
B115: Question 2 | C115: Does the proposed project or program provide evidence of the existence of market demand for sectors targeted for scaling up from existing studies / surveys / literature?
B116: Question 3 | C116: Does the proposed project provide an estimate of the size of the target market to be scaled up (in size of investment or size of activity)?
B117: Question 3.1 | C117: The proposed project or program provides an estimate of the target market at scale (in size of investment or size of activity) and a timeframe for it (e.g. short, medium and long-term)
B118: Question 3.2 | C118: Estimate provided includes a rationale demonstrating the significance of such scale in the context of reference (sector/investor)
B119: Question 3.3 | C119: Estimates of both scale and its significance are both backed by evidence (existing studies, data, literature)
B120: Question 4 | C120: Does the proposed project or program clearly set out the short, medium and long-term changes, during or after project implementation, to expand its scope and impact without increasing its costs?
B121: Question 4.1 | C121: The proposed project or program sets out changes necessary to expand its scope and impact
B122: Question 4.2 | C122: The proposed project provides details on short, medium and long-term milestones to achieve that
B123: Question 4.3 | C123: The proposed project provides evidence of being able to do so without increasing its costs.
A125: All | B125: III - Contribution to the creation or strengthening of knowledge, collective learning processes, or institutions
B126: Creation and diffusion of knowledge
B127: Question 1 | C127: Does the proposed project or program provide evidence of improving/advancing the general technical understanding in a field relevant to the proposed intervention?
B128: Question 2 | C128: Does the proposed project or program include mechanisms to strengthen cooperation between partner organizations responsible for implementing the activities of the proposed project or program?
B129: Question 3 | C129: Does the proposed project or program clearly set out learning exchanges or institutional knowledge sharing activities between organizations partnering in the project and beyond?
B130: Question 3.1 | C130: The proposed project or program provides a description of the learning exchanges between partner organizations and other entities
B131: Question 3.2 | C131: Roles and responsibilities and implementation modalities are clearly defined
B132: Question 4 | C132: Does the proposed project or program include details for a plan for the monitoring and evaluation of knowledge creation/spreading?
A134: All | B134: IV - Sustainability of outcomes and results beyond completion of the intervention
B135: Data entry to be covered by subcriterion 30/31 "Financial viability in the long run"
A137: All | B137: V - Market development and transformation
B138: Market creation at national, local or sectoral level.
B139: Question 1 | C139: Does the project or program provide evidence that skills are introduced in the job market at national, local, or sectoral levels? (e.g. with the creation of long-term training facilities, universities, etc.).
B140: Question 2 | C140: Does the project or program provide evidence of the creation at national, local or sectoral level of new business activities (e.g. companies, funds, equipment suppliers, suppliers, insurers, service providers, engineering companies) previously not existing in the market?
B141: Question 2.1 | C141: The proposed project or program provides evidence that the market is transformed by expanding capacity and knowledge within existing businesses at the local, national, or sectoral level to carry out new business activities
B142: Question 2.2 | C142: The proposed project or program provide evidence that additional (net) jobs are created as result of these activities.
B143: Question 2.4 | C143: The proposed project or program provide evidence that market is transformed with the creation of new businesses at the local, national, or sectoral level
A145: All | B145: VI - Potential for strengthened regulatory frameworks and policies to drive investment in low-emission technologies and activities, promote additional low-emission policies, improve climate planning/development
B146: Contribution to mainstream and systematically promote climate change within regulatory framework and policies.
B147: Question 1 | C147: Does the project or program clearly describe (e.g. by defining milestones) how it will actively encourage (i.e. through awareness-raising, lobbying, campaigning, facilitating stakeholder dialogue, capacity building) regulatory entities (national and local government entities, regulatory agencies) to consider climate change, and low-carbon/climate resilient development as a priority (i.e. by achieving senior level commitment, setting targets on the issue, updating their risk management frameworks) in the strategies, policies and frameworks they are responsible for)? | D147: YES
B148: Question 2 | C148: Does the project or program clearly describe (e.g. by defining milestones) how it will contribute (i.e. providing information on/support to identify the climate adaptation and/or mitigation measures to implement) to the enactment of legally binding provisions (i.e. financial/fiscal incentives, drafting of codes) that systemically promote investment in low-emission and/or climate-resilient development (e.g. through the integration of climate change considerations into relevant budgetary frameworks at national, subnational and sectoral levels)?
B149: Question 3 | C149: Does the project or program clearly describe (e.g. by defining milestones) how it will contribute (i.e. providing information on/support to identify the climate adaptation and/or mitigation measures to implement) to increased transparency in the reporting of climate action progress (e.g. including tracking of policies or financing towards clean energy, energy efficiency, climate resilience or other climate-related activities and investments) ?
B150: Question 4 | C150: Does the project actively encourage regulatory changes that would enable and facilitate the survival of the proposed activities in the long-term OR the scale up and/or replication of the proposed activities?
B151: Question 5 | C151: Does the project or program clearly describe how the implementation of the legally binding provisions (climate action) will be monitored and evaluated (M&E) (transparency of the M&E process, reporting frequency)?
B153: SUSTAINABLE DEVELOPMENT POTENTIAL
A155: All | B155: I - Expected positive environmental impacts, including in other result areas of the Fund, and/or in line with the priorities set at the national, local or sectoral level, as appropriate
B156: Extent of environmental co-benefits
B157: Question 1 | C157: Does the proposed project or program provide net improvement in the quality of air (e.g. reduced air pollution), compared to the likely situation without the project?
B158: Question 1.1 | C158: The dimension is relevant for/applicable to the project or program as per GCF assessment
B159: Question 1.2 | C159: =IF(D158="NO","Not Applicable","Based on information in the FP, or as per GCF assessment, the project produces NEGATIVE IMPACTS in relation to the dimension examined") -> Based on information in the FP, or as per GCF assessment, the project produces NEGATIVE IMPACTS in relation to the dimension examined
B160: Question 1.3 | C160: =IF(D158="NO","Not Applicable","Based on information in the FP, evidence/documentation is provided that a PLAN is in place to entirely offset such negative impacts") -> Based on information in the FP, evidence/documentation is provided that a PLAN is in place to entirely offset such negative impacts
B161: Question 1.4 | C161: =IF(D158="NO","Not Applicable","The proposed project or program provides a DESCRIPTION of long-term NET POSITIVE impacts in the dimension examined") -> The proposed project or program provides a DESCRIPTION of long-term NET POSITIVE impacts in the dimension examined
B162: Question 1.5 | C162: =IF(D158="NO","Not Applicable","Based on information in the FP, or as per GCF assessment, net positive impacts can be considered SIGNIFICANT and ALIGNED with priorities at the national, local or sectoral level") -> Based on information in the FP, or as per GCF assessment, net positive impacts can be considered SIGNIFICANT and ALIGNED with priorities at the national, local or sectoral level
B163: Question 1.6 | C163: =IF(D158="NO","Not Applicable","Potential net positive impacts are ESTIMATED using peer-reviewed METHODOLOGIES as a frame of reference and the COUNTERFACTUAL / BASELINE is supported by EVIDENCE / DOCUMENTATION") -> Potential net positive impacts are ESTIMATED using peer-reviewed METHODOLOGIES as a frame of reference and the COUNTERFACTUAL / BASELINE is supported by EVIDENCE / DOCUMENTATION
B164: Question 1.7 | C164: =IF(D158="NO","Not Applicable","The FP includes a MONITORING PLAN to measure and demonstrate net positive impacts ex-post") -> The FP includes a MONITORING PLAN to measure and demonstrate net positive impacts ex-post
B165: Question 2 | C165: Does the proposed project or program provide net improvement in the quality of water (e.g. reduced water pollution/contamination), compared to the likely situation without the project?
B166: Question 2.1 | C166: The dimension is relevant for/applicable to the project or program as per GCF assessment
B167: Question 2.2 | C167: =IF(D166="NO","Not Applicable","Based on information in the FP, or as per GCF assessment, the project produces NEGATIVE IMPACTS in relation to the dimension examined") -> Based on information in the FP, or as per GCF assessment, the project produces NEGATIVE IMPACTS in relation to the dimension examined
B168: Question 2.3 | C168: =IF(D166="NO","Not Applicable","Based on information in the FP, evidence/documentation is provided that a PLAN is in place to entirely offset such negative impacts") -> Based on information in the FP, evidence/documentation is provided that a PLAN is in place to entirely offset such negative impacts
B169: Question 2.4 | C169: =IF(D166="NO","Not Applicable","The proposed project or program provides a DESCRIPTION of long-term NET POSITIVE impacts in the dimension examined") -> The proposed project or program provides a DESCRIPTION of long-term NET POSITIVE impacts in the dimension examined
B170: Question 2.5 | C170: =IF(D166="NO","Not Applicable","Based on information in the FP, or as per GCF assessment, net positive impacts can be considered SIGNIFICANT and ALIGNED with priorities at the national, local or sectoral level") -> Based on information in the FP, or as per GCF assessment, net positive impacts can be considered SIGNIFICANT and ALIGNED with priorities at the national, local or sectoral level
B171: Question 2.6 | C171: =IF(D166="NO","Not Applicable","Potential net positive impacts are ESTIMATED using peer-reviewed METHODOLOGIES as a frame of reference and the COUNTERFACTUAL / BASELINE is supported by EVIDENCE / DOCUMENTATION") -> Potential net positive impacts are ESTIMATED using peer-reviewed METHODOLOGIES as a frame of reference and the COUNTERFACTUAL / BASELINE is supported by EVIDENCE / DOCUMENTATION
B172: Question 2.7 | C172: =IF(D166="NO","Not Applicable","The FP includes a MONITORING PLAN to measure and demonstrate net positive impacts ex-post") -> The FP includes a MONITORING PLAN to measure and demonstrate net positive impacts ex-post
B173: Question 3 | C173: Does the proposed project or program provide net improvement in the quality of land (e.g. reduced land pollution), compared to the likely situation without the project?
B174: Question 3.1 | C174: The dimension is relevant for/applicable to the project or program as per GCF assessment
B175: Question 3.2 | C175: =IF(D174="NO","Not Applicable","Based on information in the FP, or as per GCF assessment, the project produces NEGATIVE IMPACTS in relation to the dimension examined") -> Based on information in the FP, or as per GCF assessment, the project produces NEGATIVE IMPACTS in relation to the dimension examined
B176: Question 3.3 | C176: =IF(D174="NO","Not Applicable","Based on information in the FP, evidence/documentation is provided that a PLAN is in place to entirely offset such negative impacts") -> Based on information in the FP, evidence/documentation is provided that a PLAN is in place to entirely offset such negative impacts
B177: Question 3.4 | C177: =IF(D174="NO","Not Applicable","The proposed project or program provides a DESCRIPTION of long-term NET POSITIVE impacts in the dimension examined") -> The proposed project or program provides a DESCRIPTION of long-term NET POSITIVE impacts in the dimension examined
B178: Question 3.5 | C178: =IF(D174="NO","Not Applicable","Based on information in the FP, or as per GCF assessment, net positive impacts can be considered SIGNIFICANT and ALIGNED with priorities at the national, local or sectoral level") -> Based on information in the FP, or as per GCF assessment, net positive impacts can be considered SIGNIFICANT and ALIGNED with priorities at the national, local or sectoral level
B179: Question 3.6 | C179: =IF(D174="NO","Not Applicable","Potential net positive impacts are ESTIMATED using peer-reviewed METHODOLOGIES as a frame of reference and the COUNTERFACTUAL / BASELINE is supported by EVIDENCE / DOCUMENTATION") -> Potential net positive impacts are ESTIMATED using peer-reviewed METHODOLOGIES as a frame of reference and the COUNTERFACTUAL / BASELINE is supported by EVIDENCE / DOCUMENTATION
B180: Question 3.7 | C180: =IF(D174="NO","Not Applicable","The FP includes a MONITORING PLAN to measure and demonstrate net positive impacts ex-post") -> The FP includes a MONITORING PLAN to measure and demonstrate net positive impacts ex-post
B181: Question 4 | C181: Does the proposed project or program provide net improvement in the efficient and sustainable use of living natural resources and/or ecosystem services, compared to the likely situation without the project?
B182: Question 4.1 | C182: The dimension is relevant for/applicable to the project or program as per GCF assessment
B183: Question 4.2 | C183: =IF(D182="NO","Not Applicable","Based on information in the FP, or as per GCF assessment, the project produces NEGATIVE IMPACTS in relation to the dimension examined") -> Based on information in the FP, or as per GCF assessment, the project produces NEGATIVE IMPACTS in relation to the dimension examined
B184: Question 4.3 | C184: =IF(D182="NO","Not Applicable","Based on information in the FP, evidence/documentation is provided that a PLAN is in place to entirely offset such negative impacts") -> Based on information in the FP, evidence/documentation is provided that a PLAN is in place to entirely offset such negative impacts
B185: Question 4.4 | C185: =IF(D182="NO","Not Applicable","The proposed project or program provides a DESCRIPTION of long-term NET POSITIVE impacts in the dimension examined") -> The proposed project or program provides a DESCRIPTION of long-term NET POSITIVE impacts in the dimension examined
B186: Question 4.5 | C186: =IF(D182="NO","Not Applicable","Based on information in the FP, or as per GCF assessment, net positive impacts can be considered SIGNIFICANT and ALIGNED with priorities at the national, local or sectoral level") -> Based on information in the FP, or as per GCF assessment, net positive impacts can be considered SIGNIFICANT and ALIGNED with priorities at the national, local or sectoral level
B187: Question 4.6 | C187: =IF(D182="NO","Not Applicable","Potential net positive impacts are ESTIMATED using peer-reviewed METHODOLOGIES as a frame of reference and the COUNTERFACTUAL / BASELINE is supported by EVIDENCE / DOCUMENTATION") -> Potential net positive impacts are ESTIMATED using peer-reviewed METHODOLOGIES as a frame of reference and the COUNTERFACTUAL / BASELINE is supported by EVIDENCE / DOCUMENTATION
B188: Question 4.7 | C188: =IF(D182="NO","Not Applicable","The FP includes a MONITORING PLAN to measure and demonstrate net positive impacts ex-post") -> The FP includes a MONITORING PLAN to measure and demonstrate net positive impacts ex-post
B189: Question 5 | C189: Does the proposed project or program provide net improvement in biodiversity, compared to the likely situation without the project?
B190: Question 5.1 | C190: The dimension is relevant for/applicable to the project or program as per GCF assessment
B191: Question 5.2 | C191: =IF(D190="NO","Not Applicable","Based on information in the FP, or as per GCF assessment, the project produces NEGATIVE IMPACTS in relation to the dimension examined") -> Based on information in the FP, or as per GCF assessment, the project produces NEGATIVE IMPACTS in relation to the dimension examined
B192: Question 5.3 | C192: =IF(D190="NO","Not Applicable","Based on information in the FP, evidence/documentation is provided that a PLAN is in place to entirely offset such negative impacts") -> Based on information in the FP, evidence/documentation is provided that a PLAN is in place to entirely offset such negative impacts
B193: Question 5.4 | C193: =IF(D190="NO","Not Applicable","The proposed project or program provides a DESCRIPTION of long-term NET POSITIVE impacts in the dimension examined") -> The proposed project or program provides a DESCRIPTION of long-term NET POSITIVE impacts in the dimension examined
B194: Question 5.5 | C194: =IF(D190="NO","Not Applicable","Based on information in the FP, or as per GCF assessment, net positive impacts can be considered SIGNIFICANT and ALIGNED with priorities at the national, local or sectoral level") -> Based on information in the FP, or as per GCF assessment, net positive impacts can be considered SIGNIFICANT and ALIGNED with priorities at the national, local or sectoral level
B195: Question 5.6 | C195: =IF(D190="NO","Not Applicable","Potential net positive impacts are ESTIMATED using peer-reviewed METHODOLOGIES as a frame of reference and the COUNTERFACTUAL / BASELINE is supported by EVIDENCE / DOCUMENTATION") -> Potential net positive impacts are ESTIMATED using peer-reviewed METHODOLOGIES as a frame of reference and the COUNTERFACTUAL / BASELINE is supported by EVIDENCE / DOCUMENTATION
B196: Question 5.7 | C196: =IF(D190="NO","Not Applicable","The FP includes a MONITORING PLAN to measure and demonstrate net positive impacts ex-post") -> The FP includes a MONITORING PLAN to measure and demonstrate net positive impacts ex-post
A198: All | B198: II - Expected positive social and health impacts, including in other result areas of the Fund, and/or in line with the priorities set at the national, local or sectoral level, as appropriate
B199: Extent of social and health co-benefits
B200: Question 1 | C200: Does the proposed project or program provide a net positive impact on health, safety and security (including disease prevention, reducing accidents, reducing crime, preserving food, reducing health damaging indoor air pollution, enhancing health services, improving sanitation and waste management and other health and safety improvement), compared to the likely situation without the project?
B201: Question 1.1 | C201: The dimension is relevant for/applicable to the project or program as per GCF assessment
B202: Question 1.2 | C202: =IF(D201="NO","Not Applicable","Based on information in the FP, or as per GCF assessment, the project produces NEGATIVE IMPACTS in relation to the dimension examined") -> Based on information in the FP, or as per GCF assessment, the project produces NEGATIVE IMPACTS in relation to the dimension examined
B203: Question 1.3 | C203: =IF(D201="NO","Not Applicable","Based on information in the FP, evidence/documentation is provided that a PLAN is in place to entirely offset such negative impacts") -> Based on information in the FP, evidence/documentation is provided that a PLAN is in place to entirely offset such negative impacts
B204: Question 1.4 | C204: =IF(D201="NO","Not Applicable","The proposed project or program provides a DESCRIPTION of long-term NET POSITIVE impacts in the dimension examined") -> The proposed project or program provides a DESCRIPTION of long-term NET POSITIVE impacts in the dimension examined
B205: Question 1.5 | C205: =IF(D201="NO","Not Applicable","Based on information in the FP, or as per GCF assessment, net positive impacts can be considered SIGNIFICANT and ALIGNED with priorities at the national, local or sectoral level") -> Based on information in the FP, or as per GCF assessment, net positive impacts can be considered SIGNIFICANT and ALIGNED with priorities at the national, local or sectoral level
B206: Question 1.6 | C206: =IF(D201="NO","Not Applicable","Potential net positive impacts are ESTIMATED using peer-reviewed METHODOLOGIES as a frame of reference and the COUNTERFACTUAL / BASELINE is supported by EVIDENCE / DOCUMENTATION") -> Potential net positive impacts are ESTIMATED using peer-reviewed METHODOLOGIES as a frame of reference and the COUNTERFACTUAL / BASELINE is supported by EVIDENCE / DOCUMENTATION
B207: Question 1.7 | C207: =IF(D201="NO","Not Applicable","The FP includes a MONITORING PLAN to measure and demonstrate net positive impacts ex-post") -> The FP includes a MONITORING PLAN to measure and demonstrate net positive impacts ex-post
B208: Question 2 | C208: Does the proposed project or program provide net positive impacts on communities facing land acquisition and involuntary resettlement (including avoiding expropriation or negotiated resettlement, improving land rights and land use rights, improving access to traditional natural resources and communal property, appropriate compensation, concerted resettlement plan), compared to the likely situation without the project?
B209: Question 2.1 | C209: The dimension is relevant for/applicable to the project or program as per GCF assessment
B210: Question 2.2 | C210: =IF(D209="NO","Not Applicable","Based on information in the FP, or as per GCF assessment, the project produces NEGATIVE IMPACTS in relation to the dimension examined") -> Based on information in the FP, or as per GCF assessment, the project produces NEGATIVE IMPACTS in relation to the dimension examined
B211: Question 2.3 | C211: =IF(D209="NO","Not Applicable","Based on information in the FP, evidence/documentation is provided that a PLAN is in place to entirely offset such negative impacts") -> Based on information in the FP, evidence/documentation is provided that a PLAN is in place to entirely offset such negative impacts
B212: Question 2.4 | C212: =IF(D209="NO","Not Applicable","The proposed project or program provides a DESCRIPTION of long-term NET POSITIVE impacts in the dimension examined") -> The proposed project or program provides a DESCRIPTION of long-term NET POSITIVE impacts in the dimension examined
B213: Question 2.5 | C213: =IF(D209="NO","Not Applicable","Based on information in the FP, or as per GCF assessment, net positive impacts can be considered SIGNIFICANT and ALIGNED with priorities at the national, local or sectoral level") -> Based on information in the FP, or as per GCF assessment, net positive impacts can be considered SIGNIFICANT and ALIGNED with priorities at the national, local or sectoral level
B214: Question 2.6 | C214: =IF(D209="NO","Not Applicable","Potential net positive impacts are ESTIMATED using peer-reviewed METHODOLOGIES as a frame of reference and the COUNTERFACTUAL / BASELINE is supported by EVIDENCE / DOCUMENTATION") -> Potential net positive impacts are ESTIMATED using peer-reviewed METHODOLOGIES as a frame of reference and the COUNTERFACTUAL / BASELINE is supported by EVIDENCE / DOCUMENTATION
B215: Question 2.7 | C215: =IF(D209="NO","Not Applicable","The FP includes a MONITORING PLAN to measure and demonstrate net positive impacts ex-post") -> The FP includes a MONITORING PLAN to measure and demonstrate net positive impacts ex-post
B216: Question 3 | C216: Does the proposed project or program provide net positive impacts on indigenous peoples, or improved conservation of and/or access to cultural heritage (including preservation of lands occupied by indigenous groups /cultural sites and the protection of national/regional cultural/knowledge-related practice), compared to the likely situation without the project?
B217: Question 3.1 | C217: The dimension is relevant for/applicable to the project or program as per GCF assessment
B218: Question 3.2 | C218: =IF(D217="NO","Not Applicable","Based on information in the FP, or as per GCF assessment, the project produces NEGATIVE IMPACTS in relation to the dimension examined") -> Based on information in the FP, or as per GCF assessment, the project produces NEGATIVE IMPACTS in relation to the dimension examined
... 223 more rows

Sheet Evaluation Summary Form
B1: Evaluation summary
B3: Project name | C3: Project code | D3: Accredited entity
B6: Sub-criterion | D6: Output ICS 1 (low) to 5 (high) | E6: Adjustment | F6: Reason for adjustment | G6: Final score (numeric / rounded) | H6: Final score (qualitative)
B7: IMPACT POTENTIAL | D7: =SUM(D8:D9) -> 0 | E7: insert adjustment | G7: =MAX(1,MIN(ROUND(IFERROR(D7+E7,D7),0),5)) -> 1 | H7: =IF(G7=1,"Low",IF(G7=2,"Medium-low",IF(G7=3,"Medium",IF(G7=4,"Medium-high",IF(G7=5,"High",""))))) -> Low
B8: ="- Contribution to the shift to low-emission sustainable development pathways" -> - Contribution to the shift to low-emission sustainable development pathways | C8: ="- Mitigation impact" -> - Mitigation impact | D8: =IFERROR('CALCULATION SHEET'!H5*WEIGHTS!D16,0) -> 0
B9: ="- Contribution to increased climate-resilient sustainable development for most vulnerable people and communities" -> - Contribution to increased climate-resilient sustainable development for most vulnerable people and communities | C9: ="- Expected number of beneficiaries" -> - Expected number of beneficiaries | D9: =IFERROR('CALCULATION SHEET'!H24*WEIGHTS!D17,0) -> 0
B10: PARADIGM SHIFT | D10: =SUM(D11:D17) -> 0 | E10: insert adjustment | G10: =MAX(1,MIN(ROUND(IFERROR(D10+E10,D10),0),5)) -> 1 | H10: =IF(G10=1,"Low",IF(G10=2,"Medium-low",IF(G10=3,"Medium",IF(G10=4,"Medium-high",IF(G10=5,"High",""))))) -> Low
B11: ="- Innovation" -> - Innovation | C11: ="- Innovation checklist" -> - Innovation checklist | D11: =IFERROR('CALCULATION SHEET'!H47*WEIGHTS!D18,0) -> 0
B12: ="- Potential for expanding the scale and impact of the proposed programme or project (scalability - mitigation)" -> - Potential for expanding the scale and impact of the proposed programme or project (scalability - mitigation) | C12: ="- Scalability score (mitigation)" -> - Scalability score (mitigation) | D12: =IFERROR('CALCULATION SHEET'!H59*WEIGHTS!D20,0) -> 0
B13: ="- Contribution to the creation or strengthening of knowledge, collective learning" -> - Contribution to the creation or strengthening of knowledge, collective learning | C13: ="- Creation and diffusion of knowledge" -> - Creation and diffusion of knowledge | D13: =IFERROR('CALCULATION SHEET'!H73*WEIGHTS!D22,0) -> 0
B14: ="-Sustainability of outcomes and results beyond completion of the intervention" -> -Sustainability of outcomes and results beyond completion of the intervention | C14: ="- Financial sustainability in the long-term" -> - Financial sustainability in the long-term | D14: =IFERROR('CALCULATION SHEET'!H84*WEIGHTS!D23,0) -> 0
B15: ="- Market development and transformation" -> - Market development and transformation | C15: ="- Market creation at national, local or sectoral level." -> - Market creation at national, local or sectoral level. | D15: =IFERROR('CALCULATION SHEET'!H88*WEIGHTS!D24,0) -> 0
B16: ="-Potential for strengthened regulatory frameworks and policies to drive investment in low-emission technologies and activities, promote development of additional low-emission policies, and/or improve climate-responsive planning and development" -> -Potential for strengthened regulatory frameworks and policies to drive investment in low-emission technologies and activities, promote development of additional low-emission policies, and/or improve climate-responsive planning and development | C16: ="-Contribution to mainstream and systematically promote climate change within regulatory framework and policies" -> -Contribution to mainstream and systematically promote climate change within regulatory framework and policies | D16: =IFERROR('CALCULATION SHEET'!H96*WEIGHTS!D25,0) -> 0
B17: ="- Potential for expanding the scale and impact of the proposed programme or project (scalability - adaptation)" -> - Potential for expanding the scale and impact of the proposed programme or project (scalability - adaptation) | C17: ="- Scalability score (adaptation)" -> - Scalability score (adaptation) | D17: =IFERROR('CALCULATION SHEET'!H59*WEIGHTS!D26,0) -> 0
B18: SUSTAINABLE DEVELOPMENT POTENTIAL | D18: =SUM(D19:D22) -> 0 | E18: insert adjustment | G18: =MAX(1,MIN(ROUND(IFERROR(D18+E18,D18),0),5)) -> 1 | H18: =IF(G18=1,"Low",IF(G18=2,"Medium-low",IF(G18=3,"Medium",IF(G18=4,"Medium-high",IF(G18=5,"High",""))))) -> Low
B19: ="- Expected positive environmental impacts, including in other result areas of the Fund, and/or in line with the priorities set at the national, local or sectoral level" -> - Expected positive environmental impacts, including in other result areas of the Fund, and/or in line with the priorities set at the national, local or sectoral level | C19: ="- Extent of environmental co-benefits" -> - Extent of environmental co-benefits | D19: =IFERROR('CALCULATION SHEET'!H111*WEIGHTS!D28,0) -> 0
B20: ="- Expected positive social and health impacts, including in other result areas of the Fund, and/or in line with the priorities set at the national, local or sectoral level" -> - Expected positive social and health impacts, including in other result areas of the Fund, and/or in line with the priorities set at the national, local or sectoral level | C20: ="- Extent of social and health co-benefits" -> - Extent of social and health co-benefits | D20: =IFERROR('CALCULATION SHEET'!H153*WEIGHTS!D29,0) -> 0
B21: ="- Expected positive economic impacts, including in other result areas of the Fund, and/or in line with the priorities set at the national, local or sectoral level" -> - Expected positive economic impacts, including in other result areas of the Fund, and/or in line with the priorities set at the national, local or sectoral level | C21: ="- Extent of economic co-benefits" -> - Extent of economic co-benefits | D21: =IFERROR('CALCULATION SHEET'!H187*WEIGHTS!D30,0) -> 0
B22: ="- Potential for reduced gender inequalities in climate change impacts and/or equal participation by gender groups in contributing to expected outcomes" -> - Potential for reduced gender inequalities in climate change impacts and/or equal participation by gender groups in contributing to expected outcomes | C22: ="- Introduction of gender-sensitive measures to promote gender equality or gender equity" -> - Introduction of gender-sensitive measures to promote gender equality or gender equity | D22: =IFERROR('CALCULATION SHEET'!H221*WEIGHTS!D31,0) -> 0
B23: NEEDS OF THE RECIPIENT | D23: =SUM(D24:D26) -> 0 | E23: insert adjustment | G23: =MAX(1,MIN(ROUND(IFERROR(D23+E23,D23),0),5)) -> 1 | H23: =IF(G23=1,"Low",IF(G23=2,"Medium-low",IF(G23=3,"Medium",IF(G23=4,"Medium-high",IF(G23=5,"High",""))))) -> Low
B24: ="- Scale and intensity of exposure of people, and/or social or economic assets or capital, to risks derived from climate change" -> - Scale and intensity of exposure of people, and/or social or economic assets or capital, to risks derived from climate change | C24: ="- Evidence of exposure and vulnerability for the country -Climate vulnerability and adaptation readiness" -> - Evidence of exposure and vulnerability for the country -Climate vulnerability and adaptation readiness | D24: =IFERROR('CALCULATION SHEET'!H238*WEIGHTS!D32,0) -> 0
B25: ="- Level of social and economic development of the country and target population" -> - Level of social and economic development of the country and target population | C25: ="- Country-level socio-economic development" -> - Country-level socio-economic development | D25: =IFERROR('CALCULATION SHEET'!H245*WEIGHTS!D34,0) -> 0
B26: ="- Opportunities for the Fund to overcome specific barriers to financing" -> - Opportunities for the Fund to overcome specific barriers to financing | C26: ="- Prioritization given risk/barriers and opportunities" -> - Prioritization given risk/barriers and opportunities | D26: =IFERROR('CALCULATION SHEET'!H249*WEIGHTS!D35,0) -> 0
B27: COUNTRY OWNERSHIP | D27: =SUM(D28:D31) -> 0 | E27: insert adjustment | G27: =MAX(1,MIN(ROUND(IFERROR(D27+E27,D27),0),5)) -> 1 | H27: =IF(G27=1,"Low",IF(G27=2,"Medium-low",IF(G27=3,"Medium",IF(G27=4,"Medium-high",IF(G27=5,"High",""))))) -> Low
B28: ="- Objectives are in line with priorities in the country’s national climate strategy" -> - Objectives are in line with priorities in the country’s national climate strategy | C28: ="- Coherence with the country’s national climate priorities" -> - Coherence with the country’s national climate priorities | D28: =IFERROR('CALCULATION SHEET'!H269*WEIGHTS!D37,0) -> 0
B29: ="- Proposed activity is designed in cognizance of other country policies" -> - Proposed activity is designed in cognizance of other country policies | C29: ="- Degree of alignment of the proposed project or program’s objectives with the country’s national development priorities" -> - Degree of alignment of the proposed project or program’s objectives with the country’s national development priorities | D29: =IFERROR('CALCULATION SHEET'!H275*WEIGHTS!D38,0) -> 0
B30: ="- Experience and track record of the Accredited Entity or executing entities in key elements of the proposed activity" -> - Experience and track record of the Accredited Entity or executing entities in key elements of the proposed activity | C30: ="- AE’s experience working in the project’s/program’s target country"&" - AE’s/EE’s experience in implementing similar projects" -> - AE’s experience working in the project’s/program’s target country - AE’s/EE’s experience in implementing similar projects | D30: =IFERROR('CALCULATION SHEET'!H285*WEIGHTS!D39,0) -> 0
B31: ="- Stakeholder consultations and engagement" -> - Stakeholder consultations and engagement | C31: ="- Coverage of diverse stakeholders from non-governmental organisations in designing the project/program"&" - Existence of a robust Stakeholder Engagement Plan"&" - Level of engagement of the National Designated Authority (NDA)" -> - Coverage of diverse stakeholders from non-governmental organisations in designing the project/program - Existence of a robust Stakeholder Engagement Plan - Level of engagement of the National Designated Authority (NDA) | D31: =IFERROR('CALCULATION SHEET'!H306*WEIGHTS!D40,0) -> 0
B32: EFFICIENCY AND EFFECTIVENESS | D32: =SUM(D33:D37) -> 0 | E32: insert adjustment | G32: =MAX(1,MIN(ROUND(IFERROR(D32+E32,D32),0),5)) -> 1 | H32: =IF(G32=1,"Low",IF(G32=2,"Medium-low",IF(G32=3,"Medium",IF(G32=4,"Medium-high",IF(G32=5,"High",""))))) -> Low
B33: ="- Financial adequacy and appropriateness of concessionality" -> - Financial adequacy and appropriateness of concessionality | C33: ="- Adequacy of concessionality to instrument type" -> - Adequacy of concessionality to instrument type | D33: =IFERROR('CALCULATION SHEET'!H347*WEIGHTS!D41,0) -> 0
B34: ="- Cost-effectiveness (mitigation only)" -> - Cost-effectiveness (mitigation only) | C34: ="- Cost-effectiveness of CO2 emissions abatement" -> - Cost-effectiveness of CO2 emissions abatement | D34: =IFERROR('CALCULATION SHEET'!H375*WEIGHTS!D42,0) -> 0
B35: ="- Potential to catalyse and/or leverage investment (mitigation only)" -> - Potential to catalyse and/or leverage investment (mitigation only) | C35: ="- Co-financing ratio" -> - Co-financing ratio | D35: =IFERROR('CALCULATION SHEET'!H380*WEIGHTS!D43,0) -> 0
B36: ="- Financial viability in the long-run" -> - Financial viability in the long-run | C36: ="- Existence of business and strategy for phasing out GCF’s capital support - Strength of the executing entity - Effectiveness in mitigating risks and challenges to the project implementation in the long-run" -> - Existence of business and strategy for phasing out GCF’s capital support - Strength of the executing entity - Effectiveness in mitigating risks and challenges to the project implementation in the long-run | D36: =IFERROR('CALCULATION SHEET'!H385*WEIGHTS!D45,0) -> 0
B37: ="- Application of best practices and degree of innovation" -> - Application of best practices and degree of innovation | C37: ="- Innovation checklist - Transfer of best available technologies and practices" -> - Innovation checklist - Transfer of best available technologies and practices | D37: =IFERROR('CALCULATION SHEET'!H418*WEIGHTS!D46,0) -> 0

Sheet CALCULATION SHEET (hidden)
B1: Calculation Sheet [DO NOT EDIT]
B3: IMPACT POTENTIAL
B4: Level of analysis | C4: Indicators | D4: Input | E4: Output (sub-indicator) | F4: Output (indicator) | H4: Output (sub-criterion)
B5: Sub-criterion | C5: 1/31 - Contribution to the shift to low-emission sustainable development pathways | H5: =IFERROR(F6,1) -> 1
B6: Indicator | C6: 1 - Mitigation impact | F6: =MIN(MAX(E7,E10),1+SUM(E17,E13,E22)*4/7) ->  | H6: changed to 1
B7: Sub-indicator | C7: (Total tCO2e reduced or avoided by activities)/(Mitigation share of total financing) | E7: =IF(D8/D9<=_xlfn.PERCENTILE.EXC('PROJECT BENCHMARKS'!$F$2:$F$658,0.2),1,IF(D8/D9<=_xlfn.PERCENTILE.EXC('PROJECT BENCHMARKS'!$F$2:$F$658,0.4),2,IF(D8/D9<=_xlfn.PERCENTILE.EXC('PROJECT BENCHMARKS'!$F$2:$F$658,0.6),3,IF(D8/D9<=_xlfn.PERCENTILE.EXC('PROJECT BENCHMARKS'!$F$2:$F$658,0.8),4,5)))) -> 
B8: Input needed | C8: Total tCO2e reduced or avoided by activities | D8: ='Input Sheet'!E71 -> 0
B9: Input needed | C9: Mitigation share of total project financing | D9: =SUM('Input Sheet'!E8:E9)*SUM('Input Sheet'!E13:E16) -> 0
B10: Sub-indicator | C10: (Annual tCO2e reduced or avoided by activities)/(Annual tCO2e emitted by country) | E10: =IF(D11/D12<=_xlfn.PERCENTILE.EXC('PROJECT BENCHMARKS'!$J$2:$J$658,0.2),1,IF(D11/D12<=_xlfn.PERCENTILE.EXC('PROJECT BENCHMARKS'!$J$2:$J$658,0.4),2,IF(D11/D12<=_xlfn.PERCENTILE.EXC('PROJECT BENCHMARKS'!$J$2:$J$658,0.6),3,IF(D11/D12<=_xlfn.PERCENTILE.EXC('PROJECT BENCHMARKS'!$J$2:$J$658,0.8),4,5)))) -> 
B11: Input needed | C11: Annual tCO2e reduced or avoided by activities | D11: ='Input Sheet'!E72 -> 0
B12: Input needed | C12: Annual tCO2 emitted by countries selected | D12: =SUMPRODUCT('Input Sheet'!E26:E65,'Input Sheet'!H26:H65) -> 0
B13: Sub-indicator | C13: ='Input Sheet'!C73 -> Is a robust estimate of baseline emissions (i.e. the avoided emissions, or counterfactual emissions trajectory that would be expected to occur in the absence of the project) provided? | E13: =IF(D14="YES",1+IF(D15="YES",1+IF(D16="YES",1,0),0),0) -> 0
B14: Input needed | C14: ='Input Sheet'!C74 -> Estimate of baseline emissions / avoided emissions is provided | D14: ='Input Sheet'!D74 -> 0
B15: Input needed | C15: ='Input Sheet'!C75 -> Estimate is based on best practices, protocols or methodologies (e.g. IPCC, CDM) | D15: ='Input Sheet'!D75 -> 0
B16: Input needed | C16: ='Input Sheet'!C76 -> Evidence/literature is provided which backs up a realistic and credible baseline scenario involving similar output/services (e.g. cement, electricity) in quality/properties, and application areas, which are currently implemented or expected to be introduced | D16: ='Input Sheet'!D76 -> 0
B17: Sub-indicator | C17: ='Input Sheet'!C77 -> Is a robust estimate of the amount CO2e emitted by the project provided (this includes emissions generated and induced by the project e.g. emissions from the use of efficient electric equipment, emissions from construction of power plant, emissions from operations, emissions generated elsewhere due to leakage)? | E17: =IF(D18="YES",1+IF(D19="YES",1+IF(COUNTIF(D20:D21,"YES")>0,1,0),0),0) -> 0
B18: Input needed | C18: ='Input Sheet'!C78 -> Estimate of the amount of CO2e emitted by the project, or a rationale for the exclusion of this assessment is provided | D18: ='Input Sheet'!D78 -> 0
B19: Input needed | C19: ='Input Sheet'!C79 -> …the above follows the guidelines of reliable best practices, protocols or methodologies (e.g. IPCC, CDM) | D19: ='Input Sheet'!D79 -> 0
B20: Input needed | C20: ='Input Sheet'!C80 -> Rebound effect is estimated, or a rationale for its exclusion is provided | D20: ='Input Sheet'!D80 -> 0
B21: Input needed | C21: ='Input Sheet'!C81 -> Carbon leakage is estimated, or a rationale for its exclusion is provided | D21: ='Input Sheet'!D81 -> 0
B22: Sub-indicator | C22: ='Input Sheet'!C82 -> Does the FP include a monitoring plan to measure and demonstrate achieved emissions reductions ex-post? | E22: =IF(D23="yes",1,0) -> 0
B23: Input needed | C23: Yes or not | D23: ='Input Sheet'!D82 -> 0
B24: Sub-criterion | C24: 2/31 - Contribution to increased climate-resilient sustainable development for most vulnerable people and communities | H24: =IFERROR(F25,1) -> 1
B25: Indicator | C25: 1 - Expected number of beneficiaries | F25: =MIN(MAX(E26,E29),1+SUM(E32,E36,E40)*4/7) ->  | H25: changed to 1
B26: Sub-indicator | C26: (Expected total number of beneficiaries)/(Adaptation share of total financing) | E26: =IF(D27/D28<=_xlfn.PERCENTILE.EXC('PROJECT BENCHMARKS'!$G$2:$G$658,0.2),1,IF(D27/D28<=_xlfn.PERCENTILE.EXC('PROJECT BENCHMARKS'!$G$2:$G$658,0.4),2,IF(D27/D28<=_xlfn.PERCENTILE.EXC('PROJECT BENCHMARKS'!$G$2:$G$658,0.6),3,IF(D27/D28<=_xlfn.PERCENTILE.EXC('PROJECT BENCHMARKS'!$G$2:$G$658,0.8),4,5)))) -> 
B27: Input needed | C27: Expected total number of beneficiaries | D27: ='Input Sheet'!E86 -> 0
B28: Input needed | C28: Adaptation share of total project financing | D28: =SUM('Input Sheet'!E8:E9)*SUM('Input Sheet'!E17:E20) -> 0
B29: Sub-indicator | C29: (Expected total number of beneficiaries)/(Country's total population) | E29: =IF(D27/D31<=_xlfn.PERCENTILE.EXC('PROJECT BENCHMARKS'!$K$2:$K$658,0.2),1,IF(D27/D31<=_xlfn.PERCENTILE.EXC('PROJECT BENCHMARKS'!$K$2:$K$658,0.4),2,IF(D27/D31<=_xlfn.PERCENTILE.EXC('PROJECT BENCHMARKS'!$K$2:$K$658,0.6),3,IF(D27/D31<=_xlfn.PERCENTILE.EXC('PROJECT BENCHMARKS'!$K$2:$K$658,0.8),4,5)))) -> 
B30: Input needed | C30: Expected total number of beneficiaries | D30: ='Input Sheet'!E86 -> 0
B31: Input needed | C31: Country population selected | D31: =SUMPRODUCT('Input Sheet'!E26:E65,'Input Sheet'!K26:K65) -> 0
B32: Sub-indicator | C32: ='Input Sheet'!C87 -> Does the proposed project or program clearly set out its climate-change vulnerability context (i.e. the specific risks and vulnerabilities under current and future conditions of climate change that the project or program aims to address)? | E32: =IF(D33="YES",1+IF(D34="YES",1+IF(D35="YES",1+IF(D36="YES",1,0),0),0),0) -> 0
B33: Input needed | C33: ='Input Sheet'!C88 -> Climate vulnerability context considers observed historic climate trends and expected future climate change | D33: ='Input Sheet'!D88 -> 0
B34: Input needed | C34: ='Input Sheet'!C89 -> Climate vulnerability context uses geographic and temporal scales which are appropriate for the project considering both slow-onset climate-related hazards and rapid-onset climate-related hazards | D34: ='Input Sheet'!D89 -> 0
B35: Input needed | C35: ='Input Sheet'!C90 -> Impact of climate hazards to the target geography is demonstrated / quantified (in terms of loss of lives, or value of physical assets livelihoods, value of social and cultural assets) | D35: ='Input Sheet'!D90 -> 0
B36: Sub-indicator | C36: ='Input Sheet'!C91 -> Does the proposed project or program articulate a clear causality link between specific activities and its objective of reducing vulnerability to climate change? | E36: =IF(D37="YES",1+IF(D38="YES",1+IF(D39="YES",1+IF(D40="YES",1,0),0),0),0) -> 0
B37: Input needed | C37: ='Input Sheet'!C92 -> The proposed project or program makes an explicit statement of its intent to reduce climate vulnerability | D37: ='Input Sheet'!D92 -> 0
B38: Input needed | C38: ='Input Sheet'!C93 -> The proposed project provides a clear description of the causality link between specific activities and adjustments needed to reduce climate vulnerability for targeted beneficiaries | D38: ='Input Sheet'!D93 -> 0
B39: Input needed | C39: ='Input Sheet'!C94 -> These links are demonstrated / quantified using reliable data and evidence | D39: ='Input Sheet'!D94 -> 0
B40: Sub-indicator | C40: ='Input Sheet'!C95 -> Does the FP include a monitoring plan to measure and demonstrate achieved adaptation targets ex-post? | E40: =IF(D41="yes",1,0) -> 0
B41: Input needed | C41: Yes or not | D41: ='Input Sheet'!D95 -> 0
B45: PARADIGM SHIFT
B46: Level of analysis | C46: Indicators | D46: Input | E46: Output (sub-indicator) | F46: Output (indicator) | H46: Output (sub-criterion)
B47: Sub-criterion | C47: 3/31 - Innovation | H47: =F48 -> 1
B48: Indicator | C48: 1 - Innovation checklist | F48: =MAX(E49,E54) -> 1
B49: Sub-indicator | C49: 1. Based on the evidence provided in the FP, and/or at the best of your knowledge, does the proposed project/program introduce a technical innovation (new unproven technologies, new processes, new modal shifts) that did not previously exist in the region/market of reference? Does the proposed technical innovation address impact needs (mitigation or if applicable adaptation) that can’t be met by alternative available options in the target region/market? | E49: =MIN(IF(AND(D50="NO",D51="NO"),5,IF(OR(D50="YES",D50="Do not know",D50=0),1,IF(OR(D51="YES",D51="Do not know",D51=0),3,1)))+IF(OR(D50="YES",AND(D50="NO",D51="YES")),IF(D52="<= 1 year",1,0),0),IF(D53="NO",5,IF(D53="YES but it is more efficient/effective than alternatives",3,1))) -> 1
B50: Input needed | C50: The technical innovation claimed by the FP has been observed at scale, namely been implemented, adopted or made available at market rates to potential users in the target region/market | D50: ='Input Sheet'!D102 -> 0
B51: Input needed | C51: The technical innovation claimed by the FP has been piloted or tested in the target region/market (or at least one pilot exists, including pilots run by other entities) | D51: ='Input Sheet'!D103 -> 0
B52: Input needed | C52: For how long has the technical innovation claimed been piloted or tested? | D52: ='Input Sheet'!D104 -> 0
B53: Input needed | C53: The technical innovation claimed addresses impact needs (mitigation or if applicable adaptation) that can be addressed by alternative available options in the target region/market | D53: ='Input Sheet'!D105 -> 0
B54: Sub-indicator | C54: 2. Based on the evidence provided in the FP, and/or at the best of your knowledge, does the proposed project/program introduce a business innovation (new business models, financial instruments, organizational processes) that did not previously exist in the market/region of reference? Does the proposed business innovation address barriers that can’t be met by alternative available options in the target region? | E54: =MIN(IF(AND(D55="NO",D56="NO"),5,IF(OR(D55="YES",D55="Do not know",D55=0),1,IF(OR(D56="YES",D56="Do not know",D56=0),3,1)))+IF(OR(D55="YES",AND(D55="NO",D56="YES")),IF(D57="<= 1 year",1,0),0),D58) -> 1
B55: Input needed | C55: The business innovation claimed by the FP has been observed at scale, namely been implemented, adopted or made available at market rates to potential users in the target region/market | D55: ='Input Sheet'!D107 -> 0
B56: Input needed | C56: The business innovation claimed by the FP has been piloted or tested in the target region/market (or at least one pilot exists, including pilots run by other entities) | D56: ='Input Sheet'!D108 -> 0
B57: Input needed | C57: For how long has the business innovation claimed been piloted or tested? | D57: ='Input Sheet'!D109 -> 0
B58: Input needed | C58: The business innovation claimed addresses barriers that can be addressed by alternative available options in the target region/market | D58: =F250 -> 1
B59: Sub-criterion | C59: 5/31 - Potential for expanding the scale and impact of the proposed programme or project (scalability) | H59: =F60 -> 1
B60: Indicator | C60: 1 - Scalability score | F60: =1+((E61+E63+E65+E69)*4/12) -> 1
B61: Sub-indicator | C61: 1. Does the proposed project or program explicitly identify target sectors for scaling up (e.g. the whole sector or all sectors of the national economy)? | E61: =IF(D62="yes",3,0) -> 0
B62: Input needed | C62: Yes or not | D62: ='Input Sheet'!D114 -> 0
B63: Sub-indicator | C63: 2. Does the proposed project or program provide evidence of the existence of market demand for sectors targeted for scaling up from existing studies / surveys / literature? | E63: =IF(D64="yes",3,0) -> 0
B64: Input needed | C64: Yes or not | D64: ='Input Sheet'!D115 -> 0
B65: Sub-indicator | C65: ='Input Sheet'!C116 -> Does the proposed project provide an estimate of the size of the target market to be scaled up (in size of investment or size of activity)? | E65: =IF(D66="YES",1+IF(D67="YES",1+IF(D68="YES",1,0),0),0) -> 0
B66: Input needed | C66: ='Input Sheet'!C117 -> The proposed project or program provides an estimate of the target market at scale (in size of investment or size of activity) and a timeframe for it (e.g. short, medium and long-term) | D66: ='Input Sheet'!D117 -> 0
B67: Input needed | C67: ='Input Sheet'!C118 -> Estimate provided includes a rationale demonstrating the significance of such scale in the context of reference (sector/investor) | D67: ='Input Sheet'!D118 -> 0
B68: Input needed | C68: ='Input Sheet'!C119 -> Estimates of both scale and its significance are both backed by evidence (existing studies, data, literature) | D68: ='Input Sheet'!D119 -> 0
B69: Sub-indicator | C69: ='Input Sheet'!C120 -> Does the proposed project or program clearly set out the short, medium and long-term changes, during or after project implementation, to expand its scope and impact without increasing its costs? | E69: =IF(D70="yes",COUNTIF(D70:D72,"yes"),0) -> 0
B70: Input needed | C70: The proposed project or program sets out changes necessary to expand its scope and impact | D70: ='Input Sheet'!D121 -> 0
B71: Input needed | C71: The proposed project provides details on short, medium and long-term milestones to achieve that | D71: ='Input Sheet'!D122 -> 0
B72: Input needed | C72: The proposed project provides evidence of being able to do so without increasing its costs. | D72: ='Input Sheet'!D123 -> 0
B73: Sub-criterion | C73: 7/31 - Contribution to the creation or strengthening of knowledge, collective learning | H73: =F74 -> 1
B74: Indicator | C74: 1 - Creation and diffusion of knowledge | F74: =1+((E75+E82+E77+E79)*4/5) -> 1
B75: Sub-indicator | C75: ='Input Sheet'!C127 -> Does the proposed project or program provide evidence of improving/advancing the general technical understanding in a field relevant to the proposed intervention? | E75: =IF(D76="yes",1,0) -> 0
B76: Input needed | C76: Yes or not | D76: ='Input Sheet'!D127 -> 0
B77: Sub-indicator | C77: ='Input Sheet'!C128 -> Does the proposed project or program include mechanisms to strengthen cooperation between partner organizations responsible for implementing the activities of the proposed project or program? | E77: =IF(D78="yes",1,0) -> 0
B78: Input needed | C78: Yes or not | D78: ='Input Sheet'!D128 -> 0
B79: Sub-indicator | C79: ='Input Sheet'!C129 -> Does the proposed project or program clearly set out learning exchanges or institutional knowledge sharing activities between organizations partnering in the project and beyond? | E79: =IF(D80="yes",COUNTIF(D80:D81,"yes"),0) -> 0
B80: Input needed | C80: ='Input Sheet'!C130 -> The proposed project or program provides a description of the learning exchanges between partner organizations and other entities | D80: ='Input Sheet'!D130 -> 0
B81: Input needed | C81: ='Input Sheet'!C131 -> Roles and responsibilities and implementation modalities are clearly defined | D81: ='Input Sheet'!D131 -> 0
B82: Sub-indicator | C82: ='Input Sheet'!C132 -> Does the proposed project or program include details for a plan for the monitoring and evaluation of knowledge creation/spreading? | E82: =IF(D83="yes",1,0) -> 0
B83: Input needed | C83: Yes or not | D83: ='Input Sheet'!D132 -> 0
B84: Sub-criterion | C84: 8/31 - Sustainability of outcomes and results beyond completion of the intervention | H84: =F85 -> 1
B85: Indicator | C85: 1 - Financial sustainability in the long term | F85: =E86 -> 1
B86: Sub-indicator | C86: Proxy for financial sustainability | E86: =D87 -> 1
B87: Input needed | C87: ='Input Sheet'!B135 -> Data entry to be covered by subcriterion 30/31 "Financial viability in the long run" | D87: =H385 -> 1
B88: Sub-criterion | C88: 9/31 - Market development and transformation | H88: =F89 -> 1
B89: Indicator | C89: 1 - Market creation at national, local or sectoral level. | F89: =1+((E90+E92)) -> 1
B90: Sub-indicator | C90: 1. Does the project or program provide evidence that skills are introduced in the job market at national, local, or sectoral levels? (e.g. with the creation of long-term training facilities, universities, etc.). | E90: =IF(D91="yes",1,0) -> 0
B91: Input needed | C91: Yes or not | D91: ='Input Sheet'!D139 -> 0
B92: Sub-indicator | C92: 2. Does the project or program provide evidence of the creation at national, local or sectoral level of new business activities (e.g. companies, funds, equipment suppliers, suppliers, insurers, service providers, engineering companies) previously not existing in the market? | E92: =IF(D93="yes",IF(D94="no",1,IF(D95="yes",3,2)),0) -> 0
B93: Input needed | C93: The proposed project or program provides evidence that the market is transformed by expanding capacity and knowledge within existing businesses at the local, national, or sectoral level to carry out new business activities | D93: ='Input Sheet'!D141 -> 0
B94: Input needed | C94: The proposed project or program provide evidence that additional (net) jobs are created as result of these activities. | D94: ='Input Sheet'!D142 -> 0
B95: Input needed | C95: The proposed project or program provide evidence that market is transformed with the creation of new businesses at the local, national, or sectoral level | D95: ='Input Sheet'!D143 -> 0
B96: Sub-criterion | C96: 10/31 - Potential for strengthened regulatory frameworks and policies to drive investment in low-emission technologies and activities, promote development of additional low-emission policies, and/or improve climate-responsive planning and development | H96: =F97 -> 1.8
B97: Indicator | C97: 1 - Contribution to mainstream and systematically promote climate change within regulatory framework and policies | F97: =1+((E98+E100+E102+E104+E106)*4/5) -> 1.8
B98: Sub-indicator | C98: ='Input Sheet'!C147 -> Does the project or program clearly describe (e.g. by defining milestones) how it will actively encourage (i.e. through awareness-raising, lobbying, campaigning, facilitating stakeholder dialogue, capacity building) regulatory entities (national and local government entities, regulatory agencies) to consider climate change, and low-carbon/climate resilient development as a priority (i.e. by achieving senior level commitment, setting targets on the issue, updating their risk management frameworks) in the strategies, policies and frameworks they are responsible for)? | E98: =IF(D99="yes",1,0) -> 1
B99: Input needed | C99: Yes or not | D99: ='Input Sheet'!D147 -> YES
B100: Sub-indicator | C100: ='Input Sheet'!C148 -> Does the project or program clearly describe (e.g. by defining milestones) how it will contribute (i.e. providing information on/support to identify the climate adaptation and/or mitigation measures to implement) to the enactment of legally binding provisions (i.e. financial/fiscal incentives, drafting of codes) that systemically promote investment in low-emission and/or climate-resilient development (e.g. through the integration of climate change considerations into relevant budgetary frameworks at national, subnational and sectoral levels)? | E100: =IF(D101="yes",1,0) -> 0
B101: Input needed | C101: Yes or not | D101: ='Input Sheet'!D148 -> 0
B102: Sub-indicator | C102: ='Input Sheet'!C149 -> Does the project or program clearly describe (e.g. by defining milestones) how it will contribute (i.e. providing information on/support to identify the climate adaptation and/or mitigation measures to implement) to increased transparency in the reporting of climate action progress (e.g. including tracking of policies or financing towards clean energy, energy efficiency, climate resilience or other climate-related activities and investments) ? | E102: =IF(D103="yes",1,0) -> 0
B103: Input needed | C103: Yes or not | D103: ='Input Sheet'!D149 -> 0
B104: Sub-indicator | C104: ='Input Sheet'!C150 -> Does the project actively encourage regulatory changes that would enable and facilitate the survival of the proposed activities in the long-term OR the scale up and/or replication of the proposed activities? | E104: =IF(D105="yes",1,0) -> 0
B105: Input needed | C105: Yes or not | D105: ='Input Sheet'!D150 -> 0
B106: Sub-indicator | C106: ='Input Sheet'!C151 -> Does the project or program clearly describe how the implementation of the legally binding provisions (climate action) will be monitored and evaluated (M&E) (transparency of the M&E process, reporting frequency)? | E106: =IF(D107="yes",1,0) -> 0
B107: Input needed | C107: Yes or not | D107: ='Input Sheet'!D151 -> 0
B109: SUSTAINABLE DEVELOPMENT POTENTIAL
B110: Level of analysis | C110: Indicators | D110: Input | E110: Output (sub-indicator) | F110: Output (indicator) | H110: Output (sub-criterion)
B111: Sub-criterion | C111: 13/31 - Expected positive environmental impacts, including in other result areas of the Fund, and/or in line with the priorities set at the national, local or sectoral level, as appropriate | H111: =F112 -> 1
B112: Indicator | C112: 1 - Extent of environmental co-benefits | F112: =MAX(1,IFERROR((SUM(E113,E121,E129,E137,E145)/COUNT(E113,E121,E129,E137,E145)),0)) -> 1
B113: Sub-indicator | C113: ='Input Sheet'!C157 -> Does the proposed project or program provide net improvement in the quality of air (e.g. reduced air pollution), compared to the likely situation without the project? | E113: =IF(D114="NO","",IF(OR(D115="NO",AND(D115<>"NO",D116="YES")),1+IF(D117="YES",1+COUNTIF(D118:D120,"YES"),0),-1)) -> -1
B114: Input needed | C114: ='Input Sheet'!C158 -> The dimension is relevant for/applicable to the project or program as per GCF assessment | D114: ='Input Sheet'!D158 -> 0
B115: Input needed | C115: ='Input Sheet'!C159 -> Based on information in the FP, or as per GCF assessment, the project produces NEGATIVE IMPACTS in relation to the dimension examined | D115: ='Input Sheet'!D159 -> 0
B116: Input needed | C116: ='Input Sheet'!C160 -> Based on information in the FP, evidence/documentation is provided that a PLAN is in place to entirely offset such negative impacts | D116: ='Input Sheet'!D160 -> 0
B117: Input needed | C117: ='Input Sheet'!C161 -> The proposed project or program provides a DESCRIPTION of long-term NET POSITIVE impacts in the dimension examined | D117: ='Input Sheet'!D161 -> 0
B118: Input needed | C118: ='Input Sheet'!C162 -> Based on information in the FP, or as per GCF assessment, net positive impacts can be considered SIGNIFICANT and ALIGNED with priorities at the national, local or sectoral level | D118: ='Input Sheet'!D162 -> 0
B119: Input needed | C119: ='Input Sheet'!C163 -> Potential net positive impacts are ESTIMATED using peer-reviewed METHODOLOGIES as a frame of reference and the COUNTERFACTUAL / BASELINE is supported by EVIDENCE / DOCUMENTATION | D119: ='Input Sheet'!D163 -> 0
B120: Input needed | C120: ='Input Sheet'!C164 -> The FP includes a MONITORING PLAN to measure and demonstrate net positive impacts ex-post | D120: ='Input Sheet'!D164 -> 0
B121: Input needed | C121: ='Input Sheet'!C165 -> Does the proposed project or program provide net improvement in the quality of water (e.g. reduced water pollution/contamination), compared to the likely situation without the project? | E121: =IF(D122="NO","",IF(OR(D123="NO",AND(D123<>"NO",D124="YES")),1+IF(D125="YES",1+COUNTIF(D126:D128,"YES"),0),-1)) -> -1
B122: Input needed | C122: ='Input Sheet'!C166 -> The dimension is relevant for/applicable to the project or program as per GCF assessment | D122: ='Input Sheet'!D166 -> 0
B123: Input needed | C123: ='Input Sheet'!C167 -> Based on information in the FP, or as per GCF assessment, the project produces NEGATIVE IMPACTS in relation to the dimension examined | D123: ='Input Sheet'!D167 -> 0
B124: Input needed | C124: ='Input Sheet'!C168 -> Based on information in the FP, evidence/documentation is provided that a PLAN is in place to entirely offset such negative impacts | D124: ='Input Sheet'!D168 -> 0
B125: Input needed | C125: ='Input Sheet'!C169 -> The proposed project or program provides a DESCRIPTION of long-term NET POSITIVE impacts in the dimension examined | D125: ='Input Sheet'!D169 -> 0
B126: Input needed | C126: ='Input Sheet'!C170 -> Based on information in the FP, or as per GCF assessment, net positive impacts can be considered SIGNIFICANT and ALIGNED with priorities at the national, local or sectoral level | D126: ='Input Sheet'!D170 -> 0
B127: Input needed | C127: ='Input Sheet'!C171 -> Potential net positive impacts are ESTIMATED using peer-reviewed METHODOLOGIES as a frame of reference and the COUNTERFACTUAL / BASELINE is supported by EVIDENCE / DOCUMENTATION | D127: ='Input Sheet'!D171 -> 0
B128: Input needed | C128: ='Input Sheet'!C172 -> The FP includes a MONITORING PLAN to measure and demonstrate net positive impacts ex-post | D128: ='Input Sheet'!D172 -> 0
B129: Input needed | C129: ='Input Sheet'!C173 -> Does the proposed project or program provide net improvement in the quality of land (e.g. reduced land pollution), compared to the likely situation without the project? | E129: =IF(D130="NO","",IF(OR(D131="NO",AND(D131<>"NO",D132="YES")),1+IF(D133="YES",1+COUNTIF(D134:D136,"YES"),0),-1)) -> -1
B130: Input needed | C130: ='Input Sheet'!C174 -> The dimension is relevant for/applicable to the project or program as per GCF assessment | D130: ='Input Sheet'!D174 -> 0
B131: Input needed | C131: ='Input Sheet'!C175 -> Based on information in the FP, or as per GCF assessment, the project produces NEGATIVE IMPACTS in relation to the dimension examined | D131: ='Input Sheet'!D175 -> 0
B132: Input needed | C132: ='Input Sheet'!C176 -> Based on information in the FP, evidence/documentation is provided that a PLAN is in place to entirely offset such negative impacts | D132: ='Input Sheet'!D176 -> 0
B133: Input needed | C133: ='Input Sheet'!C177 -> The proposed project or program provides a DESCRIPTION of long-term NET POSITIVE impacts in the dimension examined | D133: ='Input Sheet'!D177 -> 0
B134: Input needed | C134: ='Input Sheet'!C178 -> Based on information in the FP, or as per GCF assessment, net positive impacts can be considered SIGNIFICANT and ALIGNED with priorities at the national, local or sectoral level | D134: ='Input Sheet'!D178 -> 0
B135: Input needed | C135: ='Input Sheet'!C179 -> Potential net positive impacts are ESTIMATED using peer-reviewed METHODOLOGIES as a frame of reference and the COUNTERFACTUAL / BASELINE is supported by EVIDENCE / DOCUMENTATION | D135: ='Input Sheet'!D179 -> 0
B136: Input needed | C136: ='Input Sheet'!C180 -> The FP includes a MONITORING PLAN to measure and demonstrate net positive impacts ex-post | D136: ='Input Sheet'!D180 -> 0
B137: Input needed | C137: ='Input Sheet'!C181 -> Does the proposed project or program provide net improvement in the efficient and sustainable use of living natural resources and/or ecosystem services, compared to the likely situation without the project? | E137: =IF(D138="NO","",IF(OR(D139="NO",AND(D139<>"NO",D140="YES")),1+IF(D141="YES",1+COUNTIF(D142:D144,"YES"),0),-1)) -> -1
B138: Input needed | C138: ='Input Sheet'!C182 -> The dimension is relevant for/applicable to the project or program as per GCF assessment | D138: ='Input Sheet'!D182 -> 0
B139: Input needed | C139: ='Input Sheet'!C183 -> Based on information in the FP, or as per GCF assessment, the project produces NEGATIVE IMPACTS in relation to the dimension examined | D139: ='Input Sheet'!D183 -> 0
B140: Input needed | C140: ='Input Sheet'!C184 -> Based on information in the FP, evidence/documentation is provided that a PLAN is in place to entirely offset such negative impacts | D140: ='Input Sheet'!D184 -> 0
B141: Input needed | C141: ='Input Sheet'!C185 -> The proposed project or program provides a DESCRIPTION of long-term NET POSITIVE impacts in the dimension examined | D141: ='Input Sheet'!D185 -> 0
B142: Input needed | C142: ='Input Sheet'!C186 -> Based on information in the FP, or as per GCF assessment, net positive impacts can be considered SIGNIFICANT and ALIGNED with priorities at the national, local or sectoral level | D142: ='Input Sheet'!D186 -> 0
B143: Input needed | C143: ='Input Sheet'!C187 -> Potential net positive impacts are ESTIMATED using peer-reviewed METHODOLOGIES as a frame of reference and the COUNTERFACTUAL / BASELINE is supported by EVIDENCE / DOCUMENTATION | D143: ='Input Sheet'!D187 -> 0
B144: Input needed | C144: ='Input Sheet'!C188 -> The FP includes a MONITORING PLAN to measure and demonstrate net positive impacts ex-post | D144: ='Input Sheet'!D188 -> 0
B145: Input needed | C145: ='Input Sheet'!C189 -> Does the proposed project or program provide net improvement in biodiversity, compared to the likely situation without the project? | E145: =IF(D146="NO","",IF(OR(D147="NO",AND(D147<>"NO",D148="YES")),1+IF(D149="YES",1+COUNTIF(D150:D152,"YES"),0),-1)) -> -1
B146: Input needed | C146: ='Input Sheet'!C190 -> The dimension is relevant for/applicable to the project or program as per GCF assessment | D146: ='Input Sheet'!D190 -> 0
B147: Input needed | C147: ='Input Sheet'!C191 -> Based on information in the FP, or as per GCF assessment, the project produces NEGATIVE IMPACTS in relation to the dimension examined | D147: ='Input Sheet'!D191 -> 0
B148: Input needed | C148: ='Input Sheet'!C192 -> Based on information in the FP, evidence/documentation is provided that a PLAN is in place to entirely offset such negative impacts | D148: ='Input Sheet'!D192 -> 0
B149: Input needed | C149: ='Input Sheet'!C193 -> The proposed project or program provides a DESCRIPTION of long-term NET POSITIVE impacts in the dimension examined | D149: ='Input Sheet'!D193 -> 0
B150: Input needed | C150: ='Input Sheet'!C194 -> Based on information in the FP, or as per GCF assessment, net positive impacts can be considered SIGNIFICANT and ALIGNED with priorities at the national, local or sectoral level | D150: ='Input Sheet'!D194 -> 0
B151: Input needed | C151: ='Input Sheet'!C195 -> Potential net positive impacts are ESTIMATED using peer-reviewed METHODOLOGIES as a frame of reference and the COUNTERFACTUAL / BASELINE is supported by EVIDENCE / DOCUMENTATION | D151: ='Input Sheet'!D195 -> 0
B152: Input needed | C152: ='Input Sheet'!C196 -> The FP includes a MONITORING PLAN to measure and demonstrate net positive impacts ex-post | D152: ='Input Sheet'!D196 -> 0
B153: Sub-criterion | C153: 14/31 - Expected positive social and health impacts, including in other result areas of the Fund, and/or in line with the priorities set at the national, local or sectoral level, as appropriate | H153: =F154 -> 1
B154: Indicator | C154: 1 - Extent of social and health co-benefits | F154: =MAX(1,IFERROR((SUM(E155,E163,E171,E179)/COUNT(E155,E163,E171,E179)),0)) -> 1
B155: Sub-indicator | C155: ='Input Sheet'!C200 -> Does the proposed project or program provide a net positive impact on health, safety and security (including disease prevention, reducing accidents, reducing crime, preserving food, reducing health damaging indoor air pollution, enhancing health services, improving sanitation and waste management and other health and safety improvement), compared to the likely situation without the project? | E155: =IF(D156="NO","",IF(OR(D157="NO",AND(D157<>"NO",D158="YES")),1+IF(D159="YES",1+COUNTIF(D160:D162,"YES"),0),-1)) -> -1
B156: Input needed | C156: ='Input Sheet'!C201 -> The dimension is relevant for/applicable to the project or program as per GCF assessment | D156: ='Input Sheet'!D201 -> 0
B157: Input needed | C157: ='Input Sheet'!C202 -> Based on information in the FP, or as per GCF assessment, the project produces NEGATIVE IMPACTS in relation to the dimension examined | D157: ='Input Sheet'!D202 -> 0
B158: Input needed | C158: ='Input Sheet'!C203 -> Based on information in the FP, evidence/documentation is provided that a PLAN is in place to entirely offset such negative impacts | D158: ='Input Sheet'!D203 -> 0
B159: Input needed | C159: ='Input Sheet'!C204 -> The proposed project or program provides a DESCRIPTION of long-term NET POSITIVE impacts in the dimension examined | D159: ='Input Sheet'!D204 -> 0
B160: Input needed | C160: ='Input Sheet'!C205 -> Based on information in the FP, or as per GCF assessment, net positive impacts can be considered SIGNIFICANT and ALIGNED with priorities at the national, local or sectoral level | D160: ='Input Sheet'!D205 -> 0
B161: Input needed | C161: ='Input Sheet'!C206 -> Potential net positive impacts are ESTIMATED using peer-reviewed METHODOLOGIES as a frame of reference and the COUNTERFACTUAL / BASELINE is supported by EVIDENCE / DOCUMENTATION | D161: ='Input Sheet'!D206 -> 0
B162: Input needed | C162: ='Input Sheet'!C207 -> The FP includes a MONITORING PLAN to measure and demonstrate net positive impacts ex-post | D162: ='Input Sheet'!D207 -> 0
B163: Sub-indicator | C163: ='Input Sheet'!C208 -> Does the proposed project or program provide net positive impacts on communities facing land acquisition and involuntary resettlement (including avoiding expropriation or negotiated resettlement, improving land rights and land use rights, improving access to traditional natural resources and communal property, appropriate compensation, concerted resettlement plan), compared to the likely situation without the project? | E163: =IF(D164="NO","",IF(OR(D165="NO",AND(D165<>"NO",D166="YES")),1+IF(D167="YES",1+COUNTIF(D168:D170,"YES"),0),-1)) -> -1
B164: Input needed | C164: ='Input Sheet'!C209 -> The dimension is relevant for/applicable to the project or program as per GCF assessment | D164: ='Input Sheet'!D209 -> 0
B165: Input needed | C165: ='Input Sheet'!C210 -> Based on information in the FP, or as per GCF assessment, the project produces NEGATIVE IMPACTS in relation to the dimension examined | D165: ='Input Sheet'!D210 -> 0
B166: Input needed | C166: ='Input Sheet'!C211 -> Based on information in the FP, evidence/documentation is provided that a PLAN is in place to entirely offset such negative impacts | D166: ='Input Sheet'!D211 -> 0
B167: Input needed | C167: ='Input Sheet'!C212 -> The proposed project or program provides a DESCRIPTION of long-term NET POSITIVE impacts in the dimension examined | D167: ='Input Sheet'!D212 -> 0
B168: Input needed | C168: ='Input Sheet'!C213 -> Based on information in the FP, or as per GCF assessment, net positive impacts can be considered SIGNIFICANT and ALIGNED with priorities at the national, local or sectoral level | D168: ='Input Sheet'!D213 -> 0
B169: Input needed | C169: ='Input Sheet'!C214 -> Potential net positive impacts are ESTIMATED using peer-reviewed METHODOLOGIES as a frame of reference and the COUNTERFACTUAL / BASELINE is supported by EVIDENCE / DOCUMENTATION | D169: ='Input Sheet'!D214 -> 0
B170: Input needed | C170: ='Input Sheet'!C215 -> The FP includes a MONITORING PLAN to measure and demonstrate net positive impacts ex-post | D170: ='Input Sheet'!D215 -> 0
B171: Sub-indicator | C171: ='Input Sheet'!C216 -> Does the proposed project or program provide net positive impacts on indigenous peoples, or improved conservation of and/or access to cultural heritage (including preservation of lands occupied by indigenous groups /cultural sites and the protection of national/regional cultural/knowledge-related practice), compared to the likely situation without the project? | E171: =IF(D172="NO","",IF(OR(D173="NO",AND(D173<>"NO",D174="YES")),1+IF(D175="YES",1+COUNTIF(D176:D178,"YES"),0),-1)) -> -1
B172: Input needed | C172: ='Input Sheet'!C217 -> The dimension is relevant for/applicable to the project or program as per GCF assessment | D172: ='Input Sheet'!D217 -> 0
B173: Input needed | C173: ='Input Sheet'!C218 -> Based on information in the FP, or as per GCF assessment, the project produces NEGATIVE IMPACTS in relation to the dimension examined | D173: ='Input Sheet'!D218 -> 0
B174: Input needed | C174: ='Input Sheet'!C219 -> Based on information in the FP, evidence/documentation is provided that a PLAN is in place to entirely offset such negative impacts | D174: ='Input Sheet'!D219 -> 0
B175: Input needed | C175: ='Input Sheet'!C220 -> The proposed project or program provides a DESCRIPTION of long-term NET POSITIVE impacts in the dimension examined | D175: ='Input Sheet'!D220 -> 0
B176: Input needed | C176: ='Input Sheet'!C221 -> Based on information in the FP, or as per GCF assessment, net positive impacts can be considered SIGNIFICANT and ALIGNED with priorities at the national, local or sectoral level | D176: ='Input Sheet'!D221 -> 0
B177: Input needed | C177: ='Input Sheet'!C222 -> Potential net positive impacts are ESTIMATED using peer-reviewed METHODOLOGIES as a frame of reference and the COUNTERFACTUAL / BASELINE is supported by EVIDENCE / DOCUMENTATION | D177: ='Input Sheet'!D222 -> 0
B178: Input needed | C178: ='Input Sheet'!C223 -> The FP includes a MONITORING PLAN to measure and demonstrate net positive impacts ex-post | D178: ='Input Sheet'!D223 -> 0
B179: Sub-indicator | C179: ='Input Sheet'!C224 -> Does the proposed project or program provide net improved access to education (enhanced educational services, and other educational benefits), compared to the likely situation without the project? | E179: =IF(D180="NO","",IF(OR(D181="NO",AND(D181<>"NO",D182="YES")),1+IF(D183="YES",1+COUNTIF(D184:D186,"YES"),0),-1)) -> -1
B180: Input needed | C180: ='Input Sheet'!C225 -> The dimension is relevant for/applicable to the project or program as per GCF assessment | D180: ='Input Sheet'!D225 -> 0
B181: Input needed | C181: ='Input Sheet'!C226 -> Based on information in the FP, or as per GCF assessment, the project produces NEGATIVE IMPACTS in relation to the dimension examined | D181: ='Input Sheet'!D226 -> 0
B182: Input needed | C182: ='Input Sheet'!C227 -> Based on information in the FP, evidence/documentation is provided that a PLAN is in place to entirely offset such negative impacts | D182: ='Input Sheet'!D227 -> 0
B183: Input needed | C183: ='Input Sheet'!C228 -> The proposed project or program provides a DESCRIPTION of long-term NET POSITIVE impacts in the dimension examined | D183: ='Input Sheet'!D228 -> 0
B184: Input needed | C184: ='Input Sheet'!C229 -> Based on information in the FP, or as per GCF assessment, net positive impacts can be considered SIGNIFICANT and ALIGNED with priorities at the national, local or sectoral level | D184: ='Input Sheet'!D229 -> 0
B185: Input needed | C185: ='Input Sheet'!C230 -> Potential net positive impacts are ESTIMATED using peer-reviewed METHODOLOGIES as a frame of reference and the COUNTERFACTUAL / BASELINE is supported by EVIDENCE / DOCUMENTATION | D185: ='Input Sheet'!D230 -> 0
B186: Input needed | C186: ='Input Sheet'!C231 -> The FP includes a MONITORING PLAN to measure and demonstrate net positive impacts ex-post | D186: ='Input Sheet'!D231 -> 0
B187: Sub-criterion | C187: 15/31 - Expected positive economic impacts, including in other result areas of the Fund, and/or in line with the priorities set at the national, local or sectoral level, as appropriate | H187: =F188 -> 1
B188: Indicator | C188: 1 - Extent of economic co-benefits | F188: =MAX(1,IFERROR((SUM(E189,E205,E213,E197)/COUNT(E189,E205,E213,E197)),0)) -> 1
B189: Sub-indicator | C189: ='Input Sheet'!C235 -> Does the proposed project or program create net income improvement for the target geographies (e.g. through job creation, profit generation, avoided costs), compared to the likely situation without the project? | E189: =IF(D190="NO","",IF(OR(D191="NO",AND(D191<>"NO",D192="YES")),1+IF(D193="YES",1+COUNTIF(D194:D196,"YES"),0),-1)) -> -1
B190: Input needed | C190: ='Input Sheet'!C236 -> The dimension is relevant for/applicable to the project or program as per GCF assessment | D190: ='Input Sheet'!D236 -> 0
B191: Input needed | C191: ='Input Sheet'!C237 -> Based on information in the FP, or as per GCF assessment, the project produces NEGATIVE IMPACTS in relation to the dimension examined | D191: ='Input Sheet'!D237 -> 0
B192: Input needed | C192: ='Input Sheet'!C238 -> Based on information in the FP, evidence/documentation is provided that a PLAN is in place to entirely offset such negative impacts | D192: ='Input Sheet'!D238 -> 0
B193: Input needed | C193: ='Input Sheet'!C239 -> The proposed project or program provides a DESCRIPTION of long-term NET POSITIVE impacts in the dimension examined | D193: ='Input Sheet'!D239 -> 0
B194: Input needed | C194: ='Input Sheet'!C240 -> Based on information in the FP, or as per GCF assessment, net positive impacts can be considered SIGNIFICANT and ALIGNED with priorities at the national, local or sectoral level | D194: ='Input Sheet'!D240 -> 0
B195: Input needed | C195: ='Input Sheet'!C241 -> Potential net positive impacts are ESTIMATED using peer-reviewed METHODOLOGIES as a frame of reference and the COUNTERFACTUAL / BASELINE is supported by EVIDENCE / DOCUMENTATION | D195: ='Input Sheet'!D241 -> 0
B196: Input needed | C196: ='Input Sheet'!C242 -> The FP includes a MONITORING PLAN to measure and demonstrate net positive impacts ex-post | D196: ='Input Sheet'!D242 -> 0
B197: Sub-indicator | C197: ='Input Sheet'!C243 -> Does the proposed project or program contribute to poverty alleviation (e.g. decrease in the number of people below the poverty treshold for target countries), compared to the likely situation without the project? | E197: =IF(D198="NO","",IF(OR(D199="NO",AND(D199<>"NO",D200="YES")),1+IF(D201="YES",1+COUNTIF(D202:D204,"YES"),0),-1)) -> -1
B198: Input needed | C198: ='Input Sheet'!C244 -> The dimension is relevant for/applicable to the project or program as per GCF assessment | D198: ='Input Sheet'!D244 -> 0
B199: Input needed | C199: ='Input Sheet'!C245 -> Based on information in the FP, or as per GCF assessment, the project produces NEGATIVE IMPACTS in relation to the dimension examined | D199: ='Input Sheet'!D245 -> 0
B200: Input needed | C200: ='Input Sheet'!C246 -> Based on information in the FP, evidence/documentation is provided that a PLAN is in place to entirely offset such negative impacts | D200: ='Input Sheet'!D246 -> 0
B201: Input needed | C201: ='Input Sheet'!C247 -> The proposed project or program provides a DESCRIPTION of long-term NET POSITIVE impacts in the dimension examined | D201: ='Input Sheet'!D247 -> 0
B202: Input needed | C202: ='Input Sheet'!C248 -> Based on information in the FP, or as per GCF assessment, net positive impacts can be considered SIGNIFICANT and ALIGNED with priorities at the national, local or sectoral level | D202: ='Input Sheet'!D248 -> 0
B203: Input needed | C203: ='Input Sheet'!C249 -> Potential net positive impacts are ESTIMATED using peer-reviewed METHODOLOGIES as a frame of reference and the COUNTERFACTUAL / BASELINE is supported by EVIDENCE / DOCUMENTATION | D203: ='Input Sheet'!D249 -> 0
B204: Input needed | C204: ='Input Sheet'!C250 -> The FP includes a MONITORING PLAN to measure and demonstrate net positive impacts ex-post | D204: ='Input Sheet'!D250 -> 0
B205: Sub-indicator | C205: ='Input Sheet'!C251 -> Does the proposed project or program increase availability of physical infrastructure for a wider use than strictly serving the project purposes (e.g. expansion of road network), compared to the likely situation without the project? | E205: =IF(D206="NO","",IF(OR(D207="NO",AND(D207<>"NO",D208="YES")),1+IF(D209="YES",1+COUNTIF(D210:D212,"YES"),0),-1)) -> -1
... 222 more rows

Sheet log (hidden)
A3: date | B3: version | C3: item | D3: sub-item | E3: change
A4: 2019-12-05 | B4: v 1.5 | C4: needs of the recipient | D4: stakeholder consultation | E4: added indicator
A5: 2019-12-05 | B5: v 1.5 | C5: paradigm shift | D5: innovation | E5: added indicator
A6: 2020-01-29 | B6: v 2.0 | C6: impact | D6: mitigation and adaptation impact | E6: amend impact to fund ratio using total finance instead of GCF finance only, change of benchmarks for quintiles calculation and outliers to reflect new ratio
A7: 2020-01-29 | B7: v 2.0 | C7: impact | D7: mitigation impact | E7: added robustness indicator for adaptation impact
A8: 2020-01-29 | B8: v 2.0 | C8: impact | D8: adaptation impact | E8: added robustness indicator for adaptation impact
A9: 2020-01-29 | B9: v 2.0 | C9: weights and benchmarks | D9: weights | E9: added weights by result areas in model
A10: 2020-01-30 | B10: v 2.0 | C10: paradigm shift | D10: innovation | E10: small amendment in introductory wording
A11: 2020-01-30 | B11: v 2.0 | C11: paradigm shift | D11: scalability | E11: Added question on size of target market
A12: 2020-01-30 | B12: v 2.0 | C12: paradigm shift | D12: diffusion of knowledge | E12: Added question of M&E of knowledge spreading, by amending previous question on general monitoring
A13: 2020-01-30 | B13: v 2.0 | C13: paradigm shift | D13: contribute of regulatory framework | E13: change formula, added new question on how regulatory framework changes guarantee continuity of proposed activity. Slight amendment of previous questions
A14: 2020-01-30 | B14: v 2.0 | C14: sustainable development potential | D14: environmental co-benefits | E14: substantial change in questions and calculation formula
A15: 2020-01-30 | B15: v 2.0 | C15: sustainable development potential | D15: social co-benefits | E15: substantial change in questions and calculation formula
A16: 2020-01-30 | B16: v 2.0 | C16: sustainable development potential | D16: economic co-benefits | E16: substantial change in questions and calculation formula
A17: 2020-01-31 | B17: v 2.0 | C17: needs of the recipient | D17: country vulnerability | E17: linked indicator to assessment of robustness of vulnerability context
A18: 2020-01-31 | B18: v 2.0 | C18: needs of the recipient | D18: country vulnerability | E18: added indicator using ND-GAIN as proxy index for vulnerability of country
A19: 2020-01-31 | B19: v 2.0 | C19: sustainable development potential | D19: gender equality | E19: added question on access to services and amended wording of some other questions
A20: 2020-01-31 | B20: v 2.0 | C20: sustainable development potential | D20: gender equality | E20: added indicator comparing share of female beneficiaries over similar projects / benchmarks
A21: 2020-02-02 | B21: v 2.0 | C21: country ownership | D21: coherence with country's national climate priorities | E21: slighlty amended wording in questions
A22: 2020-02-02 | B22: v 2.0 | C22: country ownership | D22: Experience and track record of the Accredited Entity (AE) or Executing Entities (EEs) in key elements of the proposed activity | E22: added reference to EE in first question on in-country experience
A23: 2020-02-02 | B23: v 2.0 | C23: country ownership | D23: Coverage of diverse stakeholders from non-governmental organisations in designing the project/program | E23: some categories of stakeholders are "not applicable" if so assessed by the TM
A24: 2020-02-02 | B24: v 2.0 | C24: country ownership | D24: Level of engagement of the National Designated Authority (NDA | E24: amended questions to reflect better the fact that multiple NDAs can participate in multi-country projects
A25: 2020-02-02 | B25: v 2.0 | C25: efficiency and effectiveness | D25: Existence of strategy for phasing out GCF's support | E25: added indicator
A26: 2020-02-02 | B26: v 2.0 | C26: efficiency and effectiveness | D26: Strength of the executing entity | E26: added indicator linked to "Experience and track record of the Accredited Entity (AE) or Executing Entities (EEs) in key elements of the proposed activity "
A27: 2020-02-02 | B27: v 2.0 | C27: efficiency and effectiveness | D27: Effectiveness in mitigating risks and challenges to the project implementation in the long-run | E27: added indicator
A28: 2020-02-02 | B28: v 2.0 | C28: efficiency and effectiveness | D28: innovation checklist | E28: added indicator linking to "innovation checklist"
A29: 2020-02-02 | B29: v 2.0 | C29: efficiency and effectiveness | D29: transfer of best available tech and practices | E29: added indicator
A30: 2020-02-02 | B30: v 2.0 | C30: needs of the recipient | D30: barriers to finance | E30: added quantification of barrier impact and how it is mitigated
A31: 2020-02-02 | B31: v 2.0 | C31: paradigm shift | D31: Sustainability of outcomes and results beyond completion of the intervention | E31: added indicator linked with "financial sustainability"
A32: 2020-02-04 | B32: v 2.0 | C32: weights and benchmarks | D32: weights | E32: corrected error on weights formula
A33: 2020-02-13 | B33: v 2.0 | C33: impact | D33: mitigation impact | E33: questions on robustness of estimate inverted
A34: 2020-02-13 | B34: v 2.0 | C34: impact | D34: mitigation impact | E34: make reference to CO2 emitted by project clearer
A35: 2020-02-13 | B35: v 2.0 | C35: sustainable development potential | D35: environmental co-benefits | E35: made availability of monitoring plan, quantification of assessment, and demonstration of significance equally relevant for individual co-benefits within the dimension, refer to baseline/conterfactual in the assessmnent
A36: 2020-02-13 | B36: v 2.0 | C36: sustainable development potential | D36: social co-benefits | E36: made availability of monitoring plan, quantification of assessment, and demonstration of significance equally relevant for individual co-benefits within the dimension, refer to baseline/conterfactual in the assessmnent
A37: 2020-02-13 | B37: v 2.0 | C37: sustainable development potential | D37: economic co-benefits | E37: made availability of monitoring plan, quantification of assessment, and demonstration of significance equally relevant for individual co-benefits within the dimension, refer to baseline/conterfactual in the assessmnent
A38: 2020-02-13 | B38: v 2.0 | C38: sustainable development potential | D38: economic co-benefits | E38: added description of individual dimensions
A39: 2020-02-13 | B39: v 2.0 | C39: sustainable development potential | D39: economic co-benefits | E39: changed order of questions (sequence now more logical)
A40: 2020-02-13 | B40: v 2.0 | C40: sustainable development potential | D40: social co-benefits | E40: separate questions on resettlement of people and indigenous / cultural heritage
A41: 2020-02-13 | B41: v 2.0 | C41: sustainable development potential | D41: gender equality | E41: add question on monitoring of gender progress
A42: 2020-02-14 | B42: v 2.0 | C42: needs of the recipient | D42: barriers to finance | E42: made reference to barriers clearer to reduce confusion Vs financial sustainability indicator
A43: 2020-02-14 | B43: v 2.0 | C43: country ownership | D43: coherence with country's national climate priorities | E43: clarified what is meant by sectoral priorities
A44: 2020-02-14 | B44: v 2.0 | C44: country ownership | D44: coherence with country's national climate priorities | E44: explanation of direct link
A45: 2020-02-14 | B45: v 2.0 | C45: country ownership | D45: Experience and track record of the Accredited Entity (AE) or Executing Entities (EEs) in key elements of the proposed activity | E45: separate assessment of AE from assessment of EE
A46: 2020-02-14 | B46: v 2.0 | C46: country ownership | D46: stakeholder consultation | E46: clarified what is meant by development/design phase
A47: 2020-02-14 | B47: v 2.0 | C47: country ownership | D47: stakeholder consultation | E47: added example of union within CSO
A48: 2020-02-14 | B48: v 2.0 | C48: efficiency and effectiveness | D48: adequate concessionality | E48: added feature to make questions "not applicable" depending on previous answers
A49: 2020-02-14 | B49: v 2.0 | C49: efficiency and effectiveness | D49: financial sustainability | E49: corrected some typose included in questions
A50: 2020-02-14 | B50: v 2.0 | C50: efficiency and effectiveness | D50: ability to address risk/challenges | E50: improved match formula so that it does not generate errors
A51: 2020-02-14 | B51: v 2.0 | C51: ALL | D51: formulas | E51: elminate ROUND formula from sub-criteria level assessment, values are only rounded at criteria level
A52: 2020-02-25 | B52: v 2.0 | C52: weights and benchmarks | D52: benchmarks | E52: add country benchmark for Korea (dem republic)
A53: 2020-02-21 | B53: v 2.0 | C53: weights and benchmarks | D53: benchmarks | E53: review annual emissions mitigation benchmarks using reported annual mitigation or retrieving it based on actual technology lifetimes
A54: 2020-02-25 | B54: v 2.0 | C54: weights and benchmarks | D54: benchmarks | E54: updated HDI and IHDI benchmarks (2018 data, previously using 2017 data)
A55: 2020-02-25 | B55: v 2.0 | C55: weights and benchmarks | D55: benchmarks | E55: updated beneficiaries information to ensure higher comparability between project data from different sources (GCF, GEF and CIFs funds)
A56: 2020-04-16 | B56: v 2.0 | C56: sustainable development potential | D56: gender equality | E56: removed indicator comparing share of female beneficiaries over similar projects / benchmarks
A57: 2020-04-16 | B57: v 2.0 | C57: efficiency and effectiveness | D57: ability to address risk/challenges | E57: renamed 3 scenario of likelyhood for risk event analysed

Sheet WEIGHTS (hidden)
E1: Public | F1: Private | G1: TOTAL
E2: ='Input Sheet'!E23 -> 0 | F2: ='Input Sheet'!E22 -> 0
C3: 1. Energy generation / access | D3: ='Input Sheet'!E13 -> 0 | E3: =D3*E$2 -> 0 | F3: =D3*F$2 -> 0
C4: 2. Transport | D4: ='Input Sheet'!E14 -> 0 | E4: =D4*E$2 -> 0 | F4: =D4*F$2 -> 0
C5: 3. Buildings, cities, industries and appliances | D5: ='Input Sheet'!E15 -> 0 | E5: 0 | F5: 0
C6: 4. Forests and Land Use | D6: ='Input Sheet'!E16 -> 0 | E6: 0 | F6: 0
C7: 5. Livelihoods of vulnerable people & communities | D7: ='Input Sheet'!E17 -> 0 | E7: 0 | F7: 0
C8: 6. Health and well-being, and food & water security | D8: ='Input Sheet'!E18 -> 0 | E8: 0 | F8: 0
C9: 7. Infrastructure & built environment | D9: ='Input Sheet'!E19 -> 0 | E9: 0 | F9: 0
C10: 8. Ecosystem & ecosystem services | D10: ='Input Sheet'!E20 -> 0 | E10: 0 | F10: 0
C11: TOTAL | G11: =SUM(E3:F10) -> 0
F13: MITIGATION | O13: ADAPTATION | AS13: MITIGATION | CC13: ADAPTATION
A14: CRITERION | B14: COVERAGE AREA | C14: SUB-CRITERION | F14: 1. Energy generation / access | H14: 2. Transport | J14: 3. Buildings, cities, industries and appliances | L14: 4. Forests and Land Use | N14: Applicable | O14: 5. Livelihoods of vulnerable people & communities | Q14: 6. Health and well-being, and food & water security | S14: 7. Infrastructure & built environment | U14: 8. Ecosystem & ecosystem services | W14: Applicable | AA14: PUBLIC Sector | AJ14: PRIVATE sector | AS14: 1. Energy generation / access | BB14: 2. Transport | BK14: 3. Buildings, cities, industries and appliances | BT14: 4. Forests and Land Use | CC14: 1. Livelihoods of vulnerable people & communities | CL14: 2. Health and well-being, and food & water security | CU14: 3. Infrastructure & built environment | DD14: 4. Ecosystem & ecosystem services
D15: WEIGHTS | E15: SCENARIO SCORE | F15: Public | G15: Private | H15: Public | I15: Private | J15: Public | K15: Private | L15: Public | M15: Private | N15: X | O15: Public | P15: Private | Q15: Public | R15: Private | S15: Public | T15: Private | U15: Public | V15: Private | W15: x | AA15: RANK | AB15: MODE | AC15: MEDIAN | AD15: AVERAGE | AE15: Min | AF15: 25th percentile | AG15: 75th percentile | AH15: Max | AJ15: RANK | AK15: MODE | AL15: MEDIAN | AM15: AVERAGE | AN15: Min | AO15: 25th percentile | AP15: 75th percentile | AQ15: Max | AS15: RANK | AT15: MODE | AU15: MEDIAN | AV15: AVERAGE | AW15: Min | AX15: 25th percentile | AY15: 75th percentile | AZ15: Max | BB15: RANK | BC15: MODE | BD15: MEDIAN | BE15: AVERAGE | BF15: Min | BG15: 25th percentile | BH15: 75th percentile | BI15: Max | BK15: RANK | BL15: MODE | BM15: MEDIAN | BN15: AVERAGE | BO15: Min | BP15: 25th percentile | BQ15: 75th percentile | BR15: Max | BT15: RANK | BU15: MODE | BV15: MEDIAN | BW15: AVERAGE | BX15: Min | BY15: 25th percentile | BZ15: 75th percentile | CA15: Max | CC15: RANK | CD15: MODE | CE15: MEDIAN | CF15: AVERAGE | CG15: Min | CH15: 25th percentile | CI15: 75th percentile | CJ15: Max | CL15: RANK | CM15: MODE | CN15: MEDIAN | CO15: AVERAGE | CP15: Min | CQ15: 25th percentile | CR15: 75th percentile | CS15: Max | CU15: RANK | CV15: MODE | CW15: MEDIAN | CX15: AVERAGE | CY15: Min | CZ15: 25th percentile | DA15: 75th percentile | DB15: Max | DD15: RANK | DE15: MODE | DF15: MEDIAN | DG15: AVERAGE | DH15: Min | DI15: 25th percentile | DJ15: 75th percentile | DK15: Max
A16: Impact potential | B16: Mitigation impact | C16: Contribution to the shift to low-emission sustainable development pathways | D16: =E16/SUM(E16:E17) ->  | E16: =$E$3*F16+$F$3*G16+$E$4*H16+$F$4*I16+$E$5*J16+$F$5*K16+$E$6*L16+$F$6*M16+$E$7*O16+$F$7*P16+$E$8*Q16+$F$8*R16+$E$9*S16+$F$9*T16+$E$10*U16+$F$10*V16 -> 0 | F16: =N16*AVERAGE(AC16,AU16) -> 10 | G16: =N16*AVERAGE(AL16,AU16) -> 10 | H16: =N16*AVERAGE(AC16,BD16) -> 9 | I16: =N16*AVERAGE(AL16,BD16) -> 9 | J16: =N16*AVERAGE(AC16,BM16) -> 9.25 | K16: =N16*AVERAGE(AL16,BM16) -> 9.25 | L16: =N16*AVERAGE(AC16,BV16) -> 9.75 | M16: =N16*AVERAGE(AL16,BV16) -> 9.75 | N16: 1 | O16: =W16*AVERAGE(AC16,CE16) -> 0 | P16: =W16*AVERAGE(AL16,CE16) -> 0 | Q16: =W16*AVERAGE(AC16,CN16) -> 0 | R16: =W16*AVERAGE(AL16,CN16) -> 0 | S16: =W16*AVERAGE(AC16,CW16) -> 0 | T16: =W16*AVERAGE(AL16,CW16) -> 0 | U16: =W16*AVERAGE(AC16,DF16) -> 0 | V16: =W16*AVERAGE(AL16,DF16) -> 0 | AA16: 1 | AB16: 10 | AC16: 10 | AD16: 9.5 | AE16: 8 | AF16: 9 | AG16: 10 | AH16: 10 | AJ16: 1 | AK16: 10 | AL16: 10 | AM16: 9.2 | AN16: 5 | AO16: 8.5 | AP16: 10 | AQ16: 10 | AS16: 1 | AT16: 10 | AU16: 10 | AV16: 9.4 | AW16: 7 | AX16: 9 | AY16: 10 | AZ16: 10 | BB16: 1 | BC16: 8 | BD16: 8 | BE16: 8.923076923 | BF16: 8 | BG16: 8 | BH16: 10 | BI16: 10 | BK16: 1 | BL16: 10 | BM16: 8.5 | BN16: 8.642857143 | BO16: 7 | BP16: 8 | BQ16: 10 | BR16: 10 | BT16: 1 | BU16: 10 | BV16: 9.5 | BW16: 8.571428571 | BX16: 5 | BY16: 7 | BZ16: 10 | CA16: 10
B17: Adaptation impact | C17: Contribution to increased climate-resilient sustainable development | D17: =E17/SUM(E16:E17) ->  | E17: =$E$3*F17+$F$3*G17+$E$4*H17+$F$4*I17+$E$5*J17+$F$5*K17+$E$6*L17+$F$6*M17+$E$7*O17+$F$7*P17+$E$8*Q17+$F$8*R17+$E$9*S17+$F$9*T17+$E$10*U17+$F$10*V17 -> 0 | F17: 0 | G17: 0 | H17: 0 | I17: 0 | J17: 0 | K17: 0 | L17: 0 | M17: 0 | O17: 10 | P17: 10 | Q17: 9.5 | R17: 9.5 | S17: 9.25 | T17: 9.25 | U17: 9.5 | V17: 9.5 | W17: 1 | AA17: 1 | AB17: 10 | AC17: 10 | AD17: 9.333333333 | AE17: 7 | AF17: 9 | AG17: 10 | AH17: 10 | AJ17: 1 | AK17: 10 | AL17: 10 | AM17: 8.590909091 | AN17: 4 | AO17: 8 | AP17: 10 | AQ17: 10 | CC17: 1 | CD17: 10 | CE17: 10 | CF17: 9.35 | CG17: 7 | CH17: 9 | CI17: 10 | CJ17: 10 | CL17: 1 | CM17: 10 | CN17: 9 | CO17: 8.947368421 | CP17: 7 | CQ17: 8 | CR17: 10 | CS17: 10 | CU17: 1 | CV17: 10 | CW17: 8.5 | CX17: 8.65 | CY17: 6 | CZ17: 8 | DA17: 10 | DB17: 10 | DD17: 1 | DE17: 10 | DF17: 9 | DG17: 8.294117647 | DH17: 4 | DI17: 7 | DJ17: 10 | DK17: 10
A18: Paradigm shift potential | B18: Potential for scaling up and replication, and its overall contribution to global low-carbon development pathways being consistent with a temperature increase of less than 2 degrees Celsius (mitigation only) | C18: Innovation | D18: =E18/SUM($E$18:$E$27) ->  | E18: =$E$3*F18+$F$3*G18+$E$4*H18+$F$4*I18+$E$5*J18+$F$5*K18+$E$6*L18+$F$6*M18+$E$7*O18+$F$7*P18+$E$8*Q18+$F$8*R18+$E$9*S18+$F$9*T18+$E$10*U18+$F$10*V18 -> 0 | F18: 6.5 | G18: 7.5 | H18: 7 | I18: 8 | J18: 7 | K18: 8 | L18: 6.5 | M18: 7.5 | N18: 1 | O18: 0 | P18: 0 | Q18: 0 | R18: 0 | S18: 0 | T18: 0 | U18: 0 | V18: 0 | AB18: 5 | AC18: 6 | AD18: 6 | AE18: 1 | AF18: 5 | AG18: 7.75 | AH18: 10 | AJ18: 2 | AK18: 8 | AL18: 8 | AM18: 6.6 | AN18: 1 | AO18: 5.5 | AP18: 8 | AQ18: 9 | AT18: 8 | AU18: 7 | AV18: 6.533333333 | AW18: 3 | AX18: 5.5 | AY18: 8 | AZ18: 10 | BB18: 2 | BC18: 8 | BD18: 8 | BE18: 7.384615385 | BF18: 3 | BG18: 7 | BH18: 8 | BI18: 10 | BK18: 2 | BL18: 8 | BM18: 8 | BN18: 7.5 | BO18: 5 | BP18: 7 | BQ18: 8 | BR18: 9 | BU18: 7 | BV18: 7 | BW18: 6.142857143 | BX18: 3 | BY18: 4.25 | BZ18: 7.75 | CA18: 8
C19: Level of contributions to global low-carbon development pathways, consistent with a temperature increase of less than 2 degrees Celsius | F19: 8.75 | G19: 8.25 | H19: 8.5 | I19: 8 | J19: 8.5 | K19: 8 | L19: 8.5 | M19: 8 | N19: 1 | O19: 0 | P19: 0 | Q19: 0 | R19: 0 | S19: 0 | T19: 0 | U19: 0 | V19: 0 | AA19: 2 | AB19: 10 | AC19: 8 | AD19: 7.833333333 | AE19: 1 | AF19: 7.75 | AG19: 10 | AH19: 10 | AK19: 10 | AL19: 7 | AM19: 7.076923077 | AN19: 1 | AO19: 6 | AP19: 9 | AQ19: 10 | AS19: 1 | AT19: 10 | AU19: 9.5 | AV19: 9.285714286 | AW19: 8 | AX19: 9 | AY19: 10 | AZ19: 10 | BB19: 1 | BC19: 8 | BD19: 9 | BE19: 8.833333333 | BF19: 7 | BG19: 8 | BH19: 10 | BI19: 10 | BK19: 1 | BL19: 9 | BM19: 9 | BN19: 8.076923077 | BO19: 2 | BP19: 8 | BQ19: 9 | BR19: 10 | BT19: 1 | BU19: 10 | BV19: 9 | BW19: 8.538461538 | BX19: 4 | BY19: 8 | BZ19: 10 | CA19: 10
C20: Potential for expanding the scale and impact of the proposed programme or project (scalability) | E20: =$E$3*F20+$F$3*G20+$E$4*H20+$F$4*I20+$E$5*J20+$F$5*K20+$E$6*L20+$F$6*M20+$E$7*O20+$F$7*P20+$E$8*Q20+$F$8*R20+$E$9*S20+$F$9*T20+$E$10*U20+$F$10*V20 -> 0 | F20: 8 | G20: 9 | H20: 8 | I20: 9 | J20: 8 | K20: 9 | L20: 8 | M20: 9 | N20: 1 | O20: 0 | P20: 0 | Q20: 0 | R20: 0 | S20: 0 | T20: 0 | U20: 0 | V20: 0 | AA20: 2 | AB20: 8 | AC20: 8 | AD20: 7.642857143 | AE20: 4 | AF20: 7 | AG20: 8.75 | AH20: 10 | AJ20: 1 | AK20: 10 | AL20: 10 | AM20: 8.8 | AN20: 5 | AO20: 8 | AP20: 10 | AQ20: 10 | AS20: 3 | AT20: 9 | AU20: 8 | AV20: 8.214285714 | AW20: 6 | AX20: 7.25 | AY20: 9 | AZ20: 10 | BB20: 2 | BC20: 9 | BD20: 8 | BE20: 8 | BF20: 6 | BG20: 7 | BH20: 9 | BI20: 10 | BK20: 2 | BL20: 8 | BM20: 8 | BN20: 8.230769231 | BO20: 7 | BP20: 8 | BQ20: 9 | BR20: 10 | BT20: 2 | BU20: 8 | BV20: 8 | BW20: 6.769230769 | BX20: 2 | BY20: 5 | BZ20: 8 | CA20: 10
C21: Potential for exporting key structural elements of the proposed programme or project elsewhere within the same sector as well as to other sectors, regions or countries (replicability) | F21: 7.5 | G21: 8 | H21: 7.5 | I21: 8 | J21: 7.5 | K21: 8 | L21: 7 | M21: 7.5 | N21: 1 | O21: 0 | P21: 0 | Q21: 0 | R21: 0 | S21: 0 | T21: 0 | U21: 0 | V21: 0 | AB21: 7 | AC21: 7 | AD21: 7.285714286 | AE21: 4 | AF21: 6.25 | AG21: 8 | AH21: 10 | AJ21: 2 | AK21: 10 | AL21: 8 | AM21: 7.533333333 | AN21: 3 | AO21: 6 | AP21: 9.5 | AQ21: 10 | AS21: 3 | AT21: 8 | AU21: 8 | AV21: 8.214285714 | AW21: 6 | AX21: 7.25 | AY21: 9 | AZ21: 10 | BB21: 2 | BC21: 8 | BD21: 8 | BE21: 7.666666667 | BF21: 4 | BG21: 7 | BH21: 8.25 | BI21: 10 | BK21: 2 | BL21: 8 | BM21: 8 | BN21: 8.153846154 | BO21: 6 | BP21: 8 | BQ21: 9 | BR21: 10 | BU21: 7 | BV21: 7 | BW21: 7.153846154 | BX21: 5 | BY21: 7 | BZ21: 8 | CA21: 9
B22: Potential for knowledge and learning | C22: Contribution to the creation or strengthening of knowledge, collective learning processes, or institutions | E22: =$E$3*F22+$F$3*G22+$E$4*H22+$F$4*I22+$E$5*J22+$F$5*K22+$E$6*L22+$F$6*M22+$E$7*O22+$F$7*P22+$E$8*Q22+$F$8*R22+$E$9*S22+$F$9*T22+$E$10*U22+$F$10*V22 -> 0 | F22: 7 | G22: 6 | H22: 7.75 | I22: 6.75 | J22: 7.5 | K22: 6.5 | L22: 7.5 | M22: 6.5 | N22: 1 | O22: 8 | P22: 7 | Q22: 8 | R22: 7 | S22: 7.75 | T22: 6.75 | U22: 7.75 | V22: 6.75 | W22: 1 | AA22: 2 | AB22: 8 | AC22: 8 | AD22: 7.325 | AE22: 1 | AF22: 6 | AG22: 8.625 | AH22: 10 | AK22: 6 | AL22: 6 | AM22: 5.30952381 | AN22: 1 | AO22: 5 | AP22: 6.5 | AQ22: 8 | AT22: 6 | AU22: 6 | AV22: 6 | AW22: 3 | AX22: 5 | AY22: 7 | AZ22: 8 | BC22: 8 | BD22: 7.5 | BE22: 7.25 | BF22: 5 | BG22: 6.75 | BH22: 8 | BI22: 9 | BL22: 8 | BM22: 7 | BN22: 7.230769231 | BO22: 5 | BP22: 7 | BQ22: 8 | BR22: 9 | BU22: 6 | BV22: 7 | BW22: 7.307692308 | BX22: 5 | BY22: 6 | BZ22: 8 | CA22: 10 | CC22: 1 | CD22: 8 | CE22: 8 | CF22: 7.65 | CG22: 5 | CH22: 6.75 | CI22: 9 | CJ22: 10 | CL22: 1 | CM22: 8 | CN22: 8 | CO22: 7.684210526 | CP22: 5 | CQ22: 7 | CR22: 8.5 | CS22: 10 | CU22: 3 | CV22: 7 | CW22: 7.5 | CX22: 7.6 | CY22: 5 | CZ22: 6.75 | DA22: 8.25 | DB22: 10 | DD22: 2 | DE22: 8 | DF22: 7.5 | DG22: 7.222222222 | DH22: 5 | DI22: 6 | DJ22: 8 | DK22: 10
B23: Contribution to the creation of an enabling environment | C23: Sustainability of outcomes and results beyond completion of the intervention | E23: =$E$3*F23+$F$3*G23+$E$4*H23+$F$4*I23+$E$5*J23+$F$5*K23+$E$6*L23+$F$6*M23+$E$7*O23+$F$7*P23+$E$8*Q23+$F$8*R23+$E$9*S23+$F$9*T23+$E$10*U23+$F$10*V23 -> 0 | F23: 8.75 | G23: 8 | H23: 8.75 | I23: 8 | J23: 8.75 | K23: 8 | L23: 8.75 | M23: 8 | N23: 1 | O23: 8.75 | P23: 8 | Q23: 8.75 | R23: 8 | S23: 8.75 | T23: 8 | U23: 8.75 | V23: 8 | W23: 1 | AA23: 1 | AB23: 10 | AC23: 9.5 | AD23: 8.925 | AE23: 6 | AF23: 8 | AG23: 10 | AH23: 10 | AJ23: 2 | AK23: 10 | AL23: 8 | AM23: 8.119047619 | AN23: 5 | AO23: 6.5 | AP23: 10 | AQ23: 10 | AS23: 3 | AT23: 8 | AU23: 8 | AV23: 8.214285714 | AW23: 5 | AX23: 8 | AY23: 9.75 | AZ23: 10 | BB23: 2 | BC23: 8 | BD23: 8 | BE23: 7.833333333 | BF23: 5 | BG23: 6.75 | BH23: 9 | BI23: 10 | BK23: 2 | BL23: 8 | BM23: 8 | BN23: 8.153846154 | BO23: 6 | BP23: 8 | BQ23: 9 | BR23: 10 | BT23: 2 | BU23: 8 | BV23: 8 | BW23: 7.615384615 | BX23: 3 | BY23: 8 | BZ23: 8 | CA23: 10 | CC23: 1 | CD23: 8 | CE23: 8 | CF23: 7.473684211 | CG23: 3 | CH23: 7 | CI23: 8 | CJ23: 10 | CL23: 1 | CM23: 8 | CN23: 8 | CO23: 7.555555556 | CP23: 2 | CQ23: 7 | CR23: 9 | CS23: 10 | CU23: 1 | CV23: 8 | CW23: 8 | CX23: 7.631578947 | CY23: 5 | CZ23: 6.5 | DA23: 8.5 | DB23: 10 | DD23: 1 | DE23: 8 | DF23: 8 | DG23: 8 | DH23: 5 | DI23: 7.25 | DJ23: 9 | DK23: 10
C24: Market development and transformation | E24: =$E$3*F24+$F$3*G24+$E$4*H24+$F$4*I24+$E$5*J24+$F$5*K24+$E$6*L24+$F$6*M24+$E$7*O24+$F$7*P24+$E$8*Q24+$F$8*R24+$E$9*S24+$F$9*T24+$E$10*U24+$F$10*V24 -> 0 | F24: 7.25 | G24: 8.25 | H24: 7 | I24: 8 | J24: 7 | K24: 8 | L24: 6.5 | M24: 7.5 | N24: 1 | O24: 6.5 | P24: 7.5 | Q24: 6.25 | R24: 7.25 | S24: 6.5 | T24: 7.5 | U24: 6 | V24: 7 | W24: 1 | AB24: 6 | AC24: 6 | AD24: 5.85 | AE24: 1 | AF24: 5 | AG24: 7.25 | AH24: 10 | AJ24: 2 | AK24: 8 | AL24: 8 | AM24: 7.214285714 | AN24: 1 | AO24: 6 | AP24: 9 | AQ24: 10 | AS24: 2 | AT24: 8 | AU24: 8.5 | AV24: 8.357142857 | AW24: 5 | AX24: 8 | AY24: 9.75 | AZ24: 10 | BB24: 2 | BC24: 10 | BD24: 8 | BE24: 8.083333333 | BF24: 5 | BG24: 6.75 | BH24: 10 | BI24: 10 | BK24: 2 | BL24: 8 | BM24: 8 | BN24: 8 | BO24: 5 | BP24: 8 | BQ24: 9 | BR24: 10 | BU24: 7 | BV24: 7 | BW24: 7.307692308 | BX24: 4 | BY24: 6 | BZ24: 9 | CA24: 10 | CD24: 8 | CE24: 7 | CF24: 6.263157895 | CG24: 3 | CH24: 5 | CI24: 8 | CJ24: 9 | CM24: 8 | CN24: 6.5 | CO24: 6.277777778 | CP24: 2 | CQ24: 5 | CR24: 8 | CS24: 10 | CV24: 8 | CW24: 7 | CX24: 6.736842105 | CY24: 4 | CZ24: 5 | DA24: 8 | DB24: 9 | DE24: 6 | DF24: 6 | DG24: 6.555555556 | DH24: 4 | DI24: 6 | DJ24: 8 | DK24: 9
B25: Contribution to the regulatory framework and policies | C25: Potential for strengthened regulatory frameworks and policies to drive investment in low-emission technologies and activities, promote development of additional low-emission policies, and/or improve climate-responsive planning and development | E25: =$E$3*F25+$F$3*G25+$E$4*H25+$F$4*I25+$E$5*J25+$F$5*K25+$E$6*L25+$F$6*M25+$E$7*O25+$F$7*P25+$E$8*Q25+$F$8*R25+$E$9*S25+$F$9*T25+$E$10*U25+$F$10*V25 -> 0 | F25: 7.25 | G25: 5.5 | H25: 7.5 | I25: 5.75 | J25: 7.75 | K25: 6 | L25: 7.75 | M25: 6 | N25: 1 | O25: 7.25 | P25: 5.5 | Q25: 7.25 | R25: 5.5 | S25: 7.75 | T25: 6 | U25: 7.5 | V25: 5.75 | W25: 1 | AB25: 10 | AC25: 7.5 | AD25: 7.45 | AE25: 1 | AF25: 6.375 | AG25: 9.125 | AH25: 10 | AK25: 5 | AL25: 4 | AM25: 4.119047619 | AN25: 1 | AO25: 3 | AP25: 5 | AQ25: 9 | AT25: 10 | AU25: 7 | AV25: 7 | AW25: 2 | AX25: 6 | AY25: 9.5 | AZ25: 10 | BC25: 10 | BD25: 7.5 | BE25: 7.333333333 | BF25: 1 | BG25: 6 | BH25: 9.25 | BI25: 10 | BK25: 2 | BL25: 9 | BM25: 8 | BN25: 7.384615385 | BO25: 5 | BP25: 6 | BQ25: 9 | BR25: 10 | BT25: 2 | BU25: 7 | BV25: 8 | BW25: 7.769230769 | BX25: 4 | BY25: 7 | BZ25: 10 | CA25: 10 | CD25: 7 | CE25: 7 | CF25: 6.210526316 | CG25: 1 | CH25: 5 | CI25: 8 | CJ25: 9 | CL25: 3 | CM25: 7 | CN25: 7 | CO25: 6.611111111 | CP25: 1 | CQ25: 6.25 | CR25: 8 | CS25: 10 | CU25: 1 | CV25: 8 | CW25: 8 | CX25: 7.368421053 | CY25: 1 | CZ25: 7 | DA25: 9 | DB25: 10 | DD25: 2 | DE25: 8 | DF25: 7.5 | DG25: 6.444444444 | DH25: 1 | DI25: 4.5 | DJ25: 8 | DK25: 9
B26: Overall contribution to climate-resilient development pathways consistent with a country’s climate change adaptation strategies and plans (adaptation only) | C26: Potential for expanding the proposal’s impact without equally increasing its cost base (scalability) | E26: =$E$3*F26+$F$3*G26+$E$4*H26+$F$4*I26+$E$5*J26+$F$5*K26+$E$6*L26+$F$6*M26+$E$7*O26+$F$7*P26+$E$8*Q26+$F$8*R26+$E$9*S26+$F$9*T26+$E$10*U26+$F$10*V26 -> 0 | F26: 0 | G26: 0 | H26: 0 | I26: 0 | J26: 0 | K26: 0 | L26: 0 | M26: 0 | O26: 7.5 | P26: 7.25 | Q26: 7.5 | R26: 7.25 | S26: 7.5 | T26: 7.25 | U26: 7.5 | V26: 7.25 | W26: 1 | AA26: 2 | AB26: 8 | AC26: 8 | AD26: 7.5 | AE26: 3 | AF26: 7 | AG26: 8 | AH26: 10 | AK26: 8 | AL26: 7.5 | AM26: 7.19047619 | AN26: 2 | AO26: 6 | AP26: 8 | AQ26: 10 | CD26: 7 | CE26: 7 | CF26: 6.833333333 | CG26: 1 | CH26: 6.25 | CI26: 8 | CJ26: 10 | CL26: 3 | CM26: 7 | CN26: 7 | CO26: 6.941176471 | CP26: 1 | CQ26: 7 | CR26: 8 | CS26: 9 | CV26: 7 | CW26: 7 | CX26: 6.777777778 | CY26: 2 | CZ26: 6.25 | DA26: 8 | DB26: 10 | DE26: 7 | DF26: 7 | DG26: 7 | DH26: 1 | DI26: 7 | DJ26: 9 | DK26: 10
C27: Potential for exporting key structural elements of the proposal to other sectors, regions or countries (replicability) | F27: 0 | G27: 0 | H27: 0 | I27: 0 | J27: 0 | K27: 0 | L27: 0 | M27: 0 | O27: 7.5 | P27: 7 | Q27: 7 | R27: 6.5 | S27: 7 | T27: 6.5 | U27: 7 | V27: 6.5 | W27: 1 | AB27: 7 | AC27: 7 | AD27: 6.575 | AE27: 2.5 | AF27: 5 | AG27: 7.25 | AH27: 10 | AK27: 5 | AL27: 6 | AM27: 6.452380952 | AN27: 2 | AO27: 5 | AP27: 9 | AQ27: 10 | CC27: 1 | CD27: 7 | CE27: 8 | CF27: 7.666666667 | CG27: 4 | CH27: 7 | CI27: 9 | CJ27: 10 | CL27: 3 | CM27: 7 | CN27: 7 | CO27: 7.411764706 | CP27: 4 | CQ27: 7 | CR27: 9 | CS27: 10 | CV27: 8 | CW27: 7 | CX27: 6.944444444 | CY27: 4 | CZ27: 6 | DA27: 8 | DB27: 10 | DE27: 7 | DF27: 7 | DG27: 7.176470588 | DH27: 4 | DI27: 6 | DJ27: 9 | DK27: 10
A28: Sustainable development potential | B28: Environmental cobenefits | C28: Expected positive environmental impacts, including in other result areas of the Fund, and/or in line with the priorities set at the national, local or sectoral level, as appropriate | D28: =E28/SUM($E$28:$E$31) ->  | E28: =$E$3*F28+$F$3*G28+$E$4*H28+$F$4*I28+$E$5*J28+$F$5*K28+$E$6*L28+$F$6*M28+$E$7*O28+$F$7*P28+$E$8*Q28+$F$8*R28+$E$9*S28+$F$9*T28+$E$10*U28+$F$10*V28 -> 0 | F28: 8 | G28: 7.5 | H28: 8 | I28: 7.5 | J28: 7.75 | K28: 7.25 | L28: 8 | M28: 7.5 | N28: 1 | O28: 7.5 | P28: 7 | Q28: 7.5 | R28: 7 | S28: 8 | T28: 7.5 | U28: 8.5 | V28: 8 | W28: 1 | AA28: 1 | AB28: 10 | AC28: 8 | AD28: 7.625 | AE28: 3 | AF28: 6 | AG28: 9.625 | AH28: 10 | AJ28: 1 | AK28: 6 | AL28: 7 | AM28: 6.5 | AN28: 2 | AO28: 6 | AP28: 8 | AQ28: 10 | AS28: 1 | AT28: 9 | AU28: 8 | AV28: 7.2 | AW28: 1 | AX28: 6 | AY28: 9 | AZ28: 10 | BB28: 1 | BC28: 8 | BD28: 8 | BE28: 8.384615385 | BF28: 7 | BG28: 7 | BH28: 10 | BI28: 10 | BK28: 2 | BL28: 6 | BM28: 7.5 | BN28: 7.714285714 | BO28: 5 | BP28: 6.25 | BQ28: 9 | BR28: 10 | BT28: 2 | BU28: 8 | BV28: 8 | BW28: 8 | BX28: 5 | BY28: 7.25 | BZ28: 9 | CA28: 10 | CD28: 9 | CE28: 7 | CF28: 6.7 | CG28: 3 | CH28: 5 | CI28: 8.25 | CJ28: 10 | CL28: 3 | CM28: 9 | CN28: 7 | CO28: 7.052631579 | CP28: 3 | CQ28: 5.5 | CR28: 9 | CS28: 9 | CU28: 1 | CV28: 7 | CW28: 8 | CX28: 7.75 | CY28: 4 | CZ28: 7 | DA28: 9 | DB28: 10 | DD28: 1 | DE28: 10 | DF28: 9 | DG28: 8.578947368 | DH28: 6 | DI28: 7.5 | DJ28: 10 | DK28: 10
B29: Social co-benefits | C29: Expected positive social and health impacts, including in other result areas of the Fund, and/or in line with the priorities set at the national, local or sectoral levels, as appropriate | D29: =E29/SUM($E$28:$E$31) ->  | E29: =$E$3*F29+$F$3*G29+$E$4*H29+$F$4*I29+$E$5*J29+$F$5*K29+$E$6*L29+$F$6*M29+$E$7*O29+$F$7*P29+$E$8*Q29+$F$8*R29+$E$9*S29+$F$9*T29+$E$10*U29+$F$10*V29 -> 0 | F29: 8 | G29: 7 | H29: 7.5 | I29: 6.5 | J29: 7.5 | K29: 6.5 | L29: 8.25 | M29: 7.25 | N29: 1 | O29: 8.5 | P29: 7.5 | Q29: 8.5 | R29: 7.5 | S29: 7.75 | T29: 6.75 | U29: 7.5 | V29: 6.5 | W29: 1 | AA29: 1 | AB29: 7 | AC29: 8 | AD29: 7.45 | AE29: 1 | AF29: 7 | AG29: 9 | AH29: 10 | AJ29: 3 | AK29: 6 | AL29: 6 | AM29: 6.238095238 | AN29: 1 | AO29: 6 | AP29: 7.5 | AQ29: 10 | AS29: 1 | AT29: 10 | AU29: 8 | AV29: 7.4 | AW29: 2 | AX29: 6 | AY29: 9.5 | AZ29: 10 | BB29: 3 | BC29: 7 | BD29: 7 | BE29: 6.923076923 | BF29: 2 | BG29: 7 | BH29: 8 | BI29: 10 | BK29: 3 | BL29: 8 | BM29: 7 | BN29: 6.5 | BO29: 2 | BP29: 5 | BQ29: 8 | BR29: 10 | BT29: 1 | BU29: 9 | BV29: 8.5 | BW29: 7.785714286 | BX29: 2 | BY29: 7 | BZ29: 9 | CA29: 10 | CC29: 1 | CD29: 10 | CE29: 9 | CF29: 8.35 | CG29: 2 | CH29: 8 | CI29: 10 | CJ29: 10 | CL29: 1 | CM29: 10 | CN29: 9 | CO29: 8.947368421 | CP29: 2 | CQ29: 9 | CR29: 10 | CS29: 10 | CU29: 2 | CV29: 6 | CW29: 7.5 | CX29: 7.4 | CY29: 2 | CZ29: 6 | DA29: 9 | DB29: 10 | DD29: 2 | DE29: 6 | DF29: 7 | DG29: 7.052631579 | DH29: 2 | DI29: 6 | DJ29: 8.5 | DK29: 10
B30: Economic cobenefits | C30: Expected positive economic impacts, including in other result areas of the Fund, and/or in line with the priorities set at the national, local or sectoral level, as appropriate | D30: =E30/SUM($E$28:$E$31) ->  | E30: =$E$3*F30+$F$3*G30+$E$4*H30+$F$4*I30+$E$5*J30+$F$5*K30+$E$6*L30+$F$6*M30+$E$7*O30+$F$7*P30+$E$8*Q30+$F$8*R30+$E$9*S30+$F$9*T30+$E$10*U30+$F$10*V30 -> 0 | F30: 7.125 | G30: 7 | H30: 7.625 | I30: 7.5 | J30: 7.625 | K30: 7.5 | L30: 7.375 | M30: 7.25 | N30: 1 | O30: 7.625 | P30: 7.5 | Q30: 7.125 | R30: 7 | S30: 7.125 | T30: 7 | U30: 7.125 | V30: 7 | W30: 1 | AA30: 3 | AB30: 8 | AC30: 7.25 | AD30: 7.05 | AE30: 3.5 | AF30: 5.75 | AG30: 8.25 | AH30: 10 | AJ30: 1 | AK30: 9 | AL30: 7 | AM30: 6.952380952 | AN30: 3 | AO30: 5 | AP30: 9 | AQ30: 10 | AS30: 3 | AT30: 7 | AU30: 7 | AV30: 7.6 | AW30: 5 | AX30: 7 | AY30: 8 | AZ30: 10 | BB30: 1 | BC30: 8 | BD30: 8 | BE30: 7.384615385 | BF30: 5 | BG30: 7 | BH30: 8 | BI30: 10 | BK30: 1 | BL30: 8 | BM30: 8 | BN30: 7.571428571 | BO30: 5 | BP30: 7 | BQ30: 8 | BR30: 10 | BU30: 6 | BV30: 7.5 | BW30: 7.285714286 | BX30: 4 | BY30: 6 | BZ30: 8.75 | CA30: 10 | CC30: 3 | CD30: 8 | CE30: 8 | CF30: 7.3 | CG30: 3 | CH30: 6.75 | CI30: 8.25 | CJ30: 10 | CL30: 3 | CM30: 6 | CN30: 7 | CO30: 6.947368421 | CP30: 3 | CQ30: 6 | CR30: 8.5 | CS30: 10 | CU30: 3 | CV30: 7 | CW30: 7 | CX30: 7.4 | CY30: 4 | CZ30: 7 | DA30: 9 | DB30: 10 | DD30: 2 | DE30: 7 | DF30: 7 | DG30: 6.263157895 | DH30: 2 | DI30: 4 | DJ30: 8 | DK30: 9
B31: Gender-sensitive development impact | C31: Potential for reduced gender inequalities in climate change impacts and/or equal participation by gender groups in contributing to expected outcomes | D31: =E31/SUM($E$28:$E$31) ->  | E31: =$E$3*F31+$F$3*G31+$E$4*H31+$F$4*I31+$E$5*J31+$F$5*K31+$E$6*L31+$F$6*M31+$E$7*O31+$F$7*P31+$E$8*Q31+$F$8*R31+$E$9*S31+$F$9*T31+$E$10*U31+$F$10*V31 -> 0 | F31: 6.5 | G31: 6.5 | H31: 6 | I31: 6 | J31: 5.5 | K31: 5.5 | L31: 7 | M31: 7 | N31: 1 | O31: 7.5 | P31: 7.5 | Q31: 7.5 | R31: 7.5 | S31: 6 | T31: 6 | U31: 6.5 | V31: 6.5 | W31: 1 | AB31: 6 | AC31: 6 | AD31: 5.95 | AE31: 1 | AF31: 5 | AG31: 7.25 | AH31: 10 | AJ31: 3 | AK31: 6 | AL31: 6 | AM31: 5.523809524 | AN31: 1 | AO31: 4 | AP31: 7 | AQ31: 9 | AS31: 3 | AT31: 8 | AU31: 7 | AV31: 6.2 | AW31: 1 | AX31: 5 | AY31: 8 | AZ31: 10 | BC31: 8 | BD31: 6 | BE31: 5.307692308 | BF31: 1 | BG31: 3 | BH31: 7 | BI31: 9 | BL31: 5 | BM31: 5 | BN31: 5.285714286 | BO31: 2 | BP31: 5 | BQ31: 6 | BR31: 8 | BT31: 2 | BU31: 9 | BV31: 8 | BW31: 7.5 | BX31: 3 | BY31: 6 | BZ31: 9 | CA31: 10 | CC31: 1 | CD31: 10 | CE31: 9 | CF31: 8.9 | CG31: 6 | CH31: 8 | CI31: 10 | CJ31: 10 | CL31: 1 | CM31: 10 | CN31: 9 | CO31: 8.578947368 | CP31: 5 | CQ31: 8 | CR31: 10 | CS31: 10 | CV31: 6 | CW31: 6 | CX31: 6.05 | CY31: 2 | CZ31: 5 | DA31: 7.25 | DB31: 9 | DD31: 2 | DE31: 8 | DF31: 7 | DG31: 6.210526316 | DH31: 2 | DI31: 4 | DJ31: 8 | DK31: 10
A32: Needs of the recipient | B32: Vulnerability of the country (adaptation only) | C32: Scale and intensity of exposure of people, and/or social or economic assets or capital, to risks derived from climate change | D32: =E32/SUM($E$32:$E$36) ->  | E32: =$E$3*F32+$F$3*G32+$E$4*H32+$F$4*I32+$E$5*J32+$F$5*K32+$E$6*L32+$F$6*M32+$E$7*O32+$F$7*P32+$E$8*Q32+$F$8*R32+$E$9*S32+$F$9*T32+$E$10*U32+$F$10*V32 -> 0 | F32: 0 | G32: 0 | H32: 0 | I32: 0 | J32: 0 | K32: 0 | L32: 0 | M32: 0 | O32: 9 | P32: 8 | Q32: 9 | R32: 8 | S32: 9 | T32: 8 | U32: 9 | V32: 8 | W32: 1 | AA32: 1 | AB32: 10 | AC32: 9 | AD32: 8.578947368 | AE32: 2 | AF32: 7.5 | AG32: 10 | AH32: 10 | AJ32: 2 | AK32: 10 | AL32: 7 | AM32: 7.1 | AN32: 1 | AO32: 5 | AP32: 9.25 | AQ32: 10 | CC32: 2 | CD32: 8 | CE32: 9 | CF32: 8.631578947 | CG32: 6 | CH32: 8 | CI32: 10 | CJ32: 10 | CL32: 1 | CM32: 9 | CN32: 9 | CO32: 8.5 | CP32: 6 | CQ32: 8 | CR32: 9 | CS32: 10 | CU32: 1 | CV32: 9 | CW32: 9 | CX32: 8.052631579 | CY32: 4 | CZ32: 7 | DA32: 9 | DB32: 10 | DD32: 1 | DE32: 9 | DF32: 9 | DG32: 7.611111111 | DH32: 4 | DI32: 6 | DJ32: 9 | DK32: 10
B33: Vulnerable groups and gender aspects (adaptation only) | C33: Comparably high vulnerability of the beneficiary groups | D33: =E33/SUM($E$32:$E$36) ->  | F33: 0 | G33: 0 | H33: 0 | I33: 0 | J33: 0 | K33: 0 | L33: 0 | M33: 0 | O33: 9.5 | P33: 8 | Q33: 9 | R33: 7.5 | S33: 8 | T33: 6.5 | U33: 8.5 | V33: 7 | W33: 1 | AA33: 1 | AB33: 10 | AC33: 9 | AD33: 8.425 | AE33: 5 | AF33: 7 | AG33: 10 | AH33: 10 | AJ33: 3 | AK33: 10 | AL33: 6 | AM33: 6.595238095 | AN33: 1 | AO33: 5 | AP33: 8 | AQ33: 10 | CC33: 1 | CD33: 10 | CE33: 10 | CF33: 8.947368421 | CG33: 2 | CH33: 9 | CI33: 10 | CJ33: 10 | CL33: 1 | CM33: 9 | CN33: 9 | CO33: 8.388888889 | CP33: 2 | CQ33: 8 | CR33: 9.75 | CS33: 10 | CU33: 3 | CV33: 6 | CW33: 7 | CX33: 7.157894737 | CY33: 2 | CZ33: 6 | DA33: 8 | DB33: 10 | DD33: 2 | DE33: 8 | DF33: 8 | DG33: 7.166666667 | DH33: 2 | DI33: 6 | DJ33: 8 | DK33: 10
B34: Economic and social development level of the country and the affected population | C34: Level of social and economic development of the country and target population | D34: =E34/SUM($E$32:$E$36) ->  | E34: =$E$3*F34+$F$3*G34+$E$4*H34+$F$4*I34+$E$5*J34+$F$5*K34+$E$6*L34+$F$6*M34+$E$7*O34+$F$7*P34+$E$8*Q34+$F$8*R34+$E$9*S34+$F$9*T34+$E$10*U34+$F$10*V34 -> 0 | F34: 7.5 | G34: 6.5 | H34: 7.5 | I34: 6.5 | J34: 7.5 | K34: 6.5 | L34: 7 | M34: 6 | N34: 1 | O34: 8 | P34: 7 | Q34: 8 | R34: 7 | S34: 7.5 | T34: 6.5 | U34: 7.5 | V34: 6.5 | W34: 1 | AA34: 3 | AB34: 8 | AC34: 8 | AD34: 7.7 | AE34: 3 | AF34: 7 | AG34: 9.125 | AH34: 10 | AJ34: 3 | AK34: 5 | AL34: 6 | AM34: 6.142857143 | AN34: 1 | AO34: 5 | AP34: 8 | AQ34: 10 | AS34: 2 | AT34: 7 | AU34: 7 | AV34: 7.357142857 | AW34: 4 | AX34: 6.25 | AY34: 8.75 | AZ34: 10 | BB34: 3 | BC34: 7 | BD34: 7 | BE34: 6.583333333 | BF34: 3 | BG34: 5 | BH34: 8 | BI34: 10 | BK34: 2 | BL34: 8 | BM34: 7 | BN34: 7 | BO34: 4 | BP34: 5 | BQ34: 8 | BR34: 10 | BU34: 5 | BV34: 6 | BW34: 6.384615385 | BX34: 4 | BY34: 5 | BZ34: 8 | CA34: 9 | CD34: 8 | CE34: 8 | CF34: 7.947368421 | CG34: 4 | CH34: 7.5 | CI34: 9 | CJ34: 10 | CL34: 3 | CM34: 9 | CN34: 8 | CO34: 7.388888889 | CP34: 4 | CQ34: 6.25 | CR34: 9 | CS34: 10 | CU34: 3 | CV34: 8 | CW34: 7 | CX34: 7.052631579 | CY34: 4 | CZ34: 6 | DA34: 8 | DB34: 10 | DD34: 3 | DE34: 4 | DF34: 7 | DG34: 6.666666667 | DH34: 4 | DI34: 6 | DJ34: 8 | DK34: 10
B35: Absence of alternative sources of financing | C35: Opportunities for the Fund to overcome specific barriers to financing | D35: =E35/SUM($E$32:$E$36) ->  | E35: =$E$3*F35+$F$3*G35+$E$4*H35+$F$4*I35+$E$5*J35+$F$5*K35+$E$6*L35+$F$6*M35+$E$7*O35+$F$7*P35+$E$8*Q35+$F$8*R35+$E$9*S35+$F$9*T35+$E$10*U35+$F$10*V35 -> 0 | F35: 7.75 | G35: 8.25 | H35: 7.5 | I35: 8 | J35: 7.5 | K35: 8 | L35: 8 | M35: 8.5 | N35: 1 | O35: 7.75 | P35: 8.25 | Q35: 7.5 | R35: 8 | S35: 7.25 | T35: 7.75 | U35: 7 | V35: 7.5 | W35: 1 | AB35: 6 | AC35: 7 | AD35: 7.25 | AE35: 3.5 | AF35: 6 | AG35: 9 | AH35: 10 | AJ35: 1 | AK35: 10 | AL35: 8 | AM35: 8.095238095 | AN35: 5 | AO35: 7 | AP35: 10 | AQ35: 10 | AS35: 1 | AT35: 9 | AU35: 8.5 | AV35: 8.428571429 | AW35: 7 | AX35: 8 | AY35: 9 | AZ35: 10 | BB35: 1 | BC35: 8 | BD35: 8 | BE35: 8.166666667 | BF35: 6 | BG35: 7.5 | BH35: 9.25 | BI35: 10 | BK35: 1 | BL35: 8 | BM35: 8 | BN35: 7.846153846 | BO35: 5 | BP35: 8 | BQ35: 9 | BR35: 10 | BT35: 1 | BU35: 9 | BV35: 9 | BW35: 8.384615385 | BX35: 4 | BY35: 8 | BZ35: 9 | CA35: 10 | CC35: 3 | CD35: 9 | CE35: 8.5 | CF35: 7.888888889 | CG35: 2 | CH35: 7 | CI35: 9 | CJ35: 10 | CL35: 3 | CM35: 9 | CN35: 8 | CO35: 7.764705882 | CP35: 2 | CQ35: 7 | CR35: 9 | CS35: 10 | CU35: 2 | CV35: 7 | CW35: 7.5 | CX35: 7.388888889 | CY35: 2 | CZ35: 7 | DA35: 9 | DB35: 10 | DD35: 3 | DE35: 7 | DF35: 7 | DG35: 7.411764706 | DH35: 2 | DI35: 6 | DJ35: 9 | DK35: 10
B36: Need for strengthening institutions and implementation capacity | C36: Opportunities to strengthen institutional and implementation capacity in relevant institutions in the context of the proposal | D36: =E36/SUM($E$32:$E$36) ->  | F36: 7.375 | G36: 6.5 | H36: 7.875 | I36: 7 | J36: 7.375 | K36: 6.5 | L36: 7.875 | M36: 7 | N36: 1 | O36: 7.625 | P36: 6.75 | Q36: 7.875 | R36: 7 | S36: 7.375 | T36: 6.5 | U36: 7.375 | V36: 6.5 | W36: 1 | AB36: 8 | AC36: 7.75 | AD36: 7.1 | AE36: 3 | AF36: 6 | AG36: 8.25 | AH36: 10 | AJ36: 3 | AK36: 6 | AL36: 6 | AM36: 4.80952381 | AN36: 1 | AO36: 3 | AP36: 6 | AQ36: 8 | AS36: 2 | AT36: 8 | AU36: 7 | AV36: 7.230769231 | AW36: 5 | AX36: 7 | AY36: 8 | AZ36: 9 | BB36: 1 | BC36: 7 | BD36: 8 | BE36: 7.545454545 | BF36: 4 | BG36: 7 | BH36: 8.5 | BI36: 10 | BK36: 2 | BL36: 7 | BM36: 7 | BN36: 7.333333333 | BO36: 4 | BP36: 7 | BQ36: 8.25 | BR36: 10 | BT36: 2 | BU36: 8 | BV36: 8 | BW36: 8.333333333 | BX36: 7 | BY36: 7.75 | BZ36: 9 | CA36: 10 | CD36: 8 | CE36: 7.5 | CF36: 7.111111111 | CG36: 4 | CH36: 6 | CI36: 8 | CJ36: 9 | CL36: 3 | CM36: 8 | CN36: 8 | CO36: 7.176470588 | CP36: 4 | CQ36: 6 | CR36: 8 | CS36: 9 | CU36: 3 | CV36: 6 | CW36: 7 | CX36: 6.888888889 | CY36: 3 | CZ36: 6 | DA36: 8 | DB36: 9 | DD36: 3 | DE36: 8 | DF36: 7 | DG36: 6.941176471 | DH36: 3 | DI36: 6 | DJ36: 8 | DK36: 9
A37: Country ownership | B37: Existence of a national climate strategy | C37: Objectives are in line with priorities in the country’s national climate strategy | D37: =E37/SUM($E$37:$E$40) ->  | E37: =$E$3*F37+$F$3*G37+$E$4*H37+$F$4*I37+$E$5*J37+$F$5*K37+$E$6*L37+$F$6*M37+$E$7*O37+$F$7*P37+$E$8*Q37+$F$8*R37+$E$9*S37+$F$9*T37+$E$10*U37+$F$10*V37 -> 0 | F37: 8.375 | G37: 7 | H37: 8.125 | I37: 6.75 | J37: 7.875 | K37: 6.5 | L37: 8.375 | M37: 7 | N37: 1 | O37: 7.875 | P37: 6.5 | Q37: 7.875 | R37: 6.5 | S37: 8.375 | T37: 7 | U37: 7.875 | V37: 6.5 | W37: 1 | AA37: 1 | AB37: 10 | AC37: 8.75 | AD37: 8.075 | AE37: 4 | AF37: 7 | AG37: 10 | AH37: 10 | AJ37: 2 | AK37: 6 | AL37: 6 | AM37: 6.595238095 | AN37: 2 | AO37: 5 | AP37: 8 | AQ37: 10 | AS37: 1 | AT37: 8 | AU37: 8 | AV37: 7.642857143 | AW37: 4 | AX37: 6.5 | AY37: 9 | AZ37: 10 | BB37: 2 | BC37: 9 | BD37: 7.5 | BE37: 6.916666667 | BF37: 3 | BG37: 5 | BH37: 9 | BI37: 10 | BK37: 2 | BL37: 8 | BM37: 7 | BN37: 7.153846154 | BO37: 4 | BP37: 6 | BQ37: 8 | BR37: 10 | BT37: 1 | BU37: 8 | BV37: 8 | BW37: 7.307692308 | BX37: 4 | BY37: 6 | BZ37: 8 | CA37: 10 | CC37: 3 | CD37: 7 | CE37: 7 | CF37: 6.894736842 | CG37: 4 | CH37: 6 | CI37: 7.5 | CJ37: 10 | CL37: 3 | CM37: 8 | CN37: 7 | CO37: 7 | CP37: 4 | CQ37: 6 | CR37: 8 | CS37: 10 | CU37: 1 | CV37: 8 | CW37: 8 | CX37: 7.157894737 | CY37: 4 | CZ37: 6 | DA37: 8 | DB37: 10 | DD37: 2 | DE37: 8 | DF37: 7 | DG37: 6.888888889 | DH37: 4 | DI37: 6 | DJ37: 8 | DK37: 10
B38: Coherence with existing policies | C38: Proposed activity is designed in cognizance of other country policies | D38: =E38/SUM($E$37:$E$40) ->  | E38: 0 | F38: 7.25 | G38: 6.75 | H38: 7 | I38: 6.5 | J38: 6.5 | K38: 6 | L38: 7 | M38: 6.5 | N38: 1 | O38: 7 | P38: 6.5 | Q38: 7.5 | R38: 7 | S38: 7.25 | T38: 6.75 | U38: 6.5 | V38: 6 | W38: 1 | AB38: 10 | AC38: 7 | AD38: 7.125 | AE38: 4 | AF38: 5.75 | AG38: 8.5 | AH38: 10 | AJ38: 2 | AK38: 6 | AL38: 6 | AM38: 6.071428571 | AN38: 1 | AO38: 5 | AP38: 7 | AQ38: 10 | AS38: 2 | AT38: 8 | AU38: 7.5 | AV38: 6.928571429 | AW38: 4 | AX38: 5.25 | AY38: 8 | AZ38: 10 | BB38: 3 | BC38: 8 | BD38: 7 | BE38: 6.75 | BF38: 3 | BG38: 5.75 | BH38: 8 | BI38: 10 | BL38: 5 | BM38: 6 | BN38: 6.538461538 | BO38: 4 | BP38: 5 | BQ38: 8 | BR38: 10 | BU38: 6 | BV38: 7 | BW38: 6.923076923 | BX38: 4 | BY38: 6 | BZ38: 8 | CA38: 10 | CC38: 3 | CD38: 5 | CE38: 7 | CF38: 6.888888889 | CG38: 3 | CH38: 5 | CI38: 8.75 | CJ38: 10 | CL38: 1 | CM38: 8 | CN38: 8 | CO38: 7.294117647 | CP38: 4 | CQ38: 6 | CR38: 9 | CS38: 10 | CU38: 3 | CV38: 8 | CW38: 7.5 | CX38: 7.166666667 | CY38: 4 | CZ38: 6 | DA38: 8 | DB38: 10 | DE38: 5 | DF38: 6 | DG38: 6.529411765 | DH38: 3 | DI38: 5 | DJ38: 8 | DK38: 10
B39: Capacity of accredited entities or executing entities to deliver | C39: Experience and track record of the Accredited Entity or executing entities in key elements of the proposed activity | D39: =E39/SUM($E$37:$E$40) ->  | E39: 0 | F39: 7.5 | G39: 7.5 | H39: 7.5 | I39: 7.5 | J39: 7.5 | K39: 7.5 | L39: 8 | M39: 8 | N39: 1 | O39: 7.75 | P39: 7.75 | Q39: 7.5 | R39: 7.5 | S39: 7.5 | T39: 7.5 | U39: 7.5 | V39: 7.5 | W39: 1 | AA39: 2 | AB39: 10 | AC39: 8 | AD39: 7.525 | AE39: 4 | AF39: 5 | AG39: 9.25 | AH39: 10 | AJ39: 1 | AK39: 10 | AL39: 8 | AM39: 7.595238095 | AN39: 4 | AO39: 5 | AP39: 10 | AQ39: 10 | AS39: 3 | AT39: 7 | AU39: 7 | AV39: 7.230769231 | AW39: 5 | AX39: 6 | AY39: 8 | AZ39: 10 | BB39: 3 | BC39: 6 | BD39: 7 | BE39: 7.090909091 | BF39: 5 | BG39: 6 | BH39: 7.5 | BI39: 10 | BK39: 2 | BL39: 6 | BM39: 7 | BN39: 7.25 | BO39: 6 | BP39: 6 | BQ39: 8 | BR39: 10 | BT39: 1 | BU39: 9 | BV39: 8 | BW39: 7.916666667 | BX39: 6 | BY39: 6.75 | BZ39: 9 | CA39: 10 | CC39: 2 | CD39: 9 | CE39: 7.5 | CF39: 7.611111111 | CG39: 4 | CH39: 6.25 | CI39: 9 | CJ39: 10 | CL39: 3 | CM39: 6 | CN39: 7 | CO39: 7.411764706 | CP39: 4 | CQ39: 6 | CR39: 9 | CS39: 10 | CV39: 7 | CW39: 7 | CX39: 7.166666667 | CY39: 4 | CZ39: 6 | DA39: 8 | DB39: 10 | DD39: 2 | DE39: 9 | DF39: 7 | DG39: 7.411764706 | DH39: 4 | DI39: 6 | DJ39: 9 | DK39: 10
B40: Engagement with civil society organizations and other relevant stakeholders | C40: Stakeholder consultations and engagement | D40: =E40/SUM($E$37:$E$40) ->  | E40: 0 | F40: 7.25 | G40: 6.5 | H40: 7.75 | I40: 7 | J40: 7.5 | K40: 6.75 | L40: 7.75 | M40: 7 | N40: 1 | O40: 7.75 | P40: 7 | Q40: 7.75 | R40: 7 | S40: 7.75 | T40: 7 | U40: 7.75 | V40: 7 | W40: 1 | AA40: 3 | AB40: 7 | AC40: 7.5 | AD40: 7.675 | AE40: 4 | AF40: 7 | AG40: 9 | AH40: 10 | AJ40: 2 | AK40: 5 | AL40: 6 | AM40: 6.452380952 | AN40: 2 | AO40: 5 | AP40: 8 | AQ40: 10 | AS40: 3 | AT40: 8 | AU40: 7 | AV40: 7.076923077 | AW40: 4 | AX40: 6 | AY40: 8 | AZ40: 10 | BB40: 1 | BC40: 8 | BD40: 8 | BE40: 7.181818182 | BF40: 4 | BG40: 6.5 | BH40: 8 | BI40: 10 | BK40: 1 | BL40: 8 | BM40: 7.5 | BN40: 7 | BO40: 3 | BP40: 5.75 | BQ40: 8 | BR40: 10 | BT40: 1 | BU40: 8 | BV40: 8 | BW40: 8 | BX40: 4 | BY40: 7.75 | BZ40: 9.25 | CA40: 10 | CC40: 1 | CD40: 8 | CE40: 8 | CF40: 8.333333333 | CG40: 5 | CH40: 8 | CI40: 9.75 | CJ40: 10 | CL40: 1 | CM40: 8 | CN40: 8 | CO40: 7.764705882 | CP40: 3 | CQ40: 7 | CR40: 9 | CS40: 10 | CU40: 1 | CV40: 8 | CW40: 8 | CX40: 7.611111111 | CY40: 3 | CZ40: 7 | DA40: 8 | DB40: 10 | DD40: 1 | DE40: 8 | DF40: 8 | DG40: 7.647058824 | DH40: 3 | DI40: 7 | DJ40: 9 | DK40: 10
A41: Efficiency and effectiveness | B41: Cost-effectiveness and efficiency regarding financial and non-financial aspects | C41: Financial adequacy and appropriateness of concessionality | D41: =E41/SUM($E$41:$E$46) ->  | E41: 0 | F41: 8 | G41: 9 | H41: 7.75 | I41: 8.75 | J41: 7.5 | K41: 8.5 | L41: 7 | M41: 8 | N41: 1 | O41: 7 | P41: 8 | Q41: 7 | R41: 8 | S41: 7.5 | T41: 8.5 | U41: 7.5 | V41: 8.5 | W41: 1 | AA41: 1 | AB41: 8 | AC41: 8 | AD41: 8.25 | AE41: 5 | AF41: 8 | AG41: 10 | AH41: 10 | AJ41: 1 | AK41: 10 | AL41: 10 | AM41: 8.714285714 | AN41: 3 | AO41: 8 | AP41: 10 | AQ41: 10 | AS41: 1 | AT41: 8 | AU41: 8 | AV41: 8 | AW41: 6 | AX41: 7 | AY41: 9 | AZ41: 10 | BC41: 7 | BD41: 7.5 | BE41: 7.75 | BF41: 6 | BG41: 7 | BH41: 8.25 | BI41: 10 | BL41: 7 | BM41: 7 | BN41: 7.461538462 | BO41: 5 | BP41: 6 | BQ41: 9 | BR41: 10 | BU41: 6 | BV41: 6 | BW41: 6.384615385 | BX41: 4 | BY41: 6 | BZ41: 7 | CA41: 10 | CC41: 3 | CD41: 6 | CE41: 6 | CF41: 6.166666667 | CG41: 2 | CH41: 5 | CI41: 7.75 | CJ41: 10 | CL41: 3 | CM41: 6 | CN41: 6 | CO41: 6 | CP41: 2 | CQ41: 5 | CR41: 7 | CS41: 10 | CU41: 2 | CV41: 8 | CW41: 7 | CX41: 7 | CY41: 2 | CZ41: 6 | DA41: 8 | DB41: 10 | DD41: 1 | DE41: 8 | DF41: 7 | DG41: 6.470588235 | DH41: 2 | DI41: 5 | DJ41: 8 | DK41: 10
C42: Cost-effectiveness (mitigation only) | E42: 0 | F42: 7.5 | G42: 8 | H42: 7.5 | I42: 8 | J42: 7.5 | K42: 8 | L42: 6.5 | M42: 7 | N42: 1 | O42: 0 | P42: 0 | Q42: 0 | R42: 0 | S42: 0 | T42: 0 | U42: 0 | V42: 0 | AA42: 2 | AB42: 7 | AC42: 7 | AD42: 7 | AE42: 3 | AF42: 6 | AG42: 8 | AH42: 10 | AK42: 7 | AL42: 8 | AM42: 7.857142857 | AN42: 5 | AO42: 7 | AP42: 9 | AQ42: 10 | AS42: 1 | AT42: 8 | AU42: 8 | AV42: 7.928571429 | AW42: 5 | AX42: 7 | AY42: 9 | AZ42: 10 | BB42: 1 | BC42: 8 | BD42: 8 | BE42: 7.583333333 | BF42: 5 | BG42: 6.75 | BH42: 9 | BI42: 10 | BK42: 1 | BL42: 9 | BM42: 8 | BN42: 7.615384615 | BO42: 5 | BP42: 7 | BQ42: 9 | BR42: 10 | BU42: 5 | BV42: 6 | BW42: 6.615384615 | BX42: 4 | BY42: 5 | BZ42: 8 | CA42: 10
B43: Amount of cofinancing | C43: Potential to catalyse and/or leverage investment (mitigation only) | E43: 0 | F43: 7.5 | G43: 8.25 | H43: 7.25 | I43: 8 | J43: 7.5 | K43: 8.25 | L43: 7 | M43: 7.75 | N43: 1 | O43: 0 | P43: 0 | Q43: 0 | R43: 0 | S43: 0 | T43: 0 | U43: 0 | V43: 0 | AA43: 2 | AB43: 7 | AC43: 7 | AD43: 6.384615385 | AE43: 2 | AF43: 5 | AG43: 8 | AH43: 10 | AJ43: 3 | AK43: 10 | AL43: 8.5 | AM43: 7.857142857 | AN43: 3 | AO43: 7 | AP43: 10 | AQ43: 10 | AS43: 1 | AT43: 8 | AU43: 8 | AV43: 8.428571429 | AW43: 6 | AX43: 8 | AY43: 9 | AZ43: 10 | BC43: 8 | BD43: 7.5 | BE43: 7.083333333 | BF43: 4 | BG43: 6 | BH43: 8 | BI43: 9 | BK43: 1 | BL43: 8 | BM43: 8 | BN43: 7.692307692 | BO43: 5 | BP43: 7 | BQ43: 9 | BR43: 10 | BT43: 1 | BU43: 7 | BV43: 7 | BW43: 6.461538462 | BX43: 3 | BY43: 6 | BZ43: 8 | CA43: 9
B44: Programme/project financial viability and other financial indicators | C44: Expected economic and financial internal rate of return | F44: 7 | G44: 8 | H44: 6.25 | I44: 7.25 | J44: 6.5 | K44: 7.5 | L44: 6 | M44: 7 | N44: 1 | O44: 5.5 | P44: 6.5 | Q44: 5.75 | R44: 6.75 | S44: 6.5 | T44: 7.5 | U44: 5.5 | V44: 6.5 | W44: 1 | AB44: 6 | AC44: 6 | AD44: 5.8 | AE44: 2 | AF44: 4 | AG44: 7 | AH44: 10 | AK44: 10 | AL44: 8 | AM44: 8.523809524 | AN44: 6 | AO44: 7 | AP44: 10 | AQ44: 10 | AS44: 1 | AT44: 8 | AU44: 8 | AV44: 7.5 | AW44: 3 | AX44: 6.25 | AY44: 8.75 | AZ44: 10 | BC44: 6 | BD44: 6.5 | BE44: 6.833333333 | BF44: 3 | BG44: 6 | BH44: 8 | BI44: 10 | BL44: 6 | BM44: 7 | BN44: 7.076923077 | BO44: 6 | BP44: 6 | BQ44: 8 | BR44: 10 | BU44: 7 | BV44: 6 | BW44: 6.153846154 | BX44: 3 | BY44: 6 | BZ44: 7 | CA44: 8 | CD44: 8 | CE44: 5 | CF44: 5.736842105 | CG44: 2 | CH44: 4 | CI44: 8 | CJ44: 9 | CM44: 8 | CN44: 5.5 | CO44: 5.666666667 | CP44: 2 | CQ44: 4 | CR44: 8 | CS44: 9 | CU44: 2 | CV44: 8 | CW44: 7 | CX44: 6.421052632 | CY44: 2 | CZ44: 5.5 | DA44: 8 | DB44: 9 | DE44: 5 | DF44: 5 | DG44: 5.222222222 | DH44: 2 | DI44: 4 | DJ44: 6 | DK44: 9
C45: Financial viability in the long run | E45: =$E$3*F45+$F$3*G45+$E$4*H45+$F$4*I45+$E$5*J45+$F$5*K45+$E$6*L45+$F$6*M45+$E$7*O45+$F$7*P45+$E$8*Q45+$F$8*R45+$E$9*S45+$F$9*T45+$E$10*U45+$F$10*V45 -> 0 | F45: 7.5 | G45: 8.5 | H45: 7.5 | I45: 8.5 | J45: 7.5 | K45: 8.5 | L45: 7 | M45: 8 | N45: 1 | O45: 7 | P45: 8 | Q45: 7 | R45: 8 | S45: 7 | T45: 8 | U45: 7 | V45: 8 | W45: 1 | AA45: 2 | AB45: 6 | AC45: 7 | AD45: 7.275 | AE45: 5 | AF45: 6 | AG45: 8.25 | AH45: 10 | AJ45: 2 | AK45: 10 | AL45: 9 | AM45: 8.595238095 | AN45: 4.5 | AO45: 8 | AP45: 10 | AQ45: 10 | AS45: 1 | AT45: 8 | AU45: 8 | AV45: 8.214285714 | AW45: 6 | AX45: 7.25 | AY45: 9 | AZ45: 10 | BB45: 1 | BC45: 7 | BD45: 8 | BE45: 7.916666667 | BF45: 6 | BG45: 7 | BH45: 9 | BI45: 10 | BK45: 1 | BL45: 7 | BM45: 8 | BN45: 7.769230769 | BO45: 6 | BP45: 7 | BQ45: 8 | BR45: 10 | BT45: 1 | BU45: 8 | BV45: 7 | BW45: 7.153846154 | BX45: 4 | BY45: 7 | BZ45: 8 | CA45: 10 | CC45: 1 | CD45: 8 | CE45: 7 | CF45: 6.578947368 | CG45: 3 | CH45: 5 | CI45: 8 | CJ45: 10 | CL45: 1 | CM45: 7 | CN45: 7 | CO45: 6.722222222 | CP45: 2 | CQ45: 5.25 | CR45: 8 | CS45: 10 | CU45: 2 | CV45: 7 | CW45: 7 | CX45: 7.473684211 | CY45: 3 | CZ45: 7 | DA45: 8.5 | DB45: 10 | DD45: 1 | DE45: 7 | DF45: 7 | DG45: 6.722222222 | DH45: 3 | DI45: 6 | DJ45: 8 | DK45: 9
B46: Industry best practices | C46: Application of best practices and degree of innovation | E46: =$E$3*F46+$F$3*G46+$E$4*H46+$F$4*I46+$E$5*J46+$F$5*K46+$E$6*L46+$F$6*M46+$E$7*O46+$F$7*P46+$E$8*Q46+$F$8*R46+$E$9*S46+$F$9*T46+$E$10*U46+$F$10*V46 -> 0 | F46: 6.75 | G46: 7 | H46: 7.25 | I46: 7.5 | J46: 7 | K46: 7.25 | L46: 6.5 | M46: 6.75 | N46: 1 | O46: 6.75 | P46: 7 | Q46: 6.5 | R46: 6.75 | S46: 7.25 | T46: 7.5 | U46: 6.75 | V46: 7 | W46: 1 | AB46: 8 | AC46: 6.5 | AD46: 6.475 | AE46: 1 | AF46: 5.875 | AG46: 8 | AH46: 10 | AK46: 8 | AL46: 7 | AM46: 6.928571429 | AN46: 1 | AO46: 6 | AP46: 8 | AQ46: 10 | AT46: 6 | AU46: 7 | AV46: 7.230769231 | AW46: 5 | AX46: 6 | AY46: 8 | AZ46: 10 | BB46: 1 | BC46: 8 | BD46: 8 | BE46: 7.727272727 | BF46: 6 | BG46: 6.5 | BH46: 8.5 | BI46: 10 | BL46: 7 | BM46: 7.5 | BN46: 7.666666667 | BO46: 4 | BP46: 7 | BQ46: 8.5 | BR46: 10 | BT46: 3 | BU46: 7 | BV46: 6.5 | BW46: 6.166666667 | BX46: 4 | BY46: 5.75 | BZ46: 7 | CA46: 8 | CC46: 1 | CD46: 7 | CE46: 7 | CF46: 6.722222222 | CG46: 3 | CH46: 5.5 | CI46: 8 | CJ46: 10 | CL46: 2 | CM46: 7 | CN46: 6.5 | CO46: 6.3125 | CP46: 3 | CQ46: 5 | CR46: 7.25 | CS46: 9 | CU46: 1 | CV46: 8 | CW46: 8 | CX46: 7.166666667 | CY46: 4 | CZ46: 6.25 | DA46: 8 | DB46: 9 | DD46: 1 | DE46: 8 | DF46: 7 | DG46: 6.941176471 | DH46: 3 | DI46: 6 | DJ46: 8 | DK46: 9

Sheet PROJECT BENCHMARKS (hidden)
A1: ID | B1: Project Code | C1: Fund | D1: Entity | E1: Theme | F1: (tCO2 reduced) / (Mitigation share of project cost) | G1: (Expected total number of beneficiaries - adaptation) / (Adaptation share of project cost) | H1: (Mitigation share of project cost) / (tCO2 reduced) | I1: (Direct co-financing in US$)/(Total GCF/other fund financing in US$) | J1: (annual tCO2 reduced)/(annual emissions in target countries) | K1: (beneficiaries)/(average population in target countries) | L1: Female beneficiaries/Total beneficiaries | M1: Total project cost | N1: Total GCF/other fund financing in US$ | O1: Total co-financing in US$ | P1: Total tCO2e reduced or avoided by activities | Q1: Expected total number of beneficiaries (adaptation or cross-cutting only) | R1: Expected total number of beneficiaries | S1: MITIGATION SHARE | T1: ADAPTATION SHARE | U1: Annual tCO2e reduced or avoided by activities | V1: Expected total number of beneficiaries | W1: Share of female beneficiaries | X1: Annual Emissions in target countries | Y1: Population in target countries
A2: 1 | B2: PCTFCL204A | C2: CTF | D2: IDB | E2: Mitigation | F2: =IF(ISERROR(P2/(M2*S2)),"",IF((P2/(M2*S2))<=OUTLIERS!$C$3,"",IF((P2/(M2*S2))>=OUTLIERS!$C$4,"",P2/(M2*S2)))) -> 0.04023427553 | G2: =IF(ISERROR(Q2/($M2*T2)),"",IF((Q2/($M2*T2))<=OUTLIERS!$D$3,"",IF((Q2/($M2*T2))>=OUTLIERS!$D$4,"",Q2/($M2*T2)))) ->  | H2: =IF(ISERROR((M2*S2)/P2),"",IF((M2*S2/P2)<=OUTLIERS!$E$3,"",IF((M2*S2/P2)>=OUTLIERS!$E$4,"",M2*S2/P2))) -> 24.85443038 | I2: =IF(ISERROR(O2/N2),"",IF(O2/N2<=OUTLIERS!$F$3,"",IF(O2/N2>=OUTLIERS!$F$4,"",O2/N2))) -> 0.5540166205 | J2: =IF(ISERROR(U2/X2),"",IF(U2/X2<=OUTLIERS!$G$3,"",IF(U2/X2>=OUTLIERS!$G$4,"",U2/X2))) -> 0.001126419311 | K2: =IF(ISERROR(Q2/Y2),"",IF(Q2/Y2<=OUTLIERS!$H$3,"",IF(Q2/Y2>=OUTLIERS!$H$4,"",Q2/Y2))) ->  | L2: =IF(ISERROR(W2),"",IF(W2<=OUTLIERS!$I$3,"",IF(W2>=OUTLIERS!$I$4,"",W2))) ->  | M2: =N2+O2 -> 39270000 | N2: 25270000 | O2: 14000000 | P2: 1580000 | Q2: =IF(E2="adaptation",R2,"") ->  | R2: =IF(V2="n/a","",V2) ->  | S2: 1 | T2: 0 | U2: 93000 | V2: n/a | W2: n/a | X2: 82562505 | Y2: 18054726
A3: 2 | B3: PCTFCL222A | C3: CTF | D3: IDB | E3: Mitigation | F3: =IF(ISERROR(P3/(M3*S3)),"",IF((P3/(M3*S3))<=OUTLIERS!$C$3,"",IF((P3/(M3*S3))>=OUTLIERS!$C$4,"",P3/(M3*S3)))) -> 0.01571162841 | G3: =IF(ISERROR(Q3/($M3*T3)),"",IF((Q3/($M3*T3))<=OUTLIERS!$D$3,"",IF((Q3/($M3*T3))>=OUTLIERS!$D$4,"",Q3/($M3*T3)))) ->  | H3: =IF(ISERROR((M3*S3)/P3),"",IF((M3*S3/P3)<=OUTLIERS!$E$3,"",IF((M3*S3/P3)>=OUTLIERS!$E$4,"",M3*S3/P3))) -> 63.64712644 | I3: =IF(ISERROR(O3/N3),"",IF(O3/N3<=OUTLIERS!$F$3,"",IF(O3/N3>=OUTLIERS!$F$4,"",O3/N3))) -> 9.3057882 | J3: =IF(ISERROR(U3/X3),"",IF(U3/X3<=OUTLIERS!$G$3,"",IF(U3/X3>=OUTLIERS!$G$4,"",U3/X3))) -> 0.003512490325 | K3: =IF(ISERROR(Q3/Y3),"",IF(Q3/Y3<=OUTLIERS!$H$3,"",IF(Q3/Y3>=OUTLIERS!$H$4,"",Q3/Y3))) ->  | L3: =IF(ISERROR(W3),"",IF(W3<=OUTLIERS!$I$3,"",IF(W3>=OUTLIERS!$I$4,"",W3))) ->  | M3: 553730000 | N3: 53730000 | O3: 500000000 | P3: 8700000 | Q3: =IF(E3="adaptation",R3,"") ->  | S3: 1 | T3: 0 | U3: 290000 | V3: n/a | W3: n/a | X3: 82562505 | Y3: 18054726
A4: 3 | B4: PCTFCO007A | C4: CTF | D4: IDB | E4: Mitigation | F4: =IF(ISERROR(P4/(M4*S4)),"",IF((P4/(M4*S4))<=OUTLIERS!$C$3,"",IF((P4/(M4*S4))>=OUTLIERS!$C$4,"",P4/(M4*S4)))) -> 0.008766233766 | G4: =IF(ISERROR(Q4/($M4*T4)),"",IF((Q4/($M4*T4))<=OUTLIERS!$D$3,"",IF((Q4/($M4*T4))>=OUTLIERS!$D$4,"",Q4/($M4*T4)))) ->  | H4: =IF(ISERROR((M4*S4)/P4),"",IF((M4*S4/P4)<=OUTLIERS!$E$3,"",IF((M4*S4/P4)>=OUTLIERS!$E$4,"",M4*S4/P4))) -> 114.0740741 | I4: =IF(ISERROR(O4/N4),"",IF(O4/N4<=OUTLIERS!$F$3,"",IF(O4/N4>=OUTLIERS!$F$4,"",O4/N4))) -> 5.16 | J4: =IF(ISERROR(U4/X4),"",IF(U4/X4<=OUTLIERS!$G$3,"",IF(U4/X4>=OUTLIERS!$G$4,"",U4/X4))) -> 0.00025686262 | K4: =IF(ISERROR(Q4/Y4),"",IF(Q4/Y4<=OUTLIERS!$H$3,"",IF(Q4/Y4>=OUTLIERS!$H$4,"",Q4/Y4))) ->  | L4: =IF(ISERROR(W4),"",IF(W4<=OUTLIERS!$I$3,"",IF(W4>=OUTLIERS!$I$4,"",W4))) ->  | M4: 61600000 | N4: 10000000 | O4: 51600000 | P4: 540000 | S4: 1 | T4: 0 | U4: 21600 | V4: n/a | W4: n/a | X4: 84091644 | Y4: 49065615
A5: 4 | B5: PCTFCO098A | C5: CTF | D5: IDB | E5: Mitigation | F5: =IF(ISERROR(P5/(M5*S5)),"",IF((P5/(M5*S5))<=OUTLIERS!$C$3,"",IF((P5/(M5*S5))>=OUTLIERS!$C$4,"",P5/(M5*S5)))) -> 0.03286929621 | G5: =IF(ISERROR(Q5/($M5*T5)),"",IF((Q5/($M5*T5))<=OUTLIERS!$D$3,"",IF((Q5/($M5*T5))>=OUTLIERS!$D$4,"",Q5/($M5*T5)))) ->  | H5: =IF(ISERROR((M5*S5)/P5),"",IF((M5*S5/P5)<=OUTLIERS!$E$3,"",IF((M5*S5/P5)>=OUTLIERS!$E$4,"",M5*S5/P5))) -> 30.42352941 | I5: =IF(ISERROR(O5/N5),"",IF(O5/N5<=OUTLIERS!$F$3,"",IF(O5/N5>=OUTLIERS!$F$4,"",O5/N5))) -> 4.733924612 | J5: =IF(ISERROR(U5/X5),"",IF(U5/X5<=OUTLIERS!$G$3,"",IF(U5/X5>=OUTLIERS!$G$4,"",U5/X5))) -> 0.0006738679846 | K5: =IF(ISERROR(Q5/Y5),"",IF(Q5/Y5<=OUTLIERS!$H$3,"",IF(Q5/Y5>=OUTLIERS!$H$4,"",Q5/Y5))) ->  | L5: =IF(ISERROR(W5),"",IF(W5<=OUTLIERS!$I$3,"",IF(W5>=OUTLIERS!$I$4,"",W5))) ->  | M5: 25860000 | N5: 4510000 | O5: 21350000 | P5: 850000 | R5: 1000 | S5: 1 | T5: 0 | U5: 56666.66667 | V5: 1000 | W5: n/a | X5: 84091644 | Y5: 49065615
A6: 5 | B6: PCTFDP501A | C6: CTF | D6: ADB | E6: Mitigation | F6: =IF(ISERROR(P6/(M6*S6)),"",IF((P6/(M6*S6))<=OUTLIERS!$C$3,"",IF((P6/(M6*S6))>=OUTLIERS!$C$4,"",P6/(M6*S6)))) -> 0.02510164398 | G6: =IF(ISERROR(Q6/($M6*T6)),"",IF((Q6/($M6*T6))<=OUTLIERS!$D$3,"",IF((Q6/($M6*T6))>=OUTLIERS!$D$4,"",Q6/($M6*T6)))) ->  | H6: =IF(ISERROR((M6*S6)/P6),"",IF((M6*S6/P6)<=OUTLIERS!$E$3,"",IF((M6*S6/P6)>=OUTLIERS!$E$4,"",M6*S6/P6))) -> 39.83802817 | I6: =IF(ISERROR(O6/N6),"",IF(O6/N6<=OUTLIERS!$F$3,"",IF(O6/N6>=OUTLIERS!$F$4,"",O6/N6))) -> 0.6478298864 | J6: =IF(ISERROR(U6/X6),"",IF(U6/X6<=OUTLIERS!$G$3,"",IF(U6/X6>=OUTLIERS!$G$4,"",U6/X6))) -> 7.584911117e-05 | K6: =IF(ISERROR(Q6/Y6),"",IF(Q6/Y6<=OUTLIERS!$H$3,"",IF(Q6/Y6>=OUTLIERS!$H$4,"",Q6/Y6))) ->  | L6: =IF(ISERROR(W6),"",IF(W6<=OUTLIERS!$I$3,"",IF(W6>=OUTLIERS!$I$4,"",W6))) ->  | M6: 56570000 | N6: 34330000 | O6: 22240000 | P6: 1420000 | R6: 637700 | S6: 1 | T6: 0 | U6: 71000 | V6: 637700 | W6: n/a | X6: 936068978.3 | Y6: 569363198.7
A7: 6 | B7: PCTFDP601A | C7: CTF | D7: ADB | E7: Mitigation | F7: =IF(ISERROR(P7/(M7*S7)),"",IF((P7/(M7*S7))<=OUTLIERS!$C$3,"",IF((P7/(M7*S7))>=OUTLIERS!$C$4,"",P7/(M7*S7)))) -> 0.05 | G7: =IF(ISERROR(Q7/($M7*T7)),"",IF((Q7/($M7*T7))<=OUTLIERS!$D$3,"",IF((Q7/($M7*T7))>=OUTLIERS!$D$4,"",Q7/($M7*T7)))) ->  | H7: =IF(ISERROR((M7*S7)/P7),"",IF((M7*S7/P7)<=OUTLIERS!$E$3,"",IF((M7*S7/P7)>=OUTLIERS!$E$4,"",M7*S7/P7))) -> 20 | I7: =IF(ISERROR(O7/N7),"",IF(O7/N7<=OUTLIERS!$F$3,"",IF(O7/N7>=OUTLIERS!$F$4,"",O7/N7))) -> 4 | J7: =IF(ISERROR(U7/X7),"",IF(U7/X7<=OUTLIERS!$G$3,"",IF(U7/X7>=OUTLIERS!$G$4,"",U7/X7))) -> 0.001316182486 | K7: =IF(ISERROR(Q7/Y7),"",IF(Q7/Y7<=OUTLIERS!$H$3,"",IF(Q7/Y7>=OUTLIERS!$H$4,"",Q7/Y7))) ->  | L7: =IF(ISERROR(W7),"",IF(W7<=OUTLIERS!$I$3,"",IF(W7>=OUTLIERS!$I$4,"",W7))) ->  | M7: 150000000 | N7: 30000000 | O7: 120000000 | P7: 7500000 | S7: 1 | T7: 0 | U7: 375000 | V7: n/a | W7: n/a | X7: 284914899 | Y7: 184454734.5
A8: 7 | B8: PCTFDP602A | C8: CTF | D8: ADB | E8: Mitigation | F8: =IF(ISERROR(P8/(M8*S8)),"",IF((P8/(M8*S8))<=OUTLIERS!$C$3,"",IF((P8/(M8*S8))>=OUTLIERS!$C$4,"",P8/(M8*S8)))) -> 0.01936936937 | G8: =IF(ISERROR(Q8/($M8*T8)),"",IF((Q8/($M8*T8))<=OUTLIERS!$D$3,"",IF((Q8/($M8*T8))>=OUTLIERS!$D$4,"",Q8/($M8*T8)))) ->  | H8: =IF(ISERROR((M8*S8)/P8),"",IF((M8*S8/P8)<=OUTLIERS!$E$3,"",IF((M8*S8/P8)>=OUTLIERS!$E$4,"",M8*S8/P8))) -> 51.62790698 | I8: =IF(ISERROR(O8/N8),"",IF(O8/N8<=OUTLIERS!$F$3,"",IF(O8/N8>=OUTLIERS!$F$4,"",O8/N8))) -> 5.342857143 | J8: =IF(ISERROR(U8/X8),"",IF(U8/X8<=OUTLIERS!$G$3,"",IF(U8/X8>=OUTLIERS!$G$4,"",U8/X8))) -> 0.0008184787618 | K8: =IF(ISERROR(Q8/Y8),"",IF(Q8/Y8<=OUTLIERS!$H$3,"",IF(Q8/Y8>=OUTLIERS!$H$4,"",Q8/Y8))) ->  | L8: =IF(ISERROR(W8),"",IF(W8<=OUTLIERS!$I$3,"",IF(W8>=OUTLIERS!$I$4,"",W8))) ->  | M8: 222000000 | N8: 35000000 | O8: 187000000 | P8: 4300000 | S8: 1 | T8: 0 | U8: 215000 | V8: n/a | W8: n/a | X8: 262682442.2 | Y8: 162322359.5
A9: 8 | B9: PCTFDP606A | C9: CTF | D9: EBRD | E9: Mitigation | F9: =IF(ISERROR(P9/(M9*S9)),"",IF((P9/(M9*S9))<=OUTLIERS!$C$3,"",IF((P9/(M9*S9))>=OUTLIERS!$C$4,"",P9/(M9*S9)))) -> 0.0147219193 | G9: =IF(ISERROR(Q9/($M9*T9)),"",IF((Q9/($M9*T9))<=OUTLIERS!$D$3,"",IF((Q9/($M9*T9))>=OUTLIERS!$D$4,"",Q9/($M9*T9)))) ->  | H9: =IF(ISERROR((M9*S9)/P9),"",IF((M9*S9/P9)<=OUTLIERS!$E$3,"",IF((M9*S9/P9)>=OUTLIERS!$E$4,"",M9*S9/P9))) -> 67.92592593 | I9: =IF(ISERROR(O9/N9),"",IF(O9/N9<=OUTLIERS!$F$3,"",IF(O9/N9>=OUTLIERS!$F$4,"",O9/N9))) -> 25.2 | J9: =IF(ISERROR(U9/X9),"",IF(U9/X9<=OUTLIERS!$G$3,"",IF(U9/X9>=OUTLIERS!$G$4,"",U9/X9))) -> 0.008516334135 | K9: =IF(ISERROR(Q9/Y9),"",IF(Q9/Y9<=OUTLIERS!$H$3,"",IF(Q9/Y9>=OUTLIERS!$H$4,"",Q9/Y9))) ->  | L9: =IF(ISERROR(W9),"",IF(W9<=OUTLIERS!$I$3,"",IF(W9>=OUTLIERS!$I$4,"",W9))) ->  | M9: 917000000 | N9: 35000000 | O9: 882000000 | P9: 13500000 | S9: 1 | T9: 0 | U9: 675000 | V9: n/a | W9: n/a | X9: 79259454.75 | Y9: 38631802.75
A10: 9 | B10: PCTFDP613A | C10: CTF | D10: IFC | E10: Mitigation | F10: =IF(ISERROR(P10/(M10*S10)),"",IF((P10/(M10*S10))<=OUTLIERS!$C$3,"",IF((P10/(M10*S10))>=OUTLIERS!$C$4,"",P10/(M10*S10)))) -> 0.01296296296 | G10: =IF(ISERROR(Q10/($M10*T10)),"",IF((Q10/($M10*T10))<=OUTLIERS!$D$3,"",IF((Q10/($M10*T10))>=OUTLIERS!$D$4,"",Q10/($M10*T10)))) ->  | H10: =IF(ISERROR((M10*S10)/P10),"",IF((M10*S10/P10)<=OUTLIERS!$E$3,"",IF((M10*S10/P10)>=OUTLIERS!$E$4,"",M10*S10/P10))) -> 77.14285714 | I10: =IF(ISERROR(O10/N10),"",IF(O10/N10<=OUTLIERS!$F$3,"",IF(O10/N10>=OUTLIERS!$F$4,"",O10/N10))) -> 2.085714286 | J10: =IF(ISERROR(U10/X10),"",IF(U10/X10<=OUTLIERS!$G$3,"",IF(U10/X10>=OUTLIERS!$G$4,"",U10/X10))) -> 0.001596431809 | K10: =IF(ISERROR(Q10/Y10),"",IF(Q10/Y10<=OUTLIERS!$H$3,"",IF(Q10/Y10>=OUTLIERS!$H$4,"",Q10/Y10))) ->  | L10: =IF(ISERROR(W10),"",IF(W10<=OUTLIERS!$I$3,"",IF(W10>=OUTLIERS!$I$4,"",W10))) ->  | M10: 108000000 | N10: 35000000 | O10: 73000000 | P10: 1400000 | S10: 1 | T10: 0 | U10: 70000 | V10: n/a | W10: n/a | X10: 43847785.8 | Y10: 40297346.4
A11: 10 | B11: PCTFDP614A | C11: CTF | D11: IDB | E11: Mitigation | F11: =IF(ISERROR(P11/(M11*S11)),"",IF((P11/(M11*S11))<=OUTLIERS!$C$3,"",IF((P11/(M11*S11))>=OUTLIERS!$C$4,"",P11/(M11*S11)))) -> 0.01328903654 | G11: =IF(ISERROR(Q11/($M11*T11)),"",IF((Q11/($M11*T11))<=OUTLIERS!$D$3,"",IF((Q11/($M11*T11))>=OUTLIERS!$D$4,"",Q11/($M11*T11)))) ->  | H11: =IF(ISERROR((M11*S11)/P11),"",IF((M11*S11/P11)<=OUTLIERS!$E$3,"",IF((M11*S11/P11)>=OUTLIERS!$E$4,"",M11*S11/P11))) -> 75.25 | I11: =IF(ISERROR(O11/N11),"",IF(O11/N11<=OUTLIERS!$F$3,"",IF(O11/N11>=OUTLIERS!$F$4,"",O11/N11))) -> 5.02 | J11: =IF(ISERROR(U11/X11),"",IF(U11/X11<=OUTLIERS!$G$3,"",IF(U11/X11>=OUTLIERS!$G$4,"",U11/X11))) ->  | K11: =IF(ISERROR(Q11/Y11),"",IF(Q11/Y11<=OUTLIERS!$H$3,"",IF(Q11/Y11>=OUTLIERS!$H$4,"",Q11/Y11))) ->  | L11: =IF(ISERROR(W11),"",IF(W11<=OUTLIERS!$I$3,"",IF(W11>=OUTLIERS!$I$4,"",W11))) ->  | M11: 120400000 | N11: 20000000 | O11: 100400000 | P11: 1600000 | S11: 1 | T11: 0 | U11: 80000 | V11: n/a | W11: n/a
A12: 11 | B12: PCTFDP713A | C12: CTF | D12: IDB | E12: Mitigation | F12: =IF(ISERROR(P12/(M12*S12)),"",IF((P12/(M12*S12))<=OUTLIERS!$C$3,"",IF((P12/(M12*S12))>=OUTLIERS!$C$4,"",P12/(M12*S12)))) ->  | G12: =IF(ISERROR(Q12/($M12*T12)),"",IF((Q12/($M12*T12))<=OUTLIERS!$D$3,"",IF((Q12/($M12*T12))>=OUTLIERS!$D$4,"",Q12/($M12*T12)))) ->  | H12: =IF(ISERROR((M12*S12)/P12),"",IF((M12*S12/P12)<=OUTLIERS!$E$3,"",IF((M12*S12/P12)>=OUTLIERS!$E$4,"",M12*S12/P12))) ->  | I12: =IF(ISERROR(O12/N12),"",IF(O12/N12<=OUTLIERS!$F$3,"",IF(O12/N12>=OUTLIERS!$F$4,"",O12/N12))) -> 8.970588235 | J12: =IF(ISERROR(U12/X12),"",IF(U12/X12<=OUTLIERS!$G$3,"",IF(U12/X12>=OUTLIERS!$G$4,"",U12/X12))) ->  | K12: =IF(ISERROR(Q12/Y12),"",IF(Q12/Y12<=OUTLIERS!$H$3,"",IF(Q12/Y12>=OUTLIERS!$H$4,"",Q12/Y12))) ->  | L12: =IF(ISERROR(W12),"",IF(W12<=OUTLIERS!$I$3,"",IF(W12>=OUTLIERS!$I$4,"",W12))) ->  | M12: 339000000 | N12: 34000000 | O12: 305000000 | P12: n/a | S12: 1 | T12: 0 | U12: n/a | V12: n/a | W12: n/a
A13: 12 | B13: PCTFGL700A | C13: CTF | D13: IFC | E13: Mitigation | F13: =IF(ISERROR(P13/(M13*S13)),"",IF((P13/(M13*S13))<=OUTLIERS!$C$3,"",IF((P13/(M13*S13))>=OUTLIERS!$C$4,"",P13/(M13*S13)))) -> 0.01028368794 | G13: =IF(ISERROR(Q13/($M13*T13)),"",IF((Q13/($M13*T13))<=OUTLIERS!$D$3,"",IF((Q13/($M13*T13))>=OUTLIERS!$D$4,"",Q13/($M13*T13)))) ->  | H13: =IF(ISERROR((M13*S13)/P13),"",IF((M13*S13/P13)<=OUTLIERS!$E$3,"",IF((M13*S13/P13)>=OUTLIERS!$E$4,"",M13*S13/P13))) -> 97.24137931 | I13: =IF(ISERROR(O13/N13),"",IF(O13/N13<=OUTLIERS!$F$3,"",IF(O13/N13>=OUTLIERS!$F$4,"",O13/N13))) -> 3.947368421 | J13: =IF(ISERROR(U13/X13),"",IF(U13/X13<=OUTLIERS!$G$3,"",IF(U13/X13>=OUTLIERS!$G$4,"",U13/X13))) -> 0.0001820772119 | K13: =IF(ISERROR(Q13/Y13),"",IF(Q13/Y13<=OUTLIERS!$H$3,"",IF(Q13/Y13>=OUTLIERS!$H$4,"",Q13/Y13))) ->  | L13: =IF(ISERROR(W13),"",IF(W13<=OUTLIERS!$I$3,"",IF(W13>=OUTLIERS!$I$4,"",W13))) ->  | M13: 169200000 | N13: 34200000 | O13: 135000000 | P13: 1740000 | S13: 1 | T13: 0 | U13: 87000 | V13: n/a | W13: n/a | X13: 477819267.5 | Y13: 268751978.2
A14: 13 | B14: PCTFHN617A | C14: CTF | D14: IFC | E14: Mitigation | F14: =IF(ISERROR(P14/(M14*S14)),"",IF((P14/(M14*S14))<=OUTLIERS!$C$3,"",IF((P14/(M14*S14))>=OUTLIERS!$C$4,"",P14/(M14*S14)))) -> 0.006776379477 | G14: =IF(ISERROR(Q14/($M14*T14)),"",IF((Q14/($M14*T14))<=OUTLIERS!$D$3,"",IF((Q14/($M14*T14))>=OUTLIERS!$D$4,"",Q14/($M14*T14)))) ->  | H14: =IF(ISERROR((M14*S14)/P14),"",IF((M14*S14/P14)<=OUTLIERS!$E$3,"",IF((M14*S14/P14)>=OUTLIERS!$E$4,"",M14*S14/P14))) -> 147.5714286 | I14: =IF(ISERROR(O14/N14),"",IF(O14/N14<=OUTLIERS!$F$3,"",IF(O14/N14>=OUTLIERS!$F$4,"",O14/N14))) -> 9.33 | J14: =IF(ISERROR(U14/X14),"",IF(U14/X14<=OUTLIERS!$G$3,"",IF(U14/X14>=OUTLIERS!$G$4,"",U14/X14))) -> 0.007390311154 | K14: =IF(ISERROR(Q14/Y14),"",IF(Q14/Y14<=OUTLIERS!$H$3,"",IF(Q14/Y14>=OUTLIERS!$H$4,"",Q14/Y14))) ->  | L14: =IF(ISERROR(W14),"",IF(W14<=OUTLIERS!$I$3,"",IF(W14>=OUTLIERS!$I$4,"",W14))) ->  | M14: 206600000 | N14: 20000000 | O14: 186600000 | P14: 1400000 | S14: 1 | T14: 0 | U14: 70000 | V14: n/a | W14: n/a | X14: 9471861 | Y14: 9265067
A15: 14 | B15: PCTFID018A | C15: CTF | D15: IFC | E15: Mitigation | F15: =IF(ISERROR(P15/(M15*S15)),"",IF((P15/(M15*S15))<=OUTLIERS!$C$3,"",IF((P15/(M15*S15))>=OUTLIERS!$C$4,"",P15/(M15*S15)))) -> 0.02927536232 | G15: =IF(ISERROR(Q15/($M15*T15)),"",IF((Q15/($M15*T15))<=OUTLIERS!$D$3,"",IF((Q15/($M15*T15))>=OUTLIERS!$D$4,"",Q15/($M15*T15)))) ->  | H15: =IF(ISERROR((M15*S15)/P15),"",IF((M15*S15/P15)<=OUTLIERS!$E$3,"",IF((M15*S15/P15)>=OUTLIERS!$E$4,"",M15*S15/P15))) -> 34.15841584 | I15: =IF(ISERROR(O15/N15),"",IF(O15/N15<=OUTLIERS!$F$3,"",IF(O15/N15>=OUTLIERS!$F$4,"",O15/N15))) -> 5.272727273 | J15: =IF(ISERROR(U15/X15),"",IF(U15/X15<=OUTLIERS!$G$3,"",IF(U15/X15>=OUTLIERS!$G$4,"",U15/X15))) -> 0.0008186546508 | K15: =IF(ISERROR(Q15/Y15),"",IF(Q15/Y15<=OUTLIERS!$H$3,"",IF(Q15/Y15>=OUTLIERS!$H$4,"",Q15/Y15))) ->  | L15: =IF(ISERROR(W15),"",IF(W15<=OUTLIERS!$I$3,"",IF(W15>=OUTLIERS!$I$4,"",W15))) ->  | M15: 345000000 | N15: 55000000 | O15: 290000000 | P15: 10100000 | S15: 1 | T15: 0 | U15: 380000 | V15: n/a | W15: n/a | X15: 464176194 | Y15: 263991379
A16: 15 | B16: PCTFKE604B | C16: CTF | D16: AfDB | E16: Mitigation | F16: =IF(ISERROR(P16/(M16*S16)),"",IF((P16/(M16*S16))<=OUTLIERS!$C$3,"",IF((P16/(M16*S16))>=OUTLIERS!$C$4,"",P16/(M16*S16)))) -> 0.06352244898 | G16: =IF(ISERROR(Q16/($M16*T16)),"",IF((Q16/($M16*T16))<=OUTLIERS!$D$3,"",IF((Q16/($M16*T16))>=OUTLIERS!$D$4,"",Q16/($M16*T16)))) ->  | H16: =IF(ISERROR((M16*S16)/P16),"",IF((M16*S16/P16)<=OUTLIERS!$E$3,"",IF((M16*S16/P16)>=OUTLIERS!$E$4,"",M16*S16/P16))) -> 15.74246611 | I16: =IF(ISERROR(O16/N16),"",IF(O16/N16<=OUTLIERS!$F$3,"",IF(O16/N16>=OUTLIERS!$F$4,"",O16/N16))) -> 2.593333333 | J16: =IF(ISERROR(U16/X16),"",IF(U16/X16<=OUTLIERS!$G$3,"",IF(U16/X16>=OUTLIERS!$G$4,"",U16/X16))) -> 0.02396548046 | K16: =IF(ISERROR(Q16/Y16),"",IF(Q16/Y16<=OUTLIERS!$H$3,"",IF(Q16/Y16>=OUTLIERS!$H$4,"",Q16/Y16))) ->  | L16: =IF(ISERROR(W16),"",IF(W16<=OUTLIERS!$I$3,"",IF(W16>=OUTLIERS!$I$4,"",W16))) -> 0.3 | M16: 107800000 | N16: 30000000 | O16: 77800000 | P16: 6847720 | R16: 300 | S16: 1 | T16: 0 | U16: 342386 | V16: 300 | W16: 0.3 | X16: 14286632 | Y16: 49699862
A17: 16 | B17: PCTFKZ025A | C17: CTF | D17: IFC | E17: Mitigation | F17: =IF(ISERROR(P17/(M17*S17)),"",IF((P17/(M17*S17))<=OUTLIERS!$C$3,"",IF((P17/(M17*S17))>=OUTLIERS!$C$4,"",P17/(M17*S17)))) ->  | G17: =IF(ISERROR(Q17/($M17*T17)),"",IF((Q17/($M17*T17))<=OUTLIERS!$D$3,"",IF((Q17/($M17*T17))>=OUTLIERS!$D$4,"",Q17/($M17*T17)))) ->  | H17: =IF(ISERROR((M17*S17)/P17),"",IF((M17*S17/P17)<=OUTLIERS!$E$3,"",IF((M17*S17/P17)>=OUTLIERS!$E$4,"",M17*S17/P17))) ->  | I17: =IF(ISERROR(O17/N17),"",IF(O17/N17<=OUTLIERS!$F$3,"",IF(O17/N17>=OUTLIERS!$F$4,"",O17/N17))) -> 0.1285714286 | J17: =IF(ISERROR(U17/X17),"",IF(U17/X17<=OUTLIERS!$G$3,"",IF(U17/X17>=OUTLIERS!$G$4,"",U17/X17))) ->  | K17: =IF(ISERROR(Q17/Y17),"",IF(Q17/Y17<=OUTLIERS!$H$3,"",IF(Q17/Y17>=OUTLIERS!$H$4,"",Q17/Y17))) ->  | L17: =IF(ISERROR(W17),"",IF(W17<=OUTLIERS!$I$3,"",IF(W17>=OUTLIERS!$I$4,"",W17))) ->  | M17: 23700000 | N17: 21000000 | O17: 2700000 | P17: n/a | S17: 1 | T17: 0 | U17: n/a | V17: n/a | W17: n/a | X17: 248314572 | Y17: 18037646
A18: 17 | B18: PCTFKZ099A | C18: CTF | D18: EBRD | E18: Mitigation | F18: =IF(ISERROR(P18/(M18*S18)),"",IF((P18/(M18*S18))<=OUTLIERS!$C$3,"",IF((P18/(M18*S18))>=OUTLIERS!$C$4,"",P18/(M18*S18)))) -> 0.02884060758 | G18: =IF(ISERROR(Q18/($M18*T18)),"",IF((Q18/($M18*T18))<=OUTLIERS!$D$3,"",IF((Q18/($M18*T18))>=OUTLIERS!$D$4,"",Q18/($M18*T18)))) ->  | H18: =IF(ISERROR((M18*S18)/P18),"",IF((M18*S18/P18)<=OUTLIERS!$E$3,"",IF((M18*S18/P18)>=OUTLIERS!$E$4,"",M18*S18/P18))) -> 34.67333333 | I18: =IF(ISERROR(O18/N18),"",IF(O18/N18<=OUTLIERS!$F$3,"",IF(O18/N18>=OUTLIERS!$F$4,"",O18/N18))) -> 3.076018809 | J18: =IF(ISERROR(U18/X18),"",IF(U18/X18<=OUTLIERS!$G$3,"",IF(U18/X18>=OUTLIERS!$G$4,"",U18/X18))) -> 0.0006040724827 | K18: =IF(ISERROR(Q18/Y18),"",IF(Q18/Y18<=OUTLIERS!$H$3,"",IF(Q18/Y18>=OUTLIERS!$H$4,"",Q18/Y18))) ->  | L18: =IF(ISERROR(W18),"",IF(W18<=OUTLIERS!$I$3,"",IF(W18>=OUTLIERS!$I$4,"",W18))) ->  | M18: 104020000 | N18: 25520000 | O18: 78500000 | P18: 3000000 | S18: 1 | T18: 0 | U18: 150000 | V18: n/a | W18: n/a | X18: 248314572 | Y18: 18037646
A19: 18 | B19: PCTFNG217A | C19: CTF | D19: AfDB | E19: Mitigation | F19: =IF(ISERROR(P19/(M19*S19)),"",IF((P19/(M19*S19))<=OUTLIERS!$C$3,"",IF((P19/(M19*S19))>=OUTLIERS!$C$4,"",P19/(M19*S19)))) -> 0.06478740984 | G19: =IF(ISERROR(Q19/($M19*T19)),"",IF((Q19/($M19*T19))<=OUTLIERS!$D$3,"",IF((Q19/($M19*T19))>=OUTLIERS!$D$4,"",Q19/($M19*T19)))) ->  | H19: =IF(ISERROR((M19*S19)/P19),"",IF((M19*S19/P19)<=OUTLIERS!$E$3,"",IF((M19*S19/P19)>=OUTLIERS!$E$4,"",M19*S19/P19))) -> 15.43509769 | I19: =IF(ISERROR(O19/N19),"",IF(O19/N19<=OUTLIERS!$F$3,"",IF(O19/N19>=OUTLIERS!$F$4,"",O19/N19))) -> 60 | J19: =IF(ISERROR(U19/X19),"",IF(U19/X19<=OUTLIERS!$G$3,"",IF(U19/X19>=OUTLIERS!$G$4,"",U19/X19))) -> 0.001647058178 | K19: =IF(ISERROR(Q19/Y19),"",IF(Q19/Y19<=OUTLIERS!$H$3,"",IF(Q19/Y19>=OUTLIERS!$H$4,"",Q19/Y19))) ->  | L19: =IF(ISERROR(W19),"",IF(W19<=OUTLIERS!$I$3,"",IF(W19>=OUTLIERS!$I$4,"",W19))) ->  | M19: 76250000 | N19: 1250000 | O19: 75000000 | P19: 4940040 | R19: 2450000 | S19: 1 | T19: 0 | U19: 158580 | V19: 2450000 | W19: n/a | X19: 96280752 | Y19: 190886311
A20: 19 | B20: PCTFNG230A | C20: CTF | D20: IFC | E20: Mitigation | F20: =IF(ISERROR(P20/(M20*S20)),"",IF((P20/(M20*S20))<=OUTLIERS!$C$3,"",IF((P20/(M20*S20))>=OUTLIERS!$C$4,"",P20/(M20*S20)))) -> 0.01153846154 | G20: =IF(ISERROR(Q20/($M20*T20)),"",IF((Q20/($M20*T20))<=OUTLIERS!$D$3,"",IF((Q20/($M20*T20))>=OUTLIERS!$D$4,"",Q20/($M20*T20)))) ->  | H20: =IF(ISERROR((M20*S20)/P20),"",IF((M20*S20/P20)<=OUTLIERS!$E$3,"",IF((M20*S20/P20)>=OUTLIERS!$E$4,"",M20*S20/P20))) -> 86.66666667 | I20: =IF(ISERROR(O20/N20),"",IF(O20/N20<=OUTLIERS!$F$3,"",IF(O20/N20>=OUTLIERS!$F$4,"",O20/N20))) -> 3.333333333 | J20: =IF(ISERROR(U20/X20),"",IF(U20/X20<=OUTLIERS!$G$3,"",IF(U20/X20>=OUTLIERS!$G$4,"",U20/X20))) -> 0.0007789718967 | K20: =IF(ISERROR(Q20/Y20),"",IF(Q20/Y20<=OUTLIERS!$H$3,"",IF(Q20/Y20>=OUTLIERS!$H$4,"",Q20/Y20))) ->  | L20: =IF(ISERROR(W20),"",IF(W20<=OUTLIERS!$I$3,"",IF(W20>=OUTLIERS!$I$4,"",W20))) ->  | M20: 130000000 | N20: 30000000 | O20: 100000000 | P20: 1500000 | S20: 1 | T20: 0 | U20: 75000 | V20: n/a | W20: n/a | X20: 96280752 | Y20: 190886311
A21: 20 | B21: PCTFTH702A | C21: CTF | D21: ADB | E21: Mitigation | F21: =IF(ISERROR(P21/(M21*S21)),"",IF((P21/(M21*S21))<=OUTLIERS!$C$3,"",IF((P21/(M21*S21))>=OUTLIERS!$C$4,"",P21/(M21*S21)))) ->  | G21: =IF(ISERROR(Q21/($M21*T21)),"",IF((Q21/($M21*T21))<=OUTLIERS!$D$3,"",IF((Q21/($M21*T21))>=OUTLIERS!$D$4,"",Q21/($M21*T21)))) ->  | H21: =IF(ISERROR((M21*S21)/P21),"",IF((M21*S21/P21)<=OUTLIERS!$E$3,"",IF((M21*S21/P21)>=OUTLIERS!$E$4,"",M21*S21/P21))) ->  | I21: =IF(ISERROR(O21/N21),"",IF(O21/N21<=OUTLIERS!$F$3,"",IF(O21/N21>=OUTLIERS!$F$4,"",O21/N21))) -> 4 | J21: =IF(ISERROR(U21/X21),"",IF(U21/X21<=OUTLIERS!$G$3,"",IF(U21/X21>=OUTLIERS!$G$4,"",U21/X21))) ->  | K21: =IF(ISERROR(Q21/Y21),"",IF(Q21/Y21<=OUTLIERS!$H$3,"",IF(Q21/Y21>=OUTLIERS!$H$4,"",Q21/Y21))) ->  | L21: =IF(ISERROR(W21),"",IF(W21<=OUTLIERS!$I$3,"",IF(W21>=OUTLIERS!$I$4,"",W21))) ->  | M21: 180500000 | N21: 36100000 | O21: 144400000 | P21: n/a | S21: 1 | T21: 0 | U21: n/a | V21: n/a | W21: n/a
A22: 21 | B22: PCTFTR079A | C22: CTF | D22: IFC | E22: Mitigation | F22: =IF(ISERROR(P22/(M22*S22)),"",IF((P22/(M22*S22))<=OUTLIERS!$C$3,"",IF((P22/(M22*S22))>=OUTLIERS!$C$4,"",P22/(M22*S22)))) -> 0.01203532952 | G22: =IF(ISERROR(Q22/($M22*T22)),"",IF((Q22/($M22*T22))<=OUTLIERS!$D$3,"",IF((Q22/($M22*T22))>=OUTLIERS!$D$4,"",Q22/($M22*T22)))) ->  | H22: =IF(ISERROR((M22*S22)/P22),"",IF((M22*S22/P22)<=OUTLIERS!$E$3,"",IF((M22*S22/P22)>=OUTLIERS!$E$4,"",M22*S22/P22))) -> 83.08870968 | I22: =IF(ISERROR(O22/N22),"",IF(O22/N22<=OUTLIERS!$F$3,"",IF(O22/N22>=OUTLIERS!$F$4,"",O22/N22))) -> 131.0897436 | J22: =IF(ISERROR(U22/X22),"",IF(U22/X22<=OUTLIERS!$G$3,"",IF(U22/X22>=OUTLIERS!$G$4,"",U22/X22))) -> 0.0001792003589 | K22: =IF(ISERROR(Q22/Y22),"",IF(Q22/Y22<=OUTLIERS!$H$3,"",IF(Q22/Y22>=OUTLIERS!$H$4,"",Q22/Y22))) ->  | L22: =IF(ISERROR(W22),"",IF(W22<=OUTLIERS!$I$3,"",IF(W22>=OUTLIERS!$I$4,"",W22))) ->  | M22: 103030000 | N22: 780000 | O22: 102250000 | P22: 1240000 | S22: 1 | T22: 0 | U22: 62000 | V22: n/a | W22: n/a | X22: 345981450 | Y22: 80745020
A23: 22 | B23: PCTFTR221A | C23: CTF | D23: IFC | E23: Mitigation | F23: =IF(ISERROR(P23/(M23*S23)),"",IF((P23/(M23*S23))<=OUTLIERS!$C$3,"",IF((P23/(M23*S23))>=OUTLIERS!$C$4,"",P23/(M23*S23)))) -> 0.00395256917 | G23: =IF(ISERROR(Q23/($M23*T23)),"",IF((Q23/($M23*T23))<=OUTLIERS!$D$3,"",IF((Q23/($M23*T23))>=OUTLIERS!$D$4,"",Q23/($M23*T23)))) ->  | H23: =IF(ISERROR((M23*S23)/P23),"",IF((M23*S23/P23)<=OUTLIERS!$E$3,"",IF((M23*S23/P23)>=OUTLIERS!$E$4,"",M23*S23/P23))) -> 253 | I23: =IF(ISERROR(O23/N23),"",IF(O23/N23<=OUTLIERS!$F$3,"",IF(O23/N23>=OUTLIERS!$F$4,"",O23/N23))) -> 1.68944571 | J23: =IF(ISERROR(U23/X23),"",IF(U23/X23<=OUTLIERS!$G$3,"",IF(U23/X23>=OUTLIERS!$G$4,"",U23/X23))) -> 4.046459716e-05 | K23: =IF(ISERROR(Q23/Y23),"",IF(Q23/Y23<=OUTLIERS!$H$3,"",IF(Q23/Y23>=OUTLIERS!$H$4,"",Q23/Y23))) ->  | L23: =IF(ISERROR(W23),"",IF(W23<=OUTLIERS!$I$3,"",IF(W23>=OUTLIERS!$I$4,"",W23))) ->  | M23: 106260000 | N23: 39510000 | O23: 66750000 | P23: 420000 | S23: 1 | T23: 0 | U23: 14000 | V23: n/a | W23: n/a | X23: 345981450 | Y23: 80745020
A24: 23 | B24: PCTFTR507A | C24: CTF | D24: EBRD | E24: Mitigation | F24: =IF(ISERROR(P24/(M24*S24)),"",IF((P24/(M24*S24))<=OUTLIERS!$C$3,"",IF((P24/(M24*S24))>=OUTLIERS!$C$4,"",P24/(M24*S24)))) ->  | G24: =IF(ISERROR(Q24/($M24*T24)),"",IF((Q24/($M24*T24))<=OUTLIERS!$D$3,"",IF((Q24/($M24*T24))>=OUTLIERS!$D$4,"",Q24/($M24*T24)))) ->  | H24: =IF(ISERROR((M24*S24)/P24),"",IF((M24*S24/P24)<=OUTLIERS!$E$3,"",IF((M24*S24/P24)>=OUTLIERS!$E$4,"",M24*S24/P24))) ->  | I24: =IF(ISERROR(O24/N24),"",IF(O24/N24<=OUTLIERS!$F$3,"",IF(O24/N24>=OUTLIERS!$F$4,"",O24/N24))) -> 12.48 | J24: =IF(ISERROR(U24/X24),"",IF(U24/X24<=OUTLIERS!$G$3,"",IF(U24/X24>=OUTLIERS!$G$4,"",U24/X24))) ->  | K24: =IF(ISERROR(Q24/Y24),"",IF(Q24/Y24<=OUTLIERS!$H$3,"",IF(Q24/Y24>=OUTLIERS!$H$4,"",Q24/Y24))) ->  | L24: =IF(ISERROR(W24),"",IF(W24<=OUTLIERS!$I$3,"",IF(W24>=OUTLIERS!$I$4,"",W24))) ->  | M24: 337000000 | N24: 25000000 | O24: 312000000 | P24: n/a | S24: 1 | T24: 0 | U24: n/a | V24: n/a | W24: n/a | X24: 345981450 | Y24: 80745020
A25: 24 | B25: PCTFUA084A | C25: CTF | D25: EBRD | E25: Mitigation | F25: =IF(ISERROR(P25/(M25*S25)),"",IF((P25/(M25*S25))<=OUTLIERS!$C$3,"",IF((P25/(M25*S25))>=OUTLIERS!$C$4,"",P25/(M25*S25)))) -> 0.1090003114 | G25: =IF(ISERROR(Q25/($M25*T25)),"",IF((Q25/($M25*T25))<=OUTLIERS!$D$3,"",IF((Q25/($M25*T25))>=OUTLIERS!$D$4,"",Q25/($M25*T25)))) ->  | H25: =IF(ISERROR((M25*S25)/P25),"",IF((M25*S25/P25)<=OUTLIERS!$E$3,"",IF((M25*S25/P25)>=OUTLIERS!$E$4,"",M25*S25/P25))) -> 9.174285714 | I25: =IF(ISERROR(O25/N25),"",IF(O25/N25<=OUTLIERS!$F$3,"",IF(O25/N25>=OUTLIERS!$F$4,"",O25/N25))) -> 0.4170344219 | J25: =IF(ISERROR(U25/X25),"",IF(U25/X25<=OUTLIERS!$G$3,"",IF(U25/X25>=OUTLIERS!$G$4,"",U25/X25))) -> 0.00153982203 | K25: =IF(ISERROR(Q25/Y25),"",IF(Q25/Y25<=OUTLIERS!$H$3,"",IF(Q25/Y25>=OUTLIERS!$H$4,"",Q25/Y25))) ->  | L25: =IF(ISERROR(W25),"",IF(W25<=OUTLIERS!$I$3,"",IF(W25>=OUTLIERS!$I$4,"",W25))) ->  | M25: 64220000 | N25: 45320000 | O25: 18900000 | P25: 7000000 | S25: 1 | T25: 0 | U25: 350000 | V25: n/a | W25: n/a | X25: 227298995 | Y25: 44831159
A26: 25 | B26: PCTFUA110A | C26: CTF | D26: EBRD | E26: Mitigation | F26: =IF(ISERROR(P26/(M26*S26)),"",IF((P26/(M26*S26))<=OUTLIERS!$C$3,"",IF((P26/(M26*S26))>=OUTLIERS!$C$4,"",P26/(M26*S26)))) -> 0.006244146113 | G26: =IF(ISERROR(Q26/($M26*T26)),"",IF((Q26/($M26*T26))<=OUTLIERS!$D$3,"",IF((Q26/($M26*T26))>=OUTLIERS!$D$4,"",Q26/($M26*T26)))) ->  | H26: =IF(ISERROR((M26*S26)/P26),"",IF((M26*S26/P26)<=OUTLIERS!$E$3,"",IF((M26*S26/P26)>=OUTLIERS!$E$4,"",M26*S26/P26))) -> 160.15 | I26: =IF(ISERROR(O26/N26),"",IF(O26/N26<=OUTLIERS!$F$3,"",IF(O26/N26>=OUTLIERS!$F$4,"",O26/N26))) -> 5.631469979 | J26: =IF(ISERROR(U26/X26),"",IF(U26/X26<=OUTLIERS!$G$3,"",IF(U26/X26>=OUTLIERS!$G$4,"",U26/X26))) -> 0.0002199745758 | K26: =IF(ISERROR(Q26/Y26),"",IF(Q26/Y26<=OUTLIERS!$H$3,"",IF(Q26/Y26>=OUTLIERS!$H$4,"",Q26/Y26))) ->  | L26: =IF(ISERROR(W26),"",IF(W26<=OUTLIERS!$I$3,"",IF(W26>=OUTLIERS!$I$4,"",W26))) ->  | M26: 160150000 | N26: 24150000 | O26: 136000000 | P26: 1000000 | R26: 137500 | S26: 1 | T26: 0 | U26: 50000 | V26: 137500 | W26: n/a | X26: 227298995 | Y26: 44831159
A27: 26 | B27: PCTFUA707A | C27: CTF | D27: EBRD | E27: Mitigation | F27: =IF(ISERROR(P27/(M27*S27)),"",IF((P27/(M27*S27))<=OUTLIERS!$C$3,"",IF((P27/(M27*S27))>=OUTLIERS!$C$4,"",P27/(M27*S27)))) -> 0.02605464978 | G27: =IF(ISERROR(Q27/($M27*T27)),"",IF((Q27/($M27*T27))<=OUTLIERS!$D$3,"",IF((Q27/($M27*T27))>=OUTLIERS!$D$4,"",Q27/($M27*T27)))) ->  | H27: =IF(ISERROR((M27*S27)/P27),"",IF((M27*S27/P27)<=OUTLIERS!$E$3,"",IF((M27*S27/P27)>=OUTLIERS!$E$4,"",M27*S27/P27))) -> 38.38086517 | I27: =IF(ISERROR(O27/N27),"",IF(O27/N27<=OUTLIERS!$F$3,"",IF(O27/N27>=OUTLIERS!$F$4,"",O27/N27))) -> 10.71190951 | J27: =IF(ISERROR(U27/X27),"",IF(U27/X27<=OUTLIERS!$G$3,"",IF(U27/X27>=OUTLIERS!$G$4,"",U27/X27))) -> 0.001008891394 | K27: =IF(ISERROR(Q27/Y27),"",IF(Q27/Y27<=OUTLIERS!$H$3,"",IF(Q27/Y27>=OUTLIERS!$H$4,"",Q27/Y27))) ->  | L27: =IF(ISERROR(W27),"",IF(W27<=OUTLIERS!$I$3,"",IF(W27>=OUTLIERS!$I$4,"",W27))) ->  | M27: 176030000 | N27: 15030000 | O27: 161000000 | P27: 4586400 | S27: 1 | T27: 0 | U27: 229320 | V27: n/a | W27: n/a | X27: 227298995 | Y27: 44831159
A28: 27 | B28: XCTFCL224A | C28: CTF | D28: WorldBank | E28: Mitigation | F28: =IF(ISERROR(P28/(M28*S28)),"",IF((P28/(M28*S28))<=OUTLIERS!$C$3,"",IF((P28/(M28*S28))>=OUTLIERS!$C$4,"",P28/(M28*S28)))) -> 3.154929577 | G28: =IF(ISERROR(Q28/($M28*T28)),"",IF((Q28/($M28*T28))<=OUTLIERS!$D$3,"",IF((Q28/($M28*T28))>=OUTLIERS!$D$4,"",Q28/($M28*T28)))) ->  | H28: =IF(ISERROR((M28*S28)/P28),"",IF((M28*S28/P28)<=OUTLIERS!$E$3,"",IF((M28*S28/P28)>=OUTLIERS!$E$4,"",M28*S28/P28))) -> 0.3169642857 | I28: =IF(ISERROR(O28/N28),"",IF(O28/N28<=OUTLIERS!$F$3,"",IF(O28/N28>=OUTLIERS!$F$4,"",O28/N28))) -> 0.1833333333 | J28: =IF(ISERROR(U28/X28),"",IF(U28/X28<=OUTLIERS!$G$3,"",IF(U28/X28>=OUTLIERS!$G$4,"",U28/X28))) -> 0.004511733262 | K28: =IF(ISERROR(Q28/Y28),"",IF(Q28/Y28<=OUTLIERS!$H$3,"",IF(Q28/Y28>=OUTLIERS!$H$4,"",Q28/Y28))) ->  | L28: =IF(ISERROR(W28),"",IF(W28<=OUTLIERS!$I$3,"",IF(W28>=OUTLIERS!$I$4,"",W28))) ->  | M28: 3550000 | N28: 3000000 | O28: 550000 | P28: 11200000 | S28: 1 | T28: 0 | U28: 372500 | V28: n/a | W28: n/a | X28: 82562505 | Y28: 18054726
A29: 28 | B29: XCTFCO005A | C29: CTF | D29: IDB | E29: Mitigation | F29: =IF(ISERROR(P29/(M29*S29)),"",IF((P29/(M29*S29))<=OUTLIERS!$C$3,"",IF((P29/(M29*S29))>=OUTLIERS!$C$4,"",P29/(M29*S29)))) ->  | G29: =IF(ISERROR(Q29/($M29*T29)),"",IF((Q29/($M29*T29))<=OUTLIERS!$D$3,"",IF((Q29/($M29*T29))>=OUTLIERS!$D$4,"",Q29/($M29*T29)))) ->  | H29: =IF(ISERROR((M29*S29)/P29),"",IF((M29*S29/P29)<=OUTLIERS!$E$3,"",IF((M29*S29/P29)>=OUTLIERS!$E$4,"",M29*S29/P29))) ->  | I29: =IF(ISERROR(O29/N29),"",IF(O29/N29<=OUTLIERS!$F$3,"",IF(O29/N29>=OUTLIERS!$F$4,"",O29/N29))) -> 8.806818182 | J29: =IF(ISERROR(U29/X29),"",IF(U29/X29<=OUTLIERS!$G$3,"",IF(U29/X29>=OUTLIERS!$G$4,"",U29/X29))) ->  | K29: =IF(ISERROR(Q29/Y29),"",IF(Q29/Y29<=OUTLIERS!$H$3,"",IF(Q29/Y29>=OUTLIERS!$H$4,"",Q29/Y29))) ->  | L29: =IF(ISERROR(W29),"",IF(W29<=OUTLIERS!$I$3,"",IF(W29>=OUTLIERS!$I$4,"",W29))) ->  | M29: 103560000 | N29: 10560000 | O29: 93000000 | P29: n/a | S29: 1 | T29: 0 | U29: n/a | V29: n/a | W29: n/a | X29: 84091644 | Y29: 49065615
A30: 29 | B30: XCTFCO113A | C30: CTF | D30: WorldBank | E30: Mitigation | F30: =IF(ISERROR(P30/(M30*S30)),"",IF((P30/(M30*S30))<=OUTLIERS!$C$3,"",IF((P30/(M30*S30))>=OUTLIERS!$C$4,"",P30/(M30*S30)))) -> 0.01571584302 | G30: =IF(ISERROR(Q30/($M30*T30)),"",IF((Q30/($M30*T30))<=OUTLIERS!$D$3,"",IF((Q30/($M30*T30))>=OUTLIERS!$D$4,"",Q30/($M30*T30)))) ->  | H30: =IF(ISERROR((M30*S30)/P30),"",IF((M30*S30/P30)<=OUTLIERS!$E$3,"",IF((M30*S30/P30)>=OUTLIERS!$E$4,"",M30*S30/P30))) -> 63.6300578 | I30: =IF(ISERROR(O30/N30),"",IF(O30/N30<=OUTLIERS!$F$3,"",IF(O30/N30>=OUTLIERS!$F$4,"",O30/N30))) -> 25.84878049 | J30: =IF(ISERROR(U30/X30),"",IF(U30/X30<=OUTLIERS!$G$3,"",IF(U30/X30>=OUTLIERS!$G$4,"",U30/X30))) -> 0.01028639659 | K30: =IF(ISERROR(Q30/Y30),"",IF(Q30/Y30<=OUTLIERS!$H$3,"",IF(Q30/Y30>=OUTLIERS!$H$4,"",Q30/Y30))) ->  | L30: =IF(ISERROR(W30),"",IF(W30<=OUTLIERS!$I$3,"",IF(W30>=OUTLIERS!$I$4,"",W30))) ->  | M30: 1100800000 | N30: 41000000 | O30: 1059800000 | P30: 17300000 | S30: 1 | T30: 0 | U30: 865000 | V30: n/a | W30: n/a | X30: 84091644 | Y30: 49065615
A31: 30 | B31: XCTFCO506A | C31: CTF | D31: IDB | E31: Mitigation | F31: =IF(ISERROR(P31/(M31*S31)),"",IF((P31/(M31*S31))<=OUTLIERS!$C$3,"",IF((P31/(M31*S31))>=OUTLIERS!$C$4,"",P31/(M31*S31)))) -> 0.01155 | G31: =IF(ISERROR(Q31/($M31*T31)),"",IF((Q31/($M31*T31))<=OUTLIERS!$D$3,"",IF((Q31/($M31*T31))>=OUTLIERS!$D$4,"",Q31/($M31*T31)))) ->  | H31: =IF(ISERROR((M31*S31)/P31),"",IF((M31*S31/P31)<=OUTLIERS!$E$3,"",IF((M31*S31/P31)>=OUTLIERS!$E$4,"",M31*S31/P31))) -> 86.58008658 | I31: =IF(ISERROR(O31/N31),"",IF(O31/N31<=OUTLIERS!$F$3,"",IF(O31/N31>=OUTLIERS!$F$4,"",O31/N31))) -> 19 | J31: =IF(ISERROR(U31/X31),"",IF(U31/X31<=OUTLIERS!$G$3,"",IF(U31/X31>=OUTLIERS!$G$4,"",U31/X31))) -> 0.0009203530377 | K31: =IF(ISERROR(Q31/Y31),"",IF(Q31/Y31<=OUTLIERS!$H$3,"",IF(Q31/Y31>=OUTLIERS!$H$4,"",Q31/Y31))) ->  | L31: =IF(ISERROR(W31),"",IF(W31<=OUTLIERS!$I$3,"",IF(W31>=OUTLIERS!$I$4,"",W31))) ->  | M31: 200000000 | N31: 10000000 | O31: 190000000 | P31: 2310000 | R31: 285 | S31: 1 | T31: 0 | U31: 77394 | V31: 285 | W31: n/a | X31: 84091644 | Y31: 49065615
A32: 31 | B32: XCTFCO615A | C32: CTF | D32: IDB | E32: Mitigation | F32: =IF(ISERROR(P32/(M32*S32)),"",IF((P32/(M32*S32))<=OUTLIERS!$C$3,"",IF((P32/(M32*S32))>=OUTLIERS!$C$4,"",P32/(M32*S32)))) ->  | G32: =IF(ISERROR(Q32/($M32*T32)),"",IF((Q32/($M32*T32))<=OUTLIERS!$D$3,"",IF((Q32/($M32*T32))>=OUTLIERS!$D$4,"",Q32/($M32*T32)))) ->  | H32: =IF(ISERROR((M32*S32)/P32),"",IF((M32*S32/P32)<=OUTLIERS!$E$3,"",IF((M32*S32/P32)>=OUTLIERS!$E$4,"",M32*S32/P32))) ->  | I32: =IF(ISERROR(O32/N32),"",IF(O32/N32<=OUTLIERS!$F$3,"",IF(O32/N32>=OUTLIERS!$F$4,"",O32/N32))) -> 1.780952381 | J32: =IF(ISERROR(U32/X32),"",IF(U32/X32<=OUTLIERS!$G$3,"",IF(U32/X32>=OUTLIERS!$G$4,"",U32/X32))) ->  | K32: =IF(ISERROR(Q32/Y32),"",IF(Q32/Y32<=OUTLIERS!$H$3,"",IF(Q32/Y32>=OUTLIERS!$H$4,"",Q32/Y32))) ->  | L32: =IF(ISERROR(W32),"",IF(W32<=OUTLIERS!$I$3,"",IF(W32>=OUTLIERS!$I$4,"",W32))) ->  | M32: 29200000 | N32: 10500000 | O32: 18700000 | P32: n/a | S32: 1 | T32: 0 | U32: n/a | V32: n/a | W32: n/a | X32: 84091644 | Y32: 49065615
A33: 32 | B33: XCTFDM619A | C33: CTF | D33: WorldBank | E33: Mitigation | F33: =IF(ISERROR(P33/(M33*S33)),"",IF((P33/(M33*S33))<=OUTLIERS!$C$3,"",IF((P33/(M33*S33))>=OUTLIERS!$C$4,"",P33/(M33*S33)))) -> 0.01940548352 | G33: =IF(ISERROR(Q33/($M33*T33)),"",IF((Q33/($M33*T33))<=OUTLIERS!$D$3,"",IF((Q33/($M33*T33))>=OUTLIERS!$D$4,"",Q33/($M33*T33)))) ->  | H33: =IF(ISERROR((M33*S33)/P33),"",IF((M33*S33/P33)<=OUTLIERS!$E$3,"",IF((M33*S33/P33)>=OUTLIERS!$E$4,"",M33*S33/P33))) -> 51.531826 | I33: =IF(ISERROR(O33/N33),"",IF(O33/N33<=OUTLIERS!$F$3,"",IF(O33/N33>=OUTLIERS!$F$4,"",O33/N33))) -> 3.55 | J33: =IF(ISERROR(U33/X33),"",IF(U33/X33<=OUTLIERS!$G$3,"",IF(U33/X33>=OUTLIERS!$G$4,"",U33/X33))) -> 0.2603054268 | K33: =IF(ISERROR(Q33/Y33),"",IF(Q33/Y33<=OUTLIERS!$H$3,"",IF(Q33/Y33>=OUTLIERS!$H$4,"",Q33/Y33))) ->  | L33: =IF(ISERROR(W33),"",IF(W33<=OUTLIERS!$I$3,"",IF(W33>=OUTLIERS!$I$4,"",W33))) ->  | M33: 45500000 | N33: 10000000 | O33: 35500000 | P33: 882949.5 | S33: 1 | T33: 0 | U33: 35317.98 | V33: n/a | W33: n/a | X33: 135679 | Y33: 73925
A34: 33 | B34: XCTFDP612A | C34: CTF | D34: IDB | E34: Mitigation | F34: =IF(ISERROR(P34/(M34*S34)),"",IF((P34/(M34*S34))<=OUTLIERS!$C$3,"",IF((P34/(M34*S34))>=OUTLIERS!$C$4,"",P34/(M34*S34)))) -> 0.1401242236 | G34: =IF(ISERROR(Q34/($M34*T34)),"",IF((Q34/($M34*T34))<=OUTLIERS!$D$3,"",IF((Q34/($M34*T34))>=OUTLIERS!$D$4,"",Q34/($M34*T34)))) ->  | H34: =IF(ISERROR((M34*S34)/P34),"",IF((M34*S34/P34)<=OUTLIERS!$E$3,"",IF((M34*S34/P34)>=OUTLIERS!$E$4,"",M34*S34/P34))) -> 7.136524823 | I34: =IF(ISERROR(O34/N34),"",IF(O34/N34<=OUTLIERS!$F$3,"",IF(O34/N34>=OUTLIERS!$F$4,"",O34/N34))) -> 2.6225 | J34: =IF(ISERROR(U34/X34),"",IF(U34/X34<=OUTLIERS!$G$3,"",IF(U34/X34>=OUTLIERS!$G$4,"",U34/X34))) ->  | K34: =IF(ISERROR(Q34/Y34),"",IF(Q34/Y34<=OUTLIERS!$H$3,"",IF(Q34/Y34>=OUTLIERS!$H$4,"",Q34/Y34))) ->  | L34: =IF(ISERROR(W34),"",IF(W34<=OUTLIERS!$I$3,"",IF(W34>=OUTLIERS!$I$4,"",W34))) -> 0.3 | M34: 72450000 | N34: 20000000 | O34: 52450000 | P34: 10152000 | R34: 171 | S34: 1 | T34: 0 | U34: 338421 | V34: 171 | W34: 0.3 | X34: 244955.6 | Y34: 105167.2
A35: 34 | B35: XCTFHY611A | C35: CTF | D35: WorldBank | E35: Mitigation | F35: =IF(ISERROR(P35/(M35*S35)),"",IF((P35/(M35*S35))<=OUTLIERS!$C$3,"",IF((P35/(M35*S35))>=OUTLIERS!$C$4,"",P35/(M35*S35)))) -> 0.009375 | G35: =IF(ISERROR(Q35/($M35*T35)),"",IF((Q35/($M35*T35))<=OUTLIERS!$D$3,"",IF((Q35/($M35*T35))>=OUTLIERS!$D$4,"",Q35/($M35*T35)))) ->  | H35: =IF(ISERROR((M35*S35)/P35),"",IF((M35*S35/P35)<=OUTLIERS!$E$3,"",IF((M35*S35/P35)>=OUTLIERS!$E$4,"",M35*S35/P35))) -> 106.6666667 | I35: =IF(ISERROR(O35/N35),"",IF(O35/N35<=OUTLIERS!$F$3,"",IF(O35/N35>=OUTLIERS!$F$4,"",O35/N35))) -> 3 | J35: =IF(ISERROR(U35/X35),"",IF(U35/X35<=OUTLIERS!$G$3,"",IF(U35/X35>=OUTLIERS!$G$4,"",U35/X35))) -> 0.02097711397 | K35: =IF(ISERROR(Q35/Y35),"",IF(Q35/Y35<=OUTLIERS!$H$3,"",IF(Q35/Y35>=OUTLIERS!$H$4,"",Q35/Y35))) ->  | L35: =IF(ISERROR(W35),"",IF(W35<=OUTLIERS!$I$3,"",IF(W35>=OUTLIERS!$I$4,"",W35))) ->  | M35: 64000000 | N35: 16000000 | O35: 48000000 | P35: 600000 | S35: 1 | T35: 0 | U35: 60000 | V35: n/a | W35: n/a | X35: 2860260 | Y35: 10981229
A36: 35 | B36: XCTFID112A | C36: CTF | D36: WorldBank | E36: Mitigation | F36: =IF(ISERROR(P36/(M36*S36)),"",IF((P36/(M36*S36))<=OUTLIERS!$C$3,"",IF((P36/(M36*S36))>=OUTLIERS!$C$4,"",P36/(M36*S36)))) -> 0.06632860041 | G36: =IF(ISERROR(Q36/($M36*T36)),"",IF((Q36/($M36*T36))<=OUTLIERS!$D$3,"",IF((Q36/($M36*T36))>=OUTLIERS!$D$4,"",Q36/($M36*T36)))) ->  | H36: =IF(ISERROR((M36*S36)/P36),"",IF((M36*S36/P36)<=OUTLIERS!$E$3,"",IF((M36*S36/P36)>=OUTLIERS!$E$4,"",M36*S36/P36))) -> 15.0764526 | I36: =IF(ISERROR(O36/N36),"",IF(O36/N36<=OUTLIERS!$F$3,"",IF(O36/N36>=OUTLIERS!$F$4,"",O36/N36))) -> 0.9879032258 | J36: =IF(ISERROR(U36/X36),"",IF(U36/X36<=OUTLIERS!$G$3,"",IF(U36/X36>=OUTLIERS!$G$4,"",U36/X36))) -> 0.0007044738705 | K36: =IF(ISERROR(Q36/Y36),"",IF(Q36/Y36<=OUTLIERS!$H$3,"",IF(Q36/Y36>=OUTLIERS!$H$4,"",Q36/Y36))) ->  | L36: =IF(ISERROR(W36),"",IF(W36<=OUTLIERS!$I$3,"",IF(W36>=OUTLIERS!$I$4,"",W36))) ->  | M36: 98600000 | N36: 49600000 | O36: 49000000 | P36: 6540000 | S36: 1 | T36: 0 | U36: 327000 | V36: n/a | W36: n/a | X36: 464176194 | Y36: 263991379
A37: 36 | B37: XCTFIN208A | C37: CTF | D37: WorldBank | E37: Mitigation | F37: =IF(ISERROR(P37/(M37*S37)),"",IF((P37/(M37*S37))<=OUTLIERS!$C$3,"",IF((P37/(M37*S37))>=OUTLIERS!$C$4,"",P37/(M37*S37)))) -> 0.001463414634 | G37: =IF(ISERROR(Q37/($M37*T37)),"",IF((Q37/($M37*T37))<=OUTLIERS!$D$3,"",IF((Q37/($M37*T37))>=OUTLIERS!$D$4,"",Q37/($M37*T37)))) ->  | H37: =IF(ISERROR((M37*S37)/P37),"",IF((M37*S37/P37)<=OUTLIERS!$E$3,"",IF((M37*S37/P37)>=OUTLIERS!$E$4,"",M37*S37/P37))) -> 683.3333333 | I37: =IF(ISERROR(O37/N37),"",IF(O37/N37<=OUTLIERS!$F$3,"",IF(O37/N37>=OUTLIERS!$F$4,"",O37/N37))) -> 5.56 | J37: =IF(ISERROR(U37/X37),"",IF(U37/X37<=OUTLIERS!$G$3,"",IF(U37/X37>=OUTLIERS!$G$4,"",U37/X37))) -> 5.64318619e-06 | K37: =IF(ISERROR(Q37/Y37),"",IF(Q37/Y37<=OUTLIERS!$H$3,"",IF(Q37/Y37>=OUTLIERS!$H$4,"",Q37/Y37))) ->  | L37: =IF(ISERROR(W37),"",IF(W37<=OUTLIERS!$I$3,"",IF(W37>=OUTLIERS!$I$4,"",W37))) ->  | M37: 164000000 | N37: 25000000 | O37: 139000000 | P37: 240000 | S37: 1 | T37: 0 | U37: 12631.57895 | V37: n/a | W37: n/a | X37: 2238377137 | Y37: 1339180127
A38: 37 | B38: XCTFIN210A | C38: CTF | D38: WorldBank | E38: Mitigation | F38: =IF(ISERROR(P38/(M38*S38)),"",IF((P38/(M38*S38))<=OUTLIERS!$C$3,"",IF((P38/(M38*S38))>=OUTLIERS!$C$4,"",P38/(M38*S38)))) -> 0.5342222222 | G38: =IF(ISERROR(Q38/($M38*T38)),"",IF((Q38/($M38*T38))<=OUTLIERS!$D$3,"",IF((Q38/($M38*T38))>=OUTLIERS!$D$4,"",Q38/($M38*T38)))) ->  | H38: =IF(ISERROR((M38*S38)/P38),"",IF((M38*S38/P38)<=OUTLIERS!$E$3,"",IF((M38*S38/P38)>=OUTLIERS!$E$4,"",M38*S38/P38))) -> 1.8718802 | I38: =IF(ISERROR(O38/N38),"",IF(O38/N38<=OUTLIERS!$F$3,"",IF(O38/N38>=OUTLIERS!$F$4,"",O38/N38))) -> 3.5 | J38: =IF(ISERROR(U38/X38),"",IF(U38/X38<=OUTLIERS!$G$3,"",IF(U38/X38>=OUTLIERS!$G$4,"",U38/X38))) -> 0.002144410752 | K38: =IF(ISERROR(Q38/Y38),"",IF(Q38/Y38<=OUTLIERS!$H$3,"",IF(Q38/Y38>=OUTLIERS!$H$4,"",Q38/Y38))) ->  | L38: =IF(ISERROR(W38),"",IF(W38<=OUTLIERS!$I$3,"",IF(W38>=OUTLIERS!$I$4,"",W38))) ->  | M38: 225000000 | N38: 50000000 | O38: 175000000 | P38: 120200000 | S38: 1 | T38: 0 | U38: 4800000 | V38: n/a | W38: n/a | X38: 2238377137 | Y38: 1339180127
A39: 38 | B39: XCTFIN211A | C39: CTF | D39: WorldBank | E39: Mitigation | F39: =IF(ISERROR(P39/(M39*S39)),"",IF((P39/(M39*S39))<=OUTLIERS!$C$3,"",IF((P39/(M39*S39))>=OUTLIERS!$C$4,"",P39/(M39*S39)))) -> 0.01617486339 | G39: =IF(ISERROR(Q39/($M39*T39)),"",IF((Q39/($M39*T39))<=OUTLIERS!$D$3,"",IF((Q39/($M39*T39))>=OUTLIERS!$D$4,"",Q39/($M39*T39)))) ->  | H39: =IF(ISERROR((M39*S39)/P39),"",IF((M39*S39/P39)<=OUTLIERS!$E$3,"",IF((M39*S39/P39)>=OUTLIERS!$E$4,"",M39*S39/P39))) -> 61.82432432 | I39: =IF(ISERROR(O39/N39),"",IF(O39/N39<=OUTLIERS!$F$3,"",IF(O39/N39>=OUTLIERS!$F$4,"",O39/N39))) -> 6.32 | J39: =IF(ISERROR(U39/X39),"",IF(U39/X39<=OUTLIERS!$G$3,"",IF(U39/X39>=OUTLIERS!$G$4,"",U39/X39))) -> 0.000268051344 | K39: =IF(ISERROR(Q39/Y39),"",IF(Q39/Y39<=OUTLIERS!$H$3,"",IF(Q39/Y39>=OUTLIERS!$H$4,"",Q39/Y39))) ->  | L39: =IF(ISERROR(W39),"",IF(W39<=OUTLIERS!$I$3,"",IF(W39>=OUTLIERS!$I$4,"",W39))) ->  | M39: 915000000 | N39: 125000000 | O39: 790000000 | P39: 14800000 | S39: 1 | T39: 0 | U39: 600000 | V39: n/a | W39: n/a | X39: 2238377137 | Y39: 1339180127
A40: 39 | B40: XCTFIN213A | C40: CTF | D40: WorldBank | E40: Mitigation | F40: =IF(ISERROR(P40/(M40*S40)),"",IF((P40/(M40*S40))<=OUTLIERS!$C$3,"",IF((P40/(M40*S40))>=OUTLIERS!$C$4,"",P40/(M40*S40)))) -> 0.02191489362 | G40: =IF(ISERROR(Q40/($M40*T40)),"",IF((Q40/($M40*T40))<=OUTLIERS!$D$3,"",IF((Q40/($M40*T40))>=OUTLIERS!$D$4,"",Q40/($M40*T40)))) ->  | H40: =IF(ISERROR((M40*S40)/P40),"",IF((M40*S40/P40)<=OUTLIERS!$E$3,"",IF((M40*S40/P40)>=OUTLIERS!$E$4,"",M40*S40/P40))) -> 45.63106796 | I40: =IF(ISERROR(O40/N40),"",IF(O40/N40<=OUTLIERS!$F$3,"",IF(O40/N40>=OUTLIERS!$F$4,"",O40/N40))) -> 8.4 | J40: =IF(ISERROR(U40/X40),"",IF(U40/X40<=OUTLIERS!$G$3,"",IF(U40/X40>=OUTLIERS!$G$4,"",U40/X40))) -> 0.0001840619229 | K40: =IF(ISERROR(Q40/Y40),"",IF(Q40/Y40<=OUTLIERS!$H$3,"",IF(Q40/Y40>=OUTLIERS!$H$4,"",Q40/Y40))) ->  | L40: =IF(ISERROR(W40),"",IF(W40<=OUTLIERS!$I$3,"",IF(W40>=OUTLIERS!$I$4,"",W40))) ->  | M40: 470000000 | N40: 50000000 | O40: 420000000 | P40: 10300000 | S40: 1 | T40: 0 | U40: 412000 | V40: n/a | W40: n/a | X40: 2238377137 | Y40: 1339180127
A41: 40 | B41: XCTFIN227A | C41: CTF | D41: ADB | E41: Mitigation | F41: =IF(ISERROR(P41/(M41*S41)),"",IF((P41/(M41*S41))<=OUTLIERS!$C$3,"",IF((P41/(M41*S41))>=OUTLIERS!$C$4,"",P41/(M41*S41)))) -> 0.01098507463 | G41: =IF(ISERROR(Q41/($M41*T41)),"",IF((Q41/($M41*T41))<=OUTLIERS!$D$3,"",IF((Q41/($M41*T41))>=OUTLIERS!$D$4,"",Q41/($M41*T41)))) ->  | H41: =IF(ISERROR((M41*S41)/P41),"",IF((M41*S41/P41)<=OUTLIERS!$E$3,"",IF((M41*S41/P41)>=OUTLIERS!$E$4,"",M41*S41/P41))) -> 91.0326087 | I41: =IF(ISERROR(O41/N41),"",IF(O41/N41<=OUTLIERS!$F$3,"",IF(O41/N41>=OUTLIERS!$F$4,"",O41/N41))) -> 4.742857143 | J41: =IF(ISERROR(U41/X41),"",IF(U41/X41<=OUTLIERS!$G$3,"",IF(U41/X41>=OUTLIERS!$G$4,"",U41/X41))) -> 0.0001972857892 | K41: =IF(ISERROR(Q41/Y41),"",IF(Q41/Y41<=OUTLIERS!$H$3,"",IF(Q41/Y41>=OUTLIERS!$H$4,"",Q41/Y41))) ->  | L41: =IF(ISERROR(W41),"",IF(W41<=OUTLIERS!$I$3,"",IF(W41>=OUTLIERS!$I$4,"",W41))) ->  | M41: 1005000000 | N41: 175000000 | O41: 830000000 | P41: 11040000 | R41: 280000 | S41: 1 | T41: 0 | U41: 441600 | V41: 280000 | W41: n/a | X41: 2238377137 | Y41: 1339180127
A42: 41 | B42: XCTFIN228A | C42: CTF | D42: ADB | E42: Mitigation | F42: =IF(ISERROR(P42/(M42*S42)),"",IF((P42/(M42*S42))<=OUTLIERS!$C$3,"",IF((P42/(M42*S42))>=OUTLIERS!$C$4,"",P42/(M42*S42)))) -> 0.1222222222 | G42: =IF(ISERROR(Q42/($M42*T42)),"",IF((Q42/($M42*T42))<=OUTLIERS!$D$3,"",IF((Q42/($M42*T42))>=OUTLIERS!$D$4,"",Q42/($M42*T42)))) ->  | H42: =IF(ISERROR((M42*S42)/P42),"",IF((M42*S42/P42)<=OUTLIERS!$E$3,"",IF((M42*S42/P42)>=OUTLIERS!$E$4,"",M42*S42/P42))) -> 8.181818182 | I42: =IF(ISERROR(O42/N42),"",IF(O42/N42<=OUTLIERS!$F$3,"",IF(O42/N42>=OUTLIERS!$F$4,"",O42/N42))) -> 8 | J42: =IF(ISERROR(U42/X42),"",IF(U42/X42<=OUTLIERS!$G$3,"",IF(U42/X42>=OUTLIERS!$G$4,"",U42/X42))) -> 0.0009828549281 | K42: =IF(ISERROR(Q42/Y42),"",IF(Q42/Y42<=OUTLIERS!$H$3,"",IF(Q42/Y42>=OUTLIERS!$H$4,"",Q42/Y42))) ->  | L42: =IF(ISERROR(W42),"",IF(W42<=OUTLIERS!$I$3,"",IF(W42>=OUTLIERS!$I$4,"",W42))) ->  | M42: 450000000 | N42: 50000000 | O42: 400000000 | P42: 55000000 | R42: 1300000 | S42: 1 | T42: 0 | U42: 2200000 | V42: 1300000 | W42: n/a | X42: 2238377137 | Y42: 1339180127
A43: 42 | B43: XCTFLC620A | C43: CTF | D43: WorldBank | E43: Mitigation | F43: =IF(ISERROR(P43/(M43*S43)),"",IF((P43/(M43*S43))<=OUTLIERS!$C$3,"",IF((P43/(M43*S43))>=OUTLIERS!$C$4,"",P43/(M43*S43)))) -> 0.01766561514 | G43: =IF(ISERROR(Q43/($M43*T43)),"",IF((Q43/($M43*T43))<=OUTLIERS!$D$3,"",IF((Q43/($M43*T43))>=OUTLIERS!$D$4,"",Q43/($M43*T43)))) ->  | H43: =IF(ISERROR((M43*S43)/P43),"",IF((M43*S43/P43)<=OUTLIERS!$E$3,"",IF((M43*S43/P43)>=OUTLIERS!$E$4,"",M43*S43/P43))) -> 56.60714286 | I43: =IF(ISERROR(O43/N43),"",IF(O43/N43<=OUTLIERS!$F$3,"",IF(O43/N43>=OUTLIERS!$F$4,"",O43/N43))) -> 16.435 | J43: =IF(ISERROR(U43/X43),"",IF(U43/X43<=OUTLIERS!$G$3,"",IF(U43/X43>=OUTLIERS!$G$4,"",U43/X43))) -> 0.3033213197 | K43: =IF(ISERROR(Q43/Y43),"",IF(Q43/Y43<=OUTLIERS!$H$3,"",IF(Q43/Y43>=OUTLIERS!$H$4,"",Q43/Y43))) ->  | L43: =IF(ISERROR(W43),"",IF(W43<=OUTLIERS!$I$3,"",IF(W43>=OUTLIERS!$I$4,"",W43))) ->  | M43: 174350000 | N43: 10000000 | O43: 164350000 | P43: 3080000 | S43: 1 | T43: 0 | U43: 123463 | V43: n/a | W43: n/a | X43: 407037 | Y43: 178844
A44: 43 | B44: XCTFMA058A | C44: CTF | D44: WorldBank | E44: Mitigation | F44: =IF(ISERROR(P44/(M44*S44)),"",IF((P44/(M44*S44))<=OUTLIERS!$C$3,"",IF((P44/(M44*S44))>=OUTLIERS!$C$4,"",P44/(M44*S44)))) -> 0.01225490196 | G44: =IF(ISERROR(Q44/($M44*T44)),"",IF((Q44/($M44*T44))<=OUTLIERS!$D$3,"",IF((Q44/($M44*T44))>=OUTLIERS!$D$4,"",Q44/($M44*T44)))) ->  | H44: =IF(ISERROR((M44*S44)/P44),"",IF((M44*S44/P44)<=OUTLIERS!$E$3,"",IF((M44*S44/P44)>=OUTLIERS!$E$4,"",M44*S44/P44))) -> 81.6 | I44: =IF(ISERROR(O44/N44),"",IF(O44/N44<=OUTLIERS!$F$3,"",IF(O44/N44>=OUTLIERS!$F$4,"",O44/N44))) -> 5.426494346 | J44: =IF(ISERROR(U44/X44),"",IF(U44/X44<=OUTLIERS!$G$3,"",IF(U44/X44>=OUTLIERS!$G$4,"",U44/X44))) -> 0.001303258941 | K44: =IF(ISERROR(Q44/Y44),"",IF(Q44/Y44<=OUTLIERS!$H$3,"",IF(Q44/Y44>=OUTLIERS!$H$4,"",Q44/Y44))) ->  | L44: =IF(ISERROR(W44),"",IF(W44<=OUTLIERS!$I$3,"",IF(W44>=OUTLIERS!$I$4,"",W44))) ->  | M44: 159120000 | N44: 24760000 | O44: 134360000 | P44: 1950000 | S44: 1 | T44: 0 | U44: 78018 | V44: n/a | W44: n/a | X44: 59863775 | Y44: 35739580
A45: 44 | B45: XCTFMB030A | C45: CTF | D45: AfDB | E45: Mitigation | F45: =IF(ISERROR(P45/(M45*S45)),"",IF((P45/(M45*S45))<=OUTLIERS!$C$3,"",IF((P45/(M45*S45))>=OUTLIERS!$C$4,"",P45/(M45*S45)))) -> 0.007233768755 | G45: =IF(ISERROR(Q45/($M45*T45)),"",IF((Q45/($M45*T45))<=OUTLIERS!$D$3,"",IF((Q45/($M45*T45))>=OUTLIERS!$D$4,"",Q45/($M45*T45)))) ->  | H45: =IF(ISERROR((M45*S45)/P45),"",IF((M45*S45/P45)<=OUTLIERS!$E$3,"",IF((M45*S45/P45)>=OUTLIERS!$E$4,"",M45*S45/P45))) -> 138.2405263 | I45: =IF(ISERROR(O45/N45),"",IF(O45/N45<=OUTLIERS!$F$3,"",IF(O45/N45>=OUTLIERS!$F$4,"",O45/N45))) -> 21.07201681 | J45: =IF(ISERROR(U45/X45),"",IF(U45/X45<=OUTLIERS!$G$3,"",IF(U45/X45>=OUTLIERS!$G$4,"",U45/X45))) -> 0.01272338739 | K45: =IF(ISERROR(Q45/Y45),"",IF(Q45/Y45<=OUTLIERS!$H$3,"",IF(Q45/Y45>=OUTLIERS!$H$4,"",Q45/Y45))) ->  | L45: =IF(ISERROR(W45),"",IF(W45<=OUTLIERS!$I$3,"",IF(W45>=OUTLIERS!$I$4,"",W45))) ->  | M45: 2626570000 | N45: 119000000 | O45: 2507570000 | P45: 19000000 | S45: 1 | T45: 0 | U45: 761670 | V45: n/a | W45: n/a | X45: 59863775 | Y45: 35739580
A46: 45 | B46: XCTFMB032A | C46: CTF | D46: WorldBank | E46: Mitigation | F46: =IF(ISERROR(P46/(M46*S46)),"",IF((P46/(M46*S46))<=OUTLIERS!$C$3,"",IF((P46/(M46*S46))>=OUTLIERS!$C$4,"",P46/(M46*S46)))) -> 0.1536885246 | G46: =IF(ISERROR(Q46/($M46*T46)),"",IF((Q46/($M46*T46))<=OUTLIERS!$D$3,"",IF((Q46/($M46*T46))>=OUTLIERS!$D$4,"",Q46/($M46*T46)))) ->  | H46: =IF(ISERROR((M46*S46)/P46),"",IF((M46*S46/P46)<=OUTLIERS!$E$3,"",IF((M46*S46/P46)>=OUTLIERS!$E$4,"",M46*S46/P46))) -> 6.506666667 | I46: =IF(ISERROR(O46/N46),"",IF(O46/N46<=OUTLIERS!$F$3,"",IF(O46/N46>=OUTLIERS!$F$4,"",O46/N46))) -> 0 | J46: =IF(ISERROR(U46/X46),"",IF(U46/X46<=OUTLIERS!$G$3,"",IF(U46/X46>=OUTLIERS!$G$4,"",U46/X46))) -> 0.0008663272177 | K46: =IF(ISERROR(Q46/Y46),"",IF(Q46/Y46<=OUTLIERS!$H$3,"",IF(Q46/Y46>=OUTLIERS!$H$4,"",Q46/Y46))) ->  | L46: =IF(ISERROR(W46),"",IF(W46<=OUTLIERS!$I$3,"",IF(W46>=OUTLIERS!$I$4,"",W46))) ->  | M46: 9760000 | N46: 9760000 | O46: 0 | P46: 1500000 | S46: 1 | T46: 0 | U46: 75000 | V46: n/a | W46: n/a | X46: 86572369.5 | Y46: 33703328.17
A47: 46 | B47: XCTFMB106A | C47: CTF | D47: WorldBank | E47: Mitigation | F47: =IF(ISERROR(P47/(M47*S47)),"",IF((P47/(M47*S47))<=OUTLIERS!$C$3,"",IF((P47/(M47*S47))>=OUTLIERS!$C$4,"",P47/(M47*S47)))) -> 0.1471698113 | G47: =IF(ISERROR(Q47/($M47*T47)),"",IF((Q47/($M47*T47))<=OUTLIERS!$D$3,"",IF((Q47/($M47*T47))>=OUTLIERS!$D$4,"",Q47/($M47*T47)))) ->  | H47: =IF(ISERROR((M47*S47)/P47),"",IF((M47*S47/P47)<=OUTLIERS!$E$3,"",IF((M47*S47/P47)>=OUTLIERS!$E$4,"",M47*S47/P47))) -> 6.794871795 | I47: =IF(ISERROR(O47/N47),"",IF(O47/N47<=OUTLIERS!$F$3,"",IF(O47/N47>=OUTLIERS!$F$4,"",O47/N47))) -> 9.6 | J47: =IF(ISERROR(U47/X47),"",IF(U47/X47<=OUTLIERS!$G$3,"",IF(U47/X47>=OUTLIERS!$G$4,"",U47/X47))) ->  | K47: =IF(ISERROR(Q47/Y47),"",IF(Q47/Y47<=OUTLIERS!$H$3,"",IF(Q47/Y47>=OUTLIERS!$H$4,"",Q47/Y47))) ->  | L47: =IF(ISERROR(W47),"",IF(W47<=OUTLIERS!$I$3,"",IF(W47>=OUTLIERS!$I$4,"",W47))) ->  | M47: 265000000 | N47: 25000000 | O47: 240000000 | P47: 39000000 | S47: 1 | T47: 0 | U47: 1300000 | V47: n/a | W47: n/a
A48: 47 | B48: XCTFMB107A | C48: CTF | D48: AfDB | E48: Mitigation | F48: =IF(ISERROR(P48/(M48*S48)),"",IF((P48/(M48*S48))<=OUTLIERS!$C$3,"",IF((P48/(M48*S48))>=OUTLIERS!$C$4,"",P48/(M48*S48)))) -> 0.01607142857 | G48: =IF(ISERROR(Q48/($M48*T48)),"",IF((Q48/($M48*T48))<=OUTLIERS!$D$3,"",IF((Q48/($M48*T48))>=OUTLIERS!$D$4,"",Q48/($M48*T48)))) ->  | H48: =IF(ISERROR((M48*S48)/P48),"",IF((M48*S48/P48)<=OUTLIERS!$E$3,"",IF((M48*S48/P48)>=OUTLIERS!$E$4,"",M48*S48/P48))) -> 62.22222222 | I48: =IF(ISERROR(O48/N48),"",IF(O48/N48<=OUTLIERS!$F$3,"",IF(O48/N48>=OUTLIERS!$F$4,"",O48/N48))) -> 88.6 | J48: =IF(ISERROR(U48/X48),"",IF(U48/X48<=OUTLIERS!$G$3,"",IF(U48/X48>=OUTLIERS!$G$4,"",U48/X48))) ->  | K48: =IF(ISERROR(Q48/Y48),"",IF(Q48/Y48<=OUTLIERS!$H$3,"",IF(Q48/Y48>=OUTLIERS!$H$4,"",Q48/Y48))) ->  | L48: =IF(ISERROR(W48),"",IF(W48<=OUTLIERS!$I$3,"",IF(W48>=OUTLIERS!$I$4,"",W48))) ->  | M48: 2240000000 | N48: 25000000 | O48: 2215000000 | P48: 36000000 | S48: 1 | T48: 0 | U48: 1200000 | V48: n/a | W48: n/a
A49: 48 | B49: XCTFMX100A | C49: CTF | D49: IDB | E49: Mitigation | F49: =IF(ISERROR(P49/(M49*S49)),"",IF((P49/(M49*S49))<=OUTLIERS!$C$3,"",IF((P49/(M49*S49))>=OUTLIERS!$C$4,"",P49/(M49*S49)))) -> 0.02667896679 | G49: =IF(ISERROR(Q49/($M49*T49)),"",IF((Q49/($M49*T49))<=OUTLIERS!$D$3,"",IF((Q49/($M49*T49))>=OUTLIERS!$D$4,"",Q49/($M49*T49)))) ->  | H49: =IF(ISERROR((M49*S49)/P49),"",IF((M49*S49/P49)<=OUTLIERS!$E$3,"",IF((M49*S49/P49)>=OUTLIERS!$E$4,"",M49*S49/P49))) -> 37.48271093 | I49: =IF(ISERROR(O49/N49),"",IF(O49/N49<=OUTLIERS!$F$3,"",IF(O49/N49>=OUTLIERS!$F$4,"",O49/N49))) -> 11.9047619 | J49: =IF(ISERROR(U49/X49),"",IF(U49/X49<=OUTLIERS!$G$3,"",IF(U49/X49>=OUTLIERS!$G$4,"",U49/X49))) -> 0.0001505401151 | K49: =IF(ISERROR(Q49/Y49),"",IF(Q49/Y49<=OUTLIERS!$H$3,"",IF(Q49/Y49>=OUTLIERS!$H$4,"",Q49/Y49))) ->  | L49: =IF(ISERROR(W49),"",IF(W49<=OUTLIERS!$I$3,"",IF(W49>=OUTLIERS!$I$4,"",W49))) ->  | M49: 27100000 | N49: 2100000 | O49: 25000000 | P49: 723000 | S49: 1 | T49: 0 | U49: 72300 | V49: n/a | W49: n/a | X49: 480270657 | Y49: 129163276
A50: 49 | B50: XCTFMX504A | C50: CTF | D50: IDB | E50: Mitigation | F50: =IF(ISERROR(P50/(M50*S50)),"",IF((P50/(M50*S50))<=OUTLIERS!$C$3,"",IF((P50/(M50*S50))>=OUTLIERS!$C$4,"",P50/(M50*S50)))) -> 0.02830917046 | G50: =IF(ISERROR(Q50/($M50*T50)),"",IF((Q50/($M50*T50))<=OUTLIERS!$D$3,"",IF((Q50/($M50*T50))>=OUTLIERS!$D$4,"",Q50/($M50*T50)))) ->  | H50: =IF(ISERROR((M50*S50)/P50),"",IF((M50*S50/P50)<=OUTLIERS!$E$3,"",IF((M50*S50/P50)>=OUTLIERS!$E$4,"",M50*S50/P50))) -> 35.32424242 | I50: =IF(ISERROR(O50/N50),"",IF(O50/N50<=OUTLIERS!$F$3,"",IF(O50/N50>=OUTLIERS!$F$4,"",O50/N50))) -> 57.285 | J50: =IF(ISERROR(U50/X50),"",IF(U50/X50<=OUTLIERS!$G$3,"",IF(U50/X50>=OUTLIERS!$G$4,"",U50/X50))) -> 0.002290375196 | K50: =IF(ISERROR(Q50/Y50),"",IF(Q50/Y50<=OUTLIERS!$H$3,"",IF(Q50/Y50>=OUTLIERS!$H$4,"",Q50/Y50))) ->  | L50: =IF(ISERROR(W50),"",IF(W50<=OUTLIERS!$I$3,"",IF(W50>=OUTLIERS!$I$4,"",W50))) ->  | M50: 1165700000 | N50: 20000000 | O50: 1145700000 | P50: 33000000 | R50: 5400 | S50: 1 | T50: 0 | U50: 1100000 | V50: 5400 | W50: n/a | X50: 480270657 | Y50: 129163276
A51: 50 | B51: XCTFNI618A | C51: CTF | D51: IDB | E51: Mitigation | F51: =IF(ISERROR(P51/(M51*S51)),"",IF((P51/(M51*S51))<=OUTLIERS!$C$3,"",IF((P51/(M51*S51))>=OUTLIERS!$C$4,"",P51/(M51*S51)))) -> 0.03444334924 | G51: =IF(ISERROR(Q51/($M51*T51)),"",IF((Q51/($M51*T51))<=OUTLIERS!$D$3,"",IF((Q51/($M51*T51))>=OUTLIERS!$D$4,"",Q51/($M51*T51)))) ->  | H51: =IF(ISERROR((M51*S51)/P51),"",IF((M51*S51/P51)<=OUTLIERS!$E$3,"",IF((M51*S51/P51)>=OUTLIERS!$E$4,"",M51*S51/P51))) -> 29.03318121 | I51: =IF(ISERROR(O51/N51),"",IF(O51/N51<=OUTLIERS!$F$3,"",IF(O51/N51>=OUTLIERS!$F$4,"",O51/N51))) -> 8.638 | J51: =IF(ISERROR(U51/X51),"",IF(U51/X51<=OUTLIERS!$G$3,"",IF(U51/X51>=OUTLIERS!$G$4,"",U51/X51))) -> 0.02275708379 | K51: =IF(ISERROR(Q51/Y51),"",IF(Q51/Y51<=OUTLIERS!$H$3,"",IF(Q51/Y51>=OUTLIERS!$H$4,"",Q51/Y51))) ->  | L51: =IF(ISERROR(W51),"",IF(W51<=OUTLIERS!$I$3,"",IF(W51>=OUTLIERS!$I$4,"",W51))) ->  | M51: 96380000 | N51: 10000000 | O51: 86380000 | P51: 3319650 | R51: 273 | S51: 1 | T51: 0 | U51: 110655 | V51: 273 | W51: n/a | X51: 4862442 | Y51: 6217581
A52: 51 | B52: XCTFPH063A | C52: CTF | D52: WorldBank | E52: Mitigation | F52: =IF(ISERROR(P52/(M52*S52)),"",IF((P52/(M52*S52))<=OUTLIERS!$C$3,"",IF((P52/(M52*S52))>=OUTLIERS!$C$4,"",P52/(M52*S52)))) -> 0.02407723243 | G52: =IF(ISERROR(Q52/($M52*T52)),"",IF((Q52/($M52*T52))<=OUTLIERS!$D$3,"",IF((Q52/($M52*T52))>=OUTLIERS!$D$4,"",Q52/($M52*T52)))) ->  | H52: =IF(ISERROR((M52*S52)/P52),"",IF((M52*S52/P52)<=OUTLIERS!$E$3,"",IF((M52*S52/P52)>=OUTLIERS!$E$4,"",M52*S52/P52))) -> 41.53301269 | I52: =IF(ISERROR(O52/N52),"",IF(O52/N52<=OUTLIERS!$F$3,"",IF(O52/N52>=OUTLIERS!$F$4,"",O52/N52))) -> 3.577824268 | J52: =IF(ISERROR(U52/X52),"",IF(U52/X52<=OUTLIERS!$G$3,"",IF(U52/X52>=OUTLIERS!$G$4,"",U52/X52))) -> 0.001963249729 | K52: =IF(ISERROR(Q52/Y52),"",IF(Q52/Y52<=OUTLIERS!$H$3,"",IF(Q52/Y52>=OUTLIERS!$H$4,"",Q52/Y52))) ->  | L52: =IF(ISERROR(W52),"",IF(W52<=OUTLIERS!$I$3,"",IF(W52>=OUTLIERS!$I$4,"",W52))) -> 0.5 | M52: 109410000 | N52: 23900000 | O52: 85510000 | P52: 2634290 | R52: 300000 | S52: 1 | T52: 0 | U52: 207424.4094 | V52: 300000 | W52: 0.5 | X52: 105653604 | Y52: 104918090
A53: 52 | B53: XCTFTR078A | C53: CTF | D53: WorldBank | E53: Mitigation | F53: =IF(ISERROR(P53/(M53*S53)),"",IF((P53/(M53*S53))<=OUTLIERS!$C$3,"",IF((P53/(M53*S53))>=OUTLIERS!$C$4,"",P53/(M53*S53)))) -> 0.009693023256 | G53: =IF(ISERROR(Q53/($M53*T53)),"",IF((Q53/($M53*T53))<=OUTLIERS!$D$3,"",IF((Q53/($M53*T53))>=OUTLIERS!$D$4,"",Q53/($M53*T53)))) ->  | H53: =IF(ISERROR((M53*S53)/P53),"",IF((M53*S53/P53)<=OUTLIERS!$E$3,"",IF((M53*S53/P53)>=OUTLIERS!$E$4,"",M53*S53/P53))) -> 103.1669866 | I53: =IF(ISERROR(O53/N53),"",IF(O53/N53<=OUTLIERS!$F$3,"",IF(O53/N53>=OUTLIERS!$F$4,"",O53/N53))) -> 20.5 | J53: =IF(ISERROR(U53/X53),"",IF(U53/X53<=OUTLIERS!$G$3,"",IF(U53/X53>=OUTLIERS!$G$4,"",U53/X53))) -> 0.002007814773 | K53: =IF(ISERROR(Q53/Y53),"",IF(Q53/Y53<=OUTLIERS!$H$3,"",IF(Q53/Y53>=OUTLIERS!$H$4,"",Q53/Y53))) ->  | L53: =IF(ISERROR(W53),"",IF(W53<=OUTLIERS!$I$3,"",IF(W53>=OUTLIERS!$I$4,"",W53))) ->  | M53: 1075000000 | N53: 50000000 | O53: 1025000000 | P53: 10420000 | S53: 1 | T53: 0 | U53: 694666.6667 | V53: n/a | W53: n/a | X53: 345981450 | Y53: 80745020
A54: 53 | B54: XCTFTR219A | C54: CTF | D54: WorldBank | E54: Mitigation | F54: =IF(ISERROR(P54/(M54*S54)),"",IF((P54/(M54*S54))<=OUTLIERS!$C$3,"",IF((P54/(M54*S54))>=OUTLIERS!$C$4,"",P54/(M54*S54)))) ->  | G54: =IF(ISERROR(Q54/($M54*T54)),"",IF((Q54/($M54*T54))<=OUTLIERS!$D$3,"",IF((Q54/($M54*T54))>=OUTLIERS!$D$4,"",Q54/($M54*T54)))) ->  | H54: =IF(ISERROR((M54*S54)/P54),"",IF((M54*S54/P54)<=OUTLIERS!$E$3,"",IF((M54*S54/P54)>=OUTLIERS!$E$4,"",M54*S54/P54))) ->  | I54: =IF(ISERROR(O54/N54),"",IF(O54/N54<=OUTLIERS!$F$3,"",IF(O54/N54>=OUTLIERS!$F$4,"",O54/N54))) -> 0 | J54: =IF(ISERROR(U54/X54),"",IF(U54/X54<=OUTLIERS!$G$3,"",IF(U54/X54>=OUTLIERS!$G$4,"",U54/X54))) ->  | K54: =IF(ISERROR(Q54/Y54),"",IF(Q54/Y54<=OUTLIERS!$H$3,"",IF(Q54/Y54>=OUTLIERS!$H$4,"",Q54/Y54))) ->  | L54: =IF(ISERROR(W54),"",IF(W54<=OUTLIERS!$I$3,"",IF(W54>=OUTLIERS!$I$4,"",W54))) ->  | M54: 1050000 | N54: 1050000 | O54: 0 | P54: n/a | S54: 1 | T54: 0 | U54: n/a | V54: n/a | W54: n/a | X54: 345981450 | Y54: 80745020
A55: 54 | B55: XCTFTR509A | C55: CTF | D55: WorldBank | E55: Mitigation | F55: =IF(ISERROR(P55/(M55*S55)),"",IF((P55/(M55*S55))<=OUTLIERS!$C$3,"",IF((P55/(M55*S55))>=OUTLIERS!$C$4,"",P55/(M55*S55)))) ->  | G55: =IF(ISERROR(Q55/($M55*T55)),"",IF((Q55/($M55*T55))<=OUTLIERS!$D$3,"",IF((Q55/($M55*T55))>=OUTLIERS!$D$4,"",Q55/($M55*T55)))) ->  | H55: =IF(ISERROR((M55*S55)/P55),"",IF((M55*S55/P55)<=OUTLIERS!$E$3,"",IF((M55*S55/P55)>=OUTLIERS!$E$4,"",M55*S55/P55))) ->  | I55: =IF(ISERROR(O55/N55),"",IF(O55/N55<=OUTLIERS!$F$3,"",IF(O55/N55>=OUTLIERS!$F$4,"",O55/N55))) -> 7.9 | J55: =IF(ISERROR(U55/X55),"",IF(U55/X55<=OUTLIERS!$G$3,"",IF(U55/X55>=OUTLIERS!$G$4,"",U55/X55))) ->  | K55: =IF(ISERROR(Q55/Y55),"",IF(Q55/Y55<=OUTLIERS!$H$3,"",IF(Q55/Y55>=OUTLIERS!$H$4,"",Q55/Y55))) ->  | L55: =IF(ISERROR(W55),"",IF(W55<=OUTLIERS!$I$3,"",IF(W55>=OUTLIERS!$I$4,"",W55))) ->  | M55: 356000000 | N55: 40000000 | O55: 316000000 | P55: n/a | S55: 1 | T55: 0 | U55: n/a | V55: n/a | W55: n/a | X55: 345981450 | Y55: 80745020
A56: 55 | B56: XCTFUA056A | C56: CTF | D56: WorldBank | E56: Mitigation | F56: =IF(ISERROR(P56/(M56*S56)),"",IF((P56/(M56*S56))<=OUTLIERS!$C$3,"",IF((P56/(M56*S56))>=OUTLIERS!$C$4,"",P56/(M56*S56)))) -> 0.01373368146 | G56: =IF(ISERROR(Q56/($M56*T56)),"",IF((Q56/($M56*T56))<=OUTLIERS!$D$3,"",IF((Q56/($M56*T56))>=OUTLIERS!$D$4,"",Q56/($M56*T56)))) ->  | H56: =IF(ISERROR((M56*S56)/P56),"",IF((M56*S56/P56)<=OUTLIERS!$E$3,"",IF((M56*S56/P56)>=OUTLIERS!$E$4,"",M56*S56/P56))) -> 72.81368821 | I56: =IF(ISERROR(O56/N56),"",IF(O56/N56<=OUTLIERS!$F$3,"",IF(O56/N56>=OUTLIERS!$F$4,"",O56/N56))) -> 6.509803922 | J56: =IF(ISERROR(U56/X56),"",IF(U56/X56<=OUTLIERS!$G$3,"",IF(U56/X56>=OUTLIERS!$G$4,"",U56/X56))) -> 0.001446332836 | K56: =IF(ISERROR(Q56/Y56),"",IF(Q56/Y56<=OUTLIERS!$H$3,"",IF(Q56/Y56>=OUTLIERS!$H$4,"",Q56/Y56))) ->  | L56: =IF(ISERROR(W56),"",IF(W56<=OUTLIERS!$I$3,"",IF(W56>=OUTLIERS!$I$4,"",W56))) -> 0.4 | M56: 383000000 | N56: 51000000 | O56: 332000000 | P56: 5260000 | R56: 1960705 | S56: 1 | T56: 0 | U56: 328750 | V56: 1960705 | W56: 0.4 | X56: 227298995 | Y56: 44831159
A57: 56 | B57: XCTFUA087A | C57: CTF | D57: WorldBank | E57: Cross-cutting | F57: =IF(ISERROR(P57/(M57*S57)),"",IF((P57/(M57*S57))<=OUTLIERS!$C$3,"",IF((P57/(M57*S57))>=OUTLIERS!$C$4,"",P57/(M57*S57)))) ->  | G57: =IF(ISERROR(Q57/($M57*T57)),"",IF((Q57/($M57*T57))<=OUTLIERS!$D$3,"",IF((Q57/($M57*T57))>=OUTLIERS!$D$4,"",Q57/($M57*T57)))) ->  | H57: =IF(ISERROR((M57*S57)/P57),"",IF((M57*S57/P57)<=OUTLIERS!$E$3,"",IF((M57*S57/P57)>=OUTLIERS!$E$4,"",M57*S57/P57))) ->  | I57: =IF(ISERROR(O57/N57),"",IF(O57/N57<=OUTLIERS!$F$3,"",IF(O57/N57>=OUTLIERS!$F$4,"",O57/N57))) -> 6 | J57: =IF(ISERROR(U57/X57),"",IF(U57/X57<=OUTLIERS!$G$3,"",IF(U57/X57>=OUTLIERS!$G$4,"",U57/X57))) -> 0.001297370453 | K57: =IF(ISERROR(Q57/Y57),"",IF(Q57/Y57<=OUTLIERS!$H$3,"",IF(Q57/Y57>=OUTLIERS!$H$4,"",Q57/Y57))) ->  | L57: =IF(ISERROR(W57),"",IF(W57<=OUTLIERS!$I$3,"",IF(W57>=OUTLIERS!$I$4,"",W57))) ->  | M57: 350000000 | N57: 50000000 | O57: 300000000 | P57: 5897820 | R57: 4300000 | S57: n/a | T57: n/a | U57: 294891 | V57: 4300000 | W57: n/a | X57: 227298995 | Y57: 44831159
A58: 57 | B58: XCTFUA088A | C58: CTF | D58: WorldBank | E58: Mitigation | F58: =IF(ISERROR(P58/(M58*S58)),"",IF((P58/(M58*S58))<=OUTLIERS!$C$3,"",IF((P58/(M58*S58))>=OUTLIERS!$C$4,"",P58/(M58*S58)))) -> 0.06287507509 | G58: =IF(ISERROR(Q58/($M58*T58)),"",IF((Q58/($M58*T58))<=OUTLIERS!$D$3,"",IF((Q58/($M58*T58))>=OUTLIERS!$D$4,"",Q58/($M58*T58)))) ->  | H58: =IF(ISERROR((M58*S58)/P58),"",IF((M58*S58/P58)<=OUTLIERS!$E$3,"",IF((M58*S58/P58)>=OUTLIERS!$E$4,"",M58*S58/P58))) -> 15.90455357 | I58: =IF(ISERROR(O58/N58),"",IF(O58/N58<=OUTLIERS!$F$3,"",IF(O58/N58>=OUTLIERS!$F$4,"",O58/N58))) -> 35.49477566 | J58: =IF(ISERROR(U58/X58),"",IF(U58/X58<=OUTLIERS!$G$3,"",IF(U58/X58>=OUTLIERS!$G$4,"",U58/X58))) -> 0.01231857624 | K58: =IF(ISERROR(Q58/Y58),"",IF(Q58/Y58<=OUTLIERS!$H$3,"",IF(Q58/Y58>=OUTLIERS!$H$4,"",Q58/Y58))) ->  | L58: =IF(ISERROR(W58),"",IF(W58<=OUTLIERS!$I$3,"",IF(W58>=OUTLIERS!$I$4,"",W58))) ->  | M58: 1781310000 | N58: 48810000 | O58: 1732500000 | P58: 112000000 | S58: 1 | T58: 0 | U58: 2800000 | V58: n/a | W58: n/a | X58: 227298995 | Y58: 44831159
A59: 58 | B59: XCTFVN101A | C59: CTF | D59: ADB | E59: Mitigation | F59: =IF(ISERROR(P59/(M59*S59)),"",IF((P59/(M59*S59))<=OUTLIERS!$C$3,"",IF((P59/(M59*S59))>=OUTLIERS!$C$4,"",P59/(M59*S59)))) ->  | G59: =IF(ISERROR(Q59/($M59*T59)),"",IF((Q59/($M59*T59))<=OUTLIERS!$D$3,"",IF((Q59/($M59*T59))>=OUTLIERS!$D$4,"",Q59/($M59*T59)))) ->  | H59: =IF(ISERROR((M59*S59)/P59),"",IF((M59*S59/P59)<=OUTLIERS!$E$3,"",IF((M59*S59/P59)>=OUTLIERS!$E$4,"",M59*S59/P59))) ->  | I59: =IF(ISERROR(O59/N59),"",IF(O59/N59<=OUTLIERS!$F$3,"",IF(O59/N59>=OUTLIERS!$F$4,"",O59/N59))) -> 6.704 | J59: =IF(ISERROR(U59/X59),"",IF(U59/X59<=OUTLIERS!$G$3,"",IF(U59/X59>=OUTLIERS!$G$4,"",U59/X59))) ->  | K59: =IF(ISERROR(Q59/Y59),"",IF(Q59/Y59<=OUTLIERS!$H$3,"",IF(Q59/Y59>=OUTLIERS!$H$4,"",Q59/Y59))) ->  | L59: =IF(ISERROR(W59),"",IF(W59<=OUTLIERS!$I$3,"",IF(W59>=OUTLIERS!$I$4,"",W59))) ->  | M59: 385200000 | N59: 50000000 | O59: 335200000 | P59: n/a | S59: 1 | T59: 0 | U59: n/a | V59: n/a | W59: n/a | X59: 166910839 | Y59: 95540800
A60: 59 | B60: XCTFVN104A | C60: CTF | D60: ADB | E60: Mitigation | F60: =IF(ISERROR(P60/(M60*S60)),"",IF((P60/(M60*S60))<=OUTLIERS!$C$3,"",IF((P60/(M60*S60))>=OUTLIERS!$C$4,"",P60/(M60*S60)))) ->  | G60: =IF(ISERROR(Q60/($M60*T60)),"",IF((Q60/($M60*T60))<=OUTLIERS!$D$3,"",IF((Q60/($M60*T60))>=OUTLIERS!$D$4,"",Q60/($M60*T60)))) ->  | H60: =IF(ISERROR((M60*S60)/P60),"",IF((M60*S60/P60)<=OUTLIERS!$E$3,"",IF((M60*S60/P60)>=OUTLIERS!$E$4,"",M60*S60/P60))) ->  | I60: =IF(ISERROR(O60/N60),"",IF(O60/N60<=OUTLIERS!$F$3,"",IF(O60/N60>=OUTLIERS!$F$4,"",O60/N60))) -> 0.03157894737 | J60: =IF(ISERROR(U60/X60),"",IF(U60/X60<=OUTLIERS!$G$3,"",IF(U60/X60>=OUTLIERS!$G$4,"",U60/X60))) -> 0.002956901589 | K60: =IF(ISERROR(Q60/Y60),"",IF(Q60/Y60<=OUTLIERS!$H$3,"",IF(Q60/Y60>=OUTLIERS!$H$4,"",Q60/Y60))) ->  | L60: =IF(ISERROR(W60),"",IF(W60<=OUTLIERS!$I$3,"",IF(W60>=OUTLIERS!$I$4,"",W60))) ->  | M60: 980000 | N60: 950000 | O60: 30000 | P60: 9870778.5 | S60: 1 | T60: 0 | U60: 493538.925 | V60: n/a | W60: n/a | X60: 166910839 | Y60: 95540800
A61: 60 | B61: XCTFVN111A | C61: CTF | D61: ADB | E61: Mitigation | F61: =IF(ISERROR(P61/(M61*S61)),"",IF((P61/(M61*S61))<=OUTLIERS!$C$3,"",IF((P61/(M61*S61))>=OUTLIERS!$C$4,"",P61/(M61*S61)))) ->  | G61: =IF(ISERROR(Q61/($M61*T61)),"",IF((Q61/($M61*T61))<=OUTLIERS!$D$3,"",IF((Q61/($M61*T61))>=OUTLIERS!$D$4,"",Q61/($M61*T61)))) ->  | H61: =IF(ISERROR((M61*S61)/P61),"",IF((M61*S61/P61)<=OUTLIERS!$E$3,"",IF((M61*S61/P61)>=OUTLIERS!$E$4,"",M61*S61/P61))) ->  | I61: =IF(ISERROR(O61/N61),"",IF(O61/N61<=OUTLIERS!$F$3,"",IF(O61/N61>=OUTLIERS!$F$4,"",O61/N61))) -> 0.2001601281 | J61: =IF(ISERROR(U61/X61),"",IF(U61/X61<=OUTLIERS!$G$3,"",IF(U61/X61>=OUTLIERS!$G$4,"",U61/X61))) ->  | K61: =IF(ISERROR(Q61/Y61),"",IF(Q61/Y61<=OUTLIERS!$H$3,"",IF(Q61/Y61>=OUTLIERS!$H$4,"",Q61/Y61))) ->  | L61: =IF(ISERROR(W61),"",IF(W61<=OUTLIERS!$I$3,"",IF(W61>=OUTLIERS!$I$4,"",W61))) ->  | M61: 59960000 | N61: 49960000 | O61: 10000000 | P61: n/a | S61: 1 | T61: 0 | U61: n/a | V61: n/a | W61: n/a | X61: 166910839 | Y61: 95540800
A62: 61 | B62: PFIPBR501A | C62: FIP | D62: IDB | E62: Mitigation | F62: =IF(ISERROR(P62/(M62*S62)),"",IF((P62/(M62*S62))<=OUTLIERS!$C$3,"",IF((P62/(M62*S62))>=OUTLIERS!$C$4,"",P62/(M62*S62)))) -> 0.05235602094 | G62: =IF(ISERROR(Q62/($M62*T62)),"",IF((Q62/($M62*T62))<=OUTLIERS!$D$3,"",IF((Q62/($M62*T62))>=OUTLIERS!$D$4,"",Q62/($M62*T62)))) ->  | H62: =IF(ISERROR((M62*S62)/P62),"",IF((M62*S62/P62)<=OUTLIERS!$E$3,"",IF((M62*S62/P62)>=OUTLIERS!$E$4,"",M62*S62/P62))) -> 19.1 | I62: =IF(ISERROR(O62/N62),"",IF(O62/N62<=OUTLIERS!$F$3,"",IF(O62/N62>=OUTLIERS!$F$4,"",O62/N62))) -> 0.6852941176 | J62: =IF(ISERROR(U62/X62),"",IF(U62/X62<=OUTLIERS!$G$3,"",IF(U62/X62>=OUTLIERS!$G$4,"",U62/X62))) ->  | K62: =IF(ISERROR(Q62/Y62),"",IF(Q62/Y62<=OUTLIERS!$H$3,"",IF(Q62/Y62>=OUTLIERS!$H$4,"",Q62/Y62))) ->  | L62: =IF(ISERROR(W62),"",IF(W62<=OUTLIERS!$I$3,"",IF(W62>=OUTLIERS!$I$4,"",W62))) ->  | M62: 5730000 | N62: 3400000 | O62: 2330000 | P62: 300000 | R62: 0 | S62: 1 | T62: 0 | U62: 15000 | V62: 0 | W62: n/a | X62: 0 | Y62: 0
A63: 62 | B63: PFIPMZ032A | C63: FIP | D63: IFC | E63: Mitigation | F63: =IF(ISERROR(P63/(M63*S63)),"",IF((P63/(M63*S63))<=OUTLIERS!$C$3,"",IF((P63/(M63*S63))>=OUTLIERS!$C$4,"",P63/(M63*S63)))) ->  | G63: =IF(ISERROR(Q63/($M63*T63)),"",IF((Q63/($M63*T63))<=OUTLIERS!$D$3,"",IF((Q63/($M63*T63))>=OUTLIERS!$D$4,"",Q63/($M63*T63)))) ->  | H63: =IF(ISERROR((M63*S63)/P63),"",IF((M63*S63/P63)<=OUTLIERS!$E$3,"",IF((M63*S63/P63)>=OUTLIERS!$E$4,"",M63*S63/P63))) ->  | I63: =IF(ISERROR(O63/N63),"",IF(O63/N63<=OUTLIERS!$F$3,"",IF(O63/N63>=OUTLIERS!$F$4,"",O63/N63))) -> 1.953846154 | J63: =IF(ISERROR(U63/X63),"",IF(U63/X63<=OUTLIERS!$G$3,"",IF(U63/X63>=OUTLIERS!$G$4,"",U63/X63))) ->  | K63: =IF(ISERROR(Q63/Y63),"",IF(Q63/Y63<=OUTLIERS!$H$3,"",IF(Q63/Y63>=OUTLIERS!$H$4,"",Q63/Y63))) ->  | L63: =IF(ISERROR(W63),"",IF(W63<=OUTLIERS!$I$3,"",IF(W63>=OUTLIERS!$I$4,"",W63))) ->  | M63: 5760000 | N63: 1950000 | O63: 3810000 | P63: n/a | R63: 20000 | S63: 1 | T63: 0 | U63: n/a | V63: 20000 | W63: n/a | X63: 8426766 | Y63: 29668834
A64: 63 | B64: XFIPBF503A | C64: FIP | D64: AfDB | E64: Mitigation | F64: =IF(ISERROR(P64/(M64*S64)),"",IF((P64/(M64*S64))<=OUTLIERS!$C$3,"",IF((P64/(M64*S64))>=OUTLIERS!$C$4,"",P64/(M64*S64)))) -> 0.3386809269 | G64: =IF(ISERROR(Q64/($M64*T64)),"",IF((Q64/($M64*T64))<=OUTLIERS!$D$3,"",IF((Q64/($M64*T64))>=OUTLIERS!$D$4,"",Q64/($M64*T64)))) ->  | H64: =IF(ISERROR((M64*S64)/P64),"",IF((M64*S64/P64)<=OUTLIERS!$E$3,"",IF((M64*S64/P64)>=OUTLIERS!$E$4,"",M64*S64/P64))) -> 2.952631579 | I64: =IF(ISERROR(O64/N64),"",IF(O64/N64<=OUTLIERS!$F$3,"",IF(O64/N64>=OUTLIERS!$F$4,"",O64/N64))) -> 1.64 | J64: =IF(ISERROR(U64/X64),"",IF(U64/X64<=OUTLIERS!$G$3,"",IF(U64/X64>=OUTLIERS!$G$4,"",U64/X64))) -> 0.05334720361 | K64: =IF(ISERROR(Q64/Y64),"",IF(Q64/Y64<=OUTLIERS!$H$3,"",IF(Q64/Y64>=OUTLIERS!$H$4,"",Q64/Y64))) ->  | L64: =IF(ISERROR(W64),"",IF(W64<=OUTLIERS!$I$3,"",IF(W64>=OUTLIERS!$I$4,"",W64))) -> 0.4489795918 | M64: 11220000 | N64: 4250000 | O64: 6970000 | P64: 3800000 | R64: 9800 | S64: 1 | T64: 0 | U64: 152000 | V64: 9800 | W64: 0.4489795918 | X64: 2849259 | Y64: 19193382
A65: 64 | B65: XFIPBR010A | C65: FIP | D65: WorldBank | E65: Cross-cutting | F65: =IF(ISERROR(P65/(M65*S65)),"",IF((P65/(M65*S65))<=OUTLIERS!$C$3,"",IF((P65/(M65*S65))>=OUTLIERS!$C$4,"",P65/(M65*S65)))) ->  | G65: =IF(ISERROR(Q65/($M65*T65)),"",IF((Q65/($M65*T65))<=OUTLIERS!$D$3,"",IF((Q65/($M65*T65))>=OUTLIERS!$D$4,"",Q65/($M65*T65)))) ->  | H65: =IF(ISERROR((M65*S65)/P65),"",IF((M65*S65/P65)<=OUTLIERS!$E$3,"",IF((M65*S65/P65)>=OUTLIERS!$E$4,"",M65*S65/P65))) ->  | I65: =IF(ISERROR(O65/N65),"",IF(O65/N65<=OUTLIERS!$F$3,"",IF(O65/N65>=OUTLIERS!$F$4,"",O65/N65))) -> 0.7951263538 | J65: =IF(ISERROR(U65/X65),"",IF(U65/X65<=OUTLIERS!$G$3,"",IF(U65/X65>=OUTLIERS!$G$4,"",U65/X65))) ->  | K65: =IF(ISERROR(Q65/Y65),"",IF(Q65/Y65<=OUTLIERS!$H$3,"",IF(Q65/Y65>=OUTLIERS!$H$4,"",Q65/Y65))) ->  | L65: =IF(ISERROR(W65),"",IF(W65<=OUTLIERS!$I$3,"",IF(W65>=OUTLIERS!$I$4,"",W65))) ->  | M65: 59670000 | N65: 33240000 | O65: 26430000 | P65: n/a | S65: n/a | T65: n/a | U65: n/a | V65: n/a | W65: n/a | X65: 529808160 | Y65: 209288278
A66: 65 | B66: XFIPBR011A | C66: FIP | D66: WorldBank | E66: Cross-cutting | F66: =IF(ISERROR(P66/(M66*S66)),"",IF((P66/(M66*S66))<=OUTLIERS!$C$3,"",IF((P66/(M66*S66))>=OUTLIERS!$C$4,"",P66/(M66*S66)))) ->  | G66: =IF(ISERROR(Q66/($M66*T66)),"",IF((Q66/($M66*T66))<=OUTLIERS!$D$3,"",IF((Q66/($M66*T66))>=OUTLIERS!$D$4,"",Q66/($M66*T66)))) ->  | H66: =IF(ISERROR((M66*S66)/P66),"",IF((M66*S66/P66)<=OUTLIERS!$E$3,"",IF((M66*S66/P66)>=OUTLIERS!$E$4,"",M66*S66/P66))) ->  | I66: =IF(ISERROR(O66/N66),"",IF(O66/N66<=OUTLIERS!$F$3,"",IF(O66/N66>=OUTLIERS!$F$4,"",O66/N66))) -> 0.0445026178 | J66: =IF(ISERROR(U66/X66),"",IF(U66/X66<=OUTLIERS!$G$3,"",IF(U66/X66>=OUTLIERS!$G$4,"",U66/X66))) -> 0.0005426492487 | K66: =IF(ISERROR(Q66/Y66),"",IF(Q66/Y66<=OUTLIERS!$H$3,"",IF(Q66/Y66>=OUTLIERS!$H$4,"",Q66/Y66))) ->  | L66: =IF(ISERROR(W66),"",IF(W66<=OUTLIERS!$I$3,"",IF(W66>=OUTLIERS!$I$4,"",W66))) ->  | M66: =N66+O66 -> 11970000 | N66: 11460000 | O66: 510000 | P66: 4600000 | R66: =IF(V66="n/a","",V66) -> 12000 | S66: n/a | T66: n/a | U66: 287500 | V66: 12000 | W66: n/a | X66: 529808160 | Y66: 209288278
A67: 66 | B67: XFIPBR013A | C67: FIP | D67: WorldBank | E67: Adaptation | F67: =IF(ISERROR(P67/(M67*S67)),"",IF((P67/(M67*S67))<=OUTLIERS!$C$3,"",IF((P67/(M67*S67))>=OUTLIERS!$C$4,"",P67/(M67*S67)))) ->  | G67: =IF(ISERROR(Q67/($M67*T67)),"",IF((Q67/($M67*T67))<=OUTLIERS!$D$3,"",IF((Q67/($M67*T67))>=OUTLIERS!$D$4,"",Q67/($M67*T67)))) ->  | H67: =IF(ISERROR((M67*S67)/P67),"",IF((M67*S67/P67)<=OUTLIERS!$E$3,"",IF((M67*S67/P67)>=OUTLIERS!$E$4,"",M67*S67/P67))) ->  | I67: =IF(ISERROR(O67/N67),"",IF(O67/N67<=OUTLIERS!$F$3,"",IF(O67/N67>=OUTLIERS!$F$4,"",O67/N67))) -> 0 | J67: =IF(ISERROR(U67/X67),"",IF(U67/X67<=OUTLIERS!$G$3,"",IF(U67/X67>=OUTLIERS!$G$4,"",U67/X67))) ->  | K67: =IF(ISERROR(Q67/Y67),"",IF(Q67/Y67<=OUTLIERS!$H$3,"",IF(Q67/Y67>=OUTLIERS!$H$4,"",Q67/Y67))) ->  | L67: =IF(ISERROR(W67),"",IF(W67<=OUTLIERS!$I$3,"",IF(W67>=OUTLIERS!$I$4,"",W67))) ->  | M67: 10020000 | N67: 10020000 | O67: 0 | P67: n/a | Q67: =IF(E67="adaptation",R67,"") ->  | S67: 0 | T67: 1 | U67: n/a | V67: n/a | W67: n/a | X67: 529808160 | Y67: 209288278
A68: 67 | B68: XFIPBR026A | C68: FIP | D68: WorldBank | E68: Cross-cutting | F68: =IF(ISERROR(P68/(M68*S68)),"",IF((P68/(M68*S68))<=OUTLIERS!$C$3,"",IF((P68/(M68*S68))>=OUTLIERS!$C$4,"",P68/(M68*S68)))) ->  | G68: =IF(ISERROR(Q68/($M68*T68)),"",IF((Q68/($M68*T68))<=OUTLIERS!$D$3,"",IF((Q68/($M68*T68))>=OUTLIERS!$D$4,"",Q68/($M68*T68)))) ->  | H68: =IF(ISERROR((M68*S68)/P68),"",IF((M68*S68/P68)<=OUTLIERS!$E$3,"",IF((M68*S68/P68)>=OUTLIERS!$E$4,"",M68*S68/P68))) ->  | I68: =IF(ISERROR(O68/N68),"",IF(O68/N68<=OUTLIERS!$F$3,"",IF(O68/N68>=OUTLIERS!$F$4,"",O68/N68))) -> 0.2 | J68: =IF(ISERROR(U68/X68),"",IF(U68/X68<=OUTLIERS!$G$3,"",IF(U68/X68>=OUTLIERS!$G$4,"",U68/X68))) ->  | K68: =IF(ISERROR(Q68/Y68),"",IF(Q68/Y68<=OUTLIERS!$H$3,"",IF(Q68/Y68>=OUTLIERS!$H$4,"",Q68/Y68))) ->  | L68: =IF(ISERROR(W68),"",IF(W68<=OUTLIERS!$I$3,"",IF(W68>=OUTLIERS!$I$4,"",W68))) ->  | M68: 1200000 | N68: 1000000 | O68: 200000 | P68: n/a | S68: n/a | T68: n/a | U68: n/a | V68: n/a | W68: n/a | X68: 529808160 | Y68: 209288278
A69: 68 | B69: XFIPBR027A | C69: FIP | D69: WorldBank | E69: Cross-cutting | F69: =IF(ISERROR(P69/(M69*S69)),"",IF((P69/(M69*S69))<=OUTLIERS!$C$3,"",IF((P69/(M69*S69))>=OUTLIERS!$C$4,"",P69/(M69*S69)))) ->  | G69: =IF(ISERROR(Q69/($M69*T69)),"",IF((Q69/($M69*T69))<=OUTLIERS!$D$3,"",IF((Q69/($M69*T69))>=OUTLIERS!$D$4,"",Q69/($M69*T69)))) ->  | H69: =IF(ISERROR((M69*S69)/P69),"",IF((M69*S69/P69)<=OUTLIERS!$E$3,"",IF((M69*S69/P69)>=OUTLIERS!$E$4,"",M69*S69/P69))) ->  | I69: =IF(ISERROR(O69/N69),"",IF(O69/N69<=OUTLIERS!$F$3,"",IF(O69/N69>=OUTLIERS!$F$4,"",O69/N69))) -> 0.1520737327 | J69: =IF(ISERROR(U69/X69),"",IF(U69/X69<=OUTLIERS!$G$3,"",IF(U69/X69>=OUTLIERS!$G$4,"",U69/X69))) -> 0 | K69: =IF(ISERROR(Q69/Y69),"",IF(Q69/Y69<=OUTLIERS!$H$3,"",IF(Q69/Y69>=OUTLIERS!$H$4,"",Q69/Y69))) ->  | L69: =IF(ISERROR(W69),"",IF(W69<=OUTLIERS!$I$3,"",IF(W69>=OUTLIERS!$I$4,"",W69))) ->  | M69: 25000000 | N69: 21700000 | O69: 3300000 | P69: n/a | R69: 5200 | S69: n/a | T69: n/a | U69: 0 | V69: 5200 | W69: n/a | X69: 529808160 | Y69: 209288278
A70: 69 | B70: XFIPCI029A | C70: FIP | D70: WorldBank | E70: Mitigation | F70: =IF(ISERROR(P70/(M70*S70)),"",IF((P70/(M70*S70))<=OUTLIERS!$C$3,"",IF((P70/(M70*S70))>=OUTLIERS!$C$4,"",P70/(M70*S70)))) -> 0.12929 | G70: =IF(ISERROR(Q70/($M70*T70)),"",IF((Q70/($M70*T70))<=OUTLIERS!$D$3,"",IF((Q70/($M70*T70))>=OUTLIERS!$D$4,"",Q70/($M70*T70)))) ->  | H70: =IF(ISERROR((M70*S70)/P70),"",IF((M70*S70/P70)<=OUTLIERS!$E$3,"",IF((M70*S70/P70)>=OUTLIERS!$E$4,"",M70*S70/P70))) -> 7.734550236 | I70: =IF(ISERROR(O70/N70),"",IF(O70/N70<=OUTLIERS!$F$3,"",IF(O70/N70>=OUTLIERS!$F$4,"",O70/N70))) -> 0 | J70: =IF(ISERROR(U70/X70),"",IF(U70/X70<=OUTLIERS!$G$3,"",IF(U70/X70>=OUTLIERS!$G$4,"",U70/X70))) -> 0.01755861745 | K70: =IF(ISERROR(Q70/Y70),"",IF(Q70/Y70<=OUTLIERS!$H$3,"",IF(Q70/Y70>=OUTLIERS!$H$4,"",Q70/Y70))) ->  | L70: =IF(ISERROR(W70),"",IF(W70<=OUTLIERS!$I$3,"",IF(W70>=OUTLIERS!$I$4,"",W70))) -> 0.5 | M70: 15000000 | N70: 15000000 | O70: 0 | P70: 1939350 | R70: 345000 | S70: 1 | T70: 0 | U70: 193935 | V70: 345000 | W70: 0.5 | X70: 11045004 | Y70: 24294750
A71: 70 | B71: XFIPCI030A | C71: FIP | D71: AfDB | E71: Cross-cutting | F71: =IF(ISERROR(P71/(M71*S71)),"",IF((P71/(M71*S71))<=OUTLIERS!$C$3,"",IF((P71/(M71*S71))>=OUTLIERS!$C$4,"",P71/(M71*S71)))) ->  | G71: =IF(ISERROR(Q71/($M71*T71)),"",IF((Q71/($M71*T71))<=OUTLIERS!$D$3,"",IF((Q71/($M71*T71))>=OUTLIERS!$D$4,"",Q71/($M71*T71)))) ->  | H71: =IF(ISERROR((M71*S71)/P71),"",IF((M71*S71/P71)<=OUTLIERS!$E$3,"",IF((M71*S71/P71)>=OUTLIERS!$E$4,"",M71*S71/P71))) ->  | I71: =IF(ISERROR(O71/N71),"",IF(O71/N71<=OUTLIERS!$F$3,"",IF(O71/N71>=OUTLIERS!$F$4,"",O71/N71))) -> 2.315555556 | J71: =IF(ISERROR(U71/X71),"",IF(U71/X71<=OUTLIERS!$G$3,"",IF(U71/X71>=OUTLIERS!$G$4,"",U71/X71))) -> 0.0253508283 | K71: =IF(ISERROR(Q71/Y71),"",IF(Q71/Y71<=OUTLIERS!$H$3,"",IF(Q71/Y71>=OUTLIERS!$H$4,"",Q71/Y71))) ->  | L71: =IF(ISERROR(W71),"",IF(W71<=OUTLIERS!$I$3,"",IF(W71>=OUTLIERS!$I$4,"",W71))) ->  | M71: 29840000 | N71: 9000000 | O71: 20840000 | P71: 7000000 | R71: 1819679 | S71: n/a | T71: n/a | U71: 280000 | V71: 1819679 | W71: n/a | X71: 11045004 | Y71: 24294750
A72: 71 | B72: XFIPDG201A | C72: FIP | D72: WorldBank | E72: Cross-cutting | F72: =IF(ISERROR(P72/(M72*S72)),"",IF((P72/(M72*S72))<=OUTLIERS!$C$3,"",IF((P72/(M72*S72))>=OUTLIERS!$C$4,"",P72/(M72*S72)))) ->  | G72: =IF(ISERROR(Q72/($M72*T72)),"",IF((Q72/($M72*T72))<=OUTLIERS!$D$3,"",IF((Q72/($M72*T72))>=OUTLIERS!$D$4,"",Q72/($M72*T72)))) ->  | H72: =IF(ISERROR((M72*S72)/P72),"",IF((M72*S72/P72)<=OUTLIERS!$E$3,"",IF((M72*S72/P72)>=OUTLIERS!$E$4,"",M72*S72/P72))) ->  | I72: =IF(ISERROR(O72/N72),"",IF(O72/N72<=OUTLIERS!$F$3,"",IF(O72/N72>=OUTLIERS!$F$4,"",O72/N72))) -> 0 | J72: =IF(ISERROR(U72/X72),"",IF(U72/X72<=OUTLIERS!$G$3,"",IF(U72/X72>=OUTLIERS!$G$4,"",U72/X72))) ->  | K72: =IF(ISERROR(Q72/Y72),"",IF(Q72/Y72<=OUTLIERS!$H$3,"",IF(Q72/Y72>=OUTLIERS!$H$4,"",Q72/Y72))) ->  | L72: =IF(ISERROR(W72),"",IF(W72<=OUTLIERS!$I$3,"",IF(W72>=OUTLIERS!$I$4,"",W72))) -> 0.3 | M72: 7460000 | N72: 7460000 | O72: 0 | P72: n/a | R72: 6000 | S72: n/a | T72: n/a | U72: n/a | V72: 6000 | W72: 0.3 | X72: 529808160 | Y72: 209288278
A73: 72 | B73: XFIPDG202A | C73: FIP | D73: WorldBank | E73: Cross-cutting | F73: =IF(ISERROR(P73/(M73*S73)),"",IF((P73/(M73*S73))<=OUTLIERS!$C$3,"",IF((P73/(M73*S73))>=OUTLIERS!$C$4,"",P73/(M73*S73)))) ->  | G73: =IF(ISERROR(Q73/($M73*T73)),"",IF((Q73/($M73*T73))<=OUTLIERS!$D$3,"",IF((Q73/($M73*T73))>=OUTLIERS!$D$4,"",Q73/($M73*T73)))) ->  | H73: =IF(ISERROR((M73*S73)/P73),"",IF((M73*S73/P73)<=OUTLIERS!$E$3,"",IF((M73*S73/P73)>=OUTLIERS!$E$4,"",M73*S73/P73))) ->  | I73: =IF(ISERROR(O73/N73),"",IF(O73/N73<=OUTLIERS!$F$3,"",IF(O73/N73>=OUTLIERS!$F$4,"",O73/N73))) -> 0 | J73: =IF(ISERROR(U73/X73),"",IF(U73/X73<=OUTLIERS!$G$3,"",IF(U73/X73>=OUTLIERS!$G$4,"",U73/X73))) ->  | K73: =IF(ISERROR(Q73/Y73),"",IF(Q73/Y73<=OUTLIERS!$H$3,"",IF(Q73/Y73>=OUTLIERS!$H$4,"",Q73/Y73))) ->  | L73: =IF(ISERROR(W73),"",IF(W73<=OUTLIERS!$I$3,"",IF(W73>=OUTLIERS!$I$4,"",W73))) ->  | M73: 5220000 | N73: 5220000 | O73: 0 | P73: n/a | R73: 5590 | S73: n/a | T73: n/a | U73: n/a | V73: 5590 | W73: n/a | X73: 2849259 | Y73: 19193382
A74: 73 | B74: XFIPDG203A | C74: FIP | D74: WorldBank | E74: Cross-cutting | F74: =IF(ISERROR(P74/(M74*S74)),"",IF((P74/(M74*S74))<=OUTLIERS!$C$3,"",IF((P74/(M74*S74))>=OUTLIERS!$C$4,"",P74/(M74*S74)))) ->  | G74: =IF(ISERROR(Q74/($M74*T74)),"",IF((Q74/($M74*T74))<=OUTLIERS!$D$3,"",IF((Q74/($M74*T74))>=OUTLIERS!$D$4,"",Q74/($M74*T74)))) ->  | H74: =IF(ISERROR((M74*S74)/P74),"",IF((M74*S74/P74)<=OUTLIERS!$E$3,"",IF((M74*S74/P74)>=OUTLIERS!$E$4,"",M74*S74/P74))) ->  | I74: =IF(ISERROR(O74/N74),"",IF(O74/N74<=OUTLIERS!$F$3,"",IF(O74/N74>=OUTLIERS!$F$4,"",O74/N74))) -> 1.100719424 | J74: =IF(ISERROR(U74/X74),"",IF(U74/X74<=OUTLIERS!$G$3,"",IF(U74/X74>=OUTLIERS!$G$4,"",U74/X74))) ->  | K74: =IF(ISERROR(Q74/Y74),"",IF(Q74/Y74<=OUTLIERS!$H$3,"",IF(Q74/Y74>=OUTLIERS!$H$4,"",Q74/Y74))) ->  | L74: =IF(ISERROR(W74),"",IF(W74<=OUTLIERS!$I$3,"",IF(W74>=OUTLIERS!$I$4,"",W74))) -> 0.3 | M74: 14600000 | N74: 6950000 | O74: 7650000 | P74: n/a | R74: 20000 | S74: n/a | T74: n/a | U74: n/a | V74: 20000 | W74: 0.3 | X74: 4671758 | Y74: 81339988
A75: 74 | B75: XFIPDG204A | C75: FIP | D75: WorldBank | E75: Mitigation | F75: =IF(ISERROR(P75/(M75*S75)),"",IF((P75/(M75*S75))<=OUTLIERS!$C$3,"",IF((P75/(M75*S75))>=OUTLIERS!$C$4,"",P75/(M75*S75)))) ->  | G75: =IF(ISERROR(Q75/($M75*T75)),"",IF((Q75/($M75*T75))<=OUTLIERS!$D$3,"",IF((Q75/($M75*T75))>=OUTLIERS!$D$4,"",Q75/($M75*T75)))) ->  | H75: =IF(ISERROR((M75*S75)/P75),"",IF((M75*S75/P75)<=OUTLIERS!$E$3,"",IF((M75*S75/P75)>=OUTLIERS!$E$4,"",M75*S75/P75))) ->  | I75: =IF(ISERROR(O75/N75),"",IF(O75/N75<=OUTLIERS!$F$3,"",IF(O75/N75>=OUTLIERS!$F$4,"",O75/N75))) -> 0 | J75: =IF(ISERROR(U75/X75),"",IF(U75/X75<=OUTLIERS!$G$3,"",IF(U75/X75>=OUTLIERS!$G$4,"",U75/X75))) ->  | K75: =IF(ISERROR(Q75/Y75),"",IF(Q75/Y75<=OUTLIERS!$H$3,"",IF(Q75/Y75>=OUTLIERS!$H$4,"",Q75/Y75))) ->  | L75: =IF(ISERROR(W75),"",IF(W75<=OUTLIERS!$I$3,"",IF(W75>=OUTLIERS!$I$4,"",W75))) ->  | M75: 6130000 | N75: 6130000 | O75: 0 | P75: n/a | R75: 11000 | S75: 1 | T75: 0 | U75: n/a | V75: 11000 | W75: n/a | X75: 14466315 | Y75: 28833629
A76: 75 | B76: XFIPDG205A | C76: FIP | D76: WorldBank | E76: Cross-cutting | F76: =IF(ISERROR(P76/(M76*S76)),"",IF((P76/(M76*S76))<=OUTLIERS!$C$3,"",IF((P76/(M76*S76))>=OUTLIERS!$C$4,"",P76/(M76*S76)))) ->  | G76: =IF(ISERROR(Q76/($M76*T76)),"",IF((Q76/($M76*T76))<=OUTLIERS!$D$3,"",IF((Q76/($M76*T76))>=OUTLIERS!$D$4,"",Q76/($M76*T76)))) ->  | H76: =IF(ISERROR((M76*S76)/P76),"",IF((M76*S76/P76)<=OUTLIERS!$E$3,"",IF((M76*S76/P76)>=OUTLIERS!$E$4,"",M76*S76/P76))) ->  | I76: =IF(ISERROR(O76/N76),"",IF(O76/N76<=OUTLIERS!$F$3,"",IF(O76/N76>=OUTLIERS!$F$4,"",O76/N76))) -> 0 | J76: =IF(ISERROR(U76/X76),"",IF(U76/X76<=OUTLIERS!$G$3,"",IF(U76/X76>=OUTLIERS!$G$4,"",U76/X76))) ->  | K76: =IF(ISERROR(Q76/Y76),"",IF(Q76/Y76<=OUTLIERS!$H$3,"",IF(Q76/Y76>=OUTLIERS!$H$4,"",Q76/Y76))) ->  | L76: =IF(ISERROR(W76),"",IF(W76<=OUTLIERS!$I$3,"",IF(W76>=OUTLIERS!$I$4,"",W76))) -> 0.3 | M76: 7480000 | N76: 7480000 | O76: 0 | P76: n/a | R76: 700 | S76: n/a | T76: n/a | U76: n/a | V76: 700 | W76: 0.3 | X76: 464176194 | Y76: 263991379
A77: 76 | B77: XFIPDG207A | C77: FIP | D77: WorldBank | E77: Cross-cutting | F77: =IF(ISERROR(P77/(M77*S77)),"",IF((P77/(M77*S77))<=OUTLIERS!$C$3,"",IF((P77/(M77*S77))>=OUTLIERS!$C$4,"",P77/(M77*S77)))) ->  | G77: =IF(ISERROR(Q77/($M77*T77)),"",IF((Q77/($M77*T77))<=OUTLIERS!$D$3,"",IF((Q77/($M77*T77))>=OUTLIERS!$D$4,"",Q77/($M77*T77)))) ->  | H77: =IF(ISERROR((M77*S77)/P77),"",IF((M77*S77/P77)<=OUTLIERS!$E$3,"",IF((M77*S77/P77)>=OUTLIERS!$E$4,"",M77*S77/P77))) ->  | I77: =IF(ISERROR(O77/N77),"",IF(O77/N77<=OUTLIERS!$F$3,"",IF(O77/N77>=OUTLIERS!$F$4,"",O77/N77))) -> 0 | J77: =IF(ISERROR(U77/X77),"",IF(U77/X77<=OUTLIERS!$G$3,"",IF(U77/X77>=OUTLIERS!$G$4,"",U77/X77))) ->  | K77: =IF(ISERROR(Q77/Y77),"",IF(Q77/Y77<=OUTLIERS!$H$3,"",IF(Q77/Y77>=OUTLIERS!$H$4,"",Q77/Y77))) ->  | L77: =IF(ISERROR(W77),"",IF(W77<=OUTLIERS!$I$3,"",IF(W77>=OUTLIERS!$I$4,"",W77))) -> 0.25 | M77: 6700000 | N77: 6700000 | O77: 0 | P77: n/a | R77: 2705 | S77: n/a | T77: n/a | U77: n/a | V77: 2705 | W77: 0.25 | X77: 480270657 | Y77: 129163276
A78: 77 | B78: XFIPDG208A | C78: FIP | D78: WorldBank | E78: Cross-cutting | F78: =IF(ISERROR(P78/(M78*S78)),"",IF((P78/(M78*S78))<=OUTLIERS!$C$3,"",IF((P78/(M78*S78))>=OUTLIERS!$C$4,"",P78/(M78*S78)))) ->  | G78: =IF(ISERROR(Q78/($M78*T78)),"",IF((Q78/($M78*T78))<=OUTLIERS!$D$3,"",IF((Q78/($M78*T78))>=OUTLIERS!$D$4,"",Q78/($M78*T78)))) ->  | H78: =IF(ISERROR((M78*S78)/P78),"",IF((M78*S78/P78)<=OUTLIERS!$E$3,"",IF((M78*S78/P78)>=OUTLIERS!$E$4,"",M78*S78/P78))) ->  | I78: =IF(ISERROR(O78/N78),"",IF(O78/N78<=OUTLIERS!$F$3,"",IF(O78/N78>=OUTLIERS!$F$4,"",O78/N78))) -> 0 | J78: =IF(ISERROR(U78/X78),"",IF(U78/X78<=OUTLIERS!$G$3,"",IF(U78/X78>=OUTLIERS!$G$4,"",U78/X78))) ->  | K78: =IF(ISERROR(Q78/Y78),"",IF(Q78/Y78<=OUTLIERS!$H$3,"",IF(Q78/Y78>=OUTLIERS!$H$4,"",Q78/Y78))) ->  | L78: =IF(ISERROR(W78),"",IF(W78<=OUTLIERS!$I$3,"",IF(W78>=OUTLIERS!$I$4,"",W78))) ->  | M78: 6230000 | N78: 6230000 | O78: 0 | P78: n/a | S78: n/a | T78: n/a | U78: n/a | V78: n/a | W78: n/a | X78: 61744946 | Y78: 32165485
A79: 78 | B79: XFIPDG209A | C79: FIP | D79: WorldBank | E79: Cross-cutting | F79: =IF(ISERROR(P79/(M79*S79)),"",IF((P79/(M79*S79))<=OUTLIERS!$C$3,"",IF((P79/(M79*S79))>=OUTLIERS!$C$4,"",P79/(M79*S79)))) ->  | G79: =IF(ISERROR(Q79/($M79*T79)),"",IF((Q79/($M79*T79))<=OUTLIERS!$D$3,"",IF((Q79/($M79*T79))>=OUTLIERS!$D$4,"",Q79/($M79*T79)))) ->  | H79: =IF(ISERROR((M79*S79)/P79),"",IF((M79*S79/P79)<=OUTLIERS!$E$3,"",IF((M79*S79/P79)>=OUTLIERS!$E$4,"",M79*S79/P79))) ->  | I79: =IF(ISERROR(O79/N79),"",IF(O79/N79<=OUTLIERS!$F$3,"",IF(O79/N79>=OUTLIERS!$F$4,"",O79/N79))) -> 0 | J79: =IF(ISERROR(U79/X79),"",IF(U79/X79<=OUTLIERS!$G$3,"",IF(U79/X79>=OUTLIERS!$G$4,"",U79/X79))) ->  | K79: =IF(ISERROR(Q79/Y79),"",IF(Q79/Y79<=OUTLIERS!$H$3,"",IF(Q79/Y79>=OUTLIERS!$H$4,"",Q79/Y79))) ->  | L79: =IF(ISERROR(W79),"",IF(W79<=OUTLIERS!$I$3,"",IF(W79>=OUTLIERS!$I$4,"",W79))) ->  | M79: 6000000 | N79: 6000000 | O79: 0 | P79: n/a | S79: n/a | T79: n/a | U79: n/a | V79: n/a | W79: n/a
A80: 79 | B80: XFIPDG214A | C80: FIP | D80: WorldBank | E80: Adaptation | F80: =IF(ISERROR(P80/(M80*S80)),"",IF((P80/(M80*S80))<=OUTLIERS!$C$3,"",IF((P80/(M80*S80))>=OUTLIERS!$C$4,"",P80/(M80*S80)))) ->  | G80: =IF(ISERROR(Q80/($M80*T80)),"",IF((Q80/($M80*T80))<=OUTLIERS!$D$3,"",IF((Q80/($M80*T80))>=OUTLIERS!$D$4,"",Q80/($M80*T80)))) -> 0.0003787878788 | H80: =IF(ISERROR((M80*S80)/P80),"",IF((M80*S80/P80)<=OUTLIERS!$E$3,"",IF((M80*S80/P80)>=OUTLIERS!$E$4,"",M80*S80/P80))) ->  | I80: =IF(ISERROR(O80/N80),"",IF(O80/N80<=OUTLIERS!$F$3,"",IF(O80/N80>=OUTLIERS!$F$4,"",O80/N80))) -> 0 | J80: =IF(ISERROR(U80/X80),"",IF(U80/X80<=OUTLIERS!$G$3,"",IF(U80/X80>=OUTLIERS!$G$4,"",U80/X80))) ->  | K80: =IF(ISERROR(Q80/Y80),"",IF(Q80/Y80<=OUTLIERS!$H$3,"",IF(Q80/Y80>=OUTLIERS!$H$4,"",Q80/Y80))) ->  | L80: =IF(ISERROR(W80),"",IF(W80<=OUTLIERS!$I$3,"",IF(W80>=OUTLIERS!$I$4,"",W80))) ->  | M80: 5280000 | N80: 5280000 | O80: 0 | P80: n/a | Q80: 2000 | R80: 2000 | S80: 0 | T80: 1 | U80: n/a | V80: 2000 | W80: n/a | X80: 8426766 | Y80: 29668834
A81: 80 | B81: XFIPGH016A | C81: FIP | D81: WorldBank | E81: Cross-cutting | F81: =IF(ISERROR(P81/(M81*S81)),"",IF((P81/(M81*S81))<=OUTLIERS!$C$3,"",IF((P81/(M81*S81))>=OUTLIERS!$C$4,"",P81/(M81*S81)))) ->  | G81: =IF(ISERROR(Q81/($M81*T81)),"",IF((Q81/($M81*T81))<=OUTLIERS!$D$3,"",IF((Q81/($M81*T81))>=OUTLIERS!$D$4,"",Q81/($M81*T81)))) ->  | H81: =IF(ISERROR((M81*S81)/P81),"",IF((M81*S81/P81)<=OUTLIERS!$E$3,"",IF((M81*S81/P81)>=OUTLIERS!$E$4,"",M81*S81/P81))) ->  | I81: =IF(ISERROR(O81/N81),"",IF(O81/N81<=OUTLIERS!$F$3,"",IF(O81/N81>=OUTLIERS!$F$4,"",O81/N81))) -> 0.09765625 | J81: =IF(ISERROR(U81/X81),"",IF(U81/X81<=OUTLIERS!$G$3,"",IF(U81/X81>=OUTLIERS!$G$4,"",U81/X81))) ->  | K81: =IF(ISERROR(Q81/Y81),"",IF(Q81/Y81<=OUTLIERS!$H$3,"",IF(Q81/Y81>=OUTLIERS!$H$4,"",Q81/Y81))) ->  | L81: =IF(ISERROR(W81),"",IF(W81<=OUTLIERS!$I$3,"",IF(W81>=OUTLIERS!$I$4,"",W81))) ->  | M81: 33720000 | N81: 30720000 | O81: 3000000 | P81: n/a | S81: n/a | T81: n/a | U81: n/a | V81: n/a | W81: n/a | X81: 14466315 | Y81: 28833629
A82: 81 | B82: XFIPGH045A | C82: FIP | D82: WorldBank | E82: Cross-cutting | F82: =IF(ISERROR(P82/(M82*S82)),"",IF((P82/(M82*S82))<=OUTLIERS!$C$3,"",IF((P82/(M82*S82))>=OUTLIERS!$C$4,"",P82/(M82*S82)))) ->  | G82: =IF(ISERROR(Q82/($M82*T82)),"",IF((Q82/($M82*T82))<=OUTLIERS!$D$3,"",IF((Q82/($M82*T82))>=OUTLIERS!$D$4,"",Q82/($M82*T82)))) ->  | H82: =IF(ISERROR((M82*S82)/P82),"",IF((M82*S82/P82)<=OUTLIERS!$E$3,"",IF((M82*S82/P82)>=OUTLIERS!$E$4,"",M82*S82/P82))) ->  | I82: =IF(ISERROR(O82/N82),"",IF(O82/N82<=OUTLIERS!$F$3,"",IF(O82/N82>=OUTLIERS!$F$4,"",O82/N82))) -> 0.1547189273 | J82: =IF(ISERROR(U82/X82),"",IF(U82/X82<=OUTLIERS!$G$3,"",IF(U82/X82>=OUTLIERS!$G$4,"",U82/X82))) -> 0.07177100734 | K82: =IF(ISERROR(Q82/Y82),"",IF(Q82/Y82<=OUTLIERS!$H$3,"",IF(Q82/Y82>=OUTLIERS!$H$4,"",Q82/Y82))) ->  | L82: =IF(ISERROR(W82),"",IF(W82<=OUTLIERS!$I$3,"",IF(W82>=OUTLIERS!$I$4,"",W82))) -> 0.49 | M82: 22390000 | N82: 19390000 | O82: 3000000 | P82: n/a | R82: 9501 | S82: n/a | T82: n/a | U82: 1038262 | V82: 9501 | W82: 0.49 | X82: 14466315 | Y82: 28833629
A83: 82 | B83: PFIPGH504A | C83: FIP | D83: AfDB | E83: Adaptation | F83: =IF(ISERROR(P83/(M83*S83)),"",IF((P83/(M83*S83))<=OUTLIERS!$C$3,"",IF((P83/(M83*S83))>=OUTLIERS!$C$4,"",P83/(M83*S83)))) ->  | G83: =IF(ISERROR(Q83/($M83*T83)),"",IF((Q83/($M83*T83))<=OUTLIERS!$D$3,"",IF((Q83/($M83*T83))>=OUTLIERS!$D$4,"",Q83/($M83*T83)))) ->  | H83: =IF(ISERROR((M83*S83)/P83),"",IF((M83*S83/P83)<=OUTLIERS!$E$3,"",IF((M83*S83/P83)>=OUTLIERS!$E$4,"",M83*S83/P83))) ->  | I83: =IF(ISERROR(O83/N83),"",IF(O83/N83<=OUTLIERS!$F$3,"",IF(O83/N83>=OUTLIERS!$F$4,"",O83/N83))) -> 3.414634146 | J83: =IF(ISERROR(U83/X83),"",IF(U83/X83<=OUTLIERS!$G$3,"",IF(U83/X83>=OUTLIERS!$G$4,"",U83/X83))) -> 0.004845947292 | K83: =IF(ISERROR(Q83/Y83),"",IF(Q83/Y83<=OUTLIERS!$H$3,"",IF(Q83/Y83>=OUTLIERS!$H$4,"",Q83/Y83))) ->  | L83: =IF(ISERROR(W83),"",IF(W83<=OUTLIERS!$I$3,"",IF(W83>=OUTLIERS!$I$4,"",W83))) -> 0.4 | M83: 47060000 | N83: 10660000 | O83: 36400000 | P83: n/a | Q83: not vulnerable beneficiaries | R83: not vulnerable beneficiaries | S83: 0 | T83: 1 | U83: 70103 | V83: not vulnerable beneficiaries | W83: 0.4 | X83: 14466315 | Y83: 28833629
A84: 83 | B84: XFIPID019A | C84: FIP | D84: ADB | E84: Mitigation | F84: =IF(ISERROR(P84/(M84*S84)),"",IF((P84/(M84*S84))<=OUTLIERS!$C$3,"",IF((P84/(M84*S84))>=OUTLIERS!$C$4,"",P84/(M84*S84)))) -> 0.1791767554 | G84: =IF(ISERROR(Q84/($M84*T84)),"",IF((Q84/($M84*T84))<=OUTLIERS!$D$3,"",IF((Q84/($M84*T84))>=OUTLIERS!$D$4,"",Q84/($M84*T84)))) ->  | H84: =IF(ISERROR((M84*S84)/P84),"",IF((M84*S84/P84)<=OUTLIERS!$E$3,"",IF((M84*S84/P84)>=OUTLIERS!$E$4,"",M84*S84/P84))) -> 5.581081081 | I84: =IF(ISERROR(O84/N84),"",IF(O84/N84<=OUTLIERS!$F$3,"",IF(O84/N84>=OUTLIERS!$F$4,"",O84/N84))) -> 0.08970976253 | J84: =IF(ISERROR(U84/X84),"",IF(U84/X84<=OUTLIERS!$G$3,"",IF(U84/X84>=OUTLIERS!$G$4,"",U84/X84))) -> 0.0007971111073 | K84: =IF(ISERROR(Q84/Y84),"",IF(Q84/Y84<=OUTLIERS!$H$3,"",IF(Q84/Y84>=OUTLIERS!$H$4,"",Q84/Y84))) ->  | L84: =IF(ISERROR(W84),"",IF(W84<=OUTLIERS!$I$3,"",IF(W84>=OUTLIERS!$I$4,"",W84))) -> 0.4 | M84: 20650000 | N84: 18950000 | O84: 1700000 | P84: 3700000 | R84: 10000 | S84: 1 | T84: 0 | U84: 370000 | V84: 10000 | W84: 0.4 | X84: 464176194 | Y84: 263991379
A85: 84 | B85: XFIPLA004A | C85: FIP | D85: ADB | E85: Cross-cutting | F85: =IF(ISERROR(P85/(M85*S85)),"",IF((P85/(M85*S85))<=OUTLIERS!$C$3,"",IF((P85/(M85*S85))>=OUTLIERS!$C$4,"",P85/(M85*S85)))) ->  | G85: =IF(ISERROR(Q85/($M85*T85)),"",IF((Q85/($M85*T85))<=OUTLIERS!$D$3,"",IF((Q85/($M85*T85))>=OUTLIERS!$D$4,"",Q85/($M85*T85)))) ->  | H85: =IF(ISERROR((M85*S85)/P85),"",IF((M85*S85/P85)<=OUTLIERS!$E$3,"",IF((M85*S85/P85)>=OUTLIERS!$E$4,"",M85*S85/P85))) ->  | I85: =IF(ISERROR(O85/N85),"",IF(O85/N85<=OUTLIERS!$F$3,"",IF(O85/N85>=OUTLIERS!$F$4,"",O85/N85))) -> 1.459786477 | J85: =IF(ISERROR(U85/X85),"",IF(U85/X85<=OUTLIERS!$G$3,"",IF(U85/X85>=OUTLIERS!$G$4,"",U85/X85))) -> 0.04674207513 | K85: =IF(ISERROR(Q85/Y85),"",IF(Q85/Y85<=OUTLIERS!$H$3,"",IF(Q85/Y85>=OUTLIERS!$H$4,"",Q85/Y85))) ->  | L85: =IF(ISERROR(W85),"",IF(W85<=OUTLIERS!$I$3,"",IF(W85>=OUTLIERS!$I$4,"",W85))) -> 0.3 | M85: 34560000 | N85: 14050000 | O85: 20510000 | P85: 913579 | R85: 925 | S85: n/a | T85: n/a | U85: 91357.9 | V85: 925 | W85: 0.3 | X85: 1954511 | Y85: 6858160
A86: 85 | B86: XFIPMZ031A | C86: FIP | D86: WorldBank | E86: Mitigation | F86: =IF(ISERROR(P86/(M86*S86)),"",IF((P86/(M86*S86))<=OUTLIERS!$C$3,"",IF((P86/(M86*S86))>=OUTLIERS!$C$4,"",P86/(M86*S86)))) ->  | G86: =IF(ISERROR(Q86/($M86*T86)),"",IF((Q86/($M86*T86))<=OUTLIERS!$D$3,"",IF((Q86/($M86*T86))>=OUTLIERS!$D$4,"",Q86/($M86*T86)))) ->  | H86: =IF(ISERROR((M86*S86)/P86),"",IF((M86*S86/P86)<=OUTLIERS!$E$3,"",IF((M86*S86/P86)>=OUTLIERS!$E$4,"",M86*S86/P86))) ->  | I86: =IF(ISERROR(O86/N86),"",IF(O86/N86<=OUTLIERS!$F$3,"",IF(O86/N86>=OUTLIERS!$F$4,"",O86/N86))) -> 1.097453907 | J86: =IF(ISERROR(U86/X86),"",IF(U86/X86<=OUTLIERS!$G$3,"",IF(U86/X86>=OUTLIERS!$G$4,"",U86/X86))) ->  | K86: =IF(ISERROR(Q86/Y86),"",IF(Q86/Y86<=OUTLIERS!$H$3,"",IF(Q86/Y86>=OUTLIERS!$H$4,"",Q86/Y86))) ->  | L86: =IF(ISERROR(W86),"",IF(W86<=OUTLIERS!$I$3,"",IF(W86>=OUTLIERS!$I$4,"",W86))) ->  | M86: 47780000 | N86: 22780000 | O86: 25000000 | P86: n/a | S86: 1 | T86: 0 | U86: n/a | V86: n/a | W86: n/a | X86: 8426766 | Y86: 29668834
A87: 86 | B87: XFIPPE023A | C87: FIP | D87: WorldBank | E87: Cross-cutting | F87: =IF(ISERROR(P87/(M87*S87)),"",IF((P87/(M87*S87))<=OUTLIERS!$C$3,"",IF((P87/(M87*S87))>=OUTLIERS!$C$4,"",P87/(M87*S87)))) ->  | G87: =IF(ISERROR(Q87/($M87*T87)),"",IF((Q87/($M87*T87))<=OUTLIERS!$D$3,"",IF((Q87/($M87*T87))>=OUTLIERS!$D$4,"",Q87/($M87*T87)))) ->  | H87: =IF(ISERROR((M87*S87)/P87),"",IF((M87*S87/P87)<=OUTLIERS!$E$3,"",IF((M87*S87/P87)>=OUTLIERS!$E$4,"",M87*S87/P87))) ->  | I87: =IF(ISERROR(O87/N87),"",IF(O87/N87<=OUTLIERS!$F$3,"",IF(O87/N87>=OUTLIERS!$F$4,"",O87/N87))) -> 0.3731343284 | J87: =IF(ISERROR(U87/X87),"",IF(U87/X87<=OUTLIERS!$G$3,"",IF(U87/X87>=OUTLIERS!$G$4,"",U87/X87))) ->  | K87: =IF(ISERROR(Q87/Y87),"",IF(Q87/Y87<=OUTLIERS!$H$3,"",IF(Q87/Y87>=OUTLIERS!$H$4,"",Q87/Y87))) ->  | L87: =IF(ISERROR(W87),"",IF(W87<=OUTLIERS!$I$3,"",IF(W87>=OUTLIERS!$I$4,"",W87))) ->  | M87: 18400000 | N87: 13400000 | O87: 5000000 | P87: 3108737 | R87: 7500 | S87: n/a | T87: n/a | U87: n/a | V87: 7500 | W87: n/a | X87: 61744946 | Y87: 32165485
A88: 87 | B88: XFIPPE033A | C88: FIP | D88: IDB | E88: Mitigation | F88: =IF(ISERROR(P88/(M88*S88)),"",IF((P88/(M88*S88))<=OUTLIERS!$C$3,"",IF((P88/(M88*S88))>=OUTLIERS!$C$4,"",P88/(M88*S88)))) ->  | G88: =IF(ISERROR(Q88/($M88*T88)),"",IF((Q88/($M88*T88))<=OUTLIERS!$D$3,"",IF((Q88/($M88*T88))>=OUTLIERS!$D$4,"",Q88/($M88*T88)))) ->  | H88: =IF(ISERROR((M88*S88)/P88),"",IF((M88*S88/P88)<=OUTLIERS!$E$3,"",IF((M88*S88/P88)>=OUTLIERS!$E$4,"",M88*S88/P88))) ->  | I88: =IF(ISERROR(O88/N88),"",IF(O88/N88<=OUTLIERS!$F$3,"",IF(O88/N88>=OUTLIERS!$F$4,"",O88/N88))) -> 0 | J88: =IF(ISERROR(U88/X88),"",IF(U88/X88<=OUTLIERS!$G$3,"",IF(U88/X88>=OUTLIERS!$G$4,"",U88/X88))) ->  | K88: =IF(ISERROR(Q88/Y88),"",IF(Q88/Y88<=OUTLIERS!$H$3,"",IF(Q88/Y88>=OUTLIERS!$H$4,"",Q88/Y88))) ->  | L88: =IF(ISERROR(W88),"",IF(W88<=OUTLIERS!$I$3,"",IF(W88>=OUTLIERS!$I$4,"",W88))) ->  | M88: 36300000 | N88: 36300000 | O88: 0 | P88: n/a | S88: 1 | T88: 0 | U88: n/a | V88: n/a | W88: n/a | X88: 61744946 | Y88: 32165485
A89: 88 | B89: XFIPZR001A | C89: FIP | D89: WorldBank | E89: Cross-cutting | F89: =IF(ISERROR(P89/(M89*S89)),"",IF((P89/(M89*S89))<=OUTLIERS!$C$3,"",IF((P89/(M89*S89))>=OUTLIERS!$C$4,"",P89/(M89*S89)))) ->  | G89: =IF(ISERROR(Q89/($M89*T89)),"",IF((Q89/($M89*T89))<=OUTLIERS!$D$3,"",IF((Q89/($M89*T89))>=OUTLIERS!$D$4,"",Q89/($M89*T89)))) ->  | H89: =IF(ISERROR((M89*S89)/P89),"",IF((M89*S89/P89)<=OUTLIERS!$E$3,"",IF((M89*S89/P89)>=OUTLIERS!$E$4,"",M89*S89/P89))) ->  | I89: =IF(ISERROR(O89/N89),"",IF(O89/N89<=OUTLIERS!$F$3,"",IF(O89/N89>=OUTLIERS!$F$4,"",O89/N89))) -> 0 | J89: =IF(ISERROR(U89/X89),"",IF(U89/X89<=OUTLIERS!$G$3,"",IF(U89/X89>=OUTLIERS!$G$4,"",U89/X89))) ->  | K89: =IF(ISERROR(Q89/Y89),"",IF(Q89/Y89<=OUTLIERS!$H$3,"",IF(Q89/Y89>=OUTLIERS!$H$4,"",Q89/Y89))) ->  | L89: =IF(ISERROR(W89),"",IF(W89<=OUTLIERS!$I$3,"",IF(W89>=OUTLIERS!$I$4,"",W89))) -> 0.3 | M89: 38540000 | N89: 38540000 | O89: 0 | P89: 4500000 | R89: 120000 | S89: n/a | T89: n/a | U89: n/a | V89: 120000 | W89: 0.3 | X89: 4671758 | Y89: 81339988
A90: 89 | B90: XFIPID020A | C90: FIP | D90: WorldBank | E90: Cross-cutting | F90: =IF(ISERROR(P90/(M90*S90)),"",IF((P90/(M90*S90))<=OUTLIERS!$C$3,"",IF((P90/(M90*S90))>=OUTLIERS!$C$4,"",P90/(M90*S90)))) ->  | G90: =IF(ISERROR(Q90/($M90*T90)),"",IF((Q90/($M90*T90))<=OUTLIERS!$D$3,"",IF((Q90/($M90*T90))>=OUTLIERS!$D$4,"",Q90/($M90*T90)))) ->  | H90: =IF(ISERROR((M90*S90)/P90),"",IF((M90*S90/P90)<=OUTLIERS!$E$3,"",IF((M90*S90/P90)>=OUTLIERS!$E$4,"",M90*S90/P90))) ->  | I90: =IF(ISERROR(O90/N90),"",IF(O90/N90<=OUTLIERS!$F$3,"",IF(O90/N90>=OUTLIERS!$F$4,"",O90/N90))) -> 0.2692511949 | J90: =IF(ISERROR(U90/X90),"",IF(U90/X90<=OUTLIERS!$G$3,"",IF(U90/X90>=OUTLIERS!$G$4,"",U90/X90))) -> 6.893933901e-05 | K90: =IF(ISERROR(Q90/Y90),"",IF(Q90/Y90<=OUTLIERS!$H$3,"",IF(Q90/Y90>=OUTLIERS!$H$4,"",Q90/Y90))) ->  | L90: =IF(ISERROR(W90),"",IF(W90<=OUTLIERS!$I$3,"",IF(W90>=OUTLIERS!$I$4,"",W90))) -> 0.45 | M90: 23900000 | N90: 18830000 | O90: 5070000 | P90: 320000 | R90: 200000 | S90: n/a | T90: n/a | U90: 32000 | V90: 200000 | W90: 0.45 | X90: 464176194 | Y90: 263991379
A91: 90 | B91: FP001 | C91: GCF | D91: Profonanpe | E91: Cross-cutting | F91: =IF(ISERROR(P91/(M91*S91)),"",IF((P91/(M91*S91))<=OUTLIERS!$C$3,"",IF((P91/(M91*S91))>=OUTLIERS!$C$4,"",P91/(M91*S91)))) -> 0.3608671789 | G91: =IF(ISERROR(Q91/($M91*T91)),"",IF((Q91/($M91*T91))<=OUTLIERS!$D$3,"",IF((Q91/($M91*T91))>=OUTLIERS!$D$4,"",Q91/($M91*T91)))) ->  | H91: =IF(ISERROR((M91*S91)/P91),"",IF((M91*S91/P91)<=OUTLIERS!$E$3,"",IF((M91*S91/P91)>=OUTLIERS!$E$4,"",M91*S91/P91))) -> 2.771102662 | I91: =IF(ISERROR(O91/N91),"",IF(O91/N91<=OUTLIERS!$F$3,"",IF(O91/N91>=OUTLIERS!$F$4,"",O91/N91))) -> 0.4599358974 | J91: =IF(ISERROR(U91/X91),"",IF(U91/X91<=OUTLIERS!$G$3,"",IF(U91/X91>=OUTLIERS!$G$4,"",U91/X91))) -> 0.004210870959 | K91: =IF(ISERROR(Q91/Y91),"",IF(Q91/Y91<=OUTLIERS!$H$3,"",IF(Q91/Y91>=OUTLIERS!$H$4,"",Q91/Y91))) ->  | L91: =IF(ISERROR(W91),"",IF(W91<=OUTLIERS!$I$3,"",IF(W91>=OUTLIERS!$I$4,"",W91))) -> 0.5 | M91: 9110000 | N91: 6240000 | O91: 2870000 | P91: 2630000 | R91: 61239 | S91: 0.8 | T91: 0.2 | U91: 260000 | V91: 61239 | W91: 0.5 | X91: 61744946 | Y91: 32165485
A92: 91 | B92: FP002 | C92: GCF | D92: UNDP | E92: Adaptation | F92: =IF(ISERROR(P92/(M92*S92)),"",IF((P92/(M92*S92))<=OUTLIERS!$C$3,"",IF((P92/(M92*S92))>=OUTLIERS!$C$4,"",P92/(M92*S92)))) ->  | G92: =IF(ISERROR(Q92/($M92*T92)),"",IF((Q92/($M92*T92))<=OUTLIERS!$D$3,"",IF((Q92/($M92*T92))>=OUTLIERS!$D$4,"",Q92/($M92*T92)))) -> 0.1291152012 | H92: =IF(ISERROR((M92*S92)/P92),"",IF((M92*S92/P92)<=OUTLIERS!$E$3,"",IF((M92*S92/P92)>=OUTLIERS!$E$4,"",M92*S92/P92))) ->  | I92: =IF(ISERROR(O92/N92),"",IF(O92/N92<=OUTLIERS!$F$3,"",IF(O92/N92>=OUTLIERS!$F$4,"",O92/N92))) -> 0.3229074358 | J92: =IF(ISERROR(U92/X92),"",IF(U92/X92<=OUTLIERS!$G$3,"",IF(U92/X92>=OUTLIERS!$G$4,"",U92/X92))) -> 0 | K92: =IF(ISERROR(Q92/Y92),"",IF(Q92/Y92<=OUTLIERS!$H$3,"",IF(Q92/Y92>=OUTLIERS!$H$4,"",Q92/Y92))) -> 0.1127692123 | L92: =IF(ISERROR(W92),"",IF(W92<=OUTLIERS!$I$3,"",IF(W92>=OUTLIERS!$I$4,"",W92))) -> 0.5 | M92: 16264545 | N92: 12294545 | O92: 3970000 | P92: n/a | Q92: 2100000 | R92: 2100000 | S92: 0 | T92: 1 | U92: 0 | V92: 2100000 | W92: 0.5 | X92: 1276116 | Y92: 18622104
A93: 92 | B93: FP003 | C93: GCF | D93: CSE | E93: Adaptation | F93: =IF(ISERROR(P93/(M93*S93)),"",IF((P93/(M93*S93))<=OUTLIERS!$C$3,"",IF((P93/(M93*S93))>=OUTLIERS!$C$4,"",P93/(M93*S93)))) ->  | G93: =IF(ISERROR(Q93/($M93*T93)),"",IF((Q93/($M93*T93))<=OUTLIERS!$D$3,"",IF((Q93/($M93*T93))>=OUTLIERS!$D$4,"",Q93/($M93*T93)))) -> 0.01591515449 | H93: =IF(ISERROR((M93*S93)/P93),"",IF((M93*S93/P93)<=OUTLIERS!$E$3,"",IF((M93*S93/P93)>=OUTLIERS!$E$4,"",M93*S93/P93))) ->  | I93: =IF(ISERROR(O93/N93),"",IF(O93/N93<=OUTLIERS!$F$3,"",IF(O93/N93>=OUTLIERS!$F$4,"",O93/N93))) -> 0.07174770039 | J93: =IF(ISERROR(U93/X93),"",IF(U93/X93<=OUTLIERS!$G$3,"",IF(U93/X93>=OUTLIERS!$G$4,"",U93/X93))) ->  | K93: =IF(ISERROR(Q93/Y93),"",IF(Q93/Y93<=OUTLIERS!$H$3,"",IF(Q93/Y93>=OUTLIERS!$H$4,"",Q93/Y93))) -> 0.008189233861 | L93: =IF(ISERROR(W93),"",IF(W93<=OUTLIERS!$I$3,"",IF(W93>=OUTLIERS!$I$4,"",W93))) -> 0.5 | M93: 8156000 | N93: 7610000 | O93: 546000 | P93: n/a | Q93: 129804 | R93: 129804 | S93: 0 | T93: 1 | U93: n/a | V93: 129804 | W93: 0.5 | X93: 8855805 | Y93: 15850567
A94: 93 | B94: FP004 | C94: GCF | D94: KfW | E94: Adaptation | F94: =IF(ISERROR(P94/(M94*S94)),"",IF((P94/(M94*S94))<=OUTLIERS!$C$3,"",IF((P94/(M94*S94))>=OUTLIERS!$C$4,"",P94/(M94*S94)))) ->  | G94: =IF(ISERROR(Q94/($M94*T94)),"",IF((Q94/($M94*T94))<=OUTLIERS!$D$3,"",IF((Q94/($M94*T94))>=OUTLIERS!$D$4,"",Q94/($M94*T94)))) -> 0.1300512953 | H94: =IF(ISERROR((M94*S94)/P94),"",IF((M94*S94/P94)<=OUTLIERS!$E$3,"",IF((M94*S94/P94)>=OUTLIERS!$E$4,"",M94*S94/P94))) ->  | I94: =IF(ISERROR(O94/N94),"",IF(O94/N94<=OUTLIERS!$F$3,"",IF(O94/N94>=OUTLIERS!$F$4,"",O94/N94))) -> 1.0250375 | J94: =IF(ISERROR(U94/X94),"",IF(U94/X94<=OUTLIERS!$G$3,"",IF(U94/X94>=OUTLIERS!$G$4,"",U94/X94))) -> 0 | K94: =IF(ISERROR(Q94/Y94),"",IF(Q94/Y94<=OUTLIERS!$H$3,"",IF(Q94/Y94>=OUTLIERS!$H$4,"",Q94/Y94))) -> 0.06397258717 | L94: =IF(ISERROR(W94),"",IF(W94<=OUTLIERS!$I$3,"",IF(W94>=OUTLIERS!$I$4,"",W94))) -> 0.5 | M94: 81001500 | N94: 40000000 | O94: 41001500 | P94: n/a | Q94: 10534350 | R94: 10534350 | S94: 0 | T94: 1 | U94: 0 | V94: 10534350 | W94: 0.5 | X94: 73189653 | Y94: 164669751
A95: 94 | B95: FP005 | C95: GCF | D95: Acumen | E95: Cross-cutting | F95: =IF(ISERROR(P95/(M95*S95)),"",IF((P95/(M95*S95))<=OUTLIERS!$C$3,"",IF((P95/(M95*S95))>=OUTLIERS!$C$4,"",P95/(M95*S95)))) -> 0.01604278075 | G95: =IF(ISERROR(Q95/($M95*T95)),"",IF((Q95/($M95*T95))<=OUTLIERS!$D$3,"",IF((Q95/($M95*T95))>=OUTLIERS!$D$4,"",Q95/($M95*T95)))) ->  | H95: =IF(ISERROR((M95*S95)/P95),"",IF((M95*S95/P95)<=OUTLIERS!$E$3,"",IF((M95*S95/P95)>=OUTLIERS!$E$4,"",M95*S95/P95))) -> 62.33333333 | I95: =IF(ISERROR(O95/N95),"",IF(O95/N95<=OUTLIERS!$F$3,"",IF(O95/N95>=OUTLIERS!$F$4,"",O95/N95))) -> 3.4 | J95: =IF(ISERROR(U95/X95),"",IF(U95/X95<=OUTLIERS!$G$3,"",IF(U95/X95>=OUTLIERS!$G$4,"",U95/X95))) -> 0.01652742313 | K95: =IF(ISERROR(Q95/Y95),"",IF(Q95/Y95<=OUTLIERS!$H$3,"",IF(Q95/Y95>=OUTLIERS!$H$4,"",Q95/Y95))) ->  | L95: =IF(ISERROR(W95),"",IF(W95<=OUTLIERS!$I$3,"",IF(W95>=OUTLIERS!$I$4,"",W95))) ->  | M95: 110000000 | N95: 25000000 | O95: 85000000 | P95: 1500000 | R95: 15000000 | S95: 0.85 | T95: 0.15 | U95: 125000 | V95: 15000000 | W95: n/a | X95: 7563187.5 | Y95: 30954134.5
A96: 95 | B96: FP006 | C96: GCF | D96: IDB | E96: Mitigation | F96: =IF(ISERROR(P96/(M96*S96)),"",IF((P96/(M96*S96))<=OUTLIERS!$C$3,"",IF((P96/(M96*S96))>=OUTLIERS!$C$4,"",P96/(M96*S96)))) -> 0.07154471545 | G96: =IF(ISERROR(Q96/($M96*T96)),"",IF((Q96/($M96*T96))<=OUTLIERS!$D$3,"",IF((Q96/($M96*T96))>=OUTLIERS!$D$4,"",Q96/($M96*T96)))) ->  | H96: =IF(ISERROR((M96*S96)/P96),"",IF((M96*S96/P96)<=OUTLIERS!$E$3,"",IF((M96*S96/P96)>=OUTLIERS!$E$4,"",M96*S96/P96))) -> 13.97727273 | I96: =IF(ISERROR(O96/N96),"",IF(O96/N96<=OUTLIERS!$F$3,"",IF(O96/N96>=OUTLIERS!$F$4,"",O96/N96))) -> 7.386363636 | J96: =IF(ISERROR(U96/X96),"",IF(U96/X96<=OUTLIERS!$G$3,"",IF(U96/X96>=OUTLIERS!$G$4,"",U96/X96))) -> 0.004580750391 | K96: =IF(ISERROR(Q96/Y96),"",IF(Q96/Y96<=OUTLIERS!$H$3,"",IF(Q96/Y96>=OUTLIERS!$H$4,"",Q96/Y96))) ->  | L96: =IF(ISERROR(W96),"",IF(W96<=OUTLIERS!$I$3,"",IF(W96>=OUTLIERS!$I$4,"",W96))) ->  | M96: 184500000 | N96: 22000000 | O96: 162500000 | P96: 13200000 | S96: 1 | T96: 0 | U96: 2200000 | V96: n/a | W96: n/a | X96: 480270657 | Y96: 129163276
A97: 96 | B97: FP007 | C97: GCF | D97: UNDP | E97: Adaptation | F97: =IF(ISERROR(P97/(M97*S97)),"",IF((P97/(M97*S97))<=OUTLIERS!$C$3,"",IF((P97/(M97*S97))>=OUTLIERS!$C$4,"",P97/(M97*S97)))) ->  | G97: =IF(ISERROR(Q97/($M97*T97)),"",IF((Q97/($M97*T97))<=OUTLIERS!$D$3,"",IF((Q97/($M97*T97))>=OUTLIERS!$D$4,"",Q97/($M97*T97)))) -> 0.003719531195 | H97: =IF(ISERROR((M97*S97)/P97),"",IF((M97*S97/P97)<=OUTLIERS!$E$3,"",IF((M97*S97/P97)>=OUTLIERS!$E$4,"",M97*S97/P97))) ->  | I97: =IF(ISERROR(O97/N97),"",IF(O97/N97<=OUTLIERS!$F$3,"",IF(O97/N97>=OUTLIERS!$F$4,"",O97/N97))) -> 0.1943192278 | J97: =IF(ISERROR(U97/X97),"",IF(U97/X97<=OUTLIERS!$G$3,"",IF(U97/X97>=OUTLIERS!$G$4,"",U97/X97))) ->  | K97: =IF(ISERROR(Q97/Y97),"",IF(Q97/Y97<=OUTLIERS!$H$3,"",IF(Q97/Y97>=OUTLIERS!$H$4,"",Q97/Y97))) -> 0.2406435496 | L97: =IF(ISERROR(W97),"",IF(W97<=OUTLIERS!$I$3,"",IF(W97>=OUTLIERS!$I$4,"",W97))) -> 0.5919142857 | M97: 28229364 | N97: 23636364 | O97: 4593000 | P97: n/a | Q97: 105000 | R97: 105000 | S97: 0 | T97: 1 | U97: n/a | V97: 105000 | W97: 0.5919142857 | X97: 1334788 | Y97: 436330
A98: 97 | B98: FP008 | C98: GCF | D98: ADB | E98: Adaptation | F98: =IF(ISERROR(P98/(M98*S98)),"",IF((P98/(M98*S98))<=OUTLIERS!$C$3,"",IF((P98/(M98*S98))>=OUTLIERS!$C$4,"",P98/(M98*S98)))) ->  | G98: =IF(ISERROR(Q98/($M98*T98)),"",IF((Q98/($M98*T98))<=OUTLIERS!$D$3,"",IF((Q98/($M98*T98))>=OUTLIERS!$D$4,"",Q98/($M98*T98)))) -> 0.0007179098583 | H98: =IF(ISERROR((M98*S98)/P98),"",IF((M98*S98/P98)<=OUTLIERS!$E$3,"",IF((M98*S98/P98)>=OUTLIERS!$E$4,"",M98*S98/P98))) ->  | I98: =IF(ISERROR(O98/N98),"",IF(O98/N98<=OUTLIERS!$F$3,"",IF(O98/N98>=OUTLIERS!$F$4,"",O98/N98))) -> 12.05219072 | J98: =IF(ISERROR(U98/X98),"",IF(U98/X98<=OUTLIERS!$G$3,"",IF(U98/X98>=OUTLIERS!$G$4,"",U98/X98))) -> 0 | K98: =IF(ISERROR(Q98/Y98),"",IF(Q98/Y98<=OUTLIERS!$H$3,"",IF(Q98/Y98>=OUTLIERS!$H$4,"",Q98/Y98))) -> 0.3212074628 | L98: =IF(ISERROR(W98),"",IF(W98<=OUTLIERS!$I$3,"",IF(W98>=OUTLIERS!$I$4,"",W98))) ->  | M98: 405140000 | N98: 31040000 | O98: 374100000 | P98: n/a | Q98: 290854 | R98: 290854 | S98: 0 | T98: 1 | U98: 0 | V98: 290854 | W98: n/a | X98: 1169773 | Y98: 905502
A99: 98 | B99: FP009 | C99: GCF | D99: IDB | E99: Mitigation | F99: =IF(ISERROR(P99/(M99*S99)),"",IF((P99/(M99*S99))<=OUTLIERS!$C$3,"",IF((P99/(M99*S99))>=OUTLIERS!$C$4,"",P99/(M99*S99)))) -> 0.01347810552 | G99: =IF(ISERROR(Q99/($M99*T99)),"",IF((Q99/($M99*T99))<=OUTLIERS!$D$3,"",IF((Q99/($M99*T99))>=OUTLIERS!$D$4,"",Q99/($M99*T99)))) ->  | H99: =IF(ISERROR((M99*S99)/P99),"",IF((M99*S99/P99)<=OUTLIERS!$E$3,"",IF((M99*S99/P99)>=OUTLIERS!$E$4,"",M99*S99/P99))) -> 74.19440357 | I99: =IF(ISERROR(O99/N99),"",IF(O99/N99<=OUTLIERS!$F$3,"",IF(O99/N99>=OUTLIERS!$F$4,"",O99/N99))) -> 0.9216589862 | J99: =IF(ISERROR(U99/X99),"",IF(U99/X99<=OUTLIERS!$G$3,"",IF(U99/X99>=OUTLIERS!$G$4,"",U99/X99))) -> 0.005961428986 | K99: =IF(ISERROR(Q99/Y99),"",IF(Q99/Y99<=OUTLIERS!$H$3,"",IF(Q99/Y99>=OUTLIERS!$H$4,"",Q99/Y99))) ->  | L99: =IF(ISERROR(W99),"",IF(W99<=OUTLIERS!$I$3,"",IF(W99>=OUTLIERS!$I$4,"",W99))) ->  | M99: 41700000 | N99: 21700000 | O99: 20000000 | P99: 562037 | S99: 1 | T99: 0 | U99: 37469 | V99: n/a | W99: n/a | X99: 6285238 | Y99: 6377853
A100: 99 | B100: FP010 | C100: GCF | D100: UNDP | E100: Mitigation | F100: =IF(ISERROR(P100/(M100*S100)),"",IF((P100/(M100*S100))<=OUTLIERS!$C$3,"",IF((P100/(M100*S100))>=OUTLIERS!$C$4,"",P100/(M100*S100)))) -> 0.0119727492 | G100: =IF(ISERROR(Q100/($M100*T100)),"",IF((Q100/($M100*T100))<=OUTLIERS!$D$3,"",IF((Q100/($M100*T100))>=OUTLIERS!$D$4,"",Q100/($M100*T100)))) ->  | H100: =IF(ISERROR((M100*S100)/P100),"",IF((M100*S100/P100)<=OUTLIERS!$E$3,"",IF((M100*S100/P100)>=OUTLIERS!$E$4,"",M100*S100/P100))) -> 83.52300571 | I100: =IF(ISERROR(O100/N100),"",IF(O100/N100<=OUTLIERS!$F$3,"",IF(O100/N100>=OUTLIERS!$F$4,"",O100/N100))) -> 4.8035 | J100: =IF(ISERROR(U100/X100),"",IF(U100/X100<=OUTLIERS!$G$3,"",IF(U100/X100>=OUTLIERS!$G$4,"",U100/X100))) -> 0.01256529127 | K100: =IF(ISERROR(Q100/Y100),"",IF(Q100/Y100<=OUTLIERS!$H$3,"",IF(Q100/Y100>=OUTLIERS!$H$4,"",Q100/Y100))) ->  | L100: =IF(ISERROR(W100),"",IF(W100<=OUTLIERS!$I$3,"",IF(W100>=OUTLIERS!$I$4,"",W100))) -> 0.6236917222 | M100: 116070000 | N100: 20000000 | O100: 96070000 | P100: 1389677 | R100: 210200 | S100: 1 | T100: 0 | U100: 69484 | V100: 210200 | W100: 0.6236917222 | X100: 5529836 | Y100: 2930450
A101: 100 | B101: FP011 | C101: GCF | D101: UNEP | E101: Adaptation | F101: =IF(ISERROR(P101/(M101*S101)),"",IF((P101/(M101*S101))<=OUTLIERS!$C$3,"",IF((P101/(M101*S101))>=OUTLIERS!$C$4,"",P101/(M101*S101)))) ->  | G101: =IF(ISERROR(Q101/($M101*T101)),"",IF((Q101/($M101*T101))<=OUTLIERS!$D$3,"",IF((Q101/($M101*T101))>=OUTLIERS!$D$4,"",Q101/($M101*T101)))) -> 0.002262809825 | H101: =IF(ISERROR((M101*S101)/P101),"",IF((M101*S101/P101)<=OUTLIERS!$E$3,"",IF((M101*S101/P101)>=OUTLIERS!$E$4,"",M101*S101/P101))) ->  | I101: =IF(ISERROR(O101/N101),"",IF(O101/N101<=OUTLIERS!$F$3,"",IF(O101/N101>=OUTLIERS!$F$4,"",O101/N101))) -> 0.2421117475 | J101: =IF(ISERROR(U101/X101),"",IF(U101/X101<=OUTLIERS!$G$3,"",IF(U101/X101>=OUTLIERS!$G$4,"",U101/X101))) -> 0 | K101: =IF(ISERROR(Q101/Y101),"",IF(Q101/Y101<=OUTLIERS!$H$3,"",IF(Q101/Y101>=OUTLIERS!$H$4,"",Q101/Y101))) -> 0.02749256392 | L101: =IF(ISERROR(W101),"",IF(W101<=OUTLIERS!$I$3,"",IF(W101>=OUTLIERS!$I$4,"",W101))) -> 0.5 | M101: 25521367 | N101: 20546756 | O101: 4974611 | P101: n/a | Q101: 57750 | R101: 57750 | S101: 0 | T101: 1 | U101: 0 | V101: 57750 | W101: 0.5 | X101: 513380 | Y101: 2100568
A102: 101 | B102: FP012 | C102: GCF | D102: WorldBank | E102: Adaptation | F102: =IF(ISERROR(P102/(M102*S102)),"",IF((P102/(M102*S102))<=OUTLIERS!$C$3,"",IF((P102/(M102*S102))>=OUTLIERS!$C$4,"",P102/(M102*S102)))) ->  | G102: =IF(ISERROR(Q102/($M102*T102)),"",IF((Q102/($M102*T102))<=OUTLIERS!$D$3,"",IF((Q102/($M102*T102))>=OUTLIERS!$D$4,"",Q102/($M102*T102)))) -> 0.1944954128 | H102: =IF(ISERROR((M102*S102)/P102),"",IF((M102*S102/P102)<=OUTLIERS!$E$3,"",IF((M102*S102/P102)>=OUTLIERS!$E$4,"",M102*S102/P102))) ->  | I102: =IF(ISERROR(O102/N102),"",IF(O102/N102<=OUTLIERS!$F$3,"",IF(O102/N102>=OUTLIERS!$F$4,"",O102/N102))) -> 0.1978021978 | J102: =IF(ISERROR(U102/X102),"",IF(U102/X102<=OUTLIERS!$G$3,"",IF(U102/X102>=OUTLIERS!$G$4,"",U102/X102))) ->  | K102: =IF(ISERROR(Q102/Y102),"",IF(Q102/Y102<=OUTLIERS!$H$3,"",IF(Q102/Y102>=OUTLIERS!$H$4,"",Q102/Y102))) -> 0.2858378663 | L102: =IF(ISERROR(W102),"",IF(W102<=OUTLIERS!$I$3,"",IF(W102>=OUTLIERS!$I$4,"",W102))) -> 0.5 | M102: 27250000 | N102: 22750000 | O102: 4500000 | P102: n/a | Q102: 5300000 | R102: 5300000 | S102: 0 | T102: 1 | U102: n/a | V102: 5300000 | W102: 0.5 | X102: 1411795 | Y102: 18541980
A103: 102 | B103: FP013 | C103: GCF | D103: UNDP | E103: Cross-cutting | F103: =IF(ISERROR(P103/(M103*S103)),"",IF((P103/(M103*S103))<=OUTLIERS!$C$3,"",IF((P103/(M103*S103))>=OUTLIERS!$C$4,"",P103/(M103*S103)))) -> 0.2086823695 | G103: =IF(ISERROR(Q103/($M103*T103)),"",IF((Q103/($M103*T103))<=OUTLIERS!$D$3,"",IF((Q103/($M103*T103))>=OUTLIERS!$D$4,"",Q103/($M103*T103)))) ->  | H103: =IF(ISERROR((M103*S103)/P103),"",IF((M103*S103/P103)<=OUTLIERS!$E$3,"",IF((M103*S103/P103)>=OUTLIERS!$E$4,"",M103*S103/P103))) -> 4.791971656 | I103: =IF(ISERROR(O103/N103),"",IF(O103/N103<=OUTLIERS!$F$3,"",IF(O103/N103>=OUTLIERS!$F$4,"",O103/N103))) -> 0.3728152627 | J103: =IF(ISERROR(U103/X103),"",IF(U103/X103<=OUTLIERS!$G$3,"",IF(U103/X103>=OUTLIERS!$G$4,"",U103/X103))) -> 0.0005573993909 | K103: =IF(ISERROR(Q103/Y103),"",IF(Q103/Y103<=OUTLIERS!$H$3,"",IF(Q103/Y103>=OUTLIERS!$H$4,"",Q103/Y103))) ->  | L103: =IF(ISERROR(W103),"",IF(W103<=OUTLIERS!$I$3,"",IF(W103>=OUTLIERS!$I$4,"",W103))) -> 0.6 | M103: 40529625 | N103: 29523000 | O103: 11006625 | P103: 1860720 | R103: 30020000 | S103: 0.22 | T103: 0.78 | U103: 93036 | V103: 30020000 | W103: 0.6 | X103: 166910839 | Y103: 95540800
A104: 103 | B104: FP014 | C104: GCF | D104: WorldBank | E104: Adaptation | F104: =IF(ISERROR(P104/(M104*S104)),"",IF((P104/(M104*S104))<=OUTLIERS!$C$3,"",IF((P104/(M104*S104))>=OUTLIERS!$C$4,"",P104/(M104*S104)))) ->  | G104: =IF(ISERROR(Q104/($M104*T104)),"",IF((Q104/($M104*T104))<=OUTLIERS!$D$3,"",IF((Q104/($M104*T104))>=OUTLIERS!$D$4,"",Q104/($M104*T104)))) -> 0.002980517592 | H104: =IF(ISERROR((M104*S104)/P104),"",IF((M104*S104/P104)<=OUTLIERS!$E$3,"",IF((M104*S104/P104)>=OUTLIERS!$E$4,"",M104*S104/P104))) ->  | I104: =IF(ISERROR(O104/N104),"",IF(O104/N104<=OUTLIERS!$F$3,"",IF(O104/N104>=OUTLIERS!$F$4,"",O104/N104))) -> 2.62 | J104: =IF(ISERROR(U104/X104),"",IF(U104/X104<=OUTLIERS!$G$3,"",IF(U104/X104>=OUTLIERS!$G$4,"",U104/X104))) -> 0 | K104: =IF(ISERROR(Q104/Y104),"",IF(Q104/Y104<=OUTLIERS!$H$3,"",IF(Q104/Y104>=OUTLIERS!$H$4,"",Q104/Y104))) -> 0.009925307702 | L104: =IF(ISERROR(W104),"",IF(W104<=OUTLIERS!$I$3,"",IF(W104>=OUTLIERS!$I$4,"",W104))) -> 0.4 | M104: 68780000 | N104: 19000000 | O104: 49780000 | P104: n/a | Q104: 205000 | R104: 205000 | S104: 0 | T104: 1 | U104: 0 | V104: 205000 | W104: 0.4 | X104: 55201184.5 | Y104: 20654271.5
A105: 104 | B105: FP015 | C105: GCF | D105: UNDP | E105: Adaptation | F105: =IF(ISERROR(P105/(M105*S105)),"",IF((P105/(M105*S105))<=OUTLIERS!$C$3,"",IF((P105/(M105*S105))>=OUTLIERS!$C$4,"",P105/(M105*S105)))) ->  | G105: =IF(ISERROR(Q105/($M105*T105)),"",IF((Q105/($M105*T105))<=OUTLIERS!$D$3,"",IF((Q105/($M105*T105))>=OUTLIERS!$D$4,"",Q105/($M105*T105)))) ->  | H105: =IF(ISERROR((M105*S105)/P105),"",IF((M105*S105/P105)<=OUTLIERS!$E$3,"",IF((M105*S105/P105)>=OUTLIERS!$E$4,"",M105*S105/P105))) ->  | I105: =IF(ISERROR(O105/N105),"",IF(O105/N105<=OUTLIERS!$F$3,"",IF(O105/N105>=OUTLIERS!$F$4,"",O105/N105))) -> 0.07942238267 | J105: =IF(ISERROR(U105/X105),"",IF(U105/X105<=OUTLIERS!$G$3,"",IF(U105/X105>=OUTLIERS!$G$4,"",U105/X105))) -> 0 | K105: =IF(ISERROR(Q105/Y105),"",IF(Q105/Y105<=OUTLIERS!$H$3,"",IF(Q105/Y105>=OUTLIERS!$H$4,"",Q105/Y105))) -> 0.589617584 | L105: =IF(ISERROR(W105),"",IF(W105<=OUTLIERS!$I$3,"",IF(W105>=OUTLIERS!$I$4,"",W105))) -> 0.5061290323 | M105: 38870000 | N105: 36010000 | O105: 2860000 | P105: n/a | Q105: 6599 | R105: 6599 | S105: 0 | T105: 1 | U105: 0 | V105: 6599 | W105: 0.5061290323 | X105: 11001 | Y105: 11192
A106: 105 | B106: FP016 | C106: GCF | D106: UNDP | E106: Adaptation | F106: =IF(ISERROR(P106/(M106*S106)),"",IF((P106/(M106*S106))<=OUTLIERS!$C$3,"",IF((P106/(M106*S106))>=OUTLIERS!$C$4,"",P106/(M106*S106)))) ->  | G106: =IF(ISERROR(Q106/($M106*T106)),"",IF((Q106/($M106*T106))<=OUTLIERS!$D$3,"",IF((Q106/($M106*T106))>=OUTLIERS!$D$4,"",Q106/($M106*T106)))) -> 0.03744670148 | H106: =IF(ISERROR((M106*S106)/P106),"",IF((M106*S106/P106)<=OUTLIERS!$E$3,"",IF((M106*S106/P106)>=OUTLIERS!$E$4,"",M106*S106/P106))) ->  | I106: =IF(ISERROR(O106/N106),"",IF(O106/N106<=OUTLIERS!$F$3,"",IF(O106/N106>=OUTLIERS!$F$4,"",O106/N106))) -> 0.3676084445 | J106: =IF(ISERROR(U106/X106),"",IF(U106/X106<=OUTLIERS!$G$3,"",IF(U106/X106>=OUTLIERS!$G$4,"",U106/X106))) -> 0 | K106: =IF(ISERROR(Q106/Y106),"",IF(Q106/Y106<=OUTLIERS!$H$3,"",IF(Q106/Y106>=OUTLIERS!$H$4,"",Q106/Y106))) -> 0.09095196792 | L106: =IF(ISERROR(W106),"",IF(W106<=OUTLIERS!$I$3,"",IF(W106>=OUTLIERS!$I$4,"",W106))) -> 0.51 | M106: 52084000 | N106: 38084000 | O106: 14000000 | P106: n/a | Q106: 1950374 | R106: 1950374 | S106: 0 | T106: 1 | U106: 0 | V106: 1950374 | W106: 0.51 | X106: 18393672 | Y106: 21444000
A107: 106 | B107: FP017 | C107: GCF | D107: CAF | E107: Mitigation | F107: =IF(ISERROR(P107/(M107*S107)),"",IF((P107/(M107*S107))<=OUTLIERS!$C$3,"",IF((P107/(M107*S107))>=OUTLIERS!$C$4,"",P107/(M107*S107)))) -> 0.02042785635 | G107: =IF(ISERROR(Q107/($M107*T107)),"",IF((Q107/($M107*T107))<=OUTLIERS!$D$3,"",IF((Q107/($M107*T107))>=OUTLIERS!$D$4,"",Q107/($M107*T107)))) ->  | H107: =IF(ISERROR((M107*S107)/P107),"",IF((M107*S107/P107)<=OUTLIERS!$E$3,"",IF((M107*S107/P107)>=OUTLIERS!$E$4,"",M107*S107/P107))) -> 48.95276248 | I107: =IF(ISERROR(O107/N107),"",IF(O107/N107<=OUTLIERS!$F$3,"",IF(O107/N107>=OUTLIERS!$F$4,"",O107/N107))) -> 3.641025641 | J107: =IF(ISERROR(U107/X107),"",IF(U107/X107<=OUTLIERS!$G$3,"",IF(U107/X107>=OUTLIERS!$G$4,"",U107/X107))) -> 0.002239176246 | K107: =IF(ISERROR(Q107/Y107),"",IF(Q107/Y107<=OUTLIERS!$H$3,"",IF(Q107/Y107>=OUTLIERS!$H$4,"",Q107/Y107))) ->  | L107: =IF(ISERROR(W107),"",IF(W107<=OUTLIERS!$I$3,"",IF(W107>=OUTLIERS!$I$4,"",W107))) ->  | M107: 181000000 | N107: 39000000 | O107: 142000000 | P107: 3697442 | S107: 1 | T107: 0 | U107: 184872 | V107: n/a | W107: n/a | X107: 82562505 | Y107: 18054726
A108: 107 | B108: FP018 | C108: GCF | D108: UNDP | E108: Adaptation | F108: =IF(ISERROR(P108/(M108*S108)),"",IF((P108/(M108*S108))<=OUTLIERS!$C$3,"",IF((P108/(M108*S108))>=OUTLIERS!$C$4,"",P108/(M108*S108)))) ->  | G108: =IF(ISERROR(Q108/($M108*T108)),"",IF((Q108/($M108*T108))<=OUTLIERS!$D$3,"",IF((Q108/($M108*T108))>=OUTLIERS!$D$4,"",Q108/($M108*T108)))) -> 0.780379071 | H108: =IF(ISERROR((M108*S108)/P108),"",IF((M108*S108/P108)<=OUTLIERS!$E$3,"",IF((M108*S108/P108)>=OUTLIERS!$E$4,"",M108*S108/P108))) ->  | I108: =IF(ISERROR(O108/N108),"",IF(O108/N108<=OUTLIERS!$F$3,"",IF(O108/N108>=OUTLIERS!$F$4,"",O108/N108))) -> 0.01352813853 | J108: =IF(ISERROR(U108/X108),"",IF(U108/X108<=OUTLIERS!$G$3,"",IF(U108/X108>=OUTLIERS!$G$4,"",U108/X108))) -> 0 | K108: =IF(ISERROR(Q108/Y108),"",IF(Q108/Y108<=OUTLIERS!$H$3,"",IF(Q108/Y108>=OUTLIERS!$H$4,"",Q108/Y108))) -> 0.1483788458 | L108: =IF(ISERROR(W108),"",IF(W108<=OUTLIERS!$I$3,"",IF(W108>=OUTLIERS!$I$4,"",W108))) -> 0.5 | M108: 37460000 | N108: 36960000 | O108: 500000 | P108: n/a | Q108: 29233000 | R108: 29233000 | S108: 0 | T108: 1 | U108: 0 | V108: 29233000 | W108: 0.5 | X108: 166298450 | Y108: 197015955
A109: 108 | B109: FP019 | C109: GCF | D109: UNDP | E109: Mitigation | F109: =IF(ISERROR(P109/(M109*S109)),"",IF((P109/(M109*S109))<=OUTLIERS!$C$3,"",IF((P109/(M109*S109))>=OUTLIERS!$C$4,"",P109/(M109*S109)))) -> 0.1785530482 | G109: =IF(ISERROR(Q109/($M109*T109)),"",IF((Q109/($M109*T109))<=OUTLIERS!$D$3,"",IF((Q109/($M109*T109))>=OUTLIERS!$D$4,"",Q109/($M109*T109)))) ->  | H109: =IF(ISERROR((M109*S109)/P109),"",IF((M109*S109/P109)<=OUTLIERS!$E$3,"",IF((M109*S109/P109)>=OUTLIERS!$E$4,"",M109*S109/P109))) -> 5.600576467 | I109: =IF(ISERROR(O109/N109),"",IF(O109/N109<=OUTLIERS!$F$3,"",IF(O109/N109>=OUTLIERS!$F$4,"",O109/N109))) -> 1.040394908 | J109: =IF(ISERROR(U109/X109),"",IF(U109/X109<=OUTLIERS!$G$3,"",IF(U109/X109>=OUTLIERS!$G$4,"",U109/X109))) -> 0.06830654127 | K109: =IF(ISERROR(Q109/Y109),"",IF(Q109/Y109<=OUTLIERS!$H$3,"",IF(Q109/Y109>=OUTLIERS!$H$4,"",Q109/Y109))) ->  | L109: =IF(ISERROR(W109),"",IF(W109<=OUTLIERS!$I$3,"",IF(W109>=OUTLIERS!$I$4,"",W109))) ->  | M109: 84008647 | N109: 41172739 | O109: 42835908 | P109: 15000000 | R109: 450000 | S109: 1 | T109: 0 | U109: 3000000 | V109: 450000 | W109: n/a | X109: 43919659 | Y109: 16624858
A110: 109 | B110: FP020 | C110: GCF | D110: IDB | E110: Mitigation | F110: =IF(ISERROR(P110/(M110*S110)),"",IF((P110/(M110*S110))<=OUTLIERS!$C$3,"",IF((P110/(M110*S110))>=OUTLIERS!$C$4,"",P110/(M110*S110)))) -> 0.04936588298 | G110: =IF(ISERROR(Q110/($M110*T110)),"",IF((Q110/($M110*T110))<=OUTLIERS!$D$3,"",IF((Q110/($M110*T110))>=OUTLIERS!$D$4,"",Q110/($M110*T110)))) ->  | H110: =IF(ISERROR((M110*S110)/P110),"",IF((M110*S110/P110)<=OUTLIERS!$E$3,"",IF((M110*S110/P110)>=OUTLIERS!$E$4,"",M110*S110/P110))) -> 20.25690496 | I110: =IF(ISERROR(O110/N110),"",IF(O110/N110<=OUTLIERS!$F$3,"",IF(O110/N110>=OUTLIERS!$F$4,"",O110/N110))) -> 1.38085 | J110: =IF(ISERROR(U110/X110),"",IF(U110/X110<=OUTLIERS!$G$3,"",IF(U110/X110>=OUTLIERS!$G$4,"",U110/X110))) ->  | K110: =IF(ISERROR(Q110/Y110),"",IF(Q110/Y110<=OUTLIERS!$H$3,"",IF(Q110/Y110>=OUTLIERS!$H$4,"",Q110/Y110))) ->  | L110: =IF(ISERROR(W110),"",IF(W110<=OUTLIERS!$I$3,"",IF(W110>=OUTLIERS!$I$4,"",W110))) ->  | M110: 190468000 | N110: 80000000 | O110: 110468000 | P110: 9402621 | R110: 481652 | S110: 1 | T110: 0 | U110: 313421 | V110: 481652 | W110: n/a | X110: 244955.6 | Y110: 105167.2
A111: 110 | B111: FP021 | C111: GCF | D111: AFD | E111: Adaptation | F111: =IF(ISERROR(P111/(M111*S111)),"",IF((P111/(M111*S111))<=OUTLIERS!$C$3,"",IF((P111/(M111*S111))>=OUTLIERS!$C$4,"",P111/(M111*S111)))) ->  | G111: =IF(ISERROR(Q111/($M111*T111)),"",IF((Q111/($M111*T111))<=OUTLIERS!$D$3,"",IF((Q111/($M111*T111))>=OUTLIERS!$D$4,"",Q111/($M111*T111)))) -> 0.02810422535 | H111: =IF(ISERROR((M111*S111)/P111),"",IF((M111*S111/P111)<=OUTLIERS!$E$3,"",IF((M111*S111/P111)>=OUTLIERS!$E$4,"",M111*S111/P111))) ->  | I111: =IF(ISERROR(O111/N111),"",IF(O111/N111<=OUTLIERS!$F$3,"",IF(O111/N111>=OUTLIERS!$F$4,"",O111/N111))) -> 3.733333333 | J111: =IF(ISERROR(U111/X111),"",IF(U111/X111<=OUTLIERS!$G$3,"",IF(U111/X111>=OUTLIERS!$G$4,"",U111/X111))) ->  | K111: =IF(ISERROR(Q111/Y111),"",IF(Q111/Y111<=OUTLIERS!$H$3,"",IF(Q111/Y111>=OUTLIERS!$H$4,"",Q111/Y111))) -> 0.1387962967 | L111: =IF(ISERROR(W111),"",IF(W111<=OUTLIERS!$I$3,"",IF(W111>=OUTLIERS!$I$4,"",W111))) -> 0.5 | M111: 78280044.11 | N111: 16538037.49 | O111: 61742006.62 | P111: n/a | Q111: 2200000 | R111: 2200000 | S111: 0 | T111: 1 | U111: n/a | V111: 2200000 | W111: 0.5 | X111: 8855805 | Y111: 15850567
A112: 111 | B112: FP022 | C112: GCF | D112: ADA_Morocco | E112: Cross-cutting | F112: =IF(ISERROR(P112/(M112*S112)),"",IF((P112/(M112*S112))<=OUTLIERS!$C$3,"",IF((P112/(M112*S112))>=OUTLIERS!$C$4,"",P112/(M112*S112)))) -> 0.01919187922 | G112: =IF(ISERROR(Q112/($M112*T112)),"",IF((Q112/($M112*T112))<=OUTLIERS!$D$3,"",IF((Q112/($M112*T112))>=OUTLIERS!$D$4,"",Q112/($M112*T112)))) ->  | H112: =IF(ISERROR((M112*S112)/P112),"",IF((M112*S112/P112)<=OUTLIERS!$E$3,"",IF((M112*S112/P112)>=OUTLIERS!$E$4,"",M112*S112/P112))) -> 52.10537169 | I112: =IF(ISERROR(O112/N112),"",IF(O112/N112<=OUTLIERS!$F$3,"",IF(O112/N112>=OUTLIERS!$F$4,"",O112/N112))) -> 0.251955839 | J112: =IF(ISERROR(U112/X112),"",IF(U112/X112<=OUTLIERS!$G$3,"",IF(U112/X112>=OUTLIERS!$G$4,"",U112/X112))) -> 0.00216899118 | K112: =IF(ISERROR(Q112/Y112),"",IF(Q112/Y112<=OUTLIERS!$H$3,"",IF(Q112/Y112>=OUTLIERS!$H$4,"",Q112/Y112))) ->  | L112: =IF(ISERROR(W112),"",IF(W112<=OUTLIERS!$I$3,"",IF(W112>=OUTLIERS!$I$4,"",W112))) ->  | M112: 49192600 | N112: 39292600 | O112: 9900000 | P112: 604223 | R112: 26000 | S112: 0.64 | T112: 0.36 | U112: 129844 | V112: 26000 | W112: n/a | X112: 59863775 | Y112: 35739580
A113: 112 | B113: FP023 | C113: GCF | D113: EIF | E113: Adaptation | F113: =IF(ISERROR(P113/(M113*S113)),"",IF((P113/(M113*S113))<=OUTLIERS!$C$3,"",IF((P113/(M113*S113))>=OUTLIERS!$C$4,"",P113/(M113*S113)))) ->  | G113: =IF(ISERROR(Q113/($M113*T113)),"",IF((Q113/($M113*T113))<=OUTLIERS!$D$3,"",IF((Q113/($M113*T113))>=OUTLIERS!$D$4,"",Q113/($M113*T113)))) -> 0.0021 | H113: =IF(ISERROR((M113*S113)/P113),"",IF((M113*S113/P113)<=OUTLIERS!$E$3,"",IF((M113*S113/P113)>=OUTLIERS!$E$4,"",M113*S113/P113))) ->  | I113: =IF(ISERROR(O113/N113),"",IF(O113/N113<=OUTLIERS!$F$3,"",IF(O113/N113>=OUTLIERS!$F$4,"",O113/N113))) -> 0.05263157895 | J113: =IF(ISERROR(U113/X113),"",IF(U113/X113<=OUTLIERS!$G$3,"",IF(U113/X113>=OUTLIERS!$G$4,"",U113/X113))) ->  | K113: =IF(ISERROR(Q113/Y113),"",IF(Q113/Y113<=OUTLIERS!$H$3,"",IF(Q113/Y113>=OUTLIERS!$H$4,"",Q113/Y113))) -> 0.008287966583 | L113: =IF(ISERROR(W113),"",IF(W113<=OUTLIERS!$I$3,"",IF(W113>=OUTLIERS!$I$4,"",W113))) -> 0.5 | M113: 10000000 | N113: 9500000 | O113: 500000 | P113: n/a | Q113: 21000 | R113: 21000 | S113: 0 | T113: 1 | U113: n/a | V113: 21000 | W113: 0.5 | X113: 3755008 | Y113: 2533794
A114: 113 | B114: FP024 | C114: GCF | D114: EIF | E114: Adaptation | F114: =IF(ISERROR(P114/(M114*S114)),"",IF((P114/(M114*S114))<=OUTLIERS!$C$3,"",IF((P114/(M114*S114))>=OUTLIERS!$C$4,"",P114/(M114*S114)))) ->  | G114: =IF(ISERROR(Q114/($M114*T114)),"",IF((Q114/($M114*T114))<=OUTLIERS!$D$3,"",IF((Q114/($M114*T114))>=OUTLIERS!$D$4,"",Q114/($M114*T114)))) -> 0.00765 | H114: =IF(ISERROR((M114*S114)/P114),"",IF((M114*S114/P114)<=OUTLIERS!$E$3,"",IF((M114*S114/P114)>=OUTLIERS!$E$4,"",M114*S114/P114))) ->  | I114: =IF(ISERROR(O114/N114),"",IF(O114/N114<=OUTLIERS!$F$3,"",IF(O114/N114>=OUTLIERS!$F$4,"",O114/N114))) -> 0 | J114: =IF(ISERROR(U114/X114),"",IF(U114/X114<=OUTLIERS!$G$3,"",IF(U114/X114>=OUTLIERS!$G$4,"",U114/X114))) ->  | K114: =IF(ISERROR(Q114/Y114),"",IF(Q114/Y114<=OUTLIERS!$H$3,"",IF(Q114/Y114>=OUTLIERS!$H$4,"",Q114/Y114))) -> 0.03019187827 | L114: =IF(ISERROR(W114),"",IF(W114<=OUTLIERS!$I$3,"",IF(W114>=OUTLIERS!$I$4,"",W114))) -> 0.5 | M114: 10000000 | N114: 10000000 | O114: 0 | P114: n/a | Q114: 76500 | R114: 76500 | S114: 0 | T114: 1 | U114: n/a | V114: 76500 | W114: 0.5 | X114: 3755008 | Y114: 2533794
A115: 114 | B115: FP025 | C115: GCF | D115: EBRD | E115: Cross-cutting | F115: =IF(ISERROR(P115/(M115*S115)),"",IF((P115/(M115*S115))<=OUTLIERS!$C$3,"",IF((P115/(M115*S115))>=OUTLIERS!$C$4,"",P115/(M115*S115)))) -> 0.02104918993 | G115: =IF(ISERROR(Q115/($M115*T115)),"",IF((Q115/($M115*T115))<=OUTLIERS!$D$3,"",IF((Q115/($M115*T115))>=OUTLIERS!$D$4,"",Q115/($M115*T115)))) ->  | H115: =IF(ISERROR((M115*S115)/P115),"",IF((M115*S115/P115)<=OUTLIERS!$E$3,"",IF((M115*S115/P115)>=OUTLIERS!$E$4,"",M115*S115/P115))) -> 47.50776649 | I115: =IF(ISERROR(O115/N115),"",IF(O115/N115<=OUTLIERS!$F$3,"",IF(O115/N115>=OUTLIERS!$F$4,"",O115/N115))) -> 2.664021164 | J115: =IF(ISERROR(U115/X115),"",IF(U115/X115<=OUTLIERS!$G$3,"",IF(U115/X115>=OUTLIERS!$G$4,"",U115/X115))) -> 0.04845431148 | K115: =IF(ISERROR(Q115/Y115),"",IF(Q115/Y115<=OUTLIERS!$H$3,"",IF(Q115/Y115>=OUTLIERS!$H$4,"",Q115/Y115))) ->  | L115: =IF(ISERROR(W115),"",IF(W115<=OUTLIERS!$I$3,"",IF(W115>=OUTLIERS!$I$4,"",W115))) -> 0.3707368189 | M115: 1385000000 | N115: 378000000 | O115: 1007000000 | P115: 27456416 | R115: 72840 | S115: 0.9418 | T115: 0.0582 | U115: 1939061 | V115: 72840 | W115: 0.3707368189 | X115: 40018337.7 | Y115: 18374376.9
A116: 115 | B116: FP026 | C116: GCF | D116: CI, EIB | E116: Cross-cutting | F116: =IF(ISERROR(P116/(M116*S116)),"",IF((P116/(M116*S116))<=OUTLIERS!$C$3,"",IF((P116/(M116*S116))>=OUTLIERS!$C$4,"",P116/(M116*S116)))) -> 0.3339544887 | G116: =IF(ISERROR(Q116/($M116*T116)),"",IF((Q116/($M116*T116))<=OUTLIERS!$D$3,"",IF((Q116/($M116*T116))>=OUTLIERS!$D$4,"",Q116/($M116*T116)))) ->  | H116: =IF(ISERROR((M116*S116)/P116),"",IF((M116*S116/P116)<=OUTLIERS!$E$3,"",IF((M116*S116/P116)>=OUTLIERS!$E$4,"",M116*S116/P116))) -> 2.99442 | I116: =IF(ISERROR(O116/N116),"",IF(O116/N116<=OUTLIERS!$F$3,"",IF(O116/N116>=OUTLIERS!$F$4,"",O116/N116))) -> 0.3046728972 | J116: =IF(ISERROR(U116/X116),"",IF(U116/X116<=OUTLIERS!$G$3,"",IF(U116/X116>=OUTLIERS!$G$4,"",U116/X116))) -> 0.3250327552 | K116: =IF(ISERROR(Q116/Y116),"",IF(Q116/Y116<=OUTLIERS!$H$3,"",IF(Q116/Y116>=OUTLIERS!$H$4,"",Q116/Y116))) ->  | L116: =IF(ISERROR(W116),"",IF(W116<=OUTLIERS!$I$3,"",IF(W116>=OUTLIERS!$I$4,"",W116))) -> 0.5 | M116: 69800000 | N116: 53500000 | O116: 16300000 | P116: 10000000 | R116: 1562000 | S116: 0.429 | T116: 0.571 | U116: 1000000 | V116: 1562000 | W116: 0.5 | X116: 3076613 | Y116: 25570895
A117: 116 | B117: FP027 | C117: GCF | D117: DeutscheBank | E117: Mitigation | F117: =IF(ISERROR(P117/(M117*S117)),"",IF((P117/(M117*S117))<=OUTLIERS!$C$3,"",IF((P117/(M117*S117))>=OUTLIERS!$C$4,"",P117/(M117*S117)))) -> 0.1676547646 | G117: =IF(ISERROR(Q117/($M117*T117)),"",IF((Q117/($M117*T117))<=OUTLIERS!$D$3,"",IF((Q117/($M117*T117))>=OUTLIERS!$D$4,"",Q117/($M117*T117)))) ->  | H117: =IF(ISERROR((M117*S117)/P117),"",IF((M117*S117/P117)<=OUTLIERS!$E$3,"",IF((M117*S117/P117)>=OUTLIERS!$E$4,"",M117*S117/P117))) -> 5.964638121 | I117: =IF(ISERROR(O117/N117),"",IF(O117/N117<=OUTLIERS!$F$3,"",IF(O117/N117>=OUTLIERS!$F$4,"",O117/N117))) -> 2.77 | J117: =IF(ISERROR(U117/X117),"",IF(U117/X117<=OUTLIERS!$G$3,"",IF(U117/X117>=OUTLIERS!$G$4,"",U117/X117))) -> 0.1041654343 | K117: =IF(ISERROR(Q117/Y117),"",IF(Q117/Y117<=OUTLIERS!$H$3,"",IF(Q117/Y117>=OUTLIERS!$H$4,"",Q117/Y117))) ->  | L117: =IF(ISERROR(W117),"",IF(W117<=OUTLIERS!$I$3,"",IF(W117>=OUTLIERS!$I$4,"",W117))) ->  | M117: 301600000 | N117: 80000000 | O117: 221600000 | P117: 50564677 | S117: 1 | T117: 0 | U117: 2754190 | V117: n/a | W117: n/a | X117: 26440536.8 | Y117: 62321135.6
A118: 117 | B118: FP028 | C118: GCF | D118: XacBank | E118: Mitigation | F118: =IF(ISERROR(P118/(M118*S118)),"",IF((P118/(M118*S118))<=OUTLIERS!$C$3,"",IF((P118/(M118*S118))>=OUTLIERS!$C$4,"",P118/(M118*S118)))) -> 0.0199054 | G118: =IF(ISERROR(Q118/($M118*T118)),"",IF((Q118/($M118*T118))<=OUTLIERS!$D$3,"",IF((Q118/($M118*T118))>=OUTLIERS!$D$4,"",Q118/($M118*T118)))) ->  | H118: =IF(ISERROR((M118*S118)/P118),"",IF((M118*S118/P118)<=OUTLIERS!$E$3,"",IF((M118*S118/P118)>=OUTLIERS!$E$4,"",M118*S118/P118))) -> 50.23762396 | I118: =IF(ISERROR(O118/N118),"",IF(O118/N118<=OUTLIERS!$F$3,"",IF(O118/N118>=OUTLIERS!$F$4,"",O118/N118))) -> 2 | J118: =IF(ISERROR(U118/X118),"",IF(U118/X118<=OUTLIERS!$G$3,"",IF(U118/X118>=OUTLIERS!$G$4,"",U118/X118))) -> 0.007163778546 | K118: =IF(ISERROR(Q118/Y118),"",IF(Q118/Y118<=OUTLIERS!$H$3,"",IF(Q118/Y118>=OUTLIERS!$H$4,"",Q118/Y118))) ->  | L118: =IF(ISERROR(W118),"",IF(W118<=OUTLIERS!$I$3,"",IF(W118>=OUTLIERS!$I$4,"",W118))) ->  | M118: 60000000 | N118: 20000000 | O118: 40000000 | P118: 1194324 | S118: 1 | T118: 0 | U118: 149290 | V118: n/a | W118: n/a | X118: 20839561 | Y118: 3075647
A119: 118 | B119: FP030 | C119: GCF | D119: IDB | E119: Mitigation | F119: =IF(ISERROR(P119/(M119*S119)),"",IF((P119/(M119*S119))<=OUTLIERS!$C$3,"",IF((P119/(M119*S119))>=OUTLIERS!$C$4,"",P119/(M119*S119)))) -> 0.02343032159 | G119: =IF(ISERROR(Q119/($M119*T119)),"",IF((Q119/($M119*T119))<=OUTLIERS!$D$3,"",IF((Q119/($M119*T119))>=OUTLIERS!$D$4,"",Q119/($M119*T119)))) ->  | H119: =IF(ISERROR((M119*S119)/P119),"",IF((M119*S119/P119)<=OUTLIERS!$E$3,"",IF((M119*S119/P119)>=OUTLIERS!$E$4,"",M119*S119/P119))) -> 42.67973856 | I119: =IF(ISERROR(O119/N119),"",IF(O119/N119<=OUTLIERS!$F$3,"",IF(O119/N119>=OUTLIERS!$F$4,"",O119/N119))) -> 3.909774436 | J119: =IF(ISERROR(U119/X119),"",IF(U119/X119<=OUTLIERS!$G$3,"",IF(U119/X119>=OUTLIERS!$G$4,"",U119/X119))) -> 0.003009441815 | K119: =IF(ISERROR(Q119/Y119),"",IF(Q119/Y119<=OUTLIERS!$H$3,"",IF(Q119/Y119>=OUTLIERS!$H$4,"",Q119/Y119))) ->  | L119: =IF(ISERROR(W119),"",IF(W119<=OUTLIERS!$I$3,"",IF(W119>=OUTLIERS!$I$4,"",W119))) ->  | M119: 653000000 | N119: 133000000 | O119: 520000000 | P119: 15300000 | S119: 1 | T119: 0 | U119: 614000 | V119: n/a | W119: n/a | X119: 204024546 | Y119: 44271041
